{"text_format":"1","workbook":"xlsx","n_sheets":10,"sheets":["GİRİŞ","ANASAYFA","BORDRO","BANKA LİSTESİ","BİLANÇO","KİŞİ BORDRO","VERGİ MATRAH","DEVAM TAKİP","KAYNAK","TAKVİM"],"not_rendered":{"charts":0,"images":13,"macros":1,"external_links":0,"defined_names":8,"comments":2,"pivot_tables":0},"unopened":[],"bounds":{"document_bytes":16777216,"sheet_cells":100000,"rows_first":2000,"rows_last":500,"rows_between":2000,"halvings":0,"cell_chars":16384,"cell_head_chars":4096},"cells_cut":0,"cells_raw":0,"read":"whole","date_system":"1900"}

{"sheet":"GİRİŞ","index":0,"n_rows":19,"n_cols":17,"rows_kept":19,"cut":false,"hidden":false,"merged":[[1,3,1,7],[17,2,18,2],[6,2,6,7],[0,0,0,7],[5,5,5,6],[5,3,5,4],[2,3,2,7],[15,2,15,7],[3,3,3,7],[4,3,4,7],[5,12,5,13],[15,13,15,14],[18,0,18,1],[17,0,17,1],[17,5,18,7],[10,2,10,7],[11,2,11,7],[12,3,12,7],[16,3,16,7],[13,3,13,7],[7,11,7,12],[8,11,8,12],[8,9,8,10],[7,9,7,10],[10,9,10,10],[7,2,7,7],[5,9,5,10],[12,9,12,10],[15,9,15,10],[13,9,13,10],[14,9,14,10],[16,9,16,10],[8,2,8,7],[9,2,9,7],[11,9,11,10],[6,9,6,14],[7,13,7,14],[8,13,8,14],[9,13,9,14],[10,13,10,14],[14,13,14,14],[9,9,9,10],[13,13,13,14],[0,9,0,10],[0,11,0,14],[3,9,3,10],[3,11,3,14],[1,13,1,14],[2,9,2,10],[2,11,2,14],[1,11,1,12],[18,9,18,10],[18,12,18,13],[9,11,9,12],[10,11,10,12],[11,11,11,12],[12,11,12,12],[13,11,13,12],[14,11,14,12],[15,11,15,12],[16,11,16,12],[17,11,17,12],[16,13,16,14],[17,13,17,14],[11,13,11,14],[17,9,17,10],[12,13,12,14]]}
["ÇOCUK KULÜBÜ İŞLEM ADIMLARI",null,null,null,null,null,null,null,null,"Okul Adı",null,"................... Anaokulu"]
["S.N.","İŞLEM","DÖNEM","ŞABLON (Çift Tıklayınız.)",null,null,null,null,null,"İli","İlçesi","MUĞLA",null,"KÖYCEĞİZ"]
[1,"Okul Aile Birliği Hesabı altında alt hesap açınız.","PLANLAMA ÖNCESİ",null,null,null,null,null,null,"Okul Müdürü"]
[2,"Çocuk Kulübü Yönetim Kurulu ve Etkinlik/Personel Planlaması yaparak olur alınız.\nOlur ekinde kulüpte görev alacak öğretmen/usta öğretici ve personelin yeterlilik evraklarını ekleyiniz","EYLÜL AYI",null,null,null,null,null,null,"Müdür Yardımcısı"]
[3,"Güncel Dönem Maaş Aylık Katsayısı ve Brüt Aylıkları \"Anasayfa\"ya girerek 1 saatlik ücreti belirleyiniz.","OCAK\nTEMMUZ","GÜNCEL KATSAYILAR"]
[4,"Öğrenci kayıtlarını alınız. EK-1, EK-2, EK3 Formlar ile öğrenci özlük föylerini oluşturunuz. E-okul işlemlerini tamamlaynız.","EYLÜL AYI",null,null,null,null,null,null,"1 Saatlik Ücret",null,{"$f":"ANASAYFA!J10","v":17.84},"Günlük Etkinlik Saati",null,{"$f":"ANASAYFA!L6","v":0}]
[5,"Görevli Öğretmen/Ücretli Usta Öğreticiye ait föy dosyası oluşturunuz. (Diploma, Kurs Bitirme Belgesi, …)\nGörevli yardımcı personelin işe girişi kulüp bünyesinde ise föy oluşturunuz (Sözleşme,Sağlık raporu, sicil kaydı, …)",null,null,null,null,null,null,null,"KULÜP AYLIK AİDAT HESAP ÇİZELGESİ\n(VELİ BİLGİLENDİRME)"]
[6,"ANASAYFA'da tüm GRİ alanları eksiksiz doldurarak cari ay için planlamanızı gerçekleştiriniz.","HER AY BAŞI",null,null,null,null,null,null,"Ay",null,"İş Günü",null,"Aylık Ücret",null,null,"Versiyon 1.0"]
[7,"Mevcut ay içinde aidat yatırılmaması kaynaklı BANKA HESABI ile TAHMİNİ BÜTÇE arasında fark var ise\n                                                                                                      BANKA HESABINA YATAN tutarı ilgili alana giriniz.","AYLIK ",null,null,null,null,null,null,"Eylül ",null,15,null,{"$f":"$L$6*$O$6*$L9","v":0},null,null,"2023-10-01"]
[8,"Temel Giderler Bütçesinden yapmış olduğunuz aylık harcamaları (Temizlik, Materyal vb.)\n                                                                                                      TEMEL GİDER HARCAMA TUTARI alanına giriniz.","AYLIK ",null,null,null,null,null,null,"Ekim",null,22,null,0]
[9,"Yardımcı personel ücretinin tümü kulüp bütçesinden karşılanıyor ise (Yönerge 16/2); bu personele yapılan ödeme farkını\n                                                          TEMEL GİDER KASASINDAN ÖDENEN PERSONEL ÖDEME FARKI alanına giriniz.","AYLIK ",null,null,null,null,null,null,"Kasım",null,17,null,0]
[10,"Her ayın 1-23'ü arası bir önceki ayın Muhtasar Beyanname girişi/ödemesi yapınız. Stopaj gibi kalemler nedeniyle fark oluşması halinde toplam ödenen tutarı                                            SGK VE VERGİ ÖDEMELERİ FARKI alanına giriniz.","AYLIK ",null,null,null,null,null,null,"Aralık",null,21,null,0]
[11,"Banka Talimat yazısı yazarak, ekinde banka listesi ile personel ödemelerini gerçekleştiriniz. \nÖdeme dekontunu aylık bilanço föyüne ekleyiniz.","AYLIK ",null,null,null,null,null,null,"Ocak",null,14,null,0]
[12,"Kadrolu personel Vergi Matrahlarını Üst Yazı ekinde İlçe Milli Eğitim Müdürlüğü Destek/Strateji Şubesine vergi matrahlarının güncellenmesi için gönderiniz.","AYLIK ",null,null,null,null,null,null,"Şubat",null,19,null,0]
[13,"Bordro, banka listesi, bilanço, kişi bordroları, vergi matrahı çıktılarını alarak Aylık Kulüp Bilanço föyünü hazırlayınız.","AYLIK ","BORDRO","BANKA LİSTESİ","BİLANÇO","KİŞİ BORDRO","VERGİ MATRAHI",null,"Mart",null,21,null,0]
[14,"6-7-8-9-10-11. ALANLARDAKİ İŞLEMLERİ SIRASIYLA AYLIK OLARAK TEKRAR EDİNİZ.","AYLIK ",null,null,null,null,null,null,"Nisan",null,21,null,0]
[15,"Kulüp Dönemi sonunda Temel Giderler Kasasında kalan tüm miktarı, okul aile birliği ana hesabına aktarınız.","HAZİRAN\nAĞUSTOS",null,null,null,null,null,null,"Mayıs",null,22,null,0]
["Programla ilgili tüm işlevleri kullanabilmek için bilgisayarınızda makroları etkinleştirmeniz gerekebilir. \nDosya > Seçenekler > Güven Merkezi > Güven Merkezi Ayarları > Makro Ayarları > İzin Ver",null,"M.E.B. ÇOCUK KULÜPLERİ YÖNERGESİ",null,null,null,null,null,null,"Haziran",null,10,null,0]
["Program bilgi amaçlı hazırlanmıştır. Kesin hesaplar için muhasebecinize başvurunuz.",null,null,null,null,null,null,null,null,"1. DÖNEM SABİT ÜCRET",null,{"$f":"AVERAGE(N9:O13)","v":0},"2. DÖNEM SABİT ÜCRET",null,{"$f":"AVERAGE(N14:O18)","v":0}]

{"sheet":"ANASAYFA","index":1,"n_rows":30,"n_cols":22,"rows_kept":30,"cut":false,"hidden":false,"merged":[[19,16,19,19],[20,16,20,19],[21,16,21,19],[22,16,22,19],[22,6,22,7],[16,2,16,5],[16,6,16,7],[16,8,16,9],[20,2,20,5],[20,6,20,7],[17,2,17,5],[17,6,17,7],[18,2,18,5],[18,6,18,7],[21,6,21,7],[22,2,22,5],[19,8,19,9],[20,8,20,9],[17,8,17,9],[18,8,18,9],[21,8,21,9],[19,2,19,5],[19,6,19,7],[26,6,26,7],[29,6,29,7],[27,6,27,7],[23,2,23,5],[23,6,23,7],[29,3,29,5],[29,1,29,2],[27,2,27,5],[25,6,25,7],[2,19,4,19],[1,1,1,21],[7,20,7,21],[2,20,4,21],[2,1,4,2],[5,1,5,2],[2,3,4,4],[2,5,4,6],[5,5,5,6],[5,3,5,4],[2,14,4,14],[2,16,4,16],[7,1,9,2],[7,3,9,4],[7,5,9,6],[7,7,9,8],[9,16,9,18],[2,15,4,15],[2,17,4,17],[2,18,4,18],[9,19,9,21],[8,16,8,18],[8,19,8,21],[5,20,5,21],[2,13,3,13],[10,1,10,2],[10,7,10,8],[5,7,5,8],[5,11,5,12],[2,11,4,12],[5,9,5,10],[2,9,4,10],[2,7,4,8],[7,11,7,13],[8,12,8,13],[9,12,10,13],[9,11,10,11],[7,9,8,10],[9,9,10,10],[10,5,10,6],[10,3,10,4],[17,20,20,21],[15,14,15,15],[16,14,16,15],[17,14,17,15],[18,14,18,15],[19,14,19,15],[29,10,29,11],[23,14,23,15],[24,14,24,15],[25,14,25,15],[26,14,26,15],[27,14,27,15],[28,14,28,15],[23,16,23,19],[24,16,24,19],[20,14,20,15],[25,16,25,19],[26,16,26,19],[27,16,27,19],[28,16,28,19],[15,16,15,19],[16,16,16,19],[17,16,17,19],[18,16,18,19],[21,20,22,21],[25,20,27,20],[24,2,24,5],[24,6,24,7],[21,2,21,5],[28,20,29,20],[25,21,27,21],[28,21,29,21],[23,20,24,21],[29,12,29,19],[21,14,21,15],[22,14,22,15],[25,8,25,9],[26,8,26,9],[27,8,27,9],[28,8,28,9],[23,8,23,9],[24,8,24,9],[26,2,26,5],[22,8,22,9],[29,8,29,9],[28,2,28,5],[28,6,28,7],[25,2,25,5],[7,18,7,19],[7,14,8,15],[10,16,10,18],[10,19,10,21],[9,14,10,15],[12,20,14,21],[15,20,16,21],[13,16,13,19],[12,1,12,19],[15,2,15,5],[13,2,13,5],[13,8,13,9],[14,14,14,15],[13,14,13,15],[13,6,13,7],[14,2,14,5],[14,6,14,7],[14,8,14,9],[15,8,15,9],[15,6,15,7],[14,16,14,19]]}
[]
[null,"ÇOCUK KULÜBÜ MUHASEBE PROGRAMI"]
[null,"Güncel Dönem Maaş Aylık Katsayısı",null,"En Yüksek Devlet Memuru Brüt Aylığı",null,"Güncel Dönem Brüt Asgari Ücret",null,"Gündüz Öğretimi Göstergesi",null,"Kulüpte Yemek Verilecek Mi?",null,"Günlük Etkinlik Saat Sayısı",null,"DÖNEM\nSEÇİNİZ","Kulüp Faaliyeti Yapılan İş Günü","Grup (Sınıf) Sayısı","Toplam Öğrenci Sayısı","%50 İndirimli Çocuk Sayısı","Ücretsiz Faydalanan Çocuk Sayısı","KATSAYILARI\nGÜNCELLE","M. Orhan DURUM\nMuğla - Köyceğiz\norhandurum@gmail.com"]
[]
[null,null,null,null,null,null,null,null,null,null,null,null,null,2023]
[null,0.50979600000000003,null,{"$f":"9500*B6","v":4843.0619999999999},null,13414.5,null,140,null,"Evet",null,null,null,"KASIM",null,null,null,null,null,"       SIFIRLA","               KULLANIM KILAVUZU"]
[]
[null,"Günlük Toplam Ders Yükü",null,"Aylık Toplam Ders Yükü (Koord. Dahil)",null,"Belirlenebilecek En Az Saat Ücreti",null,"Belirlenebilecek En Yüksek Saat Ücreti",null,"Okulun Belirlediği 1 Saatlik Ücret",null,"Toplanan Aidat, Bütçeden;",null,null,"BÜTÇE",null,"İLİ","İLÇESİ","MUĞLA",null,"KÖYCEĞİZ"]
[null,null,null,null,null,null,null,null,null,null,null,"FARKLI MI","TOPLANAN MİKTAR",null,null,null,"Okul Adı",null,null,"KÖYCEĞİZ ANAOKULU"]
[null,null,null,null,null,null,null,null,null,17.84,null,"AYNI",null,null,{"$f":"KAYNAK!G15","v":0},null,"Okul Müdürü"]
[null,{"$f":"P6*L6","v":0},null,{"$f":"(B11*KAYNAK!G6)+KAYNAK!C80","v":0},null,{"$f":"(B6*140)/10","v":7.137144000000001},null,{"$f":"(B6*140)/KAYNAK!A5","v":17.842860000000002},null,null,null,null,null,null,null,null,"Müdür Yardımcısı"]
[]
[null,"PERSONEL BİLGİLERİ",null,null,null,null,null,null,null,null,null,null,null,null,null,null,null,null,null,null,"AY SONU TEMEL GİDER HARCAMA TUTARI (Temizlik, Kırtasiye, Okulun Diğer İhtiyaçları vb.)"]
[null,null,"Personel Adı Soyadı*",null,null,null,"Görevi*",null,"Kadro Durumu*",null,"Aylık Ders Saati","Koord.","Vergi Dilimi*","Rapor/İzin Gün Sayısı","T.C. Kimlik No",null,"IBAN"]
[null,1]
[null,2]
[null,3]
[null,4,null,null,null,null,null,null,null,null,null,null,null,null,null,null,null,null,null,null,"Temel Gider Kasasından Personele Ek Ödeme Yapıldıysa; Ek Ödenen Tutar. (Yönerge 16/2)"]
[null,5]
[null,6]
[null,7]
[null,8]
[null,9]
[null,10,null,null,null,null,null,null,null,null,null,null,null,null,null,null,null,null,null,null,"SGK ve Vergi Ödemelerinde Stopaj vb Farkı"]
[null,11]
[null,12,null,null,null,null,null,null,null,null,null,null,null,null,null,null,null,null,null,null,"HESAPLANAN\nTUTAR","TOPLAM ÖDENEN TUTAR"]
[null,13]
[null,14]
[null,15,null,null,null,null,null,null,null,null,null,null,null,null,null,null,null,null,null,null,{"$f":"BİLANÇO!L40","v":0}]
[null,"KONTROL :",null,"TOPLAM DERS YÜKÜ",null,null,{"$f":"D11","v":0},null,{"$f":"_xlfn.IFS(K30=D11,\"TUTARLI\",K30>D11,\"FAZLA\",K30<D11,\"EKSİK\")","v":"TUTARLI"},null,{"$f":"SUM(K15:L29)-KAYNAK!AR23","v":0},null,{"$f":"IF(I30=\"TUTARLI\",\"TUTARLI\",IF(I30=\"EKSİK\",\"PLANLAMADA -EKSİK- DERS SAATİ GİRİLMİŞ\",IF(I30=\"FAZLA\",\"PLANLAMADA -FAZLA- DERS SAATİ GİRİLMİŞ\")))","v":"TUTARLI"}]

{"sheet":"BORDRO","index":2,"n_rows":36,"n_cols":24,"rows_kept":36,"cut":false,"hidden":false,"merged":[[16,13,16,14],[17,13,17,14],[18,13,18,14],[2,1,2,4],[4,1,4,4],[4,6,4,7],[7,6,7,7],[13,1,13,9],[8,6,8,7],[8,8,8,9],[13,10,13,12],[14,12,15,12],[9,10,11,10],[14,13,15,14],[14,10,15,10],[14,11,15,11],[11,11,11,12],[8,1,8,4],[14,4,15,4],[14,7,15,7],[14,9,15,9],[6,6,6,7],[5,8,5,9],[10,11,10,12],[1,22,2,23],[1,5,1,12],[1,1,1,2],[2,8,2,9],[2,11,2,12],[3,8,3,9],[4,8,4,9],[6,8,6,9],[7,8,7,9],[3,1,3,4],[2,6,2,7],[5,1,5,4],[6,1,6,4],[7,1,7,4],[3,6,3,7],[5,6,5,7],[1,15,3,20],[4,20,5,20],[4,17,5,17],[4,19,5,19],[4,18,5,18],[4,16,5,16],[4,15,5,15],[6,15,8,15],[9,8,11,9],[14,1,15,3],[16,1,16,3],[17,1,17,3],[22,1,22,3],[23,1,23,3],[26,1,26,3],[27,1,27,3],[14,5,15,5],[14,6,15,6],[14,8,15,8],[12,1,12,5],[12,6,12,7],[9,1,11,4],[9,5,11,5],[18,1,18,3],[19,1,19,3],[20,1,20,3],[21,1,21,3],[9,6,11,7],[34,18,34,22],[35,18,35,22],[33,18,33,22],[24,13,24,14],[25,13,25,14],[33,7,36,17],[34,2,34,6],[35,2,35,6],[33,2,33,6],[28,1,28,3],[29,1,29,3],[30,1,30,3],[24,1,24,3],[25,1,25,3],[31,13,31,14],[21,13,21,14],[30,13,30,14],[31,1,31,9],[26,13,26,14],[27,13,27,14],[22,13,22,14],[20,13,20,14],[19,13,19,14],[23,13,23,14],[28,13,28,14],[29,13,29,14],[14,15,15,15],[8,23,9,23],[10,22,11,22],[10,23,11,23],[14,23,15,23],[6,20,8,20],[14,22,15,22],[9,20,11,20],[9,19,11,19],[14,20,15,20],[14,21,15,21],[8,22,9,22],[9,18,11,18],[9,15,11,15],[6,17,8,17],[9,17,11,17],[6,18,8,18],[6,19,8,19],[6,16,8,16],[9,16,11,16],[13,13,13,20],[13,21,13,22]]}
[]
[null,"CARİ DÖNEM",null,{"$f":"KAYNAK!G2","v":"KASIM"},{"$f":"KAYNAK!G3","v":"2023"},"GİDER KALEMLERİ ÖZET TABLOSU",null,null,null,null,null,null,null,null,null,"Yönerge Doğrultusunda Görevlendirilebilecek Kişilerin Brüt Ücret Üst Oranları ve Ödenebilecek Brüt Ücret Üst Tutarları",null,null,null,null,null,null,"PERSONEL GİDERLERİ SONRASI TEMEL GİDER KASA DURUMU"]
[null,"GİDER KALEMİ",null,null,null,"Pay","Paydaki Tutar\n(Oransal)",null,"Kullanılabilir Tutar\n(Üst Limite Göre)",null,"Net Ödenen Tutar","Temel gİdere Aktarılan"]
[null,"Temel Giderler",null,null,null,0.33,{"$f":"KAYNAK!$G$15/100*33","v":0},null,{"$f":"G4","v":0},null,{"$f":"I4","v":0},"SGK-Vergi","Limit Üstü",null,null,null,null,null,null,null,null,1,"Oransal Pay",{"$f":"G4","v":0}]
[null,"Kulüp Yönetim Kurulu Başkanı (Müdür)",null,null,null,7.0000000000000007E-2,{"$f":"KAYNAK!$G$15/100*7","v":0},null,{"$f":"SUMIF(E17:E31,KAYNAK!F16,L17:L31)","v":0},null,{"$f":"SUMIF(E17:E31,KAYNAK!F16,X17:X31)","v":0},{"$f":"IF(K5=0,0,G5-K5-M5-IF(U17=\"\",0,U17))","v":0},{"$f":"G5-I5","v":0},null,null,null,"Müdür - Koord. Öğrt.","Müdür Yardımcısı","Kadrolu Öğretmen","Ücretli Usta Öğretici","Temizlik Muhasebe",2,"Üst limitlerden Aktarılan",{"$f":"M10","v":{"$error":"#N/A"}}]
[null,"Kulüp Yönetim Kurulu Bşk. Yrd. (Müdür Yrd.)",null,null,null,0.05,{"$f":"KAYNAK!$G$15/100*5","v":0},null,{"$f":"SUMIF(E17:E31,KAYNAK!F17,L17:L31)+SUMIF(E17:E31,KAYNAK!F18,L17:L31)","v":0},null,{"$f":"(IF(KAYNAK!N53>KAYNAK!K45,0,SUM(SUMIF(E17:CEE31,KAYNAK!F17,X17:X31),(SUMIF(E17:E31,KAYNAK!F18,X17:X31)))))","v":{"$error":"#N/A"}},{"$f":"IF(K6=0,0,I6-K6-IF(U18=\"\",0,U18))","v":{"$error":"#N/A"}},{"$f":"IF(K6=0,G6,G6-I6)","v":{"$error":"#N/A"}},null,null,null,null,null,null,null,null,3,"SGK/Vergi Kişi Kesinti",{"$f":"L10","v":{"$error":"#N/A"}}]
[null,"Öğretmen-Usta Öğretici-Koordinatör (Toplam)",null,null,null,0.49,{"$f":"KAYNAK!$G$15/100*49","v":0},null,{"$f":"(SUMIF(E17:E31,KAYNAK!F19,L17:L31)+(SUMIF(BORDRO!E17:E31,KAYNAK!F20,L17:L31)+(SUMIF(BORDRO!E17:E31,KAYNAK!F23,L17:L31)+IF(AND(K6=0,E18=KAYNAK!F17),SUMIF(BORDRO!E17:E31,KAYNAK!F17,L17:L31),0)+IF(AND(K6=0,E18=KAYNAK!F18),SUMIF(BORDRO!E17:E31,KAYNAK!F18,L17:L31)))))","v":{"$error":"#N/A"}},null,{"$f":"(SUMIF(E17:E31,KAYNAK!F19,X17:X31)+(SUMIF(BORDRO!E17:E31,KAYNAK!F20,X17:X31)+(SUMIF(BORDRO!E17:E31,KAYNAK!F23,X17:X31)+IF(AND(E18=KAYNAK!F17,KAYNAK!N53>KAYNAK!K45),BORDRO!X18))))","v":{"$error":"#N/A"}},{"$f":"SUM(SUMIF(E17:E31,KAYNAK!F19,N17:O31)+SUMIF(E17:E31,KAYNAK!F19,P17:P31)+SUMIF(E17:E31,KAYNAK!F19,Q17:Q31)+SUMIF(E17:E31,KAYNAK!F19,R17:R31))+SUMIF(E17:E31,KAYNAK!F20,BORDRO!N17:O31)+SUMIF(E17:E31,KAYNAK!F20,BORDRO!P17:P31)+SUMIF(E17:E31,KAYNAK!F20,BORDRO!Q17:Q31)+SUMIF(E17:E31,KAYNAK!F20,BORDRO!R17:R31)+SUMIF(E17:E31,KAYNAK!F23,BORDRO!N17:O31)+SUMIF(E17:E31,KAYNAK!F23,BORDRO!P17:P31)+SUMIF(E17:E31,KAYNAK!F23,BORDRO!Q17:Q31)+SUMIF(E17:E31,KAYNAK!F23,BORDRO!R17:R31)+IF(AND(E18=KAYNAK!F17,KAYNAK!N53>KAYNAK!K45),N18,0)+IF(AND(E18=KAYNAK!F17,KAYNAK!N53>KAYNAK!K45),P18,0)+IF(AND(E18=KAYNAK!F17,KAYNAK!N53>KAYNAK!K45),IF(Q18=\"\",0),0)+IF(AND(E18=KAYNAK!F17,KAYNAK!N53>KAYNAK!K45),IF(R18=\"\",0),0)+IF(AND(E18=KAYNAK!F18,KAYNAK!N53>KAYNAK!K45),N18,0)+IF(AND(E18=KAYNAK!F18,KAYNAK!N53>KAYNAK!K45),P18)+IF(AND(E18=KAYNAK!F18,KAYNAK!N53>KAYNAK!K45),IF(Q18=\"\",0),0+IF(AND(E18=KAYNAK!F18,KAYNAK!N53>KAYNAK!K45),IF(R18=\"\",0),0))","v":{"$error":"#N/A"}},{"$f":"G7-I7","v":{"$error":"#N/A"}},null,null,"Oran",1.1000000000000001,0.85,1.2,2.2999999999999998,0.8,4,"Rapor kesinti aktarımı",{"$f":"SUM(U17:U31)","v":0}]
[null,"Yazışma-Muhasebe İşlerini Yürüten Personel",null,null,null,0.02,{"$f":"KAYNAK!$G$15/100*2","v":0},null,{"$f":"SUMIF(E17:E31,KAYNAK!F22,L17:L31)","v":0},null,{"$f":"SUMIF(E17:E31,KAYNAK!F22,X17:X31)","v":0},{"$f":"SUM(SUMIF(E17:E31,KAYNAK!F22,N17:O31)+SUMIF(E17:E31,KAYNAK!F22,P17:P31)+SUMIF(E17:E31,KAYNAK!F22,Q17:Q31)+SUMIF(E17:E31,KAYNAK!F22,R17:R31))","v":0},{"$f":"G8-I8","v":0},null,null,null,null,null,null,null,null,null,"ARA TOPLAM",{"$f":"X4+X5+X6","v":{"$error":"#N/A"}}]
[null,"Temizlik, Bakım ve Beslenme İşlerini Yürüten Pers.",null,null,null,0.04,{"$f":"KAYNAK!$G$15/100*4","v":0},null,{"$f":"SUMIF(E17:E31,KAYNAK!F21,L17:L31)","v":0},null,{"$f":"SUMIF(E17:E31,KAYNAK!F21,X17:X31)","v":0},{"$f":"SUM(SUMIF(E17:E31,KAYNAK!F21,N17:O31)+SUMIF(E17:E31,KAYNAK!F21,P17:P31)+SUMIF(E17:E31,KAYNAK!F21,Q17:Q31)+SUMIF(E17:E31,KAYNAK!F21,R17:R31))","v":0},{"$f":"G9-I9","v":0},null,null,null,null,null,null,null,null,5,"Yaklaşık Vergi ve SGK Ödemeleri\n(İşçi + İşveren)",{"$f":"V32+W32-U32","v":0}]
[null,"TOPLAM",null,null,null,{"$f":"SUM(F4:F9)","v":1},{"$f":"SUM(G4:H9)","v":0},null,{"$f":"SUM(I4:J9)","v":{"$error":"#N/A"}},null,{"$f":"SUM(K4:K9)","v":{"$error":"#N/A"}},{"$f":"SUM(L5:L9)","v":{"$error":"#N/A"}},{"$f":"SUM(M5:M9)","v":{"$error":"#N/A"}},null,null,"Tutar",{"$f":"KAYNAK!$A$23*1.1","v":5327.3681999999999},{"$f":"KAYNAK!$A$23*0.85","v":4116.6026999999995},{"$f":"KAYNAK!$A$23*1.2","v":5811.6743999999999},{"$f":"KAYNAK!$A$23*2.3","v":11139.042599999999},{"$f":"KAYNAK!$A$23*0.8","v":3874.4495999999999}]
[null,null,null,null,null,null,null,null,null,null,null,{"$f":"SUM(L10:M10)","v":{"$error":"#N/A"}},null,null,null,null,null,null,null,null,null,6,"ÖDEMELER SONRASI KASA",{"$f":"X8-X9","v":{"$error":"#N/A"}}]
[null,null,null,null,null,null,null,null,null,null,null,"TEMEL GİDERE İLAVE"]
[]
[null,"PERSONEL BİLGİLERİ",null,null,null,null,null,null,null,null,"HAKEDİŞLER",null,null,"KESİNTİLER",null,null,null,null,null,null,null,"MALİYET TOPLAMI",null,"NET TUTAR"]
[null,"Personel Adı Soyadı",null,null,"Görevi","Kadro Durumu ","Saat","Koordinatör","TOPLAM","GELİR VERGİ DİLİMİ","BRÜT TUTAR\n(KAZANÇ + İŞVEREN SGK PRİM)","KAZANÇ TOPLAMI\n(PAY LİMİT HAKEDİŞ)","GELİR VERGİSİ MATRAHI\n(KAZANÇ - İŞÇİ PRİM)","Damga Vergisi",null,"Gelir Vergisi","Sgk İşçi Payı","İşs. Sig. İşçi Payı","SGK İşveren Payı","İşs. Sig. İşveren Payı","İzin\nRapor\nKesintisi","PERSONELDEN KESİNTİ TOPLAMI","TEMEL GİDER KALEMİNDEN İŞVERENE MALİYETİ\n(%20,5+%2)","NET ÖDENECEK ÜCRET"]
[null,null,null,null,null,null,null,null,null,null,null,null,null,null,null,null,0.14000000000000001,0.01,0.20499999999999999,0.02]
[null,{"$f":"KAYNAK!I24","v":" "},null,null,{"$f":"KAYNAK!L24","v":" "},{"$f":"KAYNAK!M24","v":" "},{"$f":"_xlfn.IFS(E17=\" \",\" \",BORDRO!E17:E17=KAYNAK!$F$16,\"\",AND(E17=KAYNAK!$F$17,ANASAYFA!L15>0),0,BORDRO!E17:E17=KAYNAK!$F$17,\"\",AND(E17=KAYNAK!$F$18,ANASAYFA!L15>0),0,BORDRO!E17:E17=KAYNAK!$F$18,\"\",BORDRO!E17=KAYNAK!$F$21,\"\",BORDRO!E17=KAYNAK!$F$22,\"\",BORDRO!E17=KAYNAK!$F$19,ANASAYFA!K15,BORDRO!E17=KAYNAK!$F$20,ANASAYFA!K15,E17=KAYNAK!$F$23,ANASAYFA!K15)","v":" "},{"$f":"_xlfn.IFS(E17=\" \",\" \",BORDRO!E17:E17=KAYNAK!$F$16,\"\",AND(BORDRO!E17:E17=KAYNAK!$F$17,ANASAYFA!L15=\"\"),\"\",AND(BORDRO!E17:E17=KAYNAK!$F$17,ANASAYFA!L15>0),ANASAYFA!L15,AND(BORDRO!E17:E17=KAYNAK!$F$17,ANASAYFA!L15<0),0,AND(BORDRO!E17:E17=KAYNAK!$F$17,ANASAYFA!L15=0),0,AND(BORDRO!E17:E17=KAYNAK!$F$18,ANASAYFA!L15=\"\"),\"\",AND(BORDRO!E17:E17=KAYNAK!$F$18,ANASAYFA!L15>0),ANASAYFA!L15,AND(BORDRO!E17:E17=KAYNAK!$F$18,ANASAYFA!L15<0),0,AND(BORDRO!E17:E17=KAYNAK!$F$18,ANASAYFA!L15=0),0,BORDRO!E17=KAYNAK!$F$21,\"\",BORDRO!E17=KAYNAK!$F$22,\"\",BORDRO!E17=KAYNAK!$F$19,ANASAYFA!L15,BORDRO!E17=KAYNAK!$F$20,ANASAYFA!L15,E17=KAYNAK!$F$23,ANASAYFA!L15)","v":" "},{"$f":"IFERROR(G17+H17,\"\")","v":""},{"$f":"IF(ANASAYFA!M15=\"\",\"\",ANASAYFA!M15)","v":""},{"$f":"IFERROR(L17+S17+T17,L17)","v":" "},{"$f":"_xlfn.IFS(E17=\" \",\" \",BORDRO!E17=KAYNAK!$F$16,KAYNAK!$K$44,AND(E17=KAYNAK!$F$17,KAYNAK!N52>KAYNAK!K44),KAYNAK!N52,AND(E17=KAYNAK!$F$17,KAYNAK!K44>KAYNAK!N52),KAYNAK!K44,E17=KAYNAK!$F$18,KAYNAK!$K$45,BORDRO!E17=KAYNAK!$F$21,KAYNAK!$M$45,BORDRO!E17=KAYNAK!$F$22,KAYNAK!$K$46,BORDRO!E17=KAYNAK!$F$19,KAYNAK!N52,BORDRO!E17=KAYNAK!$F$20,KAYNAK!N52,E17=KAYNAK!$F$23,KAYNAK!N52)","v":" "},{"$f":"IFERROR(L17-Q17-R17,IFERROR(L17-U17,L17))","v":" "},{"$f":"_xlfn.IFS(F17=\" \",\" \",F17=KAYNAK!$G$16,IF(J17=KAYNAK!$F$34,0,(L17*759/100000)),F17=KAYNAK!$G$17,IF(J17=KAYNAK!$F$34,0,BORDRO!L17)/100000*759)","v":" "},null,{"$f":"_xlfn.IFS(J17=\"\",\"\",F17=KAYNAK!$G$16,M17*IF(J17=KAYNAK!$F$34,0,BORDRO!J17),F17=KAYNAK!$G$17,M17*IF(J17=KAYNAK!$F$34,0,BORDRO!J17))","v":""},{"$f":"_xlfn.IFS(F17=\" \",\" \",F17=KAYNAK!$G$16,\"\",F17=KAYNAK!$G$17,CEILING(L17/100*14,0.1))","v":" "},{"$f":"_xlfn.IFS(F17=\" \",\" \",F17=KAYNAK!$G$16,\"\",F17=KAYNAK!$G$17,CEILING(L17/100*1,0.1))","v":" "},{"$f":"_xlfn.IFS(F17=\" \",\" \",F17=KAYNAK!$G$16,\"\",F17=KAYNAK!$G$17,CEILING(L17/100*20.5,0.1))","v":" "},{"$f":"_xlfn.IFS(F17=\" \",\" \",F17=KAYNAK!$G$16,\"\",F17=KAYNAK!$G$17,CEILING(L17/100*2,0.1))","v":" "},{"$f":"IFERROR(_xlfn.IFS(E17=KAYNAK!$F$19,\"\",E17=KAYNAK!$F$20,\"\",E17=KAYNAK!$F$23,\"\",ANASAYFA!N15>0,L17/30*ANASAYFA!N15),\"\")","v":""},{"$f":"KAYNAK!D184","v":0},{"$f":"IFERROR(S17+T17,\"\")","v":""},{"$f":"IFERROR(L17-V17,\"\")","v":""}]
[null,{"$f":"KAYNAK!I25","v":" "},null,null,{"$f":"KAYNAK!L25","v":" "},{"$f":"KAYNAK!M25","v":" "},{"$f":"_xlfn.IFS(E18=\" \",\" \",BORDRO!E18:E18=KAYNAK!$F$16,\"\",AND(E18=KAYNAK!$F$17,ANASAYFA!L16>0),0,BORDRO!E18:E18=KAYNAK!$F$17,\"\",AND(E18=KAYNAK!$F$18,ANASAYFA!L16>0),0,BORDRO!E18:E18=KAYNAK!$F$18,\"\",BORDRO!E18=KAYNAK!$F$21,\"\",BORDRO!E18=KAYNAK!$F$22,\"\",BORDRO!E18=KAYNAK!$F$19,ANASAYFA!K16,BORDRO!E18=KAYNAK!$F$20,ANASAYFA!K16,E18=KAYNAK!$F$23,ANASAYFA!K16)","v":" "},{"$f":"_xlfn.IFS(E18=\" \",\" \",BORDRO!E18:E18=KAYNAK!$F$16,\"\",AND(BORDRO!E18:E18=KAYNAK!$F$17,ANASAYFA!L16=\"\"),\"\",AND(BORDRO!E18:E18=KAYNAK!$F$17,ANASAYFA!L16>0),ANASAYFA!L16,AND(BORDRO!E18:E18=KAYNAK!$F$17,ANASAYFA!L16<0),0,AND(BORDRO!E18:E18=KAYNAK!$F$17,ANASAYFA!L16=0),0,AND(BORDRO!E18:E18=KAYNAK!$F$18,ANASAYFA!L16=\"\"),\"\",AND(BORDRO!E18:E18=KAYNAK!$F$18,ANASAYFA!L16>0),ANASAYFA!L16,AND(BORDRO!E18:E18=KAYNAK!$F$18,ANASAYFA!L16<0),0,AND(BORDRO!E18:E18=KAYNAK!$F$18,ANASAYFA!L16=0),0,BORDRO!E18=KAYNAK!$F$21,\"\",BORDRO!E18=KAYNAK!$F$22,\"\",BORDRO!E18=KAYNAK!$F$19,ANASAYFA!L16,BORDRO!E18=KAYNAK!$F$20,ANASAYFA!L16,E18=KAYNAK!$F$23,ANASAYFA!L16)","v":" "},{"$f":"IFERROR(G18+H18,\"\")","v":""},{"$f":"IF(ANASAYFA!M16=\"\",\"\",ANASAYFA!M16)","v":""},{"$f":"IFERROR(L18+S18+T18,L18)","v":" "},{"$f":"_xlfn.IFS(E18=\" \",\" \",BORDRO!E18=KAYNAK!$F$16,KAYNAK!$K$44,AND(E18=KAYNAK!$F$17,KAYNAK!N53>KAYNAK!K45),KAYNAK!N53,AND(E18=KAYNAK!$F$17,KAYNAK!K45>KAYNAK!N53),KAYNAK!K45,AND(E18=KAYNAK!$F$18,KAYNAK!N53>KAYNAK!K45),KAYNAK!N53,AND(E18=KAYNAK!$F$18,KAYNAK!K45>KAYNAK!N53),KAYNAK!K45,BORDRO!E18=KAYNAK!$F$21,KAYNAK!$M$45,BORDRO!E18=KAYNAK!$F$22,KAYNAK!$K$46,BORDRO!E18=KAYNAK!$F$19,KAYNAK!N53,BORDRO!E18=KAYNAK!$F$20,KAYNAK!N53,E18=KAYNAK!$F$23,KAYNAK!N53)","v":" "},{"$f":"IFERROR(L18-Q18-R18,IFERROR(L18-U18,L18))","v":" "},{"$f":"_xlfn.IFS(F18=\" \",\" \",F18=KAYNAK!$G$16,IF(J18=KAYNAK!$F$34,0,(L18*759/100000)),F18=KAYNAK!$G$17,IF(J18=KAYNAK!$F$34,0,BORDRO!L18)/100000*759)","v":" "},null,{"$f":"_xlfn.IFS(J18=\"\",\"\",F18=KAYNAK!$G$16,M18*IF(J18=KAYNAK!$F$34,0,BORDRO!J18),F18=KAYNAK!$G$17,M18*IF(J18=KAYNAK!$F$34,0,BORDRO!J18))","v":""},{"$f":"_xlfn.IFS(F18=\" \",\" \",F18=KAYNAK!$G$16,\"\",F18=KAYNAK!$G$17,CEILING(L18/100*14,0.1))","v":" "},{"$f":"_xlfn.IFS(F18=\" \",\" \",F18=KAYNAK!$G$16,\"\",F18=KAYNAK!$G$17,CEILING(L18/100*1,0.1))","v":" "},{"$f":"_xlfn.IFS(F18=\" \",\" \",F18=KAYNAK!$G$16,\"\",F18=KAYNAK!$G$17,CEILING(L18/100*20.5,0.1))","v":" "},{"$f":"_xlfn.IFS(F18=\" \",\" \",F18=KAYNAK!$G$16,\"\",F18=KAYNAK!$G$17,CEILING(L18/100*2,0.1))","v":" "},{"$f":"IFERROR(_xlfn.IFS(E18=KAYNAK!$F$19,\"\",E18=KAYNAK!$F$20,\"\",E18=KAYNAK!$F$23,\"\",AND(KAYNAK!K45>KAYNAK!N53,ANASAYFA!N16>0),L18/30*ANASAYFA!N16),\"\")","v":""},{"$f":"KAYNAK!D185","v":0},"",{"$f":"IFERROR(L18-V18,\"\")","v":""}]
[null,{"$f":"KAYNAK!I26","v":" "},null,null,{"$f":"KAYNAK!L26","v":" "},{"$f":"KAYNAK!M26","v":" "},{"$f":"_xlfn.IFS(E19=\" \",\" \",BORDRO!E19:E19=KAYNAK!$F$16,\"\",AND(E19=KAYNAK!$F$17,ANASAYFA!L17>0),0,BORDRO!E19:E19=KAYNAK!$F$17,\"\",AND(E19=KAYNAK!$F$18,ANASAYFA!L17>0),0,BORDRO!E19:E19=KAYNAK!$F$18,\"\",BORDRO!E19=KAYNAK!$F$21,\"\",BORDRO!E19=KAYNAK!$F$22,\"\",BORDRO!E19=KAYNAK!$F$19,ANASAYFA!K17,BORDRO!E19=KAYNAK!$F$20,ANASAYFA!K17,E19=KAYNAK!$F$23,ANASAYFA!K17)","v":" "},{"$f":"_xlfn.IFS(E19=\" \",\" \",BORDRO!E19:E19=KAYNAK!$F$16,\"\",AND(BORDRO!E19:E19=KAYNAK!$F$17,ANASAYFA!L17=\"\"),\"\",AND(BORDRO!E19:E19=KAYNAK!$F$17,ANASAYFA!L17>0),ANASAYFA!L17,AND(BORDRO!E19:E19=KAYNAK!$F$17,ANASAYFA!L17<0),0,AND(BORDRO!E19:E19=KAYNAK!$F$17,ANASAYFA!L17=0),0,AND(BORDRO!E19:E19=KAYNAK!$F$18,ANASAYFA!L17=\"\"),\"\",AND(BORDRO!E19:E19=KAYNAK!$F$18,ANASAYFA!L17>0),ANASAYFA!L17,AND(BORDRO!E19:E19=KAYNAK!$F$18,ANASAYFA!L17<0),0,AND(BORDRO!E19:E19=KAYNAK!$F$18,ANASAYFA!L17=0),0,BORDRO!E19=KAYNAK!$F$21,\"\",BORDRO!E19=KAYNAK!$F$22,\"\",BORDRO!E19=KAYNAK!$F$19,ANASAYFA!L17,BORDRO!E19=KAYNAK!$F$20,ANASAYFA!L17,E19=KAYNAK!$F$23,ANASAYFA!L17)","v":" "},"",{"$f":"IF(ANASAYFA!M17=\"\",\"\",ANASAYFA!M17)","v":""}," ",{"$f":"_xlfn.IFS(E19=\" \",\" \",BORDRO!E19=KAYNAK!$F$16,KAYNAK!$K$44,AND(E19=KAYNAK!$F$17,KAYNAK!N54>KAYNAK!K46),KAYNAK!N54,AND(E19=KAYNAK!$F$17,KAYNAK!K46>KAYNAK!N54),KAYNAK!K46,E19=KAYNAK!$F$18,KAYNAK!$K$45,BORDRO!E19=KAYNAK!$F$21,KAYNAK!$M$45,BORDRO!E19=KAYNAK!$F$22,KAYNAK!$K$46,BORDRO!E19=KAYNAK!$F$19,KAYNAK!N54,BORDRO!E19=KAYNAK!$F$20,KAYNAK!N54,E19=KAYNAK!$F$23,KAYNAK!N54)","v":" "},{"$f":"IFERROR(L19-Q19-R19,IFERROR(L19-U19,L19))","v":" "},{"$f":"_xlfn.IFS(F19=\" \",\" \",F19=KAYNAK!$G$16,IF(J19=KAYNAK!$F$34,0,(L19*759/100000)),F19=KAYNAK!$G$17,IF(J19=KAYNAK!$F$34,0,BORDRO!L19)/100000*759)","v":" "},null,{"$f":"_xlfn.IFS(J19=\"\",\"\",F19=KAYNAK!$G$16,M19*IF(J19=KAYNAK!$F$34,0,BORDRO!J19),F19=KAYNAK!$G$17,M19*IF(J19=KAYNAK!$F$34,0,BORDRO!J19))","v":""},{"$f":"_xlfn.IFS(F19=\" \",\" \",F19=KAYNAK!$G$16,\"\",F19=KAYNAK!$G$17,CEILING(L19/100*14,0.1))","v":" "},{"$f":"_xlfn.IFS(F19=\" \",\" \",F19=KAYNAK!$G$16,\"\",F19=KAYNAK!$G$17,CEILING(L19/100*1,0.1))","v":" "},{"$f":"_xlfn.IFS(F19=\" \",\" \",F19=KAYNAK!$G$16,\"\",F19=KAYNAK!$G$17,CEILING(L19/100*20.5,0.1))","v":" "},{"$f":"_xlfn.IFS(F19=\" \",\" \",F19=KAYNAK!$G$16,\"\",F19=KAYNAK!$G$17,CEILING(L19/100*2,0.1))","v":" "},{"$f":"IFERROR(_xlfn.IFS(E19=KAYNAK!$F$19,\"\",E19=KAYNAK!$F$20,\"\",E19=KAYNAK!$F$23,\"\",ANASAYFA!N17>0,L19/30*ANASAYFA!N17),\"\")","v":""},{"$f":"KAYNAK!D186","v":0},"",""]
[null,{"$f":"KAYNAK!I27","v":" "},null,null,{"$f":"KAYNAK!L27","v":" "},{"$f":"KAYNAK!M27","v":" "},{"$f":"_xlfn.IFS(E20=\" \",\" \",BORDRO!E20:E20=KAYNAK!$F$16,\"\",AND(E20=KAYNAK!$F$17,ANASAYFA!L18>0),0,BORDRO!E20:E20=KAYNAK!$F$17,\"\",AND(E20=KAYNAK!$F$18,ANASAYFA!L18>0),0,BORDRO!E20:E20=KAYNAK!$F$18,\"\",BORDRO!E20=KAYNAK!$F$21,\"\",BORDRO!E20=KAYNAK!$F$22,\"\",BORDRO!E20=KAYNAK!$F$19,ANASAYFA!K18,BORDRO!E20=KAYNAK!$F$20,ANASAYFA!K18,E20=KAYNAK!$F$23,ANASAYFA!K18)","v":" "},{"$f":"_xlfn.IFS(E20=\" \",\" \",BORDRO!E20:E20=KAYNAK!$F$16,\"\",AND(BORDRO!E20:E20=KAYNAK!$F$17,ANASAYFA!L18=\"\"),\"\",AND(BORDRO!E20:E20=KAYNAK!$F$17,ANASAYFA!L18>0),ANASAYFA!L18,AND(BORDRO!E20:E20=KAYNAK!$F$17,ANASAYFA!L18<0),0,AND(BORDRO!E20:E20=KAYNAK!$F$17,ANASAYFA!L18=0),0,AND(BORDRO!E20:E20=KAYNAK!$F$18,ANASAYFA!L18=\"\"),\"\",AND(BORDRO!E20:E20=KAYNAK!$F$18,ANASAYFA!L18>0),ANASAYFA!L18,AND(BORDRO!E20:E20=KAYNAK!$F$18,ANASAYFA!L18<0),0,AND(BORDRO!E20:E20=KAYNAK!$F$18,ANASAYFA!L18=0),0,BORDRO!E20=KAYNAK!$F$21,\"\",BORDRO!E20=KAYNAK!$F$22,\"\",BORDRO!E20=KAYNAK!$F$19,ANASAYFA!L18,BORDRO!E20=KAYNAK!$F$20,ANASAYFA!L18,E20=KAYNAK!$F$23,ANASAYFA!L18)","v":" "},"",{"$f":"IF(ANASAYFA!M18=\"\",\"\",ANASAYFA!M18)","v":""}," ",{"$f":"_xlfn.IFS(E20=\" \",\" \",BORDRO!E20=KAYNAK!$F$16,KAYNAK!$K$44,AND(E20=KAYNAK!$F$17,KAYNAK!N55>KAYNAK!K47),KAYNAK!N55,AND(E20=KAYNAK!$F$17,KAYNAK!K47>KAYNAK!N55),KAYNAK!K47,E20=KAYNAK!$F$18,KAYNAK!$K$45,BORDRO!E20=KAYNAK!$F$21,KAYNAK!$M$45,BORDRO!E20=KAYNAK!$F$22,KAYNAK!$K$46,BORDRO!E20=KAYNAK!$F$19,KAYNAK!N55,BORDRO!E20=KAYNAK!$F$20,KAYNAK!N55,E20=KAYNAK!$F$23,KAYNAK!N55)","v":" "}," ",{"$f":"_xlfn.IFS(F20=\" \",\" \",F20=KAYNAK!$G$16,IF(J20=KAYNAK!$F$34,0,(L20*759/100000)),F20=KAYNAK!$G$17,IF(J20=KAYNAK!$F$34,0,BORDRO!L20)/100000*759)","v":" "},null,{"$f":"_xlfn.IFS(J20=\"\",\"\",F20=KAYNAK!$G$16,M20*IF(J20=KAYNAK!$F$34,0,BORDRO!J20),F20=KAYNAK!$G$17,M20*IF(J20=KAYNAK!$F$34,0,BORDRO!J20))","v":""},{"$f":"_xlfn.IFS(F20=\" \",\" \",F20=KAYNAK!$G$16,\"\",F20=KAYNAK!$G$17,CEILING(L20/100*14,0.1))","v":" "},{"$f":"_xlfn.IFS(F20=\" \",\" \",F20=KAYNAK!$G$16,\"\",F20=KAYNAK!$G$17,CEILING(L20/100*1,0.1))","v":" "},{"$f":"_xlfn.IFS(F20=\" \",\" \",F20=KAYNAK!$G$16,\"\",F20=KAYNAK!$G$17,CEILING(L20/100*20.5,0.1))","v":" "},{"$f":"_xlfn.IFS(F20=\" \",\" \",F20=KAYNAK!$G$16,\"\",F20=KAYNAK!$G$17,CEILING(L20/100*2,0.1))","v":" "},{"$f":"IFERROR(_xlfn.IFS(E20=KAYNAK!$F$19,\"\",E20=KAYNAK!$F$20,\"\",E20=KAYNAK!$F$23,\"\",ANASAYFA!N18>0,L20/30*ANASAYFA!N18),\"\")","v":""},{"$f":"KAYNAK!D187","v":0},"",""]
[null,{"$f":"KAYNAK!I28","v":" "},null,null,{"$f":"KAYNAK!L28","v":" "},{"$f":"KAYNAK!M28","v":" "},{"$f":"_xlfn.IFS(E21=\" \",\" \",BORDRO!E21:E21=KAYNAK!$F$16,\"\",AND(E21=KAYNAK!$F$17,ANASAYFA!L19>0),0,BORDRO!E21:E21=KAYNAK!$F$17,\"\",AND(E21=KAYNAK!$F$18,ANASAYFA!L19>0),0,BORDRO!E21:E21=KAYNAK!$F$18,\"\",BORDRO!E21=KAYNAK!$F$21,\"\",BORDRO!E21=KAYNAK!$F$22,\"\",BORDRO!E21=KAYNAK!$F$19,ANASAYFA!K19,BORDRO!E21=KAYNAK!$F$20,ANASAYFA!K19,E21=KAYNAK!$F$23,ANASAYFA!K19)","v":" "},{"$f":"_xlfn.IFS(E21=\" \",\" \",BORDRO!E21:E21=KAYNAK!$F$16,\"\",AND(BORDRO!E21:E21=KAYNAK!$F$17,ANASAYFA!L19=\"\"),\"\",AND(BORDRO!E21:E21=KAYNAK!$F$17,ANASAYFA!L19>0),ANASAYFA!L19,AND(BORDRO!E21:E21=KAYNAK!$F$17,ANASAYFA!L19<0),0,AND(BORDRO!E21:E21=KAYNAK!$F$17,ANASAYFA!L19=0),0,AND(BORDRO!E21:E21=KAYNAK!$F$18,ANASAYFA!L19=\"\"),\"\",AND(BORDRO!E21:E21=KAYNAK!$F$18,ANASAYFA!L19>0),ANASAYFA!L19,AND(BORDRO!E21:E21=KAYNAK!$F$18,ANASAYFA!L19<0),0,AND(BORDRO!E21:E21=KAYNAK!$F$18,ANASAYFA!L19=0),0,BORDRO!E21=KAYNAK!$F$21,\"\",BORDRO!E21=KAYNAK!$F$22,\"\",BORDRO!E21=KAYNAK!$F$19,ANASAYFA!L19,BORDRO!E21=KAYNAK!$F$20,ANASAYFA!L19,E21=KAYNAK!$F$23,ANASAYFA!L19)","v":" "},"",{"$f":"IF(ANASAYFA!M19=\"\",\"\",ANASAYFA!M19)","v":""}," ",{"$f":"_xlfn.IFS(E21=\" \",\" \",BORDRO!E21=KAYNAK!$F$16,KAYNAK!$K$44,AND(E21=KAYNAK!$F$17,KAYNAK!N56>KAYNAK!K48),KAYNAK!N56,AND(E21=KAYNAK!$F$17,KAYNAK!K48>KAYNAK!N56),KAYNAK!K48,E21=KAYNAK!$F$18,KAYNAK!$K$45,BORDRO!E21=KAYNAK!$F$21,KAYNAK!$M$45,BORDRO!E21=KAYNAK!$F$22,KAYNAK!$K$46,BORDRO!E21=KAYNAK!$F$19,KAYNAK!N56,BORDRO!E21=KAYNAK!$F$20,KAYNAK!N56,E21=KAYNAK!$F$23,KAYNAK!N56)","v":" "}," ",{"$f":"_xlfn.IFS(F21=\" \",\" \",F21=KAYNAK!$G$16,IF(J21=KAYNAK!$F$34,0,(L21*759/100000)),F21=KAYNAK!$G$17,IF(J21=KAYNAK!$F$34,0,BORDRO!L21)/100000*759)","v":" "},null,{"$f":"_xlfn.IFS(J21=\"\",\"\",F21=KAYNAK!$G$16,M21*IF(J21=KAYNAK!$F$34,0,BORDRO!J21),F21=KAYNAK!$G$17,M21*IF(J21=KAYNAK!$F$34,0,BORDRO!J21))","v":""},{"$f":"_xlfn.IFS(F21=\" \",\" \",F21=KAYNAK!$G$16,\"\",F21=KAYNAK!$G$17,CEILING(L21/100*14,0.1))","v":" "},{"$f":"_xlfn.IFS(F21=\" \",\" \",F21=KAYNAK!$G$16,\"\",F21=KAYNAK!$G$17,CEILING(L21/100*1,0.1))","v":" "},{"$f":"_xlfn.IFS(F21=\" \",\" \",F21=KAYNAK!$G$16,\"\",F21=KAYNAK!$G$17,CEILING(L21/100*20.5,0.1))","v":" "},{"$f":"_xlfn.IFS(F21=\" \",\" \",F21=KAYNAK!$G$16,\"\",F21=KAYNAK!$G$17,CEILING(L21/100*2,0.1))","v":" "},{"$f":"IFERROR(_xlfn.IFS(E21=KAYNAK!$F$19,\"\",E21=KAYNAK!$F$20,\"\",E21=KAYNAK!$F$23,\"\",ANASAYFA!N19>0,L21/30*ANASAYFA!N19),\"\")","v":""},{"$f":"KAYNAK!D188","v":0},"",""]
[null,{"$f":"KAYNAK!I29","v":" "},null,null,{"$f":"KAYNAK!L29","v":" "},{"$f":"KAYNAK!M29","v":" "},{"$f":"_xlfn.IFS(E22=\" \",\" \",BORDRO!E22:E22=KAYNAK!$F$16,\"\",AND(E22=KAYNAK!$F$17,ANASAYFA!L20>0),0,BORDRO!E22:E22=KAYNAK!$F$17,\"\",AND(E22=KAYNAK!$F$18,ANASAYFA!L20>0),0,BORDRO!E22:E22=KAYNAK!$F$18,\"\",BORDRO!E22=KAYNAK!$F$21,\"\",BORDRO!E22=KAYNAK!$F$22,\"\",BORDRO!E22=KAYNAK!$F$19,ANASAYFA!K20,BORDRO!E22=KAYNAK!$F$20,ANASAYFA!K20,E22=KAYNAK!$F$23,ANASAYFA!K20)","v":" "},{"$f":"_xlfn.IFS(E22=\" \",\" \",BORDRO!E22:E22=KAYNAK!$F$16,\"\",AND(BORDRO!E22:E22=KAYNAK!$F$17,ANASAYFA!L20=\"\"),\"\",AND(BORDRO!E22:E22=KAYNAK!$F$17,ANASAYFA!L20>0),ANASAYFA!L20,AND(BORDRO!E22:E22=KAYNAK!$F$17,ANASAYFA!L20<0),0,AND(BORDRO!E22:E22=KAYNAK!$F$17,ANASAYFA!L20=0),0,AND(BORDRO!E22:E22=KAYNAK!$F$18,ANASAYFA!L20=\"\"),\"\",AND(BORDRO!E22:E22=KAYNAK!$F$18,ANASAYFA!L20>0),ANASAYFA!L20,AND(BORDRO!E22:E22=KAYNAK!$F$18,ANASAYFA!L20<0),0,AND(BORDRO!E22:E22=KAYNAK!$F$18,ANASAYFA!L20=0),0,BORDRO!E22=KAYNAK!$F$21,\"\",BORDRO!E22=KAYNAK!$F$22,\"\",BORDRO!E22=KAYNAK!$F$19,ANASAYFA!L20,BORDRO!E22=KAYNAK!$F$20,ANASAYFA!L20,E22=KAYNAK!$F$23,ANASAYFA!L20)","v":" "},"",{"$f":"IF(ANASAYFA!M20=\"\",\"\",ANASAYFA!M20)","v":""}," ",{"$f":"_xlfn.IFS(E22=\" \",\" \",BORDRO!E22=KAYNAK!$F$16,KAYNAK!$K$44,AND(E22=KAYNAK!$F$17,KAYNAK!N57>KAYNAK!K49),KAYNAK!N57,AND(E22=KAYNAK!$F$17,KAYNAK!K49>KAYNAK!N57),KAYNAK!K49,E22=KAYNAK!$F$18,KAYNAK!$K$45,BORDRO!E22=KAYNAK!$F$21,KAYNAK!$M$45,BORDRO!E22=KAYNAK!$F$22,KAYNAK!$K$46,BORDRO!E22=KAYNAK!$F$19,KAYNAK!N57,BORDRO!E22=KAYNAK!$F$20,KAYNAK!N57,E22=KAYNAK!$F$23,KAYNAK!N57)","v":" "}," ",{"$f":"_xlfn.IFS(F22=\" \",\" \",F22=KAYNAK!$G$16,IF(J22=KAYNAK!$F$34,0,(L22*759/100000)),F22=KAYNAK!$G$17,IF(J22=KAYNAK!$F$34,0,BORDRO!L22)/100000*759)","v":" "},null,{"$f":"_xlfn.IFS(J22=\"\",\"\",F22=KAYNAK!$G$16,M22*IF(J22=KAYNAK!$F$34,0,BORDRO!J22),F22=KAYNAK!$G$17,M22*IF(J22=KAYNAK!$F$34,0,BORDRO!J22))","v":""},{"$f":"_xlfn.IFS(F22=\" \",\" \",F22=KAYNAK!$G$16,\"\",F22=KAYNAK!$G$17,CEILING(L22/100*14,0.1))","v":" "},{"$f":"_xlfn.IFS(F22=\" \",\" \",F22=KAYNAK!$G$16,\"\",F22=KAYNAK!$G$17,CEILING(L22/100*1,0.1))","v":" "},{"$f":"_xlfn.IFS(F22=\" \",\" \",F22=KAYNAK!$G$16,\"\",F22=KAYNAK!$G$17,CEILING(L22/100*20.5,0.1))","v":" "},{"$f":"_xlfn.IFS(F22=\" \",\" \",F22=KAYNAK!$G$16,\"\",F22=KAYNAK!$G$17,CEILING(L22/100*2,0.1))","v":" "},{"$f":"IFERROR(_xlfn.IFS(E22=KAYNAK!$F$19,\"\",E22=KAYNAK!$F$20,\"\",E22=KAYNAK!$F$23,\"\",ANASAYFA!N20>0,L22/30*ANASAYFA!N20),\"\")","v":""},{"$f":"KAYNAK!D189","v":0},"",""]
[null,{"$f":"KAYNAK!I30","v":" "},null,null,{"$f":"KAYNAK!L30","v":" "},{"$f":"KAYNAK!M30","v":" "},{"$f":"_xlfn.IFS(E23=\" \",\" \",BORDRO!E23:E23=KAYNAK!$F$16,\"\",AND(E23=KAYNAK!$F$17,ANASAYFA!L21>0),0,BORDRO!E23:E23=KAYNAK!$F$17,\"\",AND(E23=KAYNAK!$F$18,ANASAYFA!L21>0),0,BORDRO!E23:E23=KAYNAK!$F$18,\"\",BORDRO!E23=KAYNAK!$F$21,\"\",BORDRO!E23=KAYNAK!$F$22,\"\",BORDRO!E23=KAYNAK!$F$19,ANASAYFA!K21,BORDRO!E23=KAYNAK!$F$20,ANASAYFA!K21,E23=KAYNAK!$F$23,ANASAYFA!K21)","v":" "},{"$f":"_xlfn.IFS(E23=\" \",\" \",BORDRO!E23:E23=KAYNAK!$F$16,\"\",AND(BORDRO!E23:E23=KAYNAK!$F$17,ANASAYFA!L21=\"\"),\"\",AND(BORDRO!E23:E23=KAYNAK!$F$17,ANASAYFA!L21>0),ANASAYFA!L21,AND(BORDRO!E23:E23=KAYNAK!$F$17,ANASAYFA!L21<0),0,AND(BORDRO!E23:E23=KAYNAK!$F$17,ANASAYFA!L21=0),0,AND(BORDRO!E23:E23=KAYNAK!$F$18,ANASAYFA!L21=\"\"),\"\",AND(BORDRO!E23:E23=KAYNAK!$F$18,ANASAYFA!L21>0),ANASAYFA!L21,AND(BORDRO!E23:E23=KAYNAK!$F$18,ANASAYFA!L21<0),0,AND(BORDRO!E23:E23=KAYNAK!$F$18,ANASAYFA!L21=0),0,BORDRO!E23=KAYNAK!$F$21,\"\",BORDRO!E23=KAYNAK!$F$22,\"\",BORDRO!E23=KAYNAK!$F$19,ANASAYFA!L21,BORDRO!E23=KAYNAK!$F$20,ANASAYFA!L21,E23=KAYNAK!$F$23,ANASAYFA!L21)","v":" "},"",{"$f":"IF(ANASAYFA!M21=\"\",\"\",ANASAYFA!M21)","v":""}," ",{"$f":"_xlfn.IFS(E23=\" \",\" \",BORDRO!E23=KAYNAK!$F$16,KAYNAK!$K$44,AND(E23=KAYNAK!$F$17,KAYNAK!N58>KAYNAK!K50),KAYNAK!N58,AND(E23=KAYNAK!$F$17,KAYNAK!K50>KAYNAK!N58),KAYNAK!K50,E23=KAYNAK!$F$18,KAYNAK!$K$45,BORDRO!E23=KAYNAK!$F$21,KAYNAK!$M$45,BORDRO!E23=KAYNAK!$F$22,KAYNAK!$K$46,BORDRO!E23=KAYNAK!$F$19,KAYNAK!N58,BORDRO!E23=KAYNAK!$F$20,KAYNAK!N58,E23=KAYNAK!$F$23,KAYNAK!N58)","v":" "}," ",{"$f":"_xlfn.IFS(F23=\" \",\" \",F23=KAYNAK!$G$16,IF(J23=KAYNAK!$F$34,0,(L23*759/100000)),F23=KAYNAK!$G$17,IF(J23=KAYNAK!$F$34,0,BORDRO!L23)/100000*759)","v":" "},null,{"$f":"_xlfn.IFS(J23=\"\",\"\",F23=KAYNAK!$G$16,M23*IF(J23=KAYNAK!$F$34,0,BORDRO!J23),F23=KAYNAK!$G$17,M23*IF(J23=KAYNAK!$F$34,0,BORDRO!J23))","v":""},{"$f":"_xlfn.IFS(F23=\" \",\" \",F23=KAYNAK!$G$16,\"\",F23=KAYNAK!$G$17,CEILING(L23/100*14,0.1))","v":" "},{"$f":"_xlfn.IFS(F23=\" \",\" \",F23=KAYNAK!$G$16,\"\",F23=KAYNAK!$G$17,CEILING(L23/100*1,0.1))","v":" "},{"$f":"_xlfn.IFS(F23=\" \",\" \",F23=KAYNAK!$G$16,\"\",F23=KAYNAK!$G$17,CEILING(L23/100*20.5,0.1))","v":" "},{"$f":"_xlfn.IFS(F23=\" \",\" \",F23=KAYNAK!$G$16,\"\",F23=KAYNAK!$G$17,CEILING(L23/100*2,0.1))","v":" "},{"$f":"IFERROR(_xlfn.IFS(E23=KAYNAK!$F$19,\"\",E23=KAYNAK!$F$20,\"\",E23=KAYNAK!$F$23,\"\",ANASAYFA!N21>0,L23/30*ANASAYFA!N21),\"\")","v":""},{"$f":"KAYNAK!D190","v":0},"",""]
[null,{"$f":"KAYNAK!I31","v":" "},null,null,{"$f":"KAYNAK!L31","v":" "},{"$f":"KAYNAK!M31","v":" "},{"$f":"_xlfn.IFS(E24=\" \",\" \",BORDRO!E24:E24=KAYNAK!$F$16,\"\",AND(E24=KAYNAK!$F$17,ANASAYFA!L22>0),0,BORDRO!E24:E24=KAYNAK!$F$17,\"\",AND(E24=KAYNAK!$F$18,ANASAYFA!L22>0),0,BORDRO!E24:E24=KAYNAK!$F$18,\"\",BORDRO!E24=KAYNAK!$F$21,\"\",BORDRO!E24=KAYNAK!$F$22,\"\",BORDRO!E24=KAYNAK!$F$19,ANASAYFA!K22,BORDRO!E24=KAYNAK!$F$20,ANASAYFA!K22,E24=KAYNAK!$F$23,ANASAYFA!K22)","v":" "},{"$f":"_xlfn.IFS(E24=\" \",\" \",BORDRO!E24:E24=KAYNAK!$F$16,\"\",AND(BORDRO!E24:E24=KAYNAK!$F$17,ANASAYFA!L22=\"\"),\"\",AND(BORDRO!E24:E24=KAYNAK!$F$17,ANASAYFA!L22>0),ANASAYFA!L22,AND(BORDRO!E24:E24=KAYNAK!$F$17,ANASAYFA!L22<0),0,AND(BORDRO!E24:E24=KAYNAK!$F$17,ANASAYFA!L22=0),0,AND(BORDRO!E24:E24=KAYNAK!$F$18,ANASAYFA!L22=\"\"),\"\",AND(BORDRO!E24:E24=KAYNAK!$F$18,ANASAYFA!L22>0),ANASAYFA!L22,AND(BORDRO!E24:E24=KAYNAK!$F$18,ANASAYFA!L22<0),0,AND(BORDRO!E24:E24=KAYNAK!$F$18,ANASAYFA!L22=0),0,BORDRO!E24=KAYNAK!$F$21,\"\",BORDRO!E24=KAYNAK!$F$22,\"\",BORDRO!E24=KAYNAK!$F$19,ANASAYFA!L22,BORDRO!E24=KAYNAK!$F$20,ANASAYFA!L22,E24=KAYNAK!$F$23,ANASAYFA!L22)","v":" "},"",{"$f":"IF(ANASAYFA!M22=\"\",\"\",ANASAYFA!M22)","v":""}," ",{"$f":"_xlfn.IFS(E24=\" \",\" \",BORDRO!E24=KAYNAK!$F$16,KAYNAK!$K$44,AND(E24=KAYNAK!$F$17,KAYNAK!N59>KAYNAK!K51),KAYNAK!N59,AND(E24=KAYNAK!$F$17,KAYNAK!K51>KAYNAK!N59),KAYNAK!K51,E24=KAYNAK!$F$18,KAYNAK!$K$45,BORDRO!E24=KAYNAK!$F$21,KAYNAK!$M$45,BORDRO!E24=KAYNAK!$F$22,KAYNAK!$K$46,BORDRO!E24=KAYNAK!$F$19,KAYNAK!N59,BORDRO!E24=KAYNAK!$F$20,KAYNAK!N59,E24=KAYNAK!$F$23,KAYNAK!N59)","v":" "}," ",{"$f":"_xlfn.IFS(F24=\" \",\" \",F24=KAYNAK!$G$16,IF(J24=KAYNAK!$F$34,0,(L24*759/100000)),F24=KAYNAK!$G$17,IF(J24=KAYNAK!$F$34,0,BORDRO!L24)/100000*759)","v":" "},null,{"$f":"_xlfn.IFS(J24=\"\",\"\",F24=KAYNAK!$G$16,M24*IF(J24=KAYNAK!$F$34,0,BORDRO!J24),F24=KAYNAK!$G$17,M24*IF(J24=KAYNAK!$F$34,0,BORDRO!J24))","v":""},{"$f":"_xlfn.IFS(F24=\" \",\" \",F24=KAYNAK!$G$16,\"\",F24=KAYNAK!$G$17,CEILING(L24/100*14,0.1))","v":" "},{"$f":"_xlfn.IFS(F24=\" \",\" \",F24=KAYNAK!$G$16,\"\",F24=KAYNAK!$G$17,CEILING(L24/100*1,0.1))","v":" "},{"$f":"_xlfn.IFS(F24=\" \",\" \",F24=KAYNAK!$G$16,\"\",F24=KAYNAK!$G$17,CEILING(L24/100*20.5,0.1))","v":" "},{"$f":"_xlfn.IFS(F24=\" \",\" \",F24=KAYNAK!$G$16,\"\",F24=KAYNAK!$G$17,CEILING(L24/100*2,0.1))","v":" "},{"$f":"IFERROR(_xlfn.IFS(E24=KAYNAK!$F$19,\"\",E24=KAYNAK!$F$20,\"\",E24=KAYNAK!$F$23,\"\",ANASAYFA!N22>0,L24/30*ANASAYFA!N22),\"\")","v":""},{"$f":"KAYNAK!D191","v":0},"",""]
[null,{"$f":"KAYNAK!I32","v":" "},null,null,{"$f":"KAYNAK!L32","v":" "},{"$f":"KAYNAK!M32","v":" "},{"$f":"_xlfn.IFS(E25=\" \",\" \",BORDRO!E25:E25=KAYNAK!$F$16,\"\",AND(E25=KAYNAK!$F$17,ANASAYFA!L23>0),0,BORDRO!E25:E25=KAYNAK!$F$17,\"\",AND(E25=KAYNAK!$F$18,ANASAYFA!L23>0),0,BORDRO!E25:E25=KAYNAK!$F$18,\"\",BORDRO!E25=KAYNAK!$F$21,\"\",BORDRO!E25=KAYNAK!$F$22,\"\",BORDRO!E25=KAYNAK!$F$19,ANASAYFA!K23,BORDRO!E25=KAYNAK!$F$20,ANASAYFA!K23,E25=KAYNAK!$F$23,ANASAYFA!K23)","v":" "},{"$f":"_xlfn.IFS(E25=\" \",\" \",BORDRO!E25:E25=KAYNAK!$F$16,\"\",AND(BORDRO!E25:E25=KAYNAK!$F$17,ANASAYFA!L23=\"\"),\"\",AND(BORDRO!E25:E25=KAYNAK!$F$17,ANASAYFA!L23>0),ANASAYFA!L23,AND(BORDRO!E25:E25=KAYNAK!$F$17,ANASAYFA!L23<0),0,AND(BORDRO!E25:E25=KAYNAK!$F$17,ANASAYFA!L23=0),0,AND(BORDRO!E25:E25=KAYNAK!$F$18,ANASAYFA!L23=\"\"),\"\",AND(BORDRO!E25:E25=KAYNAK!$F$18,ANASAYFA!L23>0),ANASAYFA!L23,AND(BORDRO!E25:E25=KAYNAK!$F$18,ANASAYFA!L23<0),0,AND(BORDRO!E25:E25=KAYNAK!$F$18,ANASAYFA!L23=0),0,BORDRO!E25=KAYNAK!$F$21,\"\",BORDRO!E25=KAYNAK!$F$22,\"\",BORDRO!E25=KAYNAK!$F$19,ANASAYFA!L23,BORDRO!E25=KAYNAK!$F$20,ANASAYFA!L23,E25=KAYNAK!$F$23,ANASAYFA!L23)","v":" "},"",{"$f":"IF(ANASAYFA!M23=\"\",\"\",ANASAYFA!M23)","v":""}," ",{"$f":"_xlfn.IFS(E25=\" \",\" \",BORDRO!E25=KAYNAK!$F$16,KAYNAK!$K$44,AND(E25=KAYNAK!$F$17,KAYNAK!N60>KAYNAK!K52),KAYNAK!N60,AND(E25=KAYNAK!$F$17,KAYNAK!K52>KAYNAK!N60),KAYNAK!K52,E25=KAYNAK!$F$18,KAYNAK!$K$45,BORDRO!E25=KAYNAK!$F$21,KAYNAK!$M$45,BORDRO!E25=KAYNAK!$F$22,KAYNAK!$K$46,BORDRO!E25=KAYNAK!$F$19,KAYNAK!N60,BORDRO!E25=KAYNAK!$F$20,KAYNAK!N60,E25=KAYNAK!$F$23,KAYNAK!N60)","v":" "}," ",{"$f":"_xlfn.IFS(F25=\" \",\" \",F25=KAYNAK!$G$16,IF(J25=KAYNAK!$F$34,0,(L25*759/100000)),F25=KAYNAK!$G$17,IF(J25=KAYNAK!$F$34,0,BORDRO!L25)/100000*759)","v":" "},null,{"$f":"_xlfn.IFS(J25=\"\",\"\",F25=KAYNAK!$G$16,M25*IF(J25=KAYNAK!$F$34,0,BORDRO!J25),F25=KAYNAK!$G$17,M25*IF(J25=KAYNAK!$F$34,0,BORDRO!J25))","v":""},{"$f":"_xlfn.IFS(F25=\" \",\" \",F25=KAYNAK!$G$16,\"\",F25=KAYNAK!$G$17,CEILING(L25/100*14,0.1))","v":" "},{"$f":"_xlfn.IFS(F25=\" \",\" \",F25=KAYNAK!$G$16,\"\",F25=KAYNAK!$G$17,CEILING(L25/100*1,0.1))","v":" "},{"$f":"_xlfn.IFS(F25=\" \",\" \",F25=KAYNAK!$G$16,\"\",F25=KAYNAK!$G$17,CEILING(L25/100*20.5,0.1))","v":" "},{"$f":"_xlfn.IFS(F25=\" \",\" \",F25=KAYNAK!$G$16,\"\",F25=KAYNAK!$G$17,CEILING(L25/100*2,0.1))","v":" "},{"$f":"IFERROR(_xlfn.IFS(E25=KAYNAK!$F$19,\"\",E25=KAYNAK!$F$20,\"\",E25=KAYNAK!$F$23,\"\",ANASAYFA!N23>0,L25/30*ANASAYFA!N23),\"\")","v":""},{"$f":"KAYNAK!D192","v":0},"",""]
[null,{"$f":"KAYNAK!I33","v":" "},null,null,{"$f":"KAYNAK!L33","v":" "},{"$f":"KAYNAK!M33","v":" "},{"$f":"_xlfn.IFS(E26=\" \",\" \",BORDRO!E26:E26=KAYNAK!$F$16,\"\",AND(E26=KAYNAK!$F$17,ANASAYFA!L24>0),0,BORDRO!E26:E26=KAYNAK!$F$17,\"\",AND(E26=KAYNAK!$F$18,ANASAYFA!L24>0),0,BORDRO!E26:E26=KAYNAK!$F$18,\"\",BORDRO!E26=KAYNAK!$F$21,\"\",BORDRO!E26=KAYNAK!$F$22,\"\",BORDRO!E26=KAYNAK!$F$19,ANASAYFA!K24,BORDRO!E26=KAYNAK!$F$20,ANASAYFA!K24,E26=KAYNAK!$F$23,ANASAYFA!K24)","v":" "},{"$f":"_xlfn.IFS(E26=\" \",\" \",BORDRO!E26:E26=KAYNAK!$F$16,\"\",AND(BORDRO!E26:E26=KAYNAK!$F$17,ANASAYFA!L24=\"\"),\"\",AND(BORDRO!E26:E26=KAYNAK!$F$17,ANASAYFA!L24>0),ANASAYFA!L24,AND(BORDRO!E26:E26=KAYNAK!$F$17,ANASAYFA!L24<0),0,AND(BORDRO!E26:E26=KAYNAK!$F$17,ANASAYFA!L24=0),0,AND(BORDRO!E26:E26=KAYNAK!$F$18,ANASAYFA!L24=\"\"),\"\",AND(BORDRO!E26:E26=KAYNAK!$F$18,ANASAYFA!L24>0),ANASAYFA!L24,AND(BORDRO!E26:E26=KAYNAK!$F$18,ANASAYFA!L24<0),0,AND(BORDRO!E26:E26=KAYNAK!$F$18,ANASAYFA!L24=0),0,BORDRO!E26=KAYNAK!$F$21,\"\",BORDRO!E26=KAYNAK!$F$22,\"\",BORDRO!E26=KAYNAK!$F$19,ANASAYFA!L24,BORDRO!E26=KAYNAK!$F$20,ANASAYFA!L24,E26=KAYNAK!$F$23,ANASAYFA!L24)","v":" "},"",{"$f":"IF(ANASAYFA!M24=\"\",\"\",ANASAYFA!M24)","v":""}," ",{"$f":"_xlfn.IFS(E26=\" \",\" \",BORDRO!E26=KAYNAK!$F$16,KAYNAK!$K$44,AND(E26=KAYNAK!$F$17,KAYNAK!N61>KAYNAK!K53),KAYNAK!N61,AND(E26=KAYNAK!$F$17,KAYNAK!K53>KAYNAK!N61),KAYNAK!K53,E26=KAYNAK!$F$18,KAYNAK!$K$45,BORDRO!E26=KAYNAK!$F$21,KAYNAK!$M$45,BORDRO!E26=KAYNAK!$F$22,KAYNAK!$K$46,BORDRO!E26=KAYNAK!$F$19,KAYNAK!N61,BORDRO!E26=KAYNAK!$F$20,KAYNAK!N61,E26=KAYNAK!$F$23,KAYNAK!N61)","v":" "}," ",{"$f":"_xlfn.IFS(F26=\" \",\" \",F26=KAYNAK!$G$16,IF(J26=KAYNAK!$F$34,0,(L26*759/100000)),F26=KAYNAK!$G$17,IF(J26=KAYNAK!$F$34,0,BORDRO!L26)/100000*759)","v":" "},null,{"$f":"_xlfn.IFS(J26=\"\",\"\",F26=KAYNAK!$G$16,M26*IF(J26=KAYNAK!$F$34,0,BORDRO!J26),F26=KAYNAK!$G$17,M26*IF(J26=KAYNAK!$F$34,0,BORDRO!J26))","v":""},{"$f":"_xlfn.IFS(F26=\" \",\" \",F26=KAYNAK!$G$16,\"\",F26=KAYNAK!$G$17,CEILING(L26/100*14,0.1))","v":" "},{"$f":"_xlfn.IFS(F26=\" \",\" \",F26=KAYNAK!$G$16,\"\",F26=KAYNAK!$G$17,CEILING(L26/100*1,0.1))","v":" "},{"$f":"_xlfn.IFS(F26=\" \",\" \",F26=KAYNAK!$G$16,\"\",F26=KAYNAK!$G$17,CEILING(L26/100*20.5,0.1))","v":" "},{"$f":"_xlfn.IFS(F26=\" \",\" \",F26=KAYNAK!$G$16,\"\",F26=KAYNAK!$G$17,CEILING(L26/100*2,0.1))","v":" "},{"$f":"IFERROR(_xlfn.IFS(E26=KAYNAK!$F$19,\"\",E26=KAYNAK!$F$20,\"\",E26=KAYNAK!$F$23,\"\",ANASAYFA!N24>0,L26/30*ANASAYFA!N24),\"\")","v":""},{"$f":"KAYNAK!D193","v":0},"",""]
[null,{"$f":"KAYNAK!I34","v":" "},null,null,{"$f":"KAYNAK!L34","v":" "},{"$f":"KAYNAK!M34","v":" "},{"$f":"_xlfn.IFS(E27=\" \",\" \",BORDRO!E27:E27=KAYNAK!$F$16,\"\",AND(E27=KAYNAK!$F$17,ANASAYFA!L25>0),0,BORDRO!E27:E27=KAYNAK!$F$17,\"\",AND(E27=KAYNAK!$F$18,ANASAYFA!L25>0),0,BORDRO!E27:E27=KAYNAK!$F$18,\"\",BORDRO!E27=KAYNAK!$F$21,\"\",BORDRO!E27=KAYNAK!$F$22,\"\",BORDRO!E27=KAYNAK!$F$19,ANASAYFA!K25,BORDRO!E27=KAYNAK!$F$20,ANASAYFA!K25,E27=KAYNAK!$F$23,ANASAYFA!K25)","v":" "},{"$f":"_xlfn.IFS(E27=\" \",\" \",BORDRO!E27:E27=KAYNAK!$F$16,\"\",AND(BORDRO!E27:E27=KAYNAK!$F$17,ANASAYFA!L25=\"\"),\"\",AND(BORDRO!E27:E27=KAYNAK!$F$17,ANASAYFA!L25>0),ANASAYFA!L25,AND(BORDRO!E27:E27=KAYNAK!$F$17,ANASAYFA!L25<0),\"\",AND(BORDRO!E27:E27=KAYNAK!$F$17,ANASAYFA!L25=0),\"\",AND(BORDRO!E27:E27=KAYNAK!$F$18,ANASAYFA!L25=\"\"),\"\",AND(BORDRO!E27:E27=KAYNAK!$F$18,ANASAYFA!L25>0),ANASAYFA!L25,AND(BORDRO!E27:E27=KAYNAK!$F$18,ANASAYFA!L25<0),0,AND(BORDRO!E27:E27=KAYNAK!$F$18,ANASAYFA!L25=0),0,BORDRO!E27=KAYNAK!$F$21,\"\",BORDRO!E27=KAYNAK!$F$22,\"\",BORDRO!E27=KAYNAK!$F$19,ANASAYFA!L25,BORDRO!E27=KAYNAK!$F$20,ANASAYFA!L25,E27=KAYNAK!$F$23,ANASAYFA!L25)","v":" "},"",{"$f":"IF(ANASAYFA!M25=\"\",\"\",ANASAYFA!M25)","v":""}," ",{"$f":"_xlfn.IFS(E27=\" \",\" \",BORDRO!E27=KAYNAK!$F$16,KAYNAK!$K$44,AND(E27=KAYNAK!$F$17,KAYNAK!N62>KAYNAK!K54),KAYNAK!N62,AND(E27=KAYNAK!$F$17,KAYNAK!K54>KAYNAK!N62),KAYNAK!K54,E27=KAYNAK!$F$18,KAYNAK!$K$45,BORDRO!E27=KAYNAK!$F$21,KAYNAK!$M$45,BORDRO!E27=KAYNAK!$F$22,KAYNAK!$K$46,BORDRO!E27=KAYNAK!$F$19,KAYNAK!N62,BORDRO!E27=KAYNAK!$F$20,KAYNAK!N62,E27=KAYNAK!$F$23,KAYNAK!N62)","v":" "}," ",{"$f":"_xlfn.IFS(F27=\" \",\" \",F27=KAYNAK!$G$16,IF(J27=KAYNAK!$F$34,0,(L27*759/100000)),F27=KAYNAK!$G$17,IF(J27=KAYNAK!$F$34,0,BORDRO!L27)/100000*759)","v":" "},null,{"$f":"_xlfn.IFS(J27=\"\",\"\",F27=KAYNAK!$G$16,M27*IF(J27=KAYNAK!$F$34,0,BORDRO!J27),F27=KAYNAK!$G$17,M27*IF(J27=KAYNAK!$F$34,0,BORDRO!J27))","v":""},{"$f":"_xlfn.IFS(F27=\" \",\" \",F27=KAYNAK!$G$16,\"\",F27=KAYNAK!$G$17,CEILING(L27/100*14,0.1))","v":" "},{"$f":"_xlfn.IFS(F27=\" \",\" \",F27=KAYNAK!$G$16,\"\",F27=KAYNAK!$G$17,CEILING(L27/100*1,0.1))","v":" "},{"$f":"_xlfn.IFS(F27=\" \",\" \",F27=KAYNAK!$G$16,\"\",F27=KAYNAK!$G$17,CEILING(L27/100*20.5,0.1))","v":" "},{"$f":"_xlfn.IFS(F27=\" \",\" \",F27=KAYNAK!$G$16,\"\",F27=KAYNAK!$G$17,CEILING(L27/100*2,0.1))","v":" "},{"$f":"IFERROR(_xlfn.IFS(E27=KAYNAK!$F$19,\"\",E27=KAYNAK!$F$20,\"\",E27=KAYNAK!$F$23,\"\",ANASAYFA!N25>0,L27/30*ANASAYFA!N25),\"\")","v":""},{"$f":"KAYNAK!D194","v":0},"",""]
[null,{"$f":"KAYNAK!I35","v":" "},null,null,{"$f":"KAYNAK!L35","v":" "},{"$f":"KAYNAK!M35","v":" "},{"$f":"_xlfn.IFS(E28=\" \",\" \",BORDRO!E28:E28=KAYNAK!$F$16,\"\",AND(E28=KAYNAK!$F$17,ANASAYFA!L26>0),0,BORDRO!E28:E28=KAYNAK!$F$17,\"\",AND(E28=KAYNAK!$F$18,ANASAYFA!L26>0),0,BORDRO!E28:E28=KAYNAK!$F$18,\"\",BORDRO!E28=KAYNAK!$F$21,\"\",BORDRO!E28=KAYNAK!$F$22,\"\",BORDRO!E28=KAYNAK!$F$19,ANASAYFA!K26,BORDRO!E28=KAYNAK!$F$20,ANASAYFA!K26,E28=KAYNAK!$F$23,ANASAYFA!K26)","v":" "},{"$f":"_xlfn.IFS(E28=\" \",\" \",BORDRO!E28:E28=KAYNAK!$F$16,\"\",AND(BORDRO!E28:E28=KAYNAK!$F$17,ANASAYFA!L26=\"\"),\"\",AND(BORDRO!E28:E28=KAYNAK!$F$17,ANASAYFA!L26>0),ANASAYFA!L26,AND(BORDRO!E28:E28=KAYNAK!$F$17,ANASAYFA!L26<0),\"\",AND(BORDRO!E28:E28=KAYNAK!$F$17,ANASAYFA!L26=0),\"\",AND(BORDRO!E28:E28=KAYNAK!$F$18,ANASAYFA!L26=\"\"),\"\",AND(BORDRO!E28:E28=KAYNAK!$F$18,ANASAYFA!L26>0),ANASAYFA!L26,AND(BORDRO!E28:E28=KAYNAK!$F$18,ANASAYFA!L26<0),0,AND(BORDRO!E28:E28=KAYNAK!$F$18,ANASAYFA!L26=0),0,BORDRO!E28=KAYNAK!$F$21,\"\",BORDRO!E28=KAYNAK!$F$22,\"\",BORDRO!E28=KAYNAK!$F$19,ANASAYFA!L26,BORDRO!E28=KAYNAK!$F$20,ANASAYFA!L26,E28=KAYNAK!$F$23,ANASAYFA!L26)","v":" "},"",{"$f":"IF(ANASAYFA!M26=\"\",\"\",ANASAYFA!M26)","v":""}," ",{"$f":"_xlfn.IFS(E28=\" \",\" \",BORDRO!E28=KAYNAK!$F$16,KAYNAK!$K$44,AND(E28=KAYNAK!$F$17,KAYNAK!N63>KAYNAK!K55),KAYNAK!N63,AND(E28=KAYNAK!$F$17,KAYNAK!K55>KAYNAK!N63),KAYNAK!K55,E28=KAYNAK!$F$18,KAYNAK!$K$45,BORDRO!E28=KAYNAK!$F$21,KAYNAK!$M$45,BORDRO!E28=KAYNAK!$F$22,KAYNAK!$K$46,BORDRO!E28=KAYNAK!$F$19,KAYNAK!N63,BORDRO!E28=KAYNAK!$F$20,KAYNAK!N63,E28=KAYNAK!$F$23,KAYNAK!N63)","v":" "}," ",{"$f":"_xlfn.IFS(F28=\" \",\" \",F28=KAYNAK!$G$16,IF(J28=KAYNAK!$F$34,0,(L28*759/100000)),F28=KAYNAK!$G$17,IF(J28=KAYNAK!$F$34,0,BORDRO!L28)/100000*759)","v":" "},null,{"$f":"_xlfn.IFS(J28=\"\",\"\",F28=KAYNAK!$G$16,M28*IF(J28=KAYNAK!$F$34,0,BORDRO!J28),F28=KAYNAK!$G$17,M28*IF(J28=KAYNAK!$F$34,0,BORDRO!J28))","v":""},{"$f":"_xlfn.IFS(F28=\" \",\" \",F28=KAYNAK!$G$16,\"\",F28=KAYNAK!$G$17,CEILING(L28/100*14,0.1))","v":" "},{"$f":"_xlfn.IFS(F28=\" \",\" \",F28=KAYNAK!$G$16,\"\",F28=KAYNAK!$G$17,CEILING(L28/100*1,0.1))","v":" "},{"$f":"_xlfn.IFS(F28=\" \",\" \",F28=KAYNAK!$G$16,\"\",F28=KAYNAK!$G$17,CEILING(L28/100*20.5,0.1))","v":" "},{"$f":"_xlfn.IFS(F28=\" \",\" \",F28=KAYNAK!$G$16,\"\",F28=KAYNAK!$G$17,CEILING(L28/100*2,0.1))","v":" "},{"$f":"IFERROR(_xlfn.IFS(E28=KAYNAK!$F$19,\"\",E28=KAYNAK!$F$20,\"\",E28=KAYNAK!$F$23,\"\",ANASAYFA!N26>0,L28/30*ANASAYFA!N26),\"\")","v":""},{"$f":"KAYNAK!D195","v":0},"",""]
[null,{"$f":"KAYNAK!I36","v":" "},null,null,{"$f":"KAYNAK!L36","v":" "},{"$f":"KAYNAK!M36","v":" "},{"$f":"_xlfn.IFS(E29=\" \",\" \",BORDRO!E29:E29=KAYNAK!$F$16,\"\",AND(E29=KAYNAK!$F$17,ANASAYFA!L27>0),0,BORDRO!E29:E29=KAYNAK!$F$17,\"\",AND(E29=KAYNAK!$F$18,ANASAYFA!L27>0),0,BORDRO!E29:E29=KAYNAK!$F$18,\"\",BORDRO!E29=KAYNAK!$F$21,\"\",BORDRO!E29=KAYNAK!$F$22,\"\",BORDRO!E29=KAYNAK!$F$19,ANASAYFA!K27,BORDRO!E29=KAYNAK!$F$20,ANASAYFA!K27,E29=KAYNAK!$F$23,ANASAYFA!K27)","v":" "},{"$f":"_xlfn.IFS(E29=\" \",\" \",BORDRO!E29:E29=KAYNAK!$F$16,\"\",AND(BORDRO!E29:E29=KAYNAK!$F$17,ANASAYFA!L27=\"\"),\"\",AND(BORDRO!E29:E29=KAYNAK!$F$17,ANASAYFA!L27>0),ANASAYFA!L27,AND(BORDRO!E29:E29=KAYNAK!$F$17,ANASAYFA!L27<0),\"\",AND(BORDRO!E29:E29=KAYNAK!$F$17,ANASAYFA!L27=0),\"\",AND(BORDRO!E29:E29=KAYNAK!$F$18,ANASAYFA!L27=\"\"),\"\",AND(BORDRO!E29:E29=KAYNAK!$F$18,ANASAYFA!L27>0),ANASAYFA!L27,AND(BORDRO!E29:E29=KAYNAK!$F$18,ANASAYFA!L27<0),0,AND(BORDRO!E29:E29=KAYNAK!$F$18,ANASAYFA!L27=0),0,BORDRO!E29=KAYNAK!$F$21,\"\",BORDRO!E29=KAYNAK!$F$22,\"\",BORDRO!E29=KAYNAK!$F$19,ANASAYFA!L27,BORDRO!E29=KAYNAK!$F$20,ANASAYFA!L27,E29=KAYNAK!$F$23,ANASAYFA!L27)","v":" "},"",{"$f":"IF(ANASAYFA!M27=\"\",\"\",ANASAYFA!M27)","v":""}," ",{"$f":"_xlfn.IFS(E29=\" \",\" \",BORDRO!E29=KAYNAK!$F$16,KAYNAK!$K$44,AND(E29=KAYNAK!$F$17,KAYNAK!N64>KAYNAK!K56),KAYNAK!N64,AND(E29=KAYNAK!$F$17,KAYNAK!K56>KAYNAK!N64),KAYNAK!K56,E29=KAYNAK!$F$18,KAYNAK!$K$45,BORDRO!E29=KAYNAK!$F$21,KAYNAK!$M$45,BORDRO!E29=KAYNAK!$F$22,KAYNAK!$K$46,BORDRO!E29=KAYNAK!$F$19,KAYNAK!N64,BORDRO!E29=KAYNAK!$F$20,KAYNAK!N64,E29=KAYNAK!$F$23,KAYNAK!N64)","v":" "}," ",{"$f":"_xlfn.IFS(F29=\" \",\" \",F29=KAYNAK!$G$16,IF(J29=KAYNAK!$F$34,0,(L29*759/100000)),F29=KAYNAK!$G$17,IF(J29=KAYNAK!$F$34,0,BORDRO!L29)/100000*759)","v":" "},null,{"$f":"_xlfn.IFS(J29=\"\",\"\",F29=KAYNAK!$G$16,M29*IF(J29=KAYNAK!$F$34,0,BORDRO!J29),F29=KAYNAK!$G$17,M29*IF(J29=KAYNAK!$F$34,0,BORDRO!J29))","v":""},{"$f":"_xlfn.IFS(F29=\" \",\" \",F29=KAYNAK!$G$16,\"\",F29=KAYNAK!$G$17,CEILING(L29/100*14,0.1))","v":" "},{"$f":"_xlfn.IFS(F29=\" \",\" \",F29=KAYNAK!$G$16,\"\",F29=KAYNAK!$G$17,CEILING(L29/100*1,0.1))","v":" "},{"$f":"_xlfn.IFS(F29=\" \",\" \",F29=KAYNAK!$G$16,\"\",F29=KAYNAK!$G$17,CEILING(L29/100*20.5,0.1))","v":" "},{"$f":"_xlfn.IFS(F29=\" \",\" \",F29=KAYNAK!$G$16,\"\",F29=KAYNAK!$G$17,CEILING(L29/100*2,0.1))","v":" "},{"$f":"IFERROR(_xlfn.IFS(E29=KAYNAK!$F$19,\"\",E29=KAYNAK!$F$20,\"\",E29=KAYNAK!$F$23,\"\",ANASAYFA!N27>0,L29/30*ANASAYFA!N27),\"\")","v":""},{"$f":"KAYNAK!D196","v":0},"",""]
[null,{"$f":"KAYNAK!I37","v":" "},null,null,{"$f":"KAYNAK!L37","v":" "},{"$f":"KAYNAK!M37","v":" "},{"$f":"_xlfn.IFS(E30=\" \",\" \",BORDRO!E30:E30=KAYNAK!$F$16,\"\",AND(E30=KAYNAK!$F$17,ANASAYFA!L28>0),0,BORDRO!E30:E30=KAYNAK!$F$17,\"\",AND(E30=KAYNAK!$F$18,ANASAYFA!L28>0),0,BORDRO!E30:E30=KAYNAK!$F$18,\"\",BORDRO!E30=KAYNAK!$F$21,\"\",BORDRO!E30=KAYNAK!$F$22,\"\",BORDRO!E30=KAYNAK!$F$19,ANASAYFA!K28,BORDRO!E30=KAYNAK!$F$20,ANASAYFA!K28,E30=KAYNAK!$F$23,ANASAYFA!K28)","v":" "},{"$f":"_xlfn.IFS(E30=\" \",\" \",BORDRO!E30:E30=KAYNAK!$F$16,\"\",AND(BORDRO!E30:E30=KAYNAK!$F$17,ANASAYFA!L28=\"\"),\"\",AND(BORDRO!E30:E30=KAYNAK!$F$17,ANASAYFA!L28>0),ANASAYFA!L28,AND(BORDRO!E30:E30=KAYNAK!$F$17,ANASAYFA!L28<0),\"\",AND(BORDRO!E30:E30=KAYNAK!$F$17,ANASAYFA!L28=0),\"\",AND(BORDRO!E30:E30=KAYNAK!$F$18,ANASAYFA!L28=\"\"),\"\",AND(BORDRO!E30:E30=KAYNAK!$F$18,ANASAYFA!L28>0),ANASAYFA!L28,AND(BORDRO!E30:E30=KAYNAK!$F$18,ANASAYFA!L28<0),0,AND(BORDRO!E30:E30=KAYNAK!$F$18,ANASAYFA!L28=0),0,BORDRO!E30=KAYNAK!$F$21,\"\",BORDRO!E30=KAYNAK!$F$22,\"\",BORDRO!E30=KAYNAK!$F$19,ANASAYFA!L28,BORDRO!E30=KAYNAK!$F$20,ANASAYFA!L28,E30=KAYNAK!$F$23,ANASAYFA!L28)","v":" "},"",{"$f":"IF(ANASAYFA!M28=\"\",\"\",ANASAYFA!M28)","v":""}," ",{"$f":"_xlfn.IFS(E30=\" \",\" \",BORDRO!E30=KAYNAK!$F$16,KAYNAK!$K$44,AND(E30=KAYNAK!$F$17,KAYNAK!N65>KAYNAK!K57),KAYNAK!N65,AND(E30=KAYNAK!$F$17,KAYNAK!K57>KAYNAK!N65),KAYNAK!K57,E30=KAYNAK!$F$18,KAYNAK!$K$45,BORDRO!E30=KAYNAK!$F$21,KAYNAK!$M$45,BORDRO!E30=KAYNAK!$F$22,KAYNAK!$K$46,BORDRO!E30=KAYNAK!$F$19,KAYNAK!N65,BORDRO!E30=KAYNAK!$F$20,KAYNAK!N65,E30=KAYNAK!$F$23,KAYNAK!N65)","v":" "}," ",{"$f":"_xlfn.IFS(F30=\" \",\" \",F30=KAYNAK!$G$16,IF(J30=KAYNAK!$F$34,0,(L30*759/100000)),F30=KAYNAK!$G$17,IF(J30=KAYNAK!$F$34,0,BORDRO!L30)/100000*759)","v":" "},null,{"$f":"_xlfn.IFS(J30=\"\",\"\",F30=KAYNAK!$G$16,M30*IF(J30=KAYNAK!$F$34,0,BORDRO!J30),F30=KAYNAK!$G$17,M30*IF(J30=KAYNAK!$F$34,0,BORDRO!J30))","v":""},{"$f":"_xlfn.IFS(F30=\" \",\" \",F30=KAYNAK!$G$16,\"\",F30=KAYNAK!$G$17,CEILING(L30/100*14,0.1))","v":" "},{"$f":"_xlfn.IFS(F30=\" \",\" \",F30=KAYNAK!$G$16,\"\",F30=KAYNAK!$G$17,CEILING(L30/100*1,0.1))","v":" "},{"$f":"_xlfn.IFS(F30=\" \",\" \",F30=KAYNAK!$G$16,\"\",F30=KAYNAK!$G$17,CEILING(L30/100*20.5,0.1))","v":" "},{"$f":"_xlfn.IFS(F30=\" \",\" \",F30=KAYNAK!$G$16,\"\",F30=KAYNAK!$G$17,CEILING(L30/100*2,0.1))","v":" "},{"$f":"IFERROR(_xlfn.IFS(E30=KAYNAK!$F$19,\"\",E30=KAYNAK!$F$20,\"\",E30=KAYNAK!$F$23,\"\",ANASAYFA!N28>0,L30/30*ANASAYFA!N28),\"\")","v":""},{"$f":"KAYNAK!D197","v":0},"",""]
[null,{"$f":"KAYNAK!I38","v":" "},null,null,{"$f":"KAYNAK!L38","v":" "},{"$f":"KAYNAK!M38","v":" "},{"$f":"_xlfn.IFS(E31=\" \",\" \",BORDRO!E31:E31=KAYNAK!$F$16,\"\",AND(E31=KAYNAK!$F$17,ANASAYFA!L29>0),0,BORDRO!E31:E31=KAYNAK!$F$17,\"\",AND(E31=KAYNAK!$F$18,ANASAYFA!L29>0),0,BORDRO!E31:E31=KAYNAK!$F$18,\"\",BORDRO!E31=KAYNAK!$F$21,\"\",BORDRO!E31=KAYNAK!$F$22,\"\",BORDRO!E31=KAYNAK!$F$19,ANASAYFA!K29,BORDRO!E31=KAYNAK!$F$20,ANASAYFA!K29,E31=KAYNAK!$F$23,ANASAYFA!K29)","v":" "},{"$f":"_xlfn.IFS(E31=\" \",\" \",BORDRO!E31:E31=KAYNAK!$F$16,\"\",AND(BORDRO!E31:E31=KAYNAK!$F$17,ANASAYFA!L29=\"\"),\"\",AND(BORDRO!E31:E31=KAYNAK!$F$17,ANASAYFA!L29>0),ANASAYFA!L29,AND(BORDRO!E31:E31=KAYNAK!$F$17,ANASAYFA!L29<0),\"\",AND(BORDRO!E31:E31=KAYNAK!$F$17,ANASAYFA!L29=0),\"\",AND(BORDRO!E31:E31=KAYNAK!$F$18,ANASAYFA!L29=\"\"),\"\",AND(BORDRO!E31:E31=KAYNAK!$F$18,ANASAYFA!L29>0),ANASAYFA!L29,AND(BORDRO!E31:E31=KAYNAK!$F$18,ANASAYFA!L29<0),0,AND(BORDRO!E31:E31=KAYNAK!$F$18,ANASAYFA!L29=0),0,BORDRO!E31=KAYNAK!$F$21,\"\",BORDRO!E31=KAYNAK!$F$22,\"\",BORDRO!E31=KAYNAK!$F$19,ANASAYFA!L29,BORDRO!E31=KAYNAK!$F$20,ANASAYFA!L29,E31=KAYNAK!$F$23,ANASAYFA!L29)","v":" "},"",{"$f":"IF(ANASAYFA!M29=\"\",\"\",ANASAYFA!M29)","v":""}," ",{"$f":"_xlfn.IFS(E31=\" \",\" \",BORDRO!E31=KAYNAK!$F$16,KAYNAK!$K$44,AND(E31=KAYNAK!$F$17,KAYNAK!N66>KAYNAK!K58),KAYNAK!N66,AND(E31=KAYNAK!$F$17,KAYNAK!K58>KAYNAK!N66),KAYNAK!K58,E31=KAYNAK!$F$18,KAYNAK!$K$45,BORDRO!E31=KAYNAK!$F$21,KAYNAK!$M$45,BORDRO!E31=KAYNAK!$F$22,KAYNAK!$K$46,BORDRO!E31=KAYNAK!$F$19,KAYNAK!N66,BORDRO!E31=KAYNAK!$F$20,KAYNAK!N66,E31=KAYNAK!$F$23,KAYNAK!N66)","v":" "}," ",{"$f":"_xlfn.IFS(F31=\" \",\" \",F31=KAYNAK!$G$16,IF(J31=KAYNAK!$F$34,0,(L31*759/100000)),F31=KAYNAK!$G$17,IF(J31=KAYNAK!$F$34,0,BORDRO!L31)/100000*759)","v":" "},null,{"$f":"_xlfn.IFS(J31=\"\",\"\",F31=KAYNAK!$G$16,M31*IF(J31=KAYNAK!$F$34,0,BORDRO!J31),F31=KAYNAK!$G$17,M31*IF(J31=KAYNAK!$F$34,0,BORDRO!J31))","v":""},{"$f":"_xlfn.IFS(F31=\" \",\" \",F31=KAYNAK!$G$16,\"\",F31=KAYNAK!$G$17,CEILING(L31/100*14,0.1))","v":" "},{"$f":"_xlfn.IFS(F31=\" \",\" \",F31=KAYNAK!$G$16,\"\",F31=KAYNAK!$G$17,CEILING(L31/100*1,0.1))","v":" "},{"$f":"_xlfn.IFS(F31=\" \",\" \",F31=KAYNAK!$G$16,\"\",F31=KAYNAK!$G$17,CEILING(L31/100*20.5,0.1))","v":" "},{"$f":"_xlfn.IFS(F31=\" \",\" \",F31=KAYNAK!$G$16,\"\",F31=KAYNAK!$G$17,CEILING(L31/100*2,0.1))","v":" "},{"$f":"IFERROR(_xlfn.IFS(E31=KAYNAK!$F$19,\"\",E31=KAYNAK!$F$20,\"\",E31=KAYNAK!$F$23,\"\",ANASAYFA!N29>0,L31/30*ANASAYFA!N29),\"\")","v":""},{"$f":"KAYNAK!D198","v":0},"",""]
[null,"TOPLAMLAR",null,null,null,null,null,null,null,null,null,{"$f":"SUM(L17:L31)","v":0},{"$f":"SUM(M17:M31)","v":0},{"$f":"IFERROR(SUM(N17:N31),\"\")","v":0},null,{"$f":"IFERROR(SUM(P17:P31),\"\")","v":0},0,{"$f":"IFERROR(SUM(R17:R31),\"\")","v":0},0,{"$f":"IFERROR(SUM(T17:T31),\"\")","v":0},0,{"$f":"IFERROR(SUM(V17:V31),\"\")","v":0},{"$f":"IFERROR(SUM(W17:W31),\"\")","v":0},{"$f":"IFERROR(SUM(X17:X31),\"\")","v":0}]
[]
[null,null,null,null,null,null,null,{"$f":"IF(KAYNAK!M350>0,\"ANASAYFA ÜZERİNDE PERSONEL ADI - GÖREVİ - KADRO DURUMU - DERS SAATİ - VERGİ DİLİMİ ALANLARININ DOĞRULUĞUNU KONTROL EDİNİZ.\",\"\")","v":""}]
[null,null,{"$f":"IF(KAYNAK!H101=\"0\",\" \",KAYNAK!H101)","v":" "},null,null,null,null,null,null,null,null,null,null,null,null,null,null,null,{"$f":"IF(KAYNAK!H102=\"0\",\" \",KAYNAK!H102)","v":" "}]
[null,null,{"$f":"IF(KAYNAK!H101=\"0\",\" \",KAYNAK!I101)","v":" "},null,null,null,null,null,null,null,null,null,null,null,null,null,null,null,{"$f":"IF(KAYNAK!H102=\"0\",\" \",KAYNAK!I102)","v":" "}]

{"sheet":"BANKA LİSTESİ","index":3,"n_rows":26,"n_cols":10,"rows_kept":26,"cut":false,"hidden":false,"merged":[[9,9,9,10],[7,2,7,5],[7,6,7,8],[7,9,7,10],[8,2,8,5],[8,6,8,8],[8,9,8,10],[2,2,2,10],[1,2,1,10],[4,2,4,10],[19,2,19,5],[19,6,19,8],[19,9,19,10],[17,2,17,5],[17,6,17,8],[17,9,17,10],[18,2,18,5],[18,6,18,8],[10,2,10,5],[10,6,10,8],[10,9,10,10],[14,2,14,5],[14,6,14,8],[25,7,25,10],[24,7,24,10],[18,9,18,10],[15,2,15,5],[15,6,15,8],[15,9,15,10],[16,2,16,5],[16,6,16,8],[16,9,16,10],[25,2,25,5],[20,2,20,5],[20,6,20,8],[20,9,20,10],[21,1,21,8],[23,7,23,10],[23,2,23,5],[3,2,3,10],[14,9,14,10],[11,2,11,5],[11,6,11,8],[11,9,11,10],[12,2,12,5],[12,6,12,8],[12,9,12,10],[6,2,6,5],[6,6,6,8],[6,9,6,10],[5,2,5,5],[5,6,5,8],[5,9,5,10],[9,2,9,5],[9,6,9,8],[24,2,24,5],[21,9,21,10],[13,2,13,5],[13,6,13,8],[13,9,13,10]]}
[]
[null,null,"T.C."]
[null,null,{"$f":"CONCATENATE(KAYNAK!N106,\" \",\"KAYMAKAMLIĞI\")","v":"KÖYCEĞİZ KAYMAKAMLIĞI"}]
[null,null,{"$f":"KAYNAK!L106","v":"KÖYCEĞİZ ANAOKULU"}]
[null,null,{"$f":"CONCATENATE(KAYNAK!G3,\" \",\"YILI\",\" \",KAYNAK!G2,\" \",\"AYI\",\" \",\"ÇOCUK KULÜBÜ\",\" \",\"BANKA LİSTESİ\")","v":"2023 YILI KASIM AYI ÇOCUK KULÜBÜ BANKA LİSTESİ"}]
[null,"S.N.","PERSONEL ADI",null,null,null,"IBAN",null,null,"Tutar"]
[null,1,{"$f":"IF(ISBLANK(KAYNAK!I24),\"\",KAYNAK!I24)","v":" "},null,null,null,{"$f":"CONCATENATE(ANASAYFA!Q15)","v":""},null,null,{"$f":"BORDRO!X17","v":""}]
[null,2,{"$f":"IF(ISBLANK(KAYNAK!I25),\"\",KAYNAK!I25)","v":" "},null,null,null,{"$f":"CONCATENATE(ANASAYFA!Q16)","v":""},null,null,{"$f":"BORDRO!X18","v":""}]
[null,3,{"$f":"IF(ISBLANK(KAYNAK!I26),\"\",KAYNAK!I26)","v":" "},null,null,null,{"$f":"CONCATENATE(ANASAYFA!Q17)","v":""},null,null,{"$f":"BORDRO!X19","v":""}]
[null,4,{"$f":"IF(ISBLANK(KAYNAK!I27),\"\",KAYNAK!I27)","v":" "},null,null,null,{"$f":"CONCATENATE(ANASAYFA!Q18)","v":""},null,null,{"$f":"BORDRO!X20","v":""}]
[null,5,{"$f":"IF(ISBLANK(KAYNAK!I28),\"\",KAYNAK!I28)","v":" "},null,null,null,{"$f":"CONCATENATE(ANASAYFA!Q19)","v":""},null,null,{"$f":"BORDRO!X21","v":""}]
[null,6,{"$f":"IF(ISBLANK(KAYNAK!I29),\"\",KAYNAK!I29)","v":" "},null,null,null,{"$f":"CONCATENATE(ANASAYFA!Q20)","v":""},null,null,{"$f":"BORDRO!X22","v":""}]
[null,7,{"$f":"IF(ISBLANK(KAYNAK!I30),\"\",KAYNAK!I30)","v":" "},null,null,null,{"$f":"CONCATENATE(ANASAYFA!Q21)","v":""},null,null,{"$f":"BORDRO!X23","v":""}]
[null,8,{"$f":"IF(ISBLANK(KAYNAK!I31),\"\",KAYNAK!I31)","v":" "},null,null,null,{"$f":"CONCATENATE(ANASAYFA!Q22)","v":""},null,null,{"$f":"BORDRO!X24","v":""}]
[null,9,{"$f":"IF(ISBLANK(KAYNAK!I32),\"\",KAYNAK!I32)","v":" "},null,null,null,{"$f":"CONCATENATE(ANASAYFA!Q23)","v":""},null,null,{"$f":"BORDRO!X25","v":""}]
[null,10,{"$f":"IF(ISBLANK(KAYNAK!I33),\"\",KAYNAK!I33)","v":" "},null,null,null,{"$f":"CONCATENATE(ANASAYFA!Q24)","v":""},null,null,{"$f":"BORDRO!X26","v":""}]
[null,11,{"$f":"IF(ISBLANK(KAYNAK!I34),\"\",KAYNAK!I34)","v":" "},null,null,null,{"$f":"CONCATENATE(ANASAYFA!Q25)","v":""},null,null,{"$f":"BORDRO!X27","v":""}]
[null,12,{"$f":"IF(ISBLANK(KAYNAK!I35),\"\",KAYNAK!I35)","v":" "},null,null,null,{"$f":"CONCATENATE(ANASAYFA!Q26)","v":""},null,null,{"$f":"BORDRO!X28","v":""}]
[null,13,{"$f":"IF(ISBLANK(KAYNAK!I36),\"\",KAYNAK!I36)","v":" "},null,null,null,{"$f":"CONCATENATE(ANASAYFA!Q27)","v":""},null,null,{"$f":"BORDRO!X29","v":""}]
[null,14,{"$f":"IF(ISBLANK(KAYNAK!I37),\"\",KAYNAK!I37)","v":" "},null,null,null,{"$f":"CONCATENATE(ANASAYFA!Q28)","v":""},null,null,{"$f":"BORDRO!X30","v":""}]
[null,15,{"$f":"IF(ISBLANK(KAYNAK!I38),\"\",KAYNAK!I38)","v":" "},null,null,null,{"$f":"CONCATENATE(ANASAYFA!Q29)","v":""},null,null,{"$f":"BORDRO!X31","v":""}]
[null,"TOPLAM TUTAR",null,null,null,null,null,null,null,{"$f":"SUM(J7:K21)","v":0}]
[]
[]
[null,null,{"$f":"IF(KAYNAK!H101=\"0\",\" \",KAYNAK!H101)","v":" "},null,null,null,null,{"$f":"IF(KAYNAK!H102=\"0\",\" \",KAYNAK!H102)","v":" "}]
[null,null,{"$f":"IF(KAYNAK!H101=\"0\",\" \",KAYNAK!I101)","v":" "},null,null,null,null,{"$f":"IF(KAYNAK!H102=\"0\",\" \",KAYNAK!I102)","v":" "}]

{"sheet":"BİLANÇO","index":4,"n_rows":52,"n_cols":14,"rows_kept":52,"cut":false,"hidden":false,"merged":[[6,12,7,13],[4,2,4,13],[16,2,16,9],[3,2,3,13],[2,2,2,13],[1,2,1,13],[8,2,8,3],[8,4,8,5],[8,6,8,7],[8,8,8,9],[8,10,8,11],[6,2,7,3],[6,4,7,5],[6,6,7,7],[6,8,7,9],[6,10,7,11],[8,12,8,13],[12,2,12,3],[12,4,12,5],[12,6,12,7],[12,8,12,9],[12,10,12,11],[12,12,12,13],[10,2,11,3],[22,2,22,9],[23,2,23,9],[17,2,17,9],[18,2,18,9],[19,2,19,9],[20,2,20,9],[20,12,20,13],[18,10,18,11],[18,12,18,13],[0,2,0,3],[0,4,0,5],[34,2,34,10],[35,2,35,10],[10,4,11,5],[10,6,11,7],[10,8,11,9],[10,10,11,11],[10,12,11,13],[24,2,24,13],[21,10,21,11],[21,12,21,13],[22,10,22,11],[22,12,22,13],[23,10,23,11],[23,12,23,13],[16,10,16,11],[16,12,16,13],[17,10,17,11],[17,12,17,13],[19,10,19,11],[19,12,19,13],[20,10,20,11],[21,2,21,9],[25,7,25,8],[36,11,36,13],[38,11,38,13],[27,2,27,6],[35,11,35,13],[28,9,28,10],[29,9,29,10],[31,2,31,10],[37,2,37,10],[37,11,37,13],[28,7,28,8],[29,7,29,8],[30,7,30,8],[28,11,28,12],[29,11,29,12],[30,11,30,12],[31,11,31,12],[25,2,25,6],[25,9,25,10],[15,2,15,9],[15,10,15,11],[15,12,15,13],[14,2,14,13],[50,10,50,13],[51,10,51,13],[50,2,50,5],[51,2,51,5],[43,2,43,10],[38,2,38,10],[43,11,43,13],[44,2,44,10],[44,11,44,13],[45,2,45,10],[45,11,45,13],[39,2,39,10],[39,11,39,13],[36,2,36,10],[33,2,33,13],[30,2,30,6],[40,2,40,10],[25,11,25,12],[26,11,26,12],[27,11,27,12],[49,2,49,5],[49,10,49,13],[46,2,46,10],[46,11,46,13],[47,2,47,10],[47,11,47,13],[28,2,28,6],[29,2,29,6],[26,9,26,10],[26,2,26,6],[34,11,34,13],[30,9,30,10],[27,9,27,10],[26,7,26,8],[27,7,27,8],[42,2,42,13],[40,11,40,13],[32,2,32,10],[32,11,32,13]]}
[null,null,{"$f":"BORDRO!D2","v":"KASIM"},null,{"$f":"BORDRO!E2","v":"2023"}]
[null,null,"T.C."]
[null,null,{"$f":"CONCATENATE(KAYNAK!N106,\" \",\"KAYMAKAMLIĞI\")","v":"KÖYCEĞİZ KAYMAKAMLIĞI"}]
[null,null,{"$f":"KAYNAK!L106","v":"KÖYCEĞİZ ANAOKULU"}]
[null,null,{"$f":"CONCATENATE(KAYNAK!G3,\" \",\"YILI\",\" \",KAYNAK!G2,\" \",\"AYI\",\" \",\"ÇOCUK\",\" \",\"KULÜBÜ\",\" \",\"BİLANÇOSU\")","v":"2023 YILI KASIM AYI ÇOCUK KULÜBÜ BİLANÇOSU"}]
[]
[null,null,"Maaş Aylık Katsayısı",null,"Gündüz Öğretimi Göstergesi",null,"En Yüksek Devlet Memuru Brüt Aylığı",null,"Brüt Asgari Ücret",null,"Belirlenebilecek En Düşük Saat Ücreti",null,"Belirlenebilecek En Yüksek Saat Ücreti"]
[]
[null,null,{"$f":"KAYNAK!H159","v":"0,509796"},null,{"$f":"KAYNAK!J159","v":"140"},null,{"$f":"KAYNAK!L159","v":"4843,062"},null,{"$f":"KAYNAK!N159","v":"13414,5"},null,{"$f":"KAYNAK!H163","v":"7,137144"},null,{"$f":"KAYNAK!J163","v":"17,84286"}]
[]
[null,null,"Öğrenci Sayısı",null,"Grup Sayısı",null,"Belirlenen 1 Saatlik Ücret",null,"İşgünü Sayısı",null,"Aylık Toplam Saat Sayısı",null,"Aylık Ücret Toplamı"]
[]
[null,null,{"$f":"ANASAYFA!Q6","v":0},null,{"$f":"ANASAYFA!P6","v":0},null,{"$f":"ANASAYFA!J10","v":17.84},null,{"$f":"ANASAYFA!O6","v":0},null,{"$f":"ANASAYFA!D11","v":0},null,{"$f":"KAYNAK!P167","v":"0"}]
[]
[null,null,"CARİ AY ORANSAL PAY DAĞILIMI"]
[null,null,"GİDER KALEMİ",null,null,null,null,null,null,null,"ORAN",null,"PAY"]
[null,null,"AYLIK TAHAKKUK TOPLAMI",null,null,null,null,null,null,null,1,null,{"$f":"KAYNAK!L186","v":0}]
[null,null,"Temel Giderler",null,null,null,null,null,null,null,{"$f":"BORDRO!F4","v":0.33},null,{"$f":"KAYNAK!N172","v":0}]
[null,null,"Öğretmen, Ücretli Öğretmen, Koordinatör",null,null,null,null,null,null,null,{"$f":"BORDRO!F7","v":0.49},null,{"$f":"KAYNAK!L183","v":0}]
[null,null,"Kulüp Yönetim Kurulu Başkanı (Okul Müdürü)",null,null,null,null,null,null,null,{"$f":"BORDRO!F5","v":7.0000000000000007E-2},null,{"$f":"KAYNAK!L181","v":0}]
[null,null,"Kulüp Yönetim Kurulu Üye (Müdür Yardımcısı)",null,null,null,null,null,null,null,{"$f":"BORDRO!F6","v":0.05},null,{"$f":"KAYNAK!L182","v":0}]
[null,null,"Muhasebe Memuru",null,null,null,null,null,null,null,{"$f":"BORDRO!F8","v":0.02},null,{"$f":"KAYNAK!L176","v":0}]
[null,null,"Temizlik Personelleri",null,null,null,null,null,null,null,{"$f":"BORDRO!F9","v":0.04},null,{"$f":"KAYNAK!L177","v":0}]
[]
[null,null,"CARİ AY HESAP BİLANÇOSU"]
[null,null,"GİDER KALEMİ",null,null,null,null,"PAY TUTARI",null,"GERÇEKLEŞEN",null,"Temel Gidere Aktarılan SGK ve Vergi Kesintileri",null,"Temel Gidere Aktarılan Limit Üstü "]
[null,null,"Öğretmen,Usta Öğretici, Koordinatör (%49)",null,null,null,null,{"$f":"M19","v":0},null,{"$f":"KAYNAK!N183","v":{"$error":"#N/A"}},null,{"$f":"BORDRO!L7","v":{"$error":"#N/A"}},null,{"$f":"BORDRO!M7","v":{"$error":"#N/A"}}]
[null,null,"Kulüp Yönetim Kurulu Bşk. (Okul Müdürü-%7)",null,null,null,null,{"$f":"M20","v":0},null,{"$f":"KAYNAK!N181","v":0},null,{"$f":"BORDRO!L5","v":0},null,{"$f":"BORDRO!M5","v":0}]
[null,null,"Kulüp Yönetim Kurulu Üyesi (%5)",null,null,null,null,{"$f":"M21","v":0},null,{"$f":"KAYNAK!N182","v":0},null,{"$f":"BORDRO!L6","v":{"$error":"#N/A"}},null,{"$f":"BORDRO!M6","v":{"$error":"#N/A"}}]
[null,null,"Muhasebe Memuru (%2)",null,null,null,null,{"$f":"M22","v":0},null,{"$f":"KAYNAK!N184","v":0},null,{"$f":"BORDRO!L8","v":0},null,{"$f":"BORDRO!M8","v":0}]
[null,null,"Temizlik Personelleri (%4)",null,null,null,null,{"$f":"M23","v":0},null,{"$f":"KAYNAK!N185","v":0},null,{"$f":"BORDRO!L9","v":0},null,{"$f":"BORDRO!M9","v":0}]
[null,null,"Personel Gelir Vergisi, Damga Vergisi ve İşveren SGK Primleri İçin Temel Gider'e Aktarılan",null,null,null,null,null,null,null,null,{"$f":"BORDRO!X6","v":{"$error":"#N/A"}},null,{"$f":"SUM(N27:N31)","v":{"$error":"#N/A"}}]
[null,null,"İzin/Rapor Nedeniyle Müdür-Md.Yard-Hizmetli/Aşçı-Memur kalemlerinden aktarılan",null,null,null,null,null,null,null,null,{"$f":"BORDRO!X7","v":0}]
[]
[null,null,"TOPLAM TEMEL GİDERE AKTARILAN",null,null,null,null,null,null,null,null,{"$f":"L32+N32+L33","v":{"$error":"#N/A"}}]
[null,null,"TEMEL GİDER ORANSAL PAY TUTARI (%33)",null,null,null,null,null,null,null,null,{"$f":"M18","v":0}]
[null,null,"AKTARIM SONRASI TEMEL GİDER KASASI",null,null,null,null,null,null,null,null,{"$f":"L36+L35","v":{"$error":"#N/A"}}]
[null,null,"Personelden kesilen SGK, Gelir vergisi, Damga Vergisi tutarları",null,null,null,null,null,null,null,null,{"$f":"BORDRO!V32-BORDRO!U32","v":0}]
[null,null,"İşveren SGK Payları (%20,5+%2)",null,null,null,null,null,null,null,null,{"$f":"BORDRO!W32","v":0}]
[null,null,"TOPLAM YAKLAŞIK SGK VE MUHTASAR ÖDEMELERİ (Stopaj vb. hariç)",null,null,null,null,null,null,null,null,{"$f":"L38+L39","v":0}]
[null,null,"SGK VE VERGİ ÖDEMELERİ SONRASI TEMEL GİDER KASASI",null,null,null,null,null,null,null,null,{"$f":"L37-L40","v":{"$error":"#N/A"}}]
[]
[null,null,"TEMEL GİDER HESAP DÖKÜMÜ"]
[null,null,"Temizlik, Beslenme, Materyal ve Okulun Diğer Giderleri Harcamaları",null,null,null,null,null,null,null,null,{"$f":"ANASAYFA!U16","v":0}]
[null,null,"Yaklaşık Tutara Göre Stopaj vb. kalemlerle Fazla/Eksik Ödenen SGK ve Vergiler",null,null,null,null,null,null,null,null,{"$f":"IF(ANASAYFA!V29=\"\",0,ANASAYFA!V29-ANASAYFA!U29)","v":0}]
[null,null,"Yönerge 16/2 maddesince temel gider kasasından personel giderine aktarılan tutar",null,null,null,null,null,null,null,null,{"$f":"ANASAYFA!U22","v":0}]
[null,null,"HARCAMALAR TOPLAMI",null,null,null,null,null,null,null,null,{"$f":"L44+L45+L46","v":0}]
[null,null,"HARACAMALAR SONRASI TEMEL GİDER KASASI ",null,null,null,null,null,null,null,null,{"$f":"L41-L47","v":{"$error":"#N/A"}}]
[]
[]
[null,null,{"$f":"IF(KAYNAK!H101=\"0\",\" \",KAYNAK!H101)","v":" "},null,null,null,null,null,null,null,{"$f":"IF(KAYNAK!H102=\"0\",\" \",KAYNAK!H102)","v":" "}]
[null,null,{"$f":"IF(KAYNAK!H101=\"0\",\" \",KAYNAK!I101)","v":" "},null,null,null,null,null,null,null,{"$f":"IF(KAYNAK!H102=\"0\",\" \",KAYNAK!I102)","v":" "}]

{"sheet":"KİŞİ BORDRO","index":5,"n_rows":34,"n_cols":15,"rows_kept":34,"cut":false,"hidden":false,"merged":[[21,5,21,9],[20,2,20,4],[13,2,13,4],[15,2,15,4],[15,5,15,9],[16,5,16,9],[13,5,13,9],[17,5,17,9],[18,5,18,9],[19,5,19,9],[20,5,20,9],[16,2,16,4],[17,2,17,4],[18,2,18,4],[19,2,19,4],[21,2,21,4],[22,2,22,4],[23,2,23,4],[32,7,32,9],[22,5,22,9],[23,5,23,9],[27,5,27,9],[27,2,27,4],[25,2,25,4],[25,5,25,9],[26,2,26,4],[26,5,26,9],[28,2,28,4],[28,5,28,9],[24,2,24,4],[24,5,24,9],[33,7,33,9],[32,2,32,4],[33,2,33,4],[29,5,29,9],[29,2,29,4],[9,11,10,12],[1,1,1,2],[9,2,9,4],[10,2,10,4],[11,2,11,4],[7,2,7,9],[6,2,6,9],[5,2,5,9],[4,2,4,9],[9,5,9,9],[10,5,10,9],[11,5,11,9],[14,2,14,4],[14,5,14,9],[12,2,12,4],[12,5,12,9],[11,11,11,12]]}
[]
[null,"BORDRO DÖNEMİ",null,{"$f":"KAYNAK!G3","v":"2023"},{"$f":"KAYNAK!G2","v":"KASIM"}]
[]
[]
[null,null,"T.C."]
[null,null,{"$f":"CONCATENATE(KAYNAK!N106,\" \",\"KAYMAKAMLIĞI\")","v":"KÖYCEĞİZ KAYMAKAMLIĞI"}]
[null,null,{"$f":"KAYNAK!L106","v":"KÖYCEĞİZ ANAOKULU"}]
[null,null,{"$f":"CONCATENATE(KAYNAK!G3,\" \",\"YILI\",\" \",KAYNAK!G2,\" \",\"AYI\",\" \",\"ÇOCUK\",\" \",\"KULÜBÜ\",\" \",\"ÜCRET\",\" \",\"BORDROSU\")","v":"2023 YILI KASIM AYI ÇOCUK KULÜBÜ ÜCRET BORDROSU"}]
[]
[null,null,"PERSONEL ADI",null,null,{"$f":"CONCATENATE(\"    \",L12)","v":"    ŞENGÜL KAYA"},null,null,null,null,null,"BORDROSU ALINACAK KİŞİ"]
[null,null,"GÖREVİ",null,null,{"$f":"CONCATENATE(\"    \",VLOOKUP(L12,BORDRO!B17:X31,4,FALSE))","v":{"$error":"#N/A"}}]
[null,null,"AYLIK GİRDİĞİ DERS SAATİ",null,null,{"$f":"CONCATENATE(\"    \",VLOOKUP(L12,BORDRO!B17:X31,8,FALSE))","v":{"$error":"#N/A"}},null,null,null,null,null,"ŞENGÜL KAYA",null,null,{"$f":"VLOOKUP(L12,ANASAYFA!C15:H29,5,0)","v":{"$error":"#N/A"}}]
[null,null,"BİRİM DERS SAAT ÜCRETİ",null,null,{"$f":"IFERROR(F16/F12,\"\")","v":""}]
[]
[null,null,"BRÜT ÜCRETLER TOPLAMI",null,null,{"$f":"VLOOKUP(L12,BORDRO!B17:X31,10,FALSE)","v":{"$error":"#N/A"}}]
[null,null,"TAHAKKUK (HAKEDİŞ) TOPLAMI",null,null,{"$f":"VLOOKUP(L12,BORDRO!B17:X31,11,FALSE)","v":{"$error":"#N/A"}}]
[null,null,"GELİR VERGİSİ MATRAHI",null,null,{"$f":"VLOOKUP(L12,BORDRO!B17:X31,12,FALSE)","v":{"$error":"#N/A"}},null,null,null,null,null,null,null,null,{"$f":"IF(VLOOKUP(L12,ANASAYFA!C15:H29,5,0)=KAYNAK!F16,KAYNAK!O44,\nIF(AND(VLOOKUP(L12,ANASAYFA!C15:H29,5,0)=KAYNAK!F17,BORDRO!K6=0),BORDRO!G6,IF(VLOOKUP(L12,ANASAYFA!C15:H29,5,0)=KAYNAK!F17,KAYNAK!O45,\nIF(AND(VLOOKUP(L12,ANASAYFA!C15:H29,5,0)=KAYNAK!F18,BORDRO!K6=0),BORDRO!G6,IF(VLOOKUP(L12,ANASAYFA!C15:H29,5,0)=KAYNAK!F18,KAYNAK!O45,\nIF(VLOOKUP(L12,ANASAYFA!C15:H29,5,0)=KAYNAK!F22,KAYNAK!O46,\nIF(VLOOKUP(L12,ANASAYFA!C15:H29,5,0)=KAYNAK!F21,KAYNAK!O47,\nIF(VLOOKUP(L12,ANASAYFA!C15:H29,5,0)=KAYNAK!F23,KAYNAK!O50,\nIF(VLOOKUP(L12,ANASAYFA!C15:H29,5,0)=KAYNAK!F19,VLOOKUP(L12,KAYNAK!G52:O66,9,0),\nIF(VLOOKUP(L12,ANASAYFA!C15:H29,5,0)=KAYNAK!F20,VLOOKUP(L12,KAYNAK!G52:O66,9,0)))))))))))","v":{"$error":"#N/A"}}]
[null,null,"GELİR VERGİSİ ORANI",null,null,{"$f":"VLOOKUP(L12,BORDRO!B17:X31,9,FALSE)","v":{"$error":"#N/A"}}]
[null,null,"GELİR VERGİSİ KESİNTİSİ",null,null,{"$f":"VLOOKUP(L12,BORDRO!B17:X31,15,FALSE)","v":{"$error":"#N/A"}}]
[null,null,"DAMGA VERGİSİ KESİNTİSİ",null,null,{"$f":"VLOOKUP(L12,BORDRO!B17:X31,13,FALSE)","v":{"$error":"#N/A"}}]
[null,null,"SGK (KİŞİ) %14",null,null,{"$f":"VLOOKUP(L12,BORDRO!B17:X31,16,FALSE)","v":{"$error":"#N/A"}}]
[null,null,"SGK (İŞVEREN) %20,5",null,null,{"$f":"VLOOKUP(L12,BORDRO!B17:X31,18,FALSE)","v":{"$error":"#N/A"}}]
[null,null,"İŞSİZLİK SİG. PRİ. (KİŞİ) %1",null,null,{"$f":"VLOOKUP(L12,BORDRO!B17:X31,18,FALSE)","v":{"$error":"#N/A"}}]
[null,null,"İŞSİZLİK SİG. PRİ. (İŞVEREN) %2",null,null,{"$f":"VLOOKUP(L12,BORDRO!B17:X31,19,FALSE)","v":{"$error":"#N/A"}}]
[null,null,"TEMEL GİDERE AKTARILAN KESİNTİLER TOPLAMI",null,null,{"$f":"IF(F26=\"\",F27,IF(F27=\"\",F26,F26+F27))","v":{"$error":"#N/A"}}]
[null,null,"                 İZİN/RAPOR KESİNTİSİ",null,null,{"$f":"VLOOKUP(L12,BORDRO!B17:X31,20,FALSE)","v":{"$error":"#N/A"}}]
[null,null,"        ÖDENEBİLECEK LİMİT ÜSTÜ KESİNTİSİ",null,null,{"$f":"O17","v":{"$error":"#N/A"}}]
[null,null,"KİŞİ VERGİ-SGK-İZİN KESİNTİ TOPLAMI",null,null,{"$f":"VLOOKUP(L12,BORDRO!B17:X31,21,FALSE)","v":{"$error":"#N/A"}}]
[null,null,"İŞVERENCE KARŞILANAN PRİM TOPLAMI",null,null,{"$f":"IF(F22=\"\",F24,IF(F24=\"\",F22,F22+F24))","v":{"$error":"#N/A"}}]
[null,null,"NET ÖDENEN",null,null,{"$f":"VLOOKUP(L12,BORDRO!B17:X31,23,FALSE)","v":{"$error":"#N/A"}}]
[]
[]
[null,null,{"$f":"IF(KAYNAK!H101=\"0\",\" \",KAYNAK!H101)","v":" "},null,null,null,null,{"$f":"IF(KAYNAK!H102=\"0\",\" \",KAYNAK!H102)","v":" "}]
[null,null,{"$f":"IF(KAYNAK!H101=\"0\",\" \",KAYNAK!I101)","v":" "},null,null,null,null,{"$f":"IF(KAYNAK!H102=\"0\",\" \",KAYNAK!I102)","v":" "}]

{"sheet":"VERGİ MATRAH","index":6,"n_rows":36,"n_cols":11,"rows_kept":36,"cut":false,"hidden":false,"merged":[[24,5,24,7],[25,5,25,7],[22,5,22,7],[23,5,23,7],[17,5,17,7],[18,5,18,7],[19,5,19,7],[20,5,20,7],[21,5,21,7],[30,1,31,11],[32,1,32,5],[34,7,34,11],[35,7,35,11],[26,5,26,7],[25,2,25,4],[26,2,26,4],[12,2,12,4],[24,2,24,4],[23,2,23,4],[22,2,22,4],[13,2,13,4],[20,2,20,4],[21,2,21,4],[18,2,18,4],[19,2,19,4],[14,2,14,4],[16,2,16,4],[17,2,17,4],[1,1,1,3],[7,1,8,11],[16,5,16,7],[10,5,11,7],[12,5,12,7],[13,5,13,7],[10,1,11,1],[10,2,11,4],[15,2,15,4],[12,8,12,9],[13,8,13,9],[14,5,14,7],[15,5,15,7],[14,8,14,9],[4,14,6,16],[4,1,4,11],[5,1,5,11],[6,1,6,11],[10,8,11,9],[10,10,11,11],[22,10,22,11],[23,10,23,11],[24,10,24,11],[12,10,12,11],[13,10,13,11],[14,10,14,11],[15,10,15,11],[16,10,16,11],[17,10,17,11],[18,10,18,11],[19,10,19,11],[25,10,25,11],[26,10,26,11],[15,8,15,9],[16,8,16,9],[17,8,17,9],[18,8,18,9],[19,8,19,9],[20,8,20,9],[21,8,21,9],[22,8,22,9],[23,8,23,9],[24,8,24,9],[25,8,25,9],[26,8,26,9],[20,10,20,11],[21,10,21,11]]}
[]
[null,"MATRAH DÖNEMİ",null,null,{"$f":"KAYNAK!G3","v":"2023"},{"$f":"KAYNAK!G2","v":"KASIM"}]
[]
[]
[null,"T.C."]
[null,{"$f":"CONCATENATE(KAYNAK!N106,\" \",\"KAYMAKAMLIĞI\")","v":"KÖYCEĞİZ KAYMAKAMLIĞI"}]
[null,{"$f":"KAYNAK!L106","v":"KÖYCEĞİZ ANAOKULU"}]
[null,{"$f":"CONCATENATE(KAYNAK!G3,\" \",\"YILI\",\" \",KAYNAK!G2,\" \",\"AYI\",\" \",\"ÇOCUK\",\" \",\"KULÜBÜNDE\",\" \",\"GÖREVLİ\",\" \",\"KADROLU/SÖZLEŞMELİ\",\" \",\"PERSONELE\",\" \",\"AİT\",\" \",\"İLGİLİ\",\" \",\"DÖNEM\",\" \",\"GELİR\",\" \",\"VERGİSİ\",\" \",\"MATRAH\",\" \",\"TUTARLARI\")","v":"2023 YILI KASIM AYI ÇOCUK KULÜBÜNDE GÖREVLİ KADROLU/SÖZLEŞMELİ PERSONELE AİT İLGİLİ DÖNEM GELİR VERGİSİ MATRAH TUTARLARI"}]
[]
[]
[null,"S.N.","PERSONEL ADI VE SOYADI",null,null,"T.C. KİMLİK NO",null,null,"AYLIK VERGİ MATRAHI",null,"KESİLEN GELİR VERGİSİ"]
[]
[null,1,{"$f":"IFERROR(VLOOKUP(KAYNAK!$Z409,KAYNAK!$X$385:$AH$400,4,FALSE),\"\")","v":""},null,null,{"$f":"IFERROR(VLOOKUP(KAYNAK!$Z409,KAYNAK!$X$385:$AH$400,11,FALSE),\"\")","v":""},null,null,{"$f":"IFERROR(VLOOKUP(KAYNAK!$Z409,KAYNAK!$X$385:$AH$400,10,FALSE),\"\")","v":""},null,{"$f":"IFERROR(VLOOKUP(KAYNAK!$Z409,KAYNAK!X386:AJ400,12,FALSE),\"\")","v":""}]
[null,2,{"$f":"IFERROR(VLOOKUP(KAYNAK!$Z410,KAYNAK!$X$385:$AH$400,4,FALSE),\"\")","v":""},null,null,{"$f":"IFERROR(VLOOKUP(KAYNAK!$Z410,KAYNAK!$X$385:$AH$400,11,FALSE),\"\")","v":""},null,null,{"$f":"IFERROR(VLOOKUP(KAYNAK!$Z410,KAYNAK!$X$385:$AH$400,10,FALSE),\"\")","v":""},null,{"$f":"IFERROR(VLOOKUP(KAYNAK!$Z410,KAYNAK!X387:AJ401,12,FALSE),\"\")","v":""}]
[null,3,{"$f":"IFERROR(VLOOKUP(KAYNAK!$Z411,KAYNAK!$X$385:$AH$400,4,FALSE),\"\")","v":""},null,null,{"$f":"IFERROR(VLOOKUP(KAYNAK!$Z411,KAYNAK!$X$385:$AH$400,11,FALSE),\"\")","v":""},null,null,{"$f":"IFERROR(VLOOKUP(KAYNAK!$Z411,KAYNAK!$X$385:$AH$400,10,FALSE),\"\")","v":""},null,{"$f":"IFERROR(VLOOKUP(KAYNAK!$Z411,KAYNAK!X388:AJ402,12,FALSE),\"\")","v":""}]
[null,4,{"$f":"IFERROR(VLOOKUP(KAYNAK!$Z412,KAYNAK!$X$385:$AH$400,4,FALSE),\"\")","v":""},null,null,{"$f":"IFERROR(VLOOKUP(KAYNAK!$Z412,KAYNAK!$X$385:$AH$400,11,FALSE),\"\")","v":""},null,null,{"$f":"IFERROR(VLOOKUP(KAYNAK!$Z412,KAYNAK!$X$385:$AH$400,10,FALSE),\"\")","v":""},null,{"$f":"IFERROR(VLOOKUP(KAYNAK!$Z412,KAYNAK!X389:AJ403,12,FALSE),\"\")","v":""}]
[null,5,{"$f":"IFERROR(VLOOKUP(KAYNAK!$Z413,KAYNAK!$X$385:$AH$400,4,FALSE),\"\")","v":""},null,null,{"$f":"IFERROR(VLOOKUP(KAYNAK!$Z413,KAYNAK!$X$385:$AH$400,11,FALSE),\"\")","v":""},null,null,{"$f":"IFERROR(VLOOKUP(KAYNAK!$Z413,KAYNAK!$X$385:$AH$400,10,FALSE),\"\")","v":""},null,{"$f":"IFERROR(VLOOKUP(KAYNAK!$Z413,KAYNAK!X390:AJ404,12,FALSE),\"\")","v":""}]
[null,6,{"$f":"IFERROR(VLOOKUP(KAYNAK!$Z414,KAYNAK!$X$385:$AH$400,4,FALSE),\"\")","v":""},null,null,{"$f":"IFERROR(VLOOKUP(KAYNAK!$Z414,KAYNAK!$X$385:$AH$400,11,FALSE),\"\")","v":""},null,null,{"$f":"IFERROR(VLOOKUP(KAYNAK!$Z414,KAYNAK!$X$385:$AH$400,10,FALSE),\"\")","v":""},null,{"$f":"IFERROR(VLOOKUP(KAYNAK!$Z414,KAYNAK!X391:AJ405,12,FALSE),\"\")","v":""}]
[null,7,{"$f":"IFERROR(VLOOKUP(KAYNAK!$Z415,KAYNAK!$X$385:$AH$400,4,FALSE),\"\")","v":""},null,null,{"$f":"IFERROR(VLOOKUP(KAYNAK!$Z415,KAYNAK!$X$385:$AH$400,11,FALSE),\"\")","v":""},null,null,{"$f":"IFERROR(VLOOKUP(KAYNAK!$Z415,KAYNAK!$X$385:$AH$400,10,FALSE),\"\")","v":""},null,{"$f":"IFERROR(VLOOKUP(KAYNAK!$Z415,KAYNAK!X392:AJ406,12,FALSE),\"\")","v":""}]
[null,8,{"$f":"IFERROR(VLOOKUP(KAYNAK!$Z416,KAYNAK!$X$385:$AH$400,4,FALSE),\"\")","v":""},null,null,{"$f":"IFERROR(VLOOKUP(KAYNAK!$Z416,KAYNAK!$X$385:$AH$400,11,FALSE),\"\")","v":""},null,null,{"$f":"IFERROR(VLOOKUP(KAYNAK!$Z416,KAYNAK!$X$385:$AH$400,10,FALSE),\"\")","v":""},null,{"$f":"IFERROR(VLOOKUP(KAYNAK!$Z416,KAYNAK!X393:AJ407,12,FALSE),\"\")","v":""}]
[null,9,{"$f":"IFERROR(VLOOKUP(KAYNAK!$Z417,KAYNAK!$X$385:$AH$400,4,FALSE),\"\")","v":""},null,null,{"$f":"IFERROR(VLOOKUP(KAYNAK!$Z417,KAYNAK!$X$385:$AH$400,11,FALSE),\"\")","v":""},null,null,{"$f":"IFERROR(VLOOKUP(KAYNAK!$Z417,KAYNAK!$X$385:$AH$400,10,FALSE),\"\")","v":""},null,{"$f":"IFERROR(VLOOKUP(KAYNAK!$Z417,KAYNAK!X394:AJ408,12,FALSE),\"\")","v":""}]
[null,10,{"$f":"IFERROR(VLOOKUP(KAYNAK!$Z418,KAYNAK!$X$385:$AH$400,4,FALSE),\"\")","v":""},null,null,{"$f":"IFERROR(VLOOKUP(KAYNAK!$Z418,KAYNAK!$X$385:$AH$400,11,FALSE),\"\")","v":""},null,null,{"$f":"IFERROR(VLOOKUP(KAYNAK!$Z418,KAYNAK!$X$385:$AH$400,10,FALSE),\"\")","v":""},null,{"$f":"IFERROR(VLOOKUP(KAYNAK!$Z418,KAYNAK!X395:AJ409,12,FALSE),\"\")","v":""}]
[null,11,{"$f":"IFERROR(VLOOKUP(KAYNAK!$Z419,KAYNAK!$X$385:$AH$400,4,FALSE),\"\")","v":""},null,null,{"$f":"IFERROR(VLOOKUP(KAYNAK!$Z419,KAYNAK!$X$385:$AH$400,11,FALSE),\"\")","v":""},null,null,{"$f":"IFERROR(VLOOKUP(KAYNAK!$Z419,KAYNAK!$X$385:$AH$400,10,FALSE),\"\")","v":""},null,{"$f":"IFERROR(VLOOKUP(KAYNAK!$Z419,KAYNAK!X396:AJ410,12,FALSE),\"\")","v":""}]
[null,12,{"$f":"IFERROR(VLOOKUP(KAYNAK!$Z420,KAYNAK!$X$385:$AH$400,4,FALSE),\"\")","v":""},null,null,{"$f":"IFERROR(VLOOKUP(KAYNAK!$Z420,KAYNAK!$X$385:$AH$400,11,FALSE),\"\")","v":""},null,null,{"$f":"IFERROR(VLOOKUP(KAYNAK!$Z420,KAYNAK!$X$385:$AH$400,10,FALSE),\"\")","v":""},null,{"$f":"IFERROR(VLOOKUP(KAYNAK!$Z420,KAYNAK!X397:AJ411,12,FALSE),\"\")","v":""}]
[null,13,{"$f":"IFERROR(VLOOKUP(KAYNAK!$Z421,KAYNAK!$X$385:$AH$400,4,FALSE),\"\")","v":""},null,null,{"$f":"IFERROR(VLOOKUP(KAYNAK!$Z421,KAYNAK!$X$385:$AH$400,11,FALSE),\"\")","v":""},null,null,{"$f":"IFERROR(VLOOKUP(KAYNAK!$Z421,KAYNAK!$X$385:$AH$400,10,FALSE),\"\")","v":""},null,{"$f":"IFERROR(VLOOKUP(KAYNAK!$Z421,KAYNAK!X398:AJ412,12,FALSE),\"\")","v":""}]
[null,14,{"$f":"IFERROR(VLOOKUP(KAYNAK!$Z422,KAYNAK!$X$385:$AH$400,4,FALSE),\"\")","v":""},null,null,{"$f":"IFERROR(VLOOKUP(KAYNAK!$Z422,KAYNAK!$X$385:$AH$400,11,FALSE),\"\")","v":""},null,null,{"$f":"IFERROR(VLOOKUP(KAYNAK!$Z422,KAYNAK!$X$385:$AH$400,10,FALSE),\"\")","v":""},null,{"$f":"IFERROR(VLOOKUP(KAYNAK!$Z422,KAYNAK!X399:AJ413,12,FALSE),\"\")","v":""}]
[null,15,{"$f":"IFERROR(VLOOKUP(KAYNAK!$Z423,KAYNAK!$X$385:$AH$400,4,FALSE),\"\")","v":""},null,null,{"$f":"IFERROR(VLOOKUP(KAYNAK!$Z423,KAYNAK!$X$385:$AH$400,11,FALSE),\"\")","v":""},null,null,{"$f":"IFERROR(VLOOKUP(KAYNAK!$Z423,KAYNAK!$X$385:$AH$400,10,FALSE),\"\")","v":""},null,{"$f":"IFERROR(VLOOKUP(KAYNAK!$Z423,KAYNAK!X400:AJ414,12,FALSE),\"\")","v":""}]
[]
[]
[]
[null,{"$f":"CONCATENATE(KAYNAK!X347,\" \",KAYNAK!X348,\" \",KAYNAK!X349,\" \",KAYNAK!X350,\" \",KAYNAK!X351)","v":"      Okulumuz Çocuk Kulübünde görevli olup, kadrolu ve sözleşmeli devlet memuru olarak görev yapan personele ait 2023 yılı KASIM dönemi aylık vergi matrahı bildirimi tablosudur. "}]
[]
[]
[]
[null,null,null,null,null,null,null,{"$f":"IF(KAYNAK!H102=\"0\",\" \",KAYNAK!H102)","v":" "}]
[null,null,null,null,null,null,null,{"$f":"IF(KAYNAK!H102=\"0\",\" \",KAYNAK!I102)","v":" "}]

{"sheet":"DEVAM TAKİP","index":7,"n_rows":28,"n_cols":110,"rows_kept":28,"cut":false,"hidden":false,"merged":[[2,43,2,46],[3,43,5,46],[27,4,27,6],[27,8,27,13],[3,42,5,42],[23,29,23,46],[9,43,9,46],[10,43,10,46],[21,1,21,26],[7,43,7,46],[3,1,5,1],[3,2,4,2],[3,3,4,41],[27,14,27,17],[27,19,27,23],[27,24,27,28],[20,43,20,46],[15,43,15,46],[16,43,16,46],[17,43,17,46],[18,43,18,46],[23,2,23,3],[24,2,24,3],[24,29,24,46],[1,3,1,30],[1,31,1,34],[21,43,21,46],[8,43,8,46],[19,43,19,46],[11,43,11,46],[12,43,12,46],[13,43,13,46],[14,43,14,46],[1,43,1,46],[1,1,2,2],[6,43,6,46],[21,27,21,34]]}
[]
[null,{"$f":"KAYNAK!L106","v":"KÖYCEĞİZ ANAOKULU"},null,"ÇOCUK KULÜBÜ AYLIK İCMALİ",null,null,null,null,null,null,null,null,null,null,null,null,null,null,null,null,null,null,null,null,null,null,null,null,null,null,null,"DÖNEMİ",null,null,null,null,null,null,null,null,null,null,{"$f":"KAYNAK!G3","v":"2023"},{"$f":"BORDRO!D2","v":"KASIM"}]
[null,null,null,null,null,null,null,null,null,null,null,null,null,null,null,null,null,null,null,null,null,null,null,null,null,null,null,null,null,null,null,null,null,null,null,null,null,null,null,null,null,null,"BÜTÇE YILI",{"$f":"BORDRO!E2","v":"2023"}]
[null,"Sıra No ","Öğretmenin",{"$f":"CONCATENATE(AQ2,\" \",\"YILI\",\" \",AR2,\" \",\"DÖNEMİ\",\" \",C2,\" \",\"ÇOCUK KULÜBÜ\",\" \",\"AYLIK İCMALİ\")","v":"2023 YILI KASIM DÖNEMİ  ÇOCUK KULÜBÜ AYLIK İCMALİ"},null,null,null,null,null,null,null,null,null,null,null,null,null,null,null,null,null,null,null,null,null,null,null,null,null,null,null,null,null,null,null,null,null,null,null,null,null,null,"Aylık Okuttuğu Ders Toplamı","İmzası"]
[]
[null,null,"Adı Soyadı","Görevi",{"$f":"TAKVİM!I2","v":"2023-11-01"},{"$f":"IF(E6<VLOOKUP(TAKVİM!$F$2,TAKVİM!$F$6:$H$101,3,0),'DEVAM TAKİP'!E6+1,\"\")","v":"2023-11-02"},{"$f":"IF(F6<VLOOKUP(TAKVİM!$F$2,TAKVİM!$F$6:$H$101,3,0),'DEVAM TAKİP'!F6+1,\"\")","v":"2023-11-03"},{"$f":"IF(G6<VLOOKUP(TAKVİM!$F$2,TAKVİM!$F$6:$H$101,3,0),'DEVAM TAKİP'!G6+1,\"\")","v":"2023-11-04"},{"$f":"IF(H6<VLOOKUP(TAKVİM!$F$2,TAKVİM!$F$6:$H$101,3,0),'DEVAM TAKİP'!H6+1,\"\")","v":"2023-11-05"},{"$f":"IF(I6<VLOOKUP(TAKVİM!$F$2,TAKVİM!$F$6:$H$101,3,0),'DEVAM TAKİP'!I6+1,\"\")","v":"2023-11-06"},{"$f":"IF(J6<VLOOKUP(TAKVİM!$F$2,TAKVİM!$F$6:$H$101,3,0),'DEVAM TAKİP'!J6+1,\"\")","v":"2023-11-07"},{"$f":"IF(K6<VLOOKUP(TAKVİM!$F$2,TAKVİM!$F$6:$H$101,3,0),'DEVAM TAKİP'!K6+1,\"\")","v":"2023-11-08"},{"$f":"IF(L6<VLOOKUP(TAKVİM!$F$2,TAKVİM!$F$6:$H$101,3,0),'DEVAM TAKİP'!L6+1,\"\")","v":"2023-11-09"},{"$f":"IF(M6<VLOOKUP(TAKVİM!$F$2,TAKVİM!$F$6:$H$101,3,0),'DEVAM TAKİP'!M6+1,\"\")","v":"2023-11-10"},{"$f":"IF(N6<VLOOKUP(TAKVİM!$F$2,TAKVİM!$F$6:$H$101,3,0),'DEVAM TAKİP'!N6+1,\"\")","v":"2023-11-11"},{"$f":"IF(O6<VLOOKUP(TAKVİM!$F$2,TAKVİM!$F$6:$H$101,3,0),'DEVAM TAKİP'!O6+1,\"\")","v":"2023-11-12"},{"$f":"IF(P6<VLOOKUP(TAKVİM!$F$2,TAKVİM!$F$6:$H$101,3,0),'DEVAM TAKİP'!P6+1,\"\")","v":"2023-11-13"},{"$f":"IF(Q6<VLOOKUP(TAKVİM!$F$2,TAKVİM!$F$6:$H$101,3,0),'DEVAM TAKİP'!Q6+1,\"\")","v":"2023-11-14"},{"$f":"IF(R6<VLOOKUP(TAKVİM!$F$2,TAKVİM!$F$6:$H$101,3,0),'DEVAM TAKİP'!R6+1,\"\")","v":"2023-11-15"},{"$f":"IF(S6<VLOOKUP(TAKVİM!$F$2,TAKVİM!$F$6:$H$101,3,0),'DEVAM TAKİP'!S6+1,\"\")","v":"2023-11-16"},{"$f":"IF(T6<VLOOKUP(TAKVİM!$F$2,TAKVİM!$F$6:$H$101,3,0),'DEVAM TAKİP'!T6+1,\"\")","v":"2023-11-17"},{"$f":"IF(U6<VLOOKUP(TAKVİM!$F$2,TAKVİM!$F$6:$H$101,3,0),'DEVAM TAKİP'!U6+1,\"\")","v":"2023-11-18"},{"$f":"IF(V6<VLOOKUP(TAKVİM!$F$2,TAKVİM!$F$6:$H$101,3,0),'DEVAM TAKİP'!V6+1,\"\")","v":"2023-11-19"},{"$f":"IF(W6<VLOOKUP(TAKVİM!$F$2,TAKVİM!$F$6:$H$101,3,0),'DEVAM TAKİP'!W6+1,\"\")","v":"2023-11-20"},{"$f":"IF(X6<VLOOKUP(TAKVİM!$F$2,TAKVİM!$F$6:$H$101,3,0),'DEVAM TAKİP'!X6+1,\"\")","v":"2023-11-21"},{"$f":"IF(Y6<VLOOKUP(TAKVİM!$F$2,TAKVİM!$F$6:$H$101,3,0),'DEVAM TAKİP'!Y6+1,\"\")","v":"2023-11-22"},{"$f":"IF(Z6<VLOOKUP(TAKVİM!$F$2,TAKVİM!$F$6:$H$101,3,0),'DEVAM TAKİP'!Z6+1,\"\")","v":"2023-11-23"},{"$f":"IF(AA6<VLOOKUP(TAKVİM!$F$2,TAKVİM!$F$6:$H$101,3,0),'DEVAM TAKİP'!AA6+1,\"\")","v":"2023-11-24"},{"$f":"IF(AB6<VLOOKUP(TAKVİM!$F$2,TAKVİM!$F$6:$H$101,3,0),'DEVAM TAKİP'!AB6+1,\"\")","v":"2023-11-25"},{"$f":"IF(AC6<VLOOKUP(TAKVİM!$F$2,TAKVİM!$F$6:$H$101,3,0),'DEVAM TAKİP'!AC6+1,\"\")","v":"2023-11-26"},{"$f":"IF(AD6<VLOOKUP(TAKVİM!$F$2,TAKVİM!$F$6:$H$101,3,0),'DEVAM TAKİP'!AD6+1,\"\")","v":"2023-11-27"},{"$f":"IF(AE6<VLOOKUP(TAKVİM!$F$2,TAKVİM!$F$6:$H$101,3,0),'DEVAM TAKİP'!AE6+1,\"\")","v":"2023-11-28"},{"$f":"IF(AF6<VLOOKUP(TAKVİM!$F$2,TAKVİM!$F$6:$H$101,3,0),'DEVAM TAKİP'!AF6+1,\"0\")","v":"2023-11-29"},{"$f":"IF(AG6<VLOOKUP(TAKVİM!$F$2,TAKVİM!$F$6:$H$101,3,0),'DEVAM TAKİP'!AG6+1,\"0\")","v":"2023-11-30"},{"$f":"IF(AH6<VLOOKUP(TAKVİM!$F$2,TAKVİM!$F$6:$H$101,3,0),'DEVAM TAKİP'!AH6+1,\"0\")","v":"0"},{"$f":"IF(AI6<VLOOKUP(TAKVİM!$F$2,TAKVİM!$F$6:$H$101,3,0),'DEVAM TAKİP'!AI6+1,\"0\")","v":"0"},{"$f":"IF(AJ6<VLOOKUP(TAKVİM!$F$2,TAKVİM!$F$6:$H$101,3,0),'DEVAM TAKİP'!AJ6+1,\"0\")","v":"0"},{"$f":"IF(AK6<VLOOKUP(TAKVİM!$F$2,TAKVİM!$F$6:$H$101,3,0),'DEVAM TAKİP'!AK6+1,\"0\")","v":"0"},{"$f":"IF(AL6<VLOOKUP(TAKVİM!$F$2,TAKVİM!$F$6:$H$101,3,0),'DEVAM TAKİP'!AL6+1,\"0\")","v":"0"},{"$f":"IF(AM6<VLOOKUP(TAKVİM!$F$2,TAKVİM!$F$6:$H$101,3,0),'DEVAM TAKİP'!AM6+1,\"0\")","v":"0"},{"$f":"IF(AN6<VLOOKUP(TAKVİM!$F$2,TAKVİM!$F$6:$H$101,3,0),'DEVAM TAKİP'!AN6+1,\"0\")","v":"0"},{"$f":"IF(AO6<VLOOKUP(TAKVİM!$F$2,TAKVİM!$F$6:$H$101,3,0),'DEVAM TAKİP'!AO6+1,\"0\")","v":"0"}]
[null,{"$f":"IFERROR(VLOOKUP(KAYNAK!$Z409,KAYNAK!AF438:AY452,20,FALSE),\"\")","v":""},{"$f":"IFERROR(VLOOKUP(KAYNAK!$Z409,KAYNAK!AF438:AN452,9,FALSE),\"\")","v":""},{"$f":"IFERROR(VLOOKUP(KAYNAK!$Z409,KAYNAK!$AF$438:$AK$452,6,FALSE),\"\")","v":""},{"$f":"IF(WEEKDAY($E$6,2)=1,\"\",IF(WEEKDAY($E$6,2)=2,\"\",IF(WEEKDAY($E$6,2)=3,\"\",IF(WEEKDAY($E$6,2)=4,\"\",IF(WEEKDAY($E$6,2)=5,\"\",IF(WEEKDAY($E$6,2)=6,\"X\",IF(WEEKDAY($E$6,2)=7,\"X\")))))))","v":""},{"$f":"IF(WEEKDAY($F$6,2)=1,\"\",IF(WEEKDAY($F$6,2)=2,\"\",IF(WEEKDAY($F$6,2)=3,\"\",IF(WEEKDAY($F$6,2)=4,\"\",IF(WEEKDAY($F$6,2)=5,\"\",IF(WEEKDAY($F$6,2)=6,\"X\",IF(WEEKDAY($F$6,2)=7,\"X\")))))))","v":""},{"$f":"IF(WEEKDAY(G$6,2)=1,\"\",IF(WEEKDAY(G$6,2)=2,\"\",IF(WEEKDAY(G$6,2)=3,\"\",IF(WEEKDAY(G$6,2)=4,\"\",IF(WEEKDAY(G$6,2)=5,\"\",IF(WEEKDAY(G$6,2)=6,\"X\",IF(WEEKDAY(G$6,2)=7,\"X\")))))))","v":""},{"$f":"IF(WEEKDAY(H$6,2)=1,\"\",IF(WEEKDAY(H$6,2)=2,\"\",IF(WEEKDAY(H$6,2)=3,\"\",IF(WEEKDAY(H$6,2)=4,\"\",IF(WEEKDAY(H$6,2)=5,\"\",IF(WEEKDAY(H$6,2)=6,\"X\",IF(WEEKDAY(H$6,2)=7,\"X\")))))))","v":"X"},"X","","","","","","X","X","","","","","","X","X","","","","","","X","X","","","","","X",{"$f":"IF(WEEKDAY(AJ$6,2)=1,\"\",IF(WEEKDAY(AJ$6,2)=2,\"\",IF(WEEKDAY(AJ$6,2)=3,\"\",IF(WEEKDAY(AJ$6,2)=4,\"\",IF(WEEKDAY(AJ$6,2)=5,\"\",IF(WEEKDAY(AJ$6,2)=6,\"X\",IF(WEEKDAY(AJ$6,2)=7,\"X\")))))))","v":"X"},"X","X","X","X","X","X",{"$f":"IFERROR(VLOOKUP(KAYNAK!$Z409,KAYNAK!AF438:AT452,15,FALSE),\"\")","v":""},"           ",null,null,null,null,null,{"$f":"IF(D7=KAYNAK!$F$16,\"DOĞRU\",IF('DEVAM TAKİP'!D7=KAYNAK!$F$17,\"DOĞRU\",IF('DEVAM TAKİP'!D7=KAYNAK!$F$18,\"DOĞRU\",IF('DEVAM TAKİP'!D7=KAYNAK!$F$21,\"DOĞRU\",IF('DEVAM TAKİP'!D7=KAYNAK!$F$22,\"DOĞRU\",IF(SUM(E7:AI7)<>AQ7,\"HATALI\",\"DOĞRU\"))))))","v":"HATALI"},null,null,null,null,null,null,null,null,null,null,null,null,null,null,null,null,null,null,null,null,null,null,null,null,null,null,null,null,null,{"$f":"IF(WEEKDAY($E$6,2)=1,\"\",IF(WEEKDAY($E$6,2)=2,\"\",IF(WEEKDAY($E$6,2)=3,\"\",IF(WEEKDAY($E$6,2)=4,\"\",IF(WEEKDAY($E$6,2)=5,\"\",IF(WEEKDAY($E$6,2)=6,\"X\",IF(WEEKDAY($E$6,2)=7,\"X\")))))))","v":""},{"$f":"IF(WEEKDAY($F$6,2)=1,\"\",IF(WEEKDAY($F$6,2)=2,\"\",IF(WEEKDAY($F$6,2)=3,\"\",IF(WEEKDAY($F$6,2)=4,\"\",IF(WEEKDAY($F$6,2)=5,\"\",IF(WEEKDAY($F$6,2)=6,\"X\",IF(WEEKDAY($F$6,2)=7,\"X\")))))))","v":""},{"$f":"IF(WEEKDAY(CD$6,2)=1,\"\",IF(WEEKDAY(CD$6,2)=2,\"\",IF(WEEKDAY(CD$6,2)=3,\"\",IF(WEEKDAY(CD$6,2)=4,\"\",IF(WEEKDAY(CD$6,2)=5,\"\",IF(WEEKDAY(CD$6,2)=6,\"X\",IF(WEEKDAY(CD$6,2)=7,\"X\")))))))","v":"X"},{"$f":"IF(WEEKDAY(CE$6,2)=1,\"\",IF(WEEKDAY(CE$6,2)=2,\"\",IF(WEEKDAY(CE$6,2)=3,\"\",IF(WEEKDAY(CE$6,2)=4,\"\",IF(WEEKDAY(CE$6,2)=5,\"\",IF(WEEKDAY(CE$6,2)=6,\"X\",IF(WEEKDAY(CE$6,2)=7,\"X\")))))))","v":"X"},"X","X","X","X","X","X","X","X","X","X","X","X","X","X","X","X","X","X","X","X","X","X","X","X","X","X","X"]
[null,{"$f":"IFERROR(VLOOKUP(KAYNAK!$Z410,KAYNAK!AF439:AY453,20,FALSE),\"\")","v":""},{"$f":"IFERROR(VLOOKUP(KAYNAK!$Z410,KAYNAK!AF439:AN453,9,FALSE),\"\")","v":""},{"$f":"IFERROR(VLOOKUP(KAYNAK!$Z410,KAYNAK!$AF$438:$AK$452,6,FALSE),\"\")","v":""},{"$f":"IF(WEEKDAY($E$6,2)=1,\"\",IF(WEEKDAY($E$6,2)=2,\"\",IF(WEEKDAY($E$6,2)=3,\"\",IF(WEEKDAY($E$6,2)=4,\"\",IF(WEEKDAY($E$6,2)=5,\"\",IF(WEEKDAY($E$6,2)=6,\"X\",IF(WEEKDAY($E$6,2)=7,\"X\")))))))","v":""},{"$f":"IF(WEEKDAY($F$6,2)=1,\"\",IF(WEEKDAY($F$6,2)=2,\"\",IF(WEEKDAY($F$6,2)=3,\"\",IF(WEEKDAY($F$6,2)=4,\"\",IF(WEEKDAY($F$6,2)=5,\"\",IF(WEEKDAY($F$6,2)=6,\"X\",IF(WEEKDAY($F$6,2)=7,\"X\")))))))","v":""},{"$f":"IF(WEEKDAY(G$6,2)=1,\"\",IF(WEEKDAY(G$6,2)=2,\"\",IF(WEEKDAY(G$6,2)=3,\"\",IF(WEEKDAY(G$6,2)=4,\"\",IF(WEEKDAY(G$6,2)=5,\"\",IF(WEEKDAY(G$6,2)=6,\"X\",IF(WEEKDAY(G$6,2)=7,\"X\")))))))","v":""},{"$f":"IF(WEEKDAY(H$6,2)=1,\"\",IF(WEEKDAY(H$6,2)=2,\"\",IF(WEEKDAY(H$6,2)=3,\"\",IF(WEEKDAY(H$6,2)=4,\"\",IF(WEEKDAY(H$6,2)=5,\"\",IF(WEEKDAY(H$6,2)=6,\"X\",IF(WEEKDAY(H$6,2)=7,\"X\")))))))","v":"X"},"X","","","","","","X","X","","","","","","X","X","","","","","","X","X","","","","","X",null,null,null,null,null,null,null,{"$f":"IFERROR(VLOOKUP(KAYNAK!$Z410,KAYNAK!AF439:AT453,15,FALSE),\"\")","v":""},null,null,null,null,null,null,{"$f":"IF(D8=KAYNAK!$F$16,\"DOĞRU\",IF('DEVAM TAKİP'!D8=KAYNAK!$F$17,\"DOĞRU\",IF('DEVAM TAKİP'!D8=KAYNAK!$F$18,\"DOĞRU\",IF('DEVAM TAKİP'!D8=KAYNAK!$F$21,\"DOĞRU\",IF('DEVAM TAKİP'!D8=KAYNAK!$F$22,\"DOĞRU\",IF(SUM(E8:AI8)<>AQ8,\"HATALI\",\"DOĞRU\"))))))","v":"HATALI"},null,null,null,null,null,null,null,null,null,null,null,null,null,null,null,null,null,null,null,null,null,null,null,null,null,null,null,null,null,{"$f":"IF(WEEKDAY($E$6,2)=1,\"\",IF(WEEKDAY($E$6,2)=2,\"\",IF(WEEKDAY($E$6,2)=3,\"\",IF(WEEKDAY($E$6,2)=4,\"\",IF(WEEKDAY($E$6,2)=5,\"\",IF(WEEKDAY($E$6,2)=6,\"X\",IF(WEEKDAY($E$6,2)=7,\"X\")))))))","v":""},{"$f":"IF(WEEKDAY($F$6,2)=1,\"\",IF(WEEKDAY($F$6,2)=2,\"\",IF(WEEKDAY($F$6,2)=3,\"\",IF(WEEKDAY($F$6,2)=4,\"\",IF(WEEKDAY($F$6,2)=5,\"\",IF(WEEKDAY($F$6,2)=6,\"X\",IF(WEEKDAY($F$6,2)=7,\"X\")))))))","v":""},{"$f":"IF(WEEKDAY(CD$6,2)=1,\"\",IF(WEEKDAY(CD$6,2)=2,\"\",IF(WEEKDAY(CD$6,2)=3,\"\",IF(WEEKDAY(CD$6,2)=4,\"\",IF(WEEKDAY(CD$6,2)=5,\"\",IF(WEEKDAY(CD$6,2)=6,\"X\",IF(WEEKDAY(CD$6,2)=7,\"X\")))))))","v":"X"},"X","X","X","X","X","X","X","X","X","X","X","X","X","X","X","X","X","X","X","X","X","X","X","X","X","X","X","X"]
[null,{"$f":"IFERROR(VLOOKUP(KAYNAK!$Z411,KAYNAK!AF440:AY454,20,FALSE),\"\")","v":""},{"$f":"IFERROR(VLOOKUP(KAYNAK!$Z411,KAYNAK!AF440:AN454,9,FALSE),\"\")","v":""},{"$f":"IFERROR(VLOOKUP(KAYNAK!$Z411,KAYNAK!$AF$438:$AK$452,6,FALSE),\"\")","v":""},"","","","X",{"$f":"IF(WEEKDAY(I$6,2)=1,\"\",IF(WEEKDAY(I$6,2)=2,\"\",IF(WEEKDAY(I$6,2)=3,\"\",IF(WEEKDAY(I$6,2)=4,\"\",IF(WEEKDAY(I$6,2)=5,\"\",IF(WEEKDAY(I$6,2)=6,\"X\",IF(WEEKDAY(I$6,2)=7,\"X\")))))))","v":"X"},"","","","","","X","X","","","","","","X","X","","","","","","X","X","","","","","X",null,null,null,null,null,null,null,{"$f":"IFERROR(VLOOKUP(KAYNAK!$Z411,KAYNAK!AF440:AT454,15,FALSE),\"\")","v":""},null,null,null,null,null,null,{"$f":"IF(D9=KAYNAK!$F$16,\"DOĞRU\",IF('DEVAM TAKİP'!D9=KAYNAK!$F$17,\"DOĞRU\",IF('DEVAM TAKİP'!D9=KAYNAK!$F$18,\"DOĞRU\",IF('DEVAM TAKİP'!D9=KAYNAK!$F$21,\"DOĞRU\",IF('DEVAM TAKİP'!D9=KAYNAK!$F$22,\"DOĞRU\",IF(SUM(E9:AI9)<>AQ9,\"HATALI\",\"DOĞRU\"))))))","v":"HATALI"},null,null,null,null,null,null,null,null,null,null,null,null,null,null,null,null,null,null,null,null,"İ/R",null,null,null,null,null,null,null,null,"","","X","X",{"$f":"IF(WEEKDAY(CF$6,2)=1,\"\",IF(WEEKDAY(CF$6,2)=2,\"\",IF(WEEKDAY(CF$6,2)=3,\"\",IF(WEEKDAY(CF$6,2)=4,\"\",IF(WEEKDAY(CF$6,2)=5,\"\",IF(WEEKDAY(CF$6,2)=6,\"X\",IF(WEEKDAY(CF$6,2)=7,\"X\")))))))","v":"X"},"X","X","X","X","X","X","X","X","X","X","X","X","X","X","X","X","X","X","X","X","X","X","X","X","X","X"]
[null,{"$f":"IFERROR(VLOOKUP(KAYNAK!$Z412,KAYNAK!AF441:AY455,20,FALSE),\"\")","v":""},{"$f":"IFERROR(VLOOKUP(KAYNAK!$Z412,KAYNAK!AF441:AN455,9,FALSE),\"\")","v":""},{"$f":"IFERROR(VLOOKUP(KAYNAK!$Z412,KAYNAK!$AF$438:$AK$452,6,FALSE),\"\")","v":""},"","","","X","X","","","","","","X","X","","","","","","X","X","","","","","","X","X","","","","","X",null,null,null,null,null,null,null,{"$f":"IFERROR(VLOOKUP(KAYNAK!$Z412,KAYNAK!AF441:AT455,15,FALSE),\"\")","v":""},null,null,null,null,null,null,{"$f":"IF(D10=KAYNAK!$F$16,\"DOĞRU\",IF('DEVAM TAKİP'!D10=KAYNAK!$F$17,\"DOĞRU\",IF('DEVAM TAKİP'!D10=KAYNAK!$F$18,\"DOĞRU\",IF('DEVAM TAKİP'!D10=KAYNAK!$F$21,\"DOĞRU\",IF('DEVAM TAKİP'!D10=KAYNAK!$F$22,\"DOĞRU\",IF(SUM(E10:AI10)<>AQ10,\"HATALI\",\"DOĞRU\"))))))","v":"HATALI"},null,null,null,null,null,null,null,null,null,null,null,null,null,null,null,null,null,null,null,null,"X",null,null,null,null,null,null,null,null,"","","X","X","X","X","X","X","X","X","X","X","X","X","X","X","X","X","X","X","X","X","X","X","X","X","X","X","X","X","X"]
[null,{"$f":"IFERROR(VLOOKUP(KAYNAK!$Z413,KAYNAK!AF442:AY456,20,FALSE),\"\")","v":""},{"$f":"IFERROR(VLOOKUP(KAYNAK!$Z413,KAYNAK!AF442:AN456,9,FALSE),\"\")","v":""},{"$f":"IFERROR(VLOOKUP(KAYNAK!$Z413,KAYNAK!$AF$438:$AK$452,6,FALSE),\"\")","v":""},"","","","X","X",null,"","","","","X","X","","","","","","X","X","","","","","","X","X","","","","","X",null,null,null,null,null,null,null,{"$f":"IFERROR(VLOOKUP(KAYNAK!$Z413,KAYNAK!AF442:AT456,15,FALSE),\"\")","v":""},null,null,null,null,null,null,{"$f":"IF(D11=KAYNAK!$F$16,\"DOĞRU\",IF('DEVAM TAKİP'!D11=KAYNAK!$F$17,\"DOĞRU\",IF('DEVAM TAKİP'!D11=KAYNAK!$F$18,\"DOĞRU\",IF('DEVAM TAKİP'!D11=KAYNAK!$F$21,\"DOĞRU\",IF('DEVAM TAKİP'!D11=KAYNAK!$F$22,\"DOĞRU\",IF(SUM(E11:AI11)<>AQ11,\"HATALI\",\"DOĞRU\"))))))","v":"HATALI"},null,null,null,null,null,null,null,null,null,null,null,null,null,null,null,null,null,null,null,null,1,null,null,null,null,null,null,null,null,"","","X","X","X",null,"X","X","X","X","X","X","X","X","X","X","X","X","X","X","X","X","X","X","X","X","X","X","X","X","X"]
[null,{"$f":"IFERROR(VLOOKUP(KAYNAK!$Z414,KAYNAK!AF443:AY457,20,FALSE),\"\")","v":""},{"$f":"IFERROR(VLOOKUP(KAYNAK!$Z414,KAYNAK!AF443:AN457,9,FALSE),\"\")","v":""},{"$f":"IFERROR(VLOOKUP(KAYNAK!$Z414,KAYNAK!$AF$438:$AK$452,6,FALSE),\"\")","v":""},"","","","X","X","","","","","","X","X","","","","","","X","X","","","","","","X","X","","","","","X",null,null,null,null,null,null,null,{"$f":"IFERROR(VLOOKUP(KAYNAK!$Z414,KAYNAK!AF443:AT457,15,FALSE),\"\")","v":""},null,null,null,null,null,null,{"$f":"IF(D12=KAYNAK!$F$16,\"DOĞRU\",IF('DEVAM TAKİP'!D12=KAYNAK!$F$17,\"DOĞRU\",IF('DEVAM TAKİP'!D12=KAYNAK!$F$18,\"DOĞRU\",IF('DEVAM TAKİP'!D12=KAYNAK!$F$21,\"DOĞRU\",IF('DEVAM TAKİP'!D12=KAYNAK!$F$22,\"DOĞRU\",IF(SUM(E12:AI12)<>AQ12,\"HATALI\",\"DOĞRU\"))))))","v":"HATALI"},null,null,null,null,null,null,null,null,null,null,null,null,null,null,null,null,null,null,null,null,2,null,null,null,null,null,null,null,null,"","","X","X","X","X","X","X","X","X","X","X","X","X","X","X","X","X","X","X","X","X","X","X","X","X","X","X","X","X","X"]
[null,{"$f":"IFERROR(VLOOKUP(KAYNAK!$Z415,KAYNAK!AF444:AY458,20,FALSE),\"\")","v":""},{"$f":"IFERROR(VLOOKUP(KAYNAK!$Z415,KAYNAK!AF444:AN458,9,FALSE),\"\")","v":""},{"$f":"IFERROR(VLOOKUP(KAYNAK!$Z415,KAYNAK!$AF$438:$AK$452,6,FALSE),\"\")","v":""},"","","","X","X","","","","","","X","X","","","","","","X","X","","","","","","X","X","","","","","X",null,null,null,null,null,null,null,{"$f":"IFERROR(VLOOKUP(KAYNAK!$Z415,KAYNAK!AF444:AT458,15,FALSE),\"\")","v":""},null,null,null,null,null,null,{"$f":"IF(D13=KAYNAK!$F$16,\"DOĞRU\",IF('DEVAM TAKİP'!D13=KAYNAK!$F$17,\"DOĞRU\",IF('DEVAM TAKİP'!D13=KAYNAK!$F$18,\"DOĞRU\",IF('DEVAM TAKİP'!D13=KAYNAK!$F$21,\"DOĞRU\",IF('DEVAM TAKİP'!D13=KAYNAK!$F$22,\"DOĞRU\",IF(SUM(E13:AI13)<>AQ13,\"HATALI\",\"DOĞRU\"))))))","v":"HATALI"},null,null,null,null,null,null,null,null,null,null,null,null,null,null,null,null,null,null,null,null,3,null,null,null,null,null,null,null,null,"","","X","X","X","X","X","X","X","X","X","X","X","X","X","X","X","X","X","X","X","X","X","X","X","X","X","X","X","X","X"]
[null,{"$f":"IFERROR(VLOOKUP(KAYNAK!$Z416,KAYNAK!AF445:AY459,20,FALSE),\"\")","v":""},{"$f":"IFERROR(VLOOKUP(KAYNAK!$Z416,KAYNAK!AF445:AN459,9,FALSE),\"\")","v":""},{"$f":"IFERROR(VLOOKUP(KAYNAK!$Z416,KAYNAK!$AF$438:$AK$452,6,FALSE),\"\")","v":""},"","","","X","X","","","","","","X","X","","","","","","X","X","","","","","","X","X","","","","","X",null,null,null,null,null,null,null,{"$f":"IFERROR(VLOOKUP(KAYNAK!$Z416,KAYNAK!AF445:AT459,15,FALSE),\"\")","v":""},null,null,null,null,null,null,{"$f":"IF(D14=KAYNAK!$F$16,\"DOĞRU\",IF('DEVAM TAKİP'!D14=KAYNAK!$F$17,\"DOĞRU\",IF('DEVAM TAKİP'!D14=KAYNAK!$F$18,\"DOĞRU\",IF('DEVAM TAKİP'!D14=KAYNAK!$F$21,\"DOĞRU\",IF('DEVAM TAKİP'!D14=KAYNAK!$F$22,\"DOĞRU\",IF(SUM(E14:AI14)<>AQ14,\"HATALI\",\"DOĞRU\"))))))","v":"HATALI"},null,null,null,null,null,null,null,null,null,null,null,null,null,null,null,null,null,null,null,null,4,null,null,null,null,null,null,null,null,"","","X","X","X","X","X","X","X","X","X","X","X","X","X","X","X","X","X","X","X","X","X","X","X","X","X","X","X","X","X"]
[null,{"$f":"IFERROR(VLOOKUP(KAYNAK!$Z417,KAYNAK!AF446:AY460,20,FALSE),\"\")","v":""},{"$f":"IFERROR(VLOOKUP(KAYNAK!$Z417,KAYNAK!AF446:AN460,9,FALSE),\"\")","v":""},{"$f":"IFERROR(VLOOKUP(KAYNAK!$Z417,KAYNAK!$AF$438:$AK$452,6,FALSE),\"\")","v":""},"","","","X","X","","","","","","X","X","","","","","","X","X","","","","","","X","X","","","","","X",null,null,null,null,null,null,null,{"$f":"IFERROR(VLOOKUP(KAYNAK!$Z417,KAYNAK!AF446:AT460,15,FALSE),\"\")","v":""},null,null,null,null,null,null,{"$f":"IF(D15=KAYNAK!$F$16,\"DOĞRU\",IF('DEVAM TAKİP'!D15=KAYNAK!$F$17,\"DOĞRU\",IF('DEVAM TAKİP'!D15=KAYNAK!$F$18,\"DOĞRU\",IF('DEVAM TAKİP'!D15=KAYNAK!$F$21,\"DOĞRU\",IF('DEVAM TAKİP'!D15=KAYNAK!$F$22,\"DOĞRU\",IF(SUM(E15:AI15)<>AQ15,\"HATALI\",\"DOĞRU\"))))))","v":"HATALI"},null,null,null,null,null,null,null,null,null,null,null,null,null,null,null,null,null,null,null,null,5,null,null,null,null,null,null,null,null,"","","X","X","X","X","X","X","X","X","X","X","X","X","X","X","X","X","X","X","X","X","X","X","X","X","X","X","X","X","X"]
[null,{"$f":"IFERROR(VLOOKUP(KAYNAK!$Z418,KAYNAK!AF447:AY461,20,FALSE),\"\")","v":""},{"$f":"IFERROR(VLOOKUP(KAYNAK!$Z418,KAYNAK!AF447:AN461,9,FALSE),\"\")","v":""},{"$f":"IFERROR(VLOOKUP(KAYNAK!$Z418,KAYNAK!$AF$438:$AK$452,6,FALSE),\"\")","v":""},"x",{"$f":"IF(WEEKDAY($F$6,2)=1,\"\",IF(WEEKDAY($F$6,2)=2,\"\",IF(WEEKDAY($F$6,2)=3,\"\",IF(WEEKDAY($F$6,2)=4,\"\",IF(WEEKDAY($F$6,2)=5,\"\",IF(WEEKDAY($F$6,2)=6,\"X\",IF(WEEKDAY($F$6,2)=7,\"X\")))))))","v":""},{"$f":"IF(WEEKDAY(G$6,2)=1,\"\",IF(WEEKDAY(G$6,2)=2,\"\",IF(WEEKDAY(G$6,2)=3,\"\",IF(WEEKDAY(G$6,2)=4,\"\",IF(WEEKDAY(G$6,2)=5,\"\",IF(WEEKDAY(G$6,2)=6,\"X\",IF(WEEKDAY(G$6,2)=7,\"X\")))))))","v":""},{"$f":"IF(WEEKDAY(H$6,2)=1,\"\",IF(WEEKDAY(H$6,2)=2,\"\",IF(WEEKDAY(H$6,2)=3,\"\",IF(WEEKDAY(H$6,2)=4,\"\",IF(WEEKDAY(H$6,2)=5,\"\",IF(WEEKDAY(H$6,2)=6,\"X\",IF(WEEKDAY(H$6,2)=7,\"X\")))))))","v":"X"},"X","","","",{"$f":"IF(WEEKDAY(M$6,2)=1,\"\",IF(WEEKDAY(M$6,2)=2,\"\",IF(WEEKDAY(M$6,2)=3,\"\",IF(WEEKDAY(M$6,2)=4,\"\",IF(WEEKDAY(M$6,2)=5,\"\",IF(WEEKDAY(M$6,2)=6,\"X\",IF(WEEKDAY(M$6,2)=7,\"X\")))))))","v":""},"","X","X","","","","","","X","X","","","","","","X","X","","","","","X",null,null,null,null,null,null,null,{"$f":"IFERROR(VLOOKUP(KAYNAK!$Z418,KAYNAK!AF447:AT461,15,FALSE),\"\")","v":""},null,null,null,null,null,null,{"$f":"IF(D16=KAYNAK!$F$16,\"DOĞRU\",IF('DEVAM TAKİP'!D16=KAYNAK!$F$17,\"DOĞRU\",IF('DEVAM TAKİP'!D16=KAYNAK!$F$18,\"DOĞRU\",IF('DEVAM TAKİP'!D16=KAYNAK!$F$21,\"DOĞRU\",IF('DEVAM TAKİP'!D16=KAYNAK!$F$22,\"DOĞRU\",IF(SUM(E16:AI16)<>AQ16,\"HATALI\",\"DOĞRU\"))))))","v":"HATALI"},null,null,null,null,null,null,null,null,null,null,null,null,null,null,null,null,null,null,null,null,6,null,null,null,null,null,null,null,null,"","","X","X","X","X","X","X",{"$f":"IF(WEEKDAY(CJ$6,2)=1,\"\",IF(WEEKDAY(CJ$6,2)=2,\"\",IF(WEEKDAY(CJ$6,2)=3,\"\",IF(WEEKDAY(CJ$6,2)=4,\"\",IF(WEEKDAY(CJ$6,2)=5,\"\",IF(WEEKDAY(CJ$6,2)=6,\"X\",IF(WEEKDAY(CJ$6,2)=7,\"X\")))))))","v":"X"},"X","X","X","X","X","X","X","X","X","X","X","X","X","X","X","X","X","X","X","X","X","X"]
[null,{"$f":"IFERROR(VLOOKUP(KAYNAK!$Z419,KAYNAK!AF448:AY462,20,FALSE),\"\")","v":""},{"$f":"IFERROR(VLOOKUP(KAYNAK!$Z419,KAYNAK!AF448:AN462,9,FALSE),\"\")","v":""},{"$f":"IFERROR(VLOOKUP(KAYNAK!$Z419,KAYNAK!$AF$438:$AK$452,6,FALSE),\"\")","v":""},{"$f":"IF(WEEKDAY($E$6,2)=1,\"\",IF(WEEKDAY($E$6,2)=2,\"\",IF(WEEKDAY($E$6,2)=3,\"\",IF(WEEKDAY($E$6,2)=4,\"\",IF(WEEKDAY($E$6,2)=5,\"\",IF(WEEKDAY($E$6,2)=6,\"X\",IF(WEEKDAY($E$6,2)=7,\"X\")))))))","v":""},{"$f":"IF(WEEKDAY($F$6,2)=1,\"\",IF(WEEKDAY($F$6,2)=2,\"\",IF(WEEKDAY($F$6,2)=3,\"\",IF(WEEKDAY($F$6,2)=4,\"\",IF(WEEKDAY($F$6,2)=5,\"\",IF(WEEKDAY($F$6,2)=6,\"X\",IF(WEEKDAY($F$6,2)=7,\"X\")))))))","v":""},{"$f":"IF(WEEKDAY(G$6,2)=1,\"\",IF(WEEKDAY(G$6,2)=2,\"\",IF(WEEKDAY(G$6,2)=3,\"\",IF(WEEKDAY(G$6,2)=4,\"\",IF(WEEKDAY(G$6,2)=5,\"\",IF(WEEKDAY(G$6,2)=6,\"X\",IF(WEEKDAY(G$6,2)=7,\"X\")))))))","v":""},"X","X","","","","","","X","X","","","","","","X",{"$f":"IF(WEEKDAY(W$6,2)=1,\"\",IF(WEEKDAY(W$6,2)=2,\"\",IF(WEEKDAY(W$6,2)=3,\"\",IF(WEEKDAY(W$6,2)=4,\"\",IF(WEEKDAY(W$6,2)=5,\"\",IF(WEEKDAY(W$6,2)=6,\"X\",IF(WEEKDAY(W$6,2)=7,\"X\")))))))","v":"X"},"","","","","","X","X","","","","","X",null,null,null,null,null,null,null,{"$f":"IFERROR(VLOOKUP(KAYNAK!$Z419,KAYNAK!AF448:AT462,15,FALSE),\"\")","v":""},null,null,null,null,null,null,{"$f":"IF(D17=KAYNAK!$F$16,\"DOĞRU\",IF('DEVAM TAKİP'!D17=KAYNAK!$F$17,\"DOĞRU\",IF('DEVAM TAKİP'!D17=KAYNAK!$F$18,\"DOĞRU\",IF('DEVAM TAKİP'!D17=KAYNAK!$F$21,\"DOĞRU\",IF('DEVAM TAKİP'!D17=KAYNAK!$F$22,\"DOĞRU\",IF(SUM(E17:AI17)<>AQ17,\"HATALI\",\"DOĞRU\"))))))","v":"HATALI"},null,null,null,null,null,null,null,null,null,null,null,null,null,null,null,null,null,null,null,null,7,null,null,null,null,null,null,null,null,"","","X","X","X","X","X","X","X","X","X","X","X","X","X","X","X","X","X","X","X","X","X","X","X","X","X","X","X","X","X"]
[null,{"$f":"IFERROR(VLOOKUP(KAYNAK!$Z420,KAYNAK!AF449:AY463,20,FALSE),\"\")","v":""},{"$f":"IFERROR(VLOOKUP(KAYNAK!$Z420,KAYNAK!AF449:AN463,9,FALSE),\"\")","v":""},{"$f":"IFERROR(VLOOKUP(KAYNAK!$Z420,KAYNAK!$AF$438:$AK$452,6,FALSE),\"\")","v":""},"","","","X","X","","","","","","X","X","","","","","","X","X","","","","","","X","X","","","","","X",null,null,null,null,null,null,null,{"$f":"IFERROR(VLOOKUP(KAYNAK!$Z420,KAYNAK!AF449:AT463,15,FALSE),\"\")","v":""},null,null,null,null,null,null,{"$f":"IF(D18=KAYNAK!$F$16,\"DOĞRU\",IF('DEVAM TAKİP'!D18=KAYNAK!$F$17,\"DOĞRU\",IF('DEVAM TAKİP'!D18=KAYNAK!$F$18,\"DOĞRU\",IF('DEVAM TAKİP'!D18=KAYNAK!$F$21,\"DOĞRU\",IF('DEVAM TAKİP'!D18=KAYNAK!$F$22,\"DOĞRU\",IF(SUM(E18:AI18)<>AQ18,\"HATALI\",\"DOĞRU\"))))))","v":"HATALI"},null,null,null,null,null,null,null,null,null,null,null,null,null,null,null,null,null,null,null,null,8,null,null,null,null,null,null,null,null,"","","X","X","X","X","X","X","X","X","X","X","X","X","X","X","X","X","X","X","X","X","X","X","X","X","X","X","X","X","X"]
[null,{"$f":"IFERROR(VLOOKUP(KAYNAK!$Z421,KAYNAK!AF450:AY464,20,FALSE),\"\")","v":""},{"$f":"IFERROR(VLOOKUP(KAYNAK!$Z421,KAYNAK!AF450:AN464,9,FALSE),\"\")","v":""},{"$f":"IFERROR(VLOOKUP(KAYNAK!$Z421,KAYNAK!$AF$438:$AK$452,6,FALSE),\"\")","v":""},"","","","X","X","","","","","","X","X","","","","","","X","X","","","","","","X","X","","","","","X",null,null,null,null,null,null,null,{"$f":"IFERROR(VLOOKUP(KAYNAK!$Z421,KAYNAK!AF450:AT464,15,FALSE),\"\")","v":""},null,null,null,null,null,null,{"$f":"IF(D19=KAYNAK!$F$16,\"DOĞRU\",IF('DEVAM TAKİP'!D19=KAYNAK!$F$17,\"DOĞRU\",IF('DEVAM TAKİP'!D19=KAYNAK!$F$18,\"DOĞRU\",IF('DEVAM TAKİP'!D19=KAYNAK!$F$21,\"DOĞRU\",IF('DEVAM TAKİP'!D19=KAYNAK!$F$22,\"DOĞRU\",IF(SUM(E19:AI19)<>AQ19,\"HATALI\",\"DOĞRU\"))))))","v":"HATALI"},null,null,null,null,null,null,null,null,null,null,null,null,null,null,null,null,null,null,null,null,9,null,null,null,null,null,null,null,null,"","","X","X","X","X","X","X","X","X","X","X","X","X","X","X","X","X","X","X","X","X","X","X","X","X","X","X","X","X","X"]
[null,{"$f":"IFERROR(VLOOKUP(KAYNAK!$Z422,KAYNAK!AF451:AY465,20,FALSE),\"\")","v":""},{"$f":"IFERROR(VLOOKUP(KAYNAK!$Z422,KAYNAK!AF451:AN465,9,FALSE),\"\")","v":""},{"$f":"IFERROR(VLOOKUP(KAYNAK!$Z422,KAYNAK!$AF$438:$AK$452,6,FALSE),\"\")","v":""},"","","","X","X","","","","","","X","X","","","","","","X","X","","","","","","X","X","","","","","X",null,null,null,null,null,null,null,{"$f":"IFERROR(VLOOKUP(KAYNAK!$Z422,KAYNAK!AF451:AT465,15,FALSE),\"\")","v":""},null,null,null,null,null,null,{"$f":"IF(D20=KAYNAK!$F$16,\"DOĞRU\",IF('DEVAM TAKİP'!D20=KAYNAK!$F$17,\"DOĞRU\",IF('DEVAM TAKİP'!D20=KAYNAK!$F$18,\"DOĞRU\",IF('DEVAM TAKİP'!D20=KAYNAK!$F$21,\"DOĞRU\",IF('DEVAM TAKİP'!D20=KAYNAK!$F$22,\"DOĞRU\",IF(SUM(E20:AI20)<>AQ20,\"HATALI\",\"DOĞRU\"))))))","v":"HATALI"},null,null,null,null,null,null,null,null,null,null,null,null,null,null,null,null,null,null,null,null,10,null,null,null,null,null,null,null,null,"","","X","X","X","X","X","X","X","X","X","X","X","X","X","X","X","X","X","X","X","X","X","X","X","X","X","X","X","X","X"]
[null,{"$f":"IFERROR(VLOOKUP(KAYNAK!$Z423,KAYNAK!AF452:AY466,20,FALSE),\"\")","v":""},{"$f":"IFERROR(VLOOKUP(KAYNAK!$Z423,KAYNAK!AF452:AN466,9,FALSE),\"\")","v":""},{"$f":"IFERROR(VLOOKUP(KAYNAK!$Z423,KAYNAK!$AF$438:$AK$452,6,FALSE),\"\")","v":""},"","","","X","X","","","","","","X","X","","","","","","X","X","","","","","","X","X","","","","","X",null,null,null,null,null,null,null,{"$f":"IFERROR(VLOOKUP(KAYNAK!$Z423,KAYNAK!AF452:AT466,15,FALSE),\"\")","v":""},null,null,null,null,null,null,{"$f":"IF(D21=KAYNAK!$F$16,\"DOĞRU\",IF('DEVAM TAKİP'!D21=KAYNAK!$F$17,\"DOĞRU\",IF('DEVAM TAKİP'!D21=KAYNAK!$F$18,\"DOĞRU\",IF('DEVAM TAKİP'!D21=KAYNAK!$F$21,\"DOĞRU\",IF('DEVAM TAKİP'!D21=KAYNAK!$F$22,\"DOĞRU\",IF(SUM(E21:AI21)<>AQ21,\"HATALI\",\"DOĞRU\"))))))","v":"HATALI"},null,null,null,null,null,null,null,null,null,null,null,null,null,null,null,null,null,null,null,null,null,null,null,null,null,null,null,null,null,"","","X","X","X","X","X","X","X","X","X","X","X","X","X","X","X","X","X","X","X","X","X","X","X","X","X","X","X","X","X"]
[null,{"$f":"CONCATENATE(B2,\" \",\"ÇOCUK KULÜBÜ'NDE\",\" \",\"GÖREVLİ ÖĞRETMEN / USTA ÖĞRETİCİLERCE\",\" \",AR3,\" \",\"YILI\",\" \",AR2,\" \",\"DÖNEMİNDE\",\"TOPLAM\",\" \",AQ22,\" \",\"SAAT ETKİNLİK GERÇEKLEŞTİRİLMİŞTİR.\")","v":"KÖYCEĞİZ ANAOKULU ÇOCUK KULÜBÜ'NDE GÖREVLİ ÖĞRETMEN / USTA ÖĞRETİCİLERCE 2023 YILI KASIM DÖNEMİNDETOPLAM 0 SAAT ETKİNLİK GERÇEKLEŞTİRİLMİŞTİR."},null,null,null,null,null,null,null,null,null,null,null,null,null,null,null,null,null,null,null,null,null,null,null,null,null,"TOPLAM",null,null,null,null,null,null,null,null,null,null,null,null,null,null,{"$f":"SUM(AQ7:AQ21)","v":0}]
[]
[null,null,{"$f":"IF(KAYNAK!H101=\"0\",\" \",KAYNAK!H101)","v":" "},null,null,null,null,null,null,null,null,null,null,null,null,null,null,null,null,null,null,null,null,null,null,null,null,null,null,{"$f":"IF(KAYNAK!H102=\"0\",\" \",KAYNAK!H102)","v":" "}]
[null,null,{"$f":"IF(KAYNAK!H101=\"0\",\" \",KAYNAK!I101)","v":" "},null,null,null,null,null,null,null,null,null,null,null,null,null,null,null,null,null,null,null,null,null,null,null,null,null,null,{"$f":"IF(KAYNAK!H102=\"0\",\" \",KAYNAK!I102)","v":" "}]
[]
[]
[null,null,null,"İZİNLİ / RAPORLU","İ/R",null,null,null,"TATİL GÜNLERİ İÇİN",null,null,null,null,null,"X",null,null,null,null,"GİRİLEN SAAT İÇİN",null,null,null,null,"SAAT SEÇİNİZ"]

{"sheet":"KAYNAK","index":8,"n_rows":995,"n_cols":69,"rows_kept":995,"cut":false,"hidden":true,"merged":[[436,45,436,46],[529,22,529,31],[304,34,305,34],[304,39,305,39],[304,40,305,40],[304,41,305,41],[306,21,306,23],[304,28,305,28],[304,29,305,29],[304,30,305,30],[304,31,305,31],[304,32,305,33],[304,21,305,23],[304,24,305,24],[304,25,305,25],[304,26,305,26],[71,2,71,3],[0,8,2,14],[50,4,50,5],[67,0,67,1],[69,0,69,1],[70,2,70,3],[57,0,57,1],[4,9,4,11],[15,0,15,2],[20,0,20,2],[24,0,24,2],[41,6,41,13],[475,1,475,12],[435,26,435,30],[436,28,436,29],[72,7,72,11],[73,7,73,9],[73,11,73,13],[319,21,320,28],[304,27,305,27],[276,7,276,14],[258,9,258,12],[332,1,332,5],[476,43,476,44],[477,31,477,33],[477,43,477,44],[478,31,478,33],[478,43,478,44],[476,31,476,33],[484,31,484,33],[484,43,484,44],[482,31,482,33],[479,43,479,44],[480,31,480,33],[480,43,480,44],[481,31,481,33],[481,43,481,44],[479,31,479,33],[5,42,5,44],[488,43,488,44],[489,31,489,33],[489,43,489,44],[490,31,490,33],[490,43,490,44],[488,31,488,33],[485,43,485,44],[486,31,486,33],[486,43,486,44],[487,31,487,33],[487,43,487,44],[485,31,485,33],[482,43,482,44],[483,31,483,33],[483,43,483,44]]}
[null,null,0,0,null,null,"SEÇİLİ AY",null,"BU SAYFADA DEĞİŞİKLİK YAPMAYINIZ.",null,null,null,null,null,null,null,null,null,null,null,null,null,null,null,null,null,null,0]
[null,"Evet",1,1,null,"EYLÜL",{"$f":"ANASAYFA!N6","v":"KASIM"},null,null,null,null,null,null,null,null,null,null,null,null,null,null,null,null,null,null,null,null,1]
[null,"Hayır",2,2,null,"EKİM",{"$f":"CONCATENATE(ANASAYFA!N5)","v":"2023"},null,null,null,null,null,null,null,null,null,null,null,null,null,null,null,null,null,null,null,null,2]
[null,null,3,3,null,"KASIM",null,null,null,null,null,null,null,null,null,null,null,null,null,null,null,null,null,null,null,null,null,3]
[{"$f":"IF(ANASAYFA!J6:K6=KAYNAK!B2,4,IF(ANASAYFA!J6:K6=KAYNAK!B3,6))","v":4},false,4,4,null,"ARALIK","SEÇİLİ AY İŞ GÜNÜ",null,null,"Öğretmen Listesi ayrı",null,null,null,null,null,null,null,null,null,null,null,null,null,null,null,null,null,4]
[null,null,5,5,null,"OCAK",{"$f":"ANASAYFA!O6","v":0},null,null,null,null,null,null,null,null,null,null,null,null,null,null,null,null,null,null,null,null,5,null,null,null,null,null,null,null,null,null,null,null,null,null,null,"ghs-yhs ders saatleri"]
[null,null,6,6,null,"ŞUBAT",null,null,null,{"$f":"IF(ISBLANK(ANASAYFA!C15:F15),\" \",ANASAYFA!C15:F15)","v":" "}," "," "," ",{"$f":"IF(ISBLANK(ANASAYFA!G15:H15),\" \",ANASAYFA!G15:H15)","v":" "}," ",{"$f":"IF(ISBLANK(ANASAYFA!I15:J15),\" \",ANASAYFA!I15:J15)","v":" "}," ",{"$f":"IF(ISBLANK(ANASAYFA!K15),\" \",ANASAYFA!K15)","v":" "},null,{"$f":"TEXT(J7,0)","v":" "},null,null,null,{"$f":"TEXT(N7,0)","v":" "},null,{"$f":"TEXT(P7,0)","v":" "},null,6,null,null,null,{"$f":"CONCATENATE(T7)","v":" "},null,null,null,null,{"$f":"X7","v":" "},null,null,{"$f":"Z7","v":" "},null,null,null,{"$f":"IF(AK7=$F$16,(ANASAYFA!K15+ANASAYFA!L15),IF(AK7=$F$17,ANASAYFA!K15,IF(AK7=$F$18,ANASAYFA!K15,IF(KAYNAK!AK7=KAYNAK!$F$21,ANASAYFA!K15+ANASAYFA!L15,IF(KAYNAK!AK7=KAYNAK!$F$22,ANASAYFA!K15+ANASAYFA!L15,0)))))","v":0}]
[null,null,7,7,null,"MART","AYLIK TOPLAM BÜTÇE",null,null,{"$f":"IF(ISBLANK(ANASAYFA!C16:F16),\" \",ANASAYFA!C16:F16)","v":" "}," "," "," ",{"$f":"IF(ISBLANK(ANASAYFA!G16:H16),\" \",ANASAYFA!G16:H16)","v":" "}," ",{"$f":"IF(ISBLANK(ANASAYFA!I16:J16),\" \",ANASAYFA!I16:J16)","v":" "}," ",{"$f":"IF(ISBLANK(ANASAYFA!K16),\" \",ANASAYFA!K16)","v":" "},null,{"$f":"TEXT(J8,0)","v":" "},null,null,null,{"$f":"TEXT(N8,0)","v":" "},null,{"$f":"TEXT(P8,0)","v":" "},null,7,null,null,null,{"$f":"CONCATENATE(T8)","v":" "},null,null,null,null,{"$f":"X8","v":" "},null,null,{"$f":"Z8","v":" "},null,null,null,{"$f":"IF(AK8=$F$16,(ANASAYFA!K16+ANASAYFA!L16),IF(AK8=$F$17,ANASAYFA!K16,IF(AK8=$F$18,ANASAYFA!K16,IF(KAYNAK!AK8=KAYNAK!$F$21,ANASAYFA!K16+ANASAYFA!L16,IF(KAYNAK!AK8=KAYNAK!$F$22,ANASAYFA!K16+ANASAYFA!L16,0)))))","v":0}]
[null,null,8,8,null,"NİSAN",{"$f":"(G11-G13-(G12/2))*ANASAYFA!J10*ANASAYFA!L6:M6*KAYNAK!G6","v":0},0,null,{"$f":"IF(ISBLANK(ANASAYFA!C17:F17),\" \",ANASAYFA!C17:F17)","v":" "}," "," "," ",{"$f":"IF(ISBLANK(ANASAYFA!G17:H17),\" \",ANASAYFA!G17:H17)","v":" "}," ",{"$f":"IF(ISBLANK(ANASAYFA!I17:J17),\" \",ANASAYFA!I17:J17)","v":" "}," ",{"$f":"IF(ISBLANK(ANASAYFA!K17),\" \",ANASAYFA!K17)","v":" "},null," ",null,null,null,{"$f":"TEXT(N9,0)","v":" "},null," ",null,8,null,null,null," ",null,null,null,null," ",null,null," ",null,null,null,{"$f":"IF(AK9=$F$16,(ANASAYFA!K17+ANASAYFA!L17),IF(AK9=$F$17,ANASAYFA!K17,IF(AK9=$F$18,ANASAYFA!K17,IF(KAYNAK!AK9=KAYNAK!$F$21,ANASAYFA!K17+ANASAYFA!L17,IF(KAYNAK!AK9=KAYNAK!$F$22,ANASAYFA!K17+ANASAYFA!L17,0)))))","v":0}]
[null,"FARKLI",9,9,null,"MAYIS",{"$f":"CONCATENATE(G9)","v":"0"},null,null,{"$f":"IF(ISBLANK(ANASAYFA!C18:F18),\" \",ANASAYFA!C18:F18)","v":" "}," "," "," ",{"$f":"IF(ISBLANK(ANASAYFA!G18:H18),\" \",ANASAYFA!G18:H18)","v":" "}," ",{"$f":"IF(ISBLANK(ANASAYFA!I18:J18),\" \",ANASAYFA!I18:J18)","v":" "}," ",{"$f":"IF(ISBLANK(ANASAYFA!K18),\" \",ANASAYFA!K18)","v":" "},null," ",null,null,null," ",null," ",null,9,null,null,null," ",null,null,null,null," ",null,null," ",null,null,null,{"$f":"IF(AK10=$F$16,(ANASAYFA!K18+ANASAYFA!L18),IF(AK10=$F$17,ANASAYFA!K18,IF(AK10=$F$18,ANASAYFA!K18,IF(KAYNAK!AK10=KAYNAK!$F$21,ANASAYFA!K18+ANASAYFA!L18,IF(KAYNAK!AK10=KAYNAK!$F$22,ANASAYFA!K18+ANASAYFA!L18,0)))))","v":0}]
[null,"AYNI",10,10,null,"HAZİRAN",{"$f":"ANASAYFA!Q6","v":0},"toplam",null,{"$f":"IF(ISBLANK(ANASAYFA!C19:F19),\" \",ANASAYFA!C19:F19)","v":" "}," "," "," ",{"$f":"IF(ISBLANK(ANASAYFA!G19:H19),\" \",ANASAYFA!G19:H19)","v":" "}," ",{"$f":"IF(ISBLANK(ANASAYFA!I19:J19),\" \",ANASAYFA!I19:J19)","v":" "}," ",{"$f":"IF(ISBLANK(ANASAYFA!K19),\" \",ANASAYFA!K19)","v":" "},null," ",null,null,null," ",null," ",null,10,null,null,null," ",null,null,null,null," ",null,null," ",null,null,null,{"$f":"IF(AK11=$F$16,(ANASAYFA!K19+ANASAYFA!L19),IF(AK11=$F$17,ANASAYFA!K19,IF(AK11=$F$18,ANASAYFA!K19,IF(KAYNAK!AK11=KAYNAK!$F$21,ANASAYFA!K19+ANASAYFA!L19,IF(KAYNAK!AK11=KAYNAK!$F$22,ANASAYFA!K19+ANASAYFA!L19,0)))))","v":0}]
[null,null,null,11,null,"TEMMUZ",{"$f":"ANASAYFA!R6","v":0},"%50 indirim",null,{"$f":"IF(ISBLANK(ANASAYFA!C20:F20),\" \",ANASAYFA!C20:F20)","v":" "}," "," "," ",{"$f":"IF(ISBLANK(ANASAYFA!G20:H20),\" \",ANASAYFA!G20:H20)","v":" "}," ",{"$f":"IF(ISBLANK(ANASAYFA!I20:J20),\" \",ANASAYFA!I20:J20)","v":" "}," ",{"$f":"IF(ISBLANK(ANASAYFA!K20),\" \",ANASAYFA!K20)","v":" "},null," ",null,null,null," ",null," ",null,11,null,null,null," ",null,null,null,null," ",null,null," ",null,null,null,{"$f":"IF(AK12=$F$16,(ANASAYFA!K20+ANASAYFA!L20),IF(AK12=$F$17,ANASAYFA!K20,IF(AK12=$F$18,ANASAYFA!K20,IF(KAYNAK!AK12=KAYNAK!$F$21,ANASAYFA!K20+ANASAYFA!L20,IF(KAYNAK!AK12=KAYNAK!$F$22,ANASAYFA!K20+ANASAYFA!L20,0)))))","v":0}]
[null,null,null,12,null,"AĞUSTOS",{"$f":"ANASAYFA!S6","v":0},"ücretsiz",null,{"$f":"IF(ISBLANK(ANASAYFA!C21:F21),\" \",ANASAYFA!C21:F21)","v":" "}," "," "," ",{"$f":"IF(ISBLANK(ANASAYFA!G21:H21),\" \",ANASAYFA!G21:H21)","v":" "}," ",{"$f":"IF(ISBLANK(ANASAYFA!I21:J21),\" \",ANASAYFA!I21:J21)","v":" "}," ",{"$f":"IF(ISBLANK(ANASAYFA!K21),\" \",ANASAYFA!K21)","v":" "},null," ",null,null,null," ",null," ",null,12,null,null,null," ",null,null,null,null," ",null,null," ",null,null,null,{"$f":"IF(AK13=$F$16,(ANASAYFA!K21+ANASAYFA!L21),IF(AK13=$F$17,ANASAYFA!K21,IF(AK13=$F$18,ANASAYFA!K21,IF(KAYNAK!AK13=KAYNAK!$F$21,ANASAYFA!K21+ANASAYFA!L21,IF(KAYNAK!AK13=KAYNAK!$F$22,ANASAYFA!K21+ANASAYFA!L21,0)))))","v":0}]
[null,null,null,13,null,null,null,null,null,{"$f":"IF(ISBLANK(ANASAYFA!C22:F22),\" \",ANASAYFA!C22:F22)","v":" "}," "," "," ",{"$f":"IF(ISBLANK(ANASAYFA!G22:H22),\" \",ANASAYFA!G22:H22)","v":" "}," ",{"$f":"IF(ISBLANK(ANASAYFA!I22:J22),\" \",ANASAYFA!I22:J22)","v":" "}," ",{"$f":"IF(ISBLANK(ANASAYFA!K22),\" \",ANASAYFA!K22)","v":" "},null," ",null,null,null," ",null," ",null,13,null,null,null," ",null,null,null,null," ",null,null," ",null,null,null,{"$f":"IF(AK14=$F$16,(ANASAYFA!K22+ANASAYFA!L22),IF(AK14=$F$17,ANASAYFA!K22,IF(AK14=$F$18,ANASAYFA!K22,IF(KAYNAK!AK14=KAYNAK!$F$21,ANASAYFA!K22+ANASAYFA!L22,IF(KAYNAK!AK14=KAYNAK!$F$22,ANASAYFA!K22+ANASAYFA!L22,0)))))","v":0}]
[null,null,null,14,null,"DÖNEM BÜTÇESİ!!!",{"$f":"IF(ANASAYFA!L10=B10,H20,G9)","v":0},null,null,{"$f":"IF(ISBLANK(ANASAYFA!C23:F23),\" \",ANASAYFA!C23:F23)","v":" "}," "," "," ",{"$f":"IF(ISBLANK(ANASAYFA!G23:H23),\" \",ANASAYFA!G23:H23)","v":" "}," ",{"$f":"IF(ISBLANK(ANASAYFA!I23:J23),\" \",ANASAYFA!I23:J23)","v":" "}," ",{"$f":"IF(ISBLANK(ANASAYFA!K23),\" \",ANASAYFA!K23)","v":" "},null," ",null,null,null," ",null," ",null,14,null,null,null," ",null,null,null,null," ",null,null," ",null,null,null,{"$f":"IF(AK15=$F$16,(ANASAYFA!K23+ANASAYFA!L23),IF(AK15=$F$17,ANASAYFA!K23,IF(AK15=$F$18,ANASAYFA!K23,IF(KAYNAK!AK15=KAYNAK!$F$21,ANASAYFA!K23+ANASAYFA!L23,IF(KAYNAK!AK15=KAYNAK!$F$22,ANASAYFA!K23+ANASAYFA!L23,0)))))","v":0}]
["SEÇİLİ AY",null,null,15,null,"Okul Müdürü","Kadrolu","Hesaplanan Bütçe",null,{"$f":"IF(ISBLANK(ANASAYFA!C24:F24),\" \",ANASAYFA!C24:F24)","v":" "}," "," "," ",{"$f":"IF(ISBLANK(ANASAYFA!G24:H24),\" \",ANASAYFA!G24:H24)","v":" "}," ",{"$f":"IF(ISBLANK(ANASAYFA!I24:J24),\" \",ANASAYFA!I24:J24)","v":" "}," ",{"$f":"IF(ISBLANK(ANASAYFA!K24),\" \",ANASAYFA!K24)","v":" "},null," ",null,null,null," ",null," ",null,15,null,null,null," ",null,null,null,null," ",null,null," ",null,null,null,{"$f":"IF(AK16=$F$16,(ANASAYFA!K24+ANASAYFA!L24),IF(AK16=$F$17,ANASAYFA!K24,IF(AK16=$F$18,ANASAYFA!K24,IF(KAYNAK!AK16=KAYNAK!$F$21,ANASAYFA!K24+ANASAYFA!L24,IF(KAYNAK!AK16=KAYNAK!$F$22,ANASAYFA!K24+ANASAYFA!L24,0)))))","v":0}]
[{"$f":"CONCATENATE(ANASAYFA!L11:M11)","v":""},"",null,16,null,"Müdür Yardımcısı","SGK'lı","Toplanan Miktar",null,{"$f":"IF(ISBLANK(ANASAYFA!C25:F25),\" \",ANASAYFA!C25:F25)","v":" "}," "," "," ",{"$f":"IF(ISBLANK(ANASAYFA!G25:H25),\" \",ANASAYFA!G25:H25)","v":" "}," ",{"$f":"IF(ISBLANK(ANASAYFA!I25:J25),\" \",ANASAYFA!I25:J25)","v":" "}," ",{"$f":"IF(ISBLANK(ANASAYFA!K25),\" \",ANASAYFA!K25)","v":" "},null," ",null,null,null," ",null," ",null,16,null,null,null," ",null,null,null,null," ",null,null," ",null,null,null,{"$f":"IF(AK17=$F$16,(ANASAYFA!K25+ANASAYFA!L25),IF(AK17=$F$17,ANASAYFA!K25,IF(AK17=$F$18,ANASAYFA!K25,IF(KAYNAK!AK17=KAYNAK!$F$21,ANASAYFA!K25+ANASAYFA!L25,IF(KAYNAK!AK17=KAYNAK!$F$22,ANASAYFA!K25+ANASAYFA!L25,0)))))","v":0}]
[{"$f":"A17","v":""},null,null,17,null,"Md. Yrd. (Yerine Üye Öğr.)",null,null,null,{"$f":"IF(ISBLANK(ANASAYFA!C26:F26),\" \",ANASAYFA!C26:F26)","v":" "}," "," "," ",{"$f":"IF(ISBLANK(ANASAYFA!G26:H26),\" \",ANASAYFA!G26:H26)","v":" "}," ",{"$f":"IF(ISBLANK(ANASAYFA!I26:J26),\" \",ANASAYFA!I26:J26)","v":" "}," ",{"$f":"IF(ISBLANK(ANASAYFA!K26),\" \",ANASAYFA!K26)","v":" "},null," ",null,null,null," ",null," ",null,17,null,null,null," ",null,null,null,null," ",null,null," ",null,null,null,{"$f":"IF(AK18=$F$16,(ANASAYFA!K26+ANASAYFA!L26),IF(AK18=$F$17,ANASAYFA!K26,IF(AK18=$F$18,ANASAYFA!K26,IF(KAYNAK!AK18=KAYNAK!$F$21,ANASAYFA!K26+ANASAYFA!L26,IF(KAYNAK!AK18=KAYNAK!$F$22,ANASAYFA!K26+ANASAYFA!L26,0)))))","v":0}]
[null,null,null,18,null,"Öğretmen",null,null,null,{"$f":"IF(ISBLANK(ANASAYFA!C27:F27),\" \",ANASAYFA!C27:F27)","v":" "}," "," "," ",{"$f":"IF(ISBLANK(ANASAYFA!G27:H27),\" \",ANASAYFA!G27:H27)","v":" "}," ",{"$f":"IF(ISBLANK(ANASAYFA!I27:J27),\" \",ANASAYFA!I27:J27)","v":" "}," ",{"$f":"IF(ISBLANK(ANASAYFA!K27),\" \",ANASAYFA!K27)","v":" "},null," ",null,null,null," ",null," ",null,18,null,null,null," ",null,null,null,null," ",null,null," ",null,null,null,{"$f":"IF(AK19=$F$16,(ANASAYFA!K27+ANASAYFA!L27),IF(AK19=$F$17,ANASAYFA!K27,IF(AK19=$F$18,ANASAYFA!K27,IF(KAYNAK!AK19=KAYNAK!$F$21,ANASAYFA!K27+ANASAYFA!L27,IF(KAYNAK!AK19=KAYNAK!$F$22,ANASAYFA!K27+ANASAYFA!L27,0)))))","v":0}]
[null,null,null,19,null,"Ücretli Usta Öğretici","toplanan para",{"$f":"ANASAYFA!M10","v":0},null,{"$f":"IF(ISBLANK(ANASAYFA!C28:F28),\" \",ANASAYFA!C28:F28)","v":" "}," "," "," ",{"$f":"IF(ISBLANK(ANASAYFA!G28:H28),\" \",ANASAYFA!G28:H28)","v":" "}," ",{"$f":"IF(ISBLANK(ANASAYFA!I28:J28),\" \",ANASAYFA!I28:J28)","v":" "}," ",{"$f":"IF(ISBLANK(ANASAYFA!K28),\" \",ANASAYFA!K28)","v":" "},null," ",null,null,null," ",null," ",null,19,null,null,null," ",null,null,null,null," ",null,null," ",null,null,null,{"$f":"IF(AK20=$F$16,(ANASAYFA!K28+ANASAYFA!L28),IF(AK20=$F$17,ANASAYFA!K28,IF(AK20=$F$18,ANASAYFA!K28,IF(KAYNAK!AK20=KAYNAK!$F$21,ANASAYFA!K28+ANASAYFA!L28,IF(KAYNAK!AK20=KAYNAK!$F$22,ANASAYFA!K28+ANASAYFA!L28,0)))))","v":0}]
["EN YÜKSEK BRÜT AYLIK",null,null,20,null,"Hizmetli/Aşçı",null,null,null,{"$f":"IF(ISBLANK(ANASAYFA!C29:F29),\" \",ANASAYFA!C29:F29)","v":" "}," "," "," ",{"$f":"IF(ISBLANK(ANASAYFA!G29:H29),\" \",ANASAYFA!G29:H29)","v":" "}," ",{"$f":"IF(ISBLANK(ANASAYFA!I29:J29),\" \",ANASAYFA!I29:J29)","v":" "}," ",{"$f":"IF(ISBLANK(ANASAYFA!K29),\" \",ANASAYFA!K29)","v":" "},null," ",null,null,null," ",null," ",null,20,null,null,null," ",null,null,null,null," ",null,null," ",null,null,null,{"$f":"IF(AK21=$F$16,(ANASAYFA!K29+ANASAYFA!L29),IF(AK21=$F$17,ANASAYFA!K29,IF(AK21=$F$18,ANASAYFA!K29,IF(KAYNAK!AK21=KAYNAK!$F$21,ANASAYFA!K29+ANASAYFA!L29,IF(KAYNAK!AK21=KAYNAK!$F$22,ANASAYFA!K29+ANASAYFA!L29,0)))))","v":0}]
[{"$f":"ANASAYFA!D6:E6","v":4843.0619999999999},0,null,21,null,"Memur",null,null,null,null,null,null,null,null,null,"İLLER",null,"İLÇELER",null,null,null,null,null,null,null,null,null,21]
[{"$f":"CONCATENATE(A22)","v":"4843,062"},null,null,22,null,"Koordinatör","LİSTE SAY",null,"personel listesi birleşik",null,null,null,null,null,null,"ADANA",null,"ABANA",null,null,null,null,null,"VERGİ DİLİMLERİ",null,null,null,22,null,null,null,null,null,null,null,null,null,null,null,null,null,null,"toplam",{"$f":"SUM(AR7:AR21)","v":0}]
[null,null,null,23,null,null,{"$f":"COUNTIF($I$24:$I$38,KAYNAK!I24)","v":15},null,{"$f":"T7","v":" "},null,null,{"$f":"X7","v":" "},{"$f":"Z7","v":" "},{"$f":"AB7","v":6},null,"ADIYAMAN",null,"ACIGÖL",null,null,null,null,null,0,null,null,null,23]
["MEMUR KATSAYI",null,null,24,null,null,{"$f":"COUNTIF($I$24:$I$38,KAYNAK!I25)","v":15},null,{"$f":"T8","v":" "},null,null,{"$f":"X8","v":" "}," ",{"$f":"AB8","v":7},null,"AFYON",null,"ACIPAYAM",null,null,null,null,null,0.15,null,null,null,24]
[{"$f":"ANASAYFA!B6:C6","v":0.50979600000000003},0,null,25,null,null,{"$f":"COUNTIF($I$24:$I$38,KAYNAK!I26)","v":15},null," ",null,null," "," ",8,null,"AĞRI",null,"ADAKLI",null,null,null,null,null,0.2,null,null,null,25]
[{"$f":"VALUE(A26)","v":0.50979600000000003},null,null,26,null,null,{"$f":"COUNTIF($I$24:$I$38,KAYNAK!I27)","v":15},null," ",null,null," "," ",9,null,"AMASYA",null,"ADALAR",null,null,null,null,null,0.27,null,null,null,26]
[null,null,null,27,null,"VERGİ DİLİMLERİ",{"$f":"COUNTIF($I$24:$I$38,KAYNAK!I28)","v":15},null," ",null,null," "," ",10,null,"ANKARA",null,"ADAPAZARI",null,null,null,null,null,0.35,null,null,null,27]
[null,null,null,28,null,0,{"$f":"COUNTIF($I$24:$I$38,KAYNAK!I29)","v":15},null," ",null,null," "," ",11,null,"ANTALYA",null,"ADIYAMAN MERKEZ",null,null,null,null,null,"Muafiyetli",null,null,null,28]
[null,null,null,29,null,0.15,{"$f":"COUNTIF($I$24:$I$38,KAYNAK!I30)","v":15},null," ",null,null," "," ",12,null,"ARTVİN",null,"ADİLCEVAZ",null,null,null,null,null,null,null,null,null,29]
[null,null,null,30,null,0.2,{"$f":"COUNTIF($I$24:$I$38,KAYNAK!I31)","v":15},null," ",null,null," "," ",13,null,"AYDIN",null,"AFŞİN",null,null,null,null,null,null,null,null,null,30]
[null,null,null,31,null,0.27,{"$f":"COUNTIF($I$24:$I$38,KAYNAK!I32)","v":15},null," ",null,null," "," ",14,null,"BALIKESİR",null,"AFYON MERKEZ",null,null,null,null,null,null,null,null,null,31]
[null,null,null,32,null,0.35,{"$f":"COUNTIF($I$24:$I$38,KAYNAK!I33)","v":15},null," ",null,null," "," ",15,null,"BİLECİK",null,"AĞAÇÖREN",null,null,null,null,null,null,null,null,null,32]
[null,null,null,33,null,"Muafiyetli",{"$f":"COUNTIF($I$24:$I$38,KAYNAK!I34)","v":15},null," ",null,null," "," ",16,null,"BİNGÖL",null,"AĞIN",null,null,null,null,null,null,null,null,null,33]
[null,null,null,34,null,null,{"$f":"COUNTIF($I$24:$I$38,KAYNAK!I35)","v":15},null," ",null,null," "," ",17,null,"BİTLİS",null,"AĞLASUN",null,null,null,null,null,null,null,null,null,34]
[null,null,null,35,null,"Evet",{"$f":"COUNTIF($I$24:$I$38,KAYNAK!I36)","v":15},null," ",null,null," "," ",18,null,"BOLU",null,"AĞLI",null,null,null,null,null,null,null,null,null,35]
[null,null,null,36,null,"Hayır",{"$f":"COUNTIF($I$24:$I$38,KAYNAK!I37)","v":15},null," ",null,null," "," ",19,null,"BURDUR",null,"AĞRI MERKEZ",null,null,null,null,null,null,null,null,null,36]
[null,null,null,37,null,null,{"$f":"COUNTIF($I$24:$I$38,KAYNAK!I38)","v":15},null," ",null,null," "," ",20,null,"BURSA",null,"AHIRLI",null,null,null,null,null,null,null,null,null,37]
[null,null,"müdür",38,{"$f":"CONCATENATE(BORDRO!G5:H5)","v":"0"},"",null,null,null,null,null,null,null,null,null,"ÇANAKKALE",null,"AHLAT",null,null,null,null,null,null,null,null,null,38]
[null,null,"md yard",39,{"$f":"CONCATENATE(BORDRO!G6:H6)","v":"0"},"",null,null,null,null,null,null,"NET ASGARİ",{"$f":"ANASAYFA!F6-(ANASAYFA!F6/100*15)","v":11402.325000000001},null,"ÇANKIRI",null,"AHMETLİ",null,null,null,null,null,null,null,null,null,39]
[null,null,"öğrttplm",40,{"$f":"CONCATENATE(BORDRO!G7:H7)","v":"0"},"",null,null,null,null,null,null,null,null,null,"ÇORUM",null,"AKÇAABAT",null,null,null,null,null,null,null,null,null,40]
[null,null,"memur",null,{"$f":"CONCATENATE(BORDRO!G8:H8)","v":"0"},"","HESAPLAMALAR",null,null,null,null,null,null,null,null,"DENİZLİ",null,"AKÇADAĞ",null,null,null,null,null,null,null,null,null,41]
[null,null,"hizme",null,{"$f":"CONCATENATE(BORDRO!G9:H9)","v":"0"},"","KİŞİ","PAY TUTAR","MAX TUTAR","yüksekse","ÖDENECEK","sayıçevir","TOPLAM","PAY","LİMİT ÜST","DİYARBAKIR","LİMİT ÜST","AKÇAKALE",null,null,null,null,null,null,null,null,null,42,null,null,null,null,null,null,null,null,null,null,{"$f":"IF(WEEKDAY($E$6,2)=1,\"\",IF(WEEKDAY($E$6,2)=2,\"\",IF(WEEKDAY($E$6,2)=3,\"\",IF(WEEKDAY($E$6,2)=4,\"\",IF(WEEKDAY($E$6,2)=5,\"\",IF(WEEKDAY($E$6,2)=6,\"X\",IF(WEEKDAY($E$6,2)=7,\"X\")))))))","v":"X"},{"$f":"IF(WEEKDAY($F$6,2)=1,\"\",IF(WEEKDAY($F$6,2)=2,\"\",IF(WEEKDAY($F$6,2)=3,\"\",IF(WEEKDAY($F$6,2)=4,\"\",IF(WEEKDAY($F$6,2)=5,\"\",IF(WEEKDAY($F$6,2)=6,\"X\",IF(WEEKDAY($F$6,2)=7,\"X\")))))))","v":{"$error":"#VALUE!"}},{"$f":"IF(WEEKDAY(AO$6,2)=1,\"\",IF(WEEKDAY(AO$6,2)=2,\"\",IF(WEEKDAY(AO$6,2)=3,\"\",IF(WEEKDAY(AO$6,2)=4,\"\",IF(WEEKDAY(AO$6,2)=5,\"\",IF(WEEKDAY(AO$6,2)=6,\"X\",IF(WEEKDAY(AO$6,2)=7,\"X\")))))))","v":"X"},{"$f":"IF(WEEKDAY(AP$6,2)=1,\"\",IF(WEEKDAY(AP$6,2)=2,\"\",IF(WEEKDAY(AP$6,2)=3,\"\",IF(WEEKDAY(AP$6,2)=4,\"\",IF(WEEKDAY(AP$6,2)=5,\"\",IF(WEEKDAY(AP$6,2)=6,\"X\",IF(WEEKDAY(AP$6,2)=7,\"X\")))))))","v":"X"},{"$error":"#VALUE!"},"X","X","X","X","X","X","X","X","X","X","X","X","X","X","X","X","X","X","X","X","X","X","X","X","X","X"]
[null,null,"toplam",null,{"$f":"CONCATENATE(BORDRO!G10:H10)","v":"0"},"","OKUL MÜDÜRÜ",{"$f":"L44","v":0},{"$f":"VALUE(A46)","v":5327.3681999999999},null,{"$f":"IF(H44>I44,I44,H44)","v":0},{"$f":"VALUE(E39)","v":0},null,null,{"$f":"IF(Q44<0,0,Q44)","v":0},"EDİRNE",{"$f":"IF(H44=\"\",\"\",H44-I44)","v":-5327.3681999999999},"AKÇAKENT",null,null,null,null,null,null,null,null,null,43,null,null,null,null,null,null,null,null,null,null,{"$f":"IF(WEEKDAY($E$6,2)=1,\"\",IF(WEEKDAY($E$6,2)=2,\"\",IF(WEEKDAY($E$6,2)=3,\"\",IF(WEEKDAY($E$6,2)=4,\"\",IF(WEEKDAY($E$6,2)=5,\"\",IF(WEEKDAY($E$6,2)=6,\"X\",IF(WEEKDAY($E$6,2)=7,\"X\")))))))","v":"X"},{"$f":"IF(WEEKDAY($F$6,2)=1,\"\",IF(WEEKDAY($F$6,2)=2,\"\",IF(WEEKDAY($F$6,2)=3,\"\",IF(WEEKDAY($F$6,2)=4,\"\",IF(WEEKDAY($F$6,2)=5,\"\",IF(WEEKDAY($F$6,2)=6,\"X\",IF(WEEKDAY($F$6,2)=7,\"X\")))))))","v":{"$error":"#VALUE!"}},{"$f":"IF(WEEKDAY(AO$6,2)=1,\"\",IF(WEEKDAY(AO$6,2)=2,\"\",IF(WEEKDAY(AO$6,2)=3,\"\",IF(WEEKDAY(AO$6,2)=4,\"\",IF(WEEKDAY(AO$6,2)=5,\"\",IF(WEEKDAY(AO$6,2)=6,\"X\",IF(WEEKDAY(AO$6,2)=7,\"X\")))))))","v":"X"},"X",{"$error":"#VALUE!"},"X","X","X","X","X","X","X","X","X","X","X","X","X","X","X","X","X","X","X","X","X","X","X","X","X","X"]
[null,null,null,null,null,null,"MÜDÜR YARDIMCISI",{"$f":"L45","v":0},{"$f":"VALUE(B46)","v":4116.6027000000004},null,{"$f":"IF(H45>I45,I45,H45)","v":0},{"$f":"VALUE(E40)","v":0},{"$f":"IF(N49>N40,N40,N49)","v":3874.4495999999999},"<HİZMETLİ KİŞİ",{"$f":"IF(Q45<0,0,Q45)","v":0},"ELÂZIĞ",{"$f":"IF(H45=\"\",\"\",H45-I45)","v":-4116.6027000000004},"AKÇAKOCA",null,null,null,null,null,null,null,null,null,44,null,null,null,null,null,null,null,null,null,null,"X",{"$error":"#VALUE!"},"X","X",{"$f":"IF(WEEKDAY(AQ$6,2)=1,\"\",IF(WEEKDAY(AQ$6,2)=2,\"\",IF(WEEKDAY(AQ$6,2)=3,\"\",IF(WEEKDAY(AQ$6,2)=4,\"\",IF(WEEKDAY(AQ$6,2)=5,\"\",IF(WEEKDAY(AQ$6,2)=6,\"X\",IF(WEEKDAY(AQ$6,2)=7,\"X\")))))))","v":{"$error":"#VALUE!"}},"X","X","X","X","X","X","X","X","X","X","X","X","X","X","X","X","X","X","X","X","X","X","X","X","X","X"]
[{"$f":"CONCATENATE(BORDRO!Q10:Q12)","v":"5327,3682"},{"$f":"CONCATENATE(BORDRO!R10:R12)","v":"4116,6027"},{"$f":"CONCATENATE(BORDRO!S10:S12)","v":"5811,6744"},{"$f":"CONCATENATE(BORDRO!T10:T12)","v":"11139,0426"},{"$f":"CONCATENATE(BORDRO!U10:U12)","v":"3874,4496"},null,"MEMUR",{"$f":"L46","v":0},{"$f":"VALUE(E46)","v":3874.4495999999999},null,{"$f":"IF(H46>I46,I46,H46)","v":0},{"$f":"VALUE(E42)","v":0},null,null,0,"ERZİNCAN",-3874.4495999999999,"AKDAĞMADENİ",null,null,null,null,null,null,null,null,null,45,null,null,null,null,null,null,null,null,null,null,"X",{"$error":"#VALUE!"},"X","X",{"$error":"#VALUE!"},"X","X","X","X","X","X","X","X","X","X","X","X","X","X","X","X","X","X","X","X","X","X","X","X","X","X"]
["","","","","",null,"HİZMETLİ AŞÇI",0,{"$f":"VALUE(E46)","v":3874.4495999999999},null,{"$f":"IF(H47>I47,I47,N47)","v":""},{"$f":"VALUE(E43)","v":0},{"$f":"L47","v":0},{"$f":"IF(F50=0,\"\",M47/F50)","v":""},{"$f":"IF(Q47<0,0,Q47)","v":0},"ERZURUM",{"$f":"IF(H47=\"\",\"\",H47-I47)","v":-3874.4495999999999},"AKDENİZ",null,null,null,null,null,null,null,null,null,46,null,null,null,null,null,null,null,null,null,null,"X",{"$error":"#VALUE!"},"X","X",{"$error":"#VALUE!"},null,"X","X","X","X","X","X","X","X","X","X","X","X","X","X","X","X","X","X","X","X","X","X","X","X","X"]
["","","","","",null,"ÖĞRETMEN",null,{"$f":"C46","v":"5811,6744"},null,null,null,null,{"$f":"BORDRO!U10","v":3874.4495999999999},"","ESKİŞEHİR","","AKHİSAR",null,null,null,null,null,null,null,null,null,47,null,null,null,null,null,null,null,null,null,null,"X",{"$error":"#VALUE!"},"X","X",{"$error":"#VALUE!"},"X","X","X","X","X","X","X","X","X","X","X","X","X","X","X","X","X","X","X","X","X","X","X","X","X","X"]
["TEMİZLİK",null,null,null,null,"HİZMETLİ AŞÇI SAY","ÜCRETLİ USTA ÖĞR",null,{"$f":"D46","v":"11139,0426"},null,null,null,null,{"$f":"IF(N47>N48,N48,N47)","v":3874.4495999999999},"","GAZİANTEP","","AKINCILAR",null,null,null,null,null,null,null,null,null,48,null,null,null,null,null,null,null,null,null,null,"X",{"$error":"#VALUE!"},"X","X",{"$error":"#VALUE!"},"X","X","X","X","X","X","X","X","X","X","X","X","X","X","X","X","X","X","X","X","X","X","X","X","X","X"]
[{"$f":"BORDRO!G9:H9","v":0},0,null,null,null,{"$f":"COUNTIF(ANASAYFA!G15:H29,KAYNAK!F21)","v":0},"KOORDİNATÖR",null,{"$f":"I44","v":5327.3681999999999},null,null,null,null,null,"","GİRESUN","","AKKIŞLA",null,null,null,null,null,null,null,null,null,49,null,null,null,null,null,null,null,null,null,null,"X",{"$error":"#VALUE!"},"X","X",{"$error":"#VALUE!"},"X","X","X","X","X","X","X","X","X","X","X","X","X","X","X","X","X","X","X","X","X","X","X","X","X","X"]
[{"$f":"CONCATENATE(A50)","v":"0"},null,null,null,"KADROLU SGK LİMİT",null,null,null,"hisse",null,"pay",null,null,"ÖDENECEK",0,"GÜMÜŞHANE",null,"AKKÖY",null,null,null,null,null,null,null,null,null,50,null,null,null,null,null,null,null,null,null,null,"X",{"$error":"#VALUE!"},"X","X",{"$error":"#VALUE!"},"X","X","X","X","X","X","X","X","X","X","X","X","X","X","X","X","X","X","X","X","X","X","X","X","X","X"]
[null,null,null,{"$f":"_xlfn.IFS(ANASAYFA!G15:H15=KAYNAK!$F$23,KAYNAK!$I$50,ANASAYFA!I15:J15=KAYNAK!$G$16,KAYNAK!$I$48,ANASAYFA!I15:J15=KAYNAK!$G$17,KAYNAK!$I$49)","v":{"$error":"#N/A"}},{"$error":"#N/A"},{"$f":"VALUE(D52)","v":{"$error":"#N/A"}},{"$f":"ANASAYFA!C15","v":0},{"$f":"BORDRO!F17","v":" "},{"$f":"IFERROR(BORDRO!I17/ANASAYFA!$D$11:$E$11,\"\")","v":""},"",{"$f":"_xlfn.IFS(BORDRO!E17=KAYNAK!$F$19,IFERROR(KAYNAK!I52*BORDRO!$G$7:$H$7,\"\"),BORDRO!E17=KAYNAK!$F$20,IFERROR(KAYNAK!I52*BORDRO!$G$7:$H$7,\"\"),BORDRO!E17=KAYNAK!$F$16,\"\",BORDRO!E17=KAYNAK!$F$17,IFERROR(I52*BORDRO!G6,\"\"),BORDRO!E17=KAYNAK!$F$18,IFERROR(KAYNAK!I52*BORDRO!G6,\"\"),BORDRO!E17=KAYNAK!$F$21,\"\",BORDRO!E17=KAYNAK!$F$22,\"\",BORDRO!E17=KAYNAK!$F$23,IFERROR(KAYNAK!I52*BORDRO!$G$7:$H$7,\"\"))","v":{"$error":"#N/A"}},null,{"$f":"IF(K52=\"\",\"\",VALUE(K52))","v":{"$error":"#N/A"}},{"$f":"IF(M52>F52,F52,M52)","v":{"$error":"#N/A"}},{"$error":"#N/A"},"HAKKÂRİ",{"$f":"IF(K52=\"\",\"\",K52-$I$48)","v":{"$error":"#N/A"}},"AKKUŞ",null,null,null,null,null,null,null,null,null,51,null,null,null,null,null,null,null,null,null,null,"X",{"$error":"#VALUE!"},"X","X",{"$error":"#VALUE!"},"X","X","X",{"$f":"IF(WEEKDAY(AU$6,2)=1,\"\",IF(WEEKDAY(AU$6,2)=2,\"\",IF(WEEKDAY(AU$6,2)=3,\"\",IF(WEEKDAY(AU$6,2)=4,\"\",IF(WEEKDAY(AU$6,2)=5,\"\",IF(WEEKDAY(AU$6,2)=6,\"X\",IF(WEEKDAY(AU$6,2)=7,\"X\")))))))","v":"X"},"X","X","X","X","X","X","X","X","X","X","X","X","X","X","X",{"$f":"IF(WEEKDAY(BK$6,2)=1,\"\",IF(WEEKDAY(BK$6,2)=2,\"\",IF(WEEKDAY(BK$6,2)=3,\"\",IF(WEEKDAY(BK$6,2)=4,\"\",IF(WEEKDAY(BK$6,2)=5,\"\",IF(WEEKDAY(BK$6,2)=6,\"X\",IF(WEEKDAY(BK$6,2)=7,\"X\")))))))","v":"X"},"X","X","X","X","X","X"]
[null,null,null,{"$f":"_xlfn.IFS(ANASAYFA!G16:H16=KAYNAK!$F$23,KAYNAK!$I$50,ANASAYFA!I16:J16=KAYNAK!$G$16,KAYNAK!$I$48,ANASAYFA!I16:J16=KAYNAK!$G$17,KAYNAK!$I$49)","v":{"$error":"#N/A"}},{"$error":"#N/A"},{"$f":"VALUE(D53)","v":{"$error":"#N/A"}},{"$f":"ANASAYFA!C16","v":0},{"$f":"BORDRO!F18","v":" "},{"$f":"IFERROR(BORDRO!I18/ANASAYFA!$D$11:$E$11,\"\")","v":""},"",{"$f":"_xlfn.IFS(BORDRO!E18=KAYNAK!$F$19,IFERROR(KAYNAK!I53*BORDRO!$G$7:$H$7,\"\"),BORDRO!E18=KAYNAK!$F$20,IFERROR(KAYNAK!I53*BORDRO!$G$7:$H$7,\"\"),BORDRO!E18=KAYNAK!$F$16,\"\",BORDRO!E18=KAYNAK!$F$17,IFERROR(I53*BORDRO!G7,\"\"),BORDRO!E18=KAYNAK!$F$18,IFERROR(KAYNAK!I53*BORDRO!G7,\"\"),BORDRO!E18=KAYNAK!$F$21,\"\",BORDRO!E18=KAYNAK!$F$22,\"\",BORDRO!E18=KAYNAK!$F$23,IFERROR(KAYNAK!I53*BORDRO!$G$7:$H$7,\"\"))","v":{"$error":"#N/A"}},null,{"$f":"IF(K53=\"\",\"\",VALUE(K53))","v":{"$error":"#N/A"}},{"$f":"IF(M53=\"\",0,IF(M53>F53,F53,M53))","v":{"$error":"#N/A"}},{"$f":"IF(Q53<0,0,Q53)","v":{"$error":"#N/A"}},"HATAY",{"$error":"#N/A"},"AKÖREN",null,null,null,null,null,null,null,null,null,52,null,null,null,null,null,null,null,null,null,null,"X",{"$error":"#VALUE!"},"X","X",{"$error":"#VALUE!"},"X","X","X","X","X","X","X","X","X","X","X","X","X","X","X","X","X","X","X","X","X","X","X","X","X","X"]
[null,null,null,{"$f":"_xlfn.IFS(ANASAYFA!G17:H17=KAYNAK!$F$23,KAYNAK!$I$50,ANASAYFA!I17:J17=KAYNAK!$G$16,KAYNAK!$I$48,ANASAYFA!I17:J17=KAYNAK!$G$17,KAYNAK!$I$49)","v":{"$error":"#N/A"}},{"$error":"#N/A"},{"$error":"#N/A"},{"$f":"ANASAYFA!C17","v":0},{"$f":"BORDRO!F19","v":" "},{"$f":"IFERROR(BORDRO!I19/ANASAYFA!$D$11:$E$11,\"\")","v":""},"",{"$f":"_xlfn.IFS(BORDRO!E19=KAYNAK!$F$19,IFERROR(KAYNAK!I54*BORDRO!$G$7:$H$7,\"\"),BORDRO!E19=KAYNAK!$F$20,IFERROR(KAYNAK!I54*BORDRO!$G$7:$H$7,\"\"),BORDRO!E19=KAYNAK!$F$16,\"\",BORDRO!E19=KAYNAK!$F$17,IFERROR(I54*BORDRO!G8,\"\"),BORDRO!E19=KAYNAK!$F$18,IFERROR(KAYNAK!I54*BORDRO!G8,\"\"),BORDRO!E19=KAYNAK!$F$21,\"\",BORDRO!E19=KAYNAK!$F$22,\"\",BORDRO!E19=KAYNAK!$F$23,IFERROR(KAYNAK!I54*BORDRO!$G$7:$H$7,\"\"))","v":{"$error":"#N/A"}},null,{"$error":"#N/A"},{"$f":"IF(M54>F54,F54,M54)","v":{"$error":"#N/A"}},{"$f":"IF(Q54<0,0,Q54)","v":{"$error":"#N/A"}},"ISPARTA",{"$f":"IF(K54=\"\",\"\",K54-$I$48)","v":{"$error":"#N/A"}},"AKPINAR",null,null,null,null,null,null,null,null,null,53,null,null,null,null,null,null,null,null,null,null,"X",{"$error":"#VALUE!"},"X","X",{"$error":"#VALUE!"},"X","X","X","X","X","X","X","X","X","X","X","X","X","X","X","X","X","X","X","X","X","X","X","X","X","X"]
[null,null,null,{"$f":"_xlfn.IFS(ANASAYFA!G18:H18=KAYNAK!$F$23,KAYNAK!$I$50,ANASAYFA!I18:J18=KAYNAK!$G$16,KAYNAK!$I$48,ANASAYFA!I18:J18=KAYNAK!$G$17,KAYNAK!$I$49)","v":{"$error":"#N/A"}},{"$error":"#N/A"},{"$error":"#N/A"},{"$f":"ANASAYFA!C18","v":0},{"$f":"BORDRO!F20","v":" "},{"$f":"IFERROR(BORDRO!I20/ANASAYFA!$D$11:$E$11,\"\")","v":""},"",{"$f":"_xlfn.IFS(BORDRO!E20=KAYNAK!$F$19,IFERROR(KAYNAK!I55*BORDRO!$G$7:$H$7,\"\"),BORDRO!E20=KAYNAK!$F$20,IFERROR(KAYNAK!I55*BORDRO!$G$7:$H$7,\"\"),BORDRO!E20=KAYNAK!$F$16,\"\",BORDRO!E20=KAYNAK!$F$17,IFERROR(I55*BORDRO!G9,\"\"),BORDRO!E20=KAYNAK!$F$18,IFERROR(KAYNAK!I55*BORDRO!G9,\"\"),BORDRO!E20=KAYNAK!$F$21,\"\",BORDRO!E20=KAYNAK!$F$22,\"\",BORDRO!E20=KAYNAK!$F$23,IFERROR(KAYNAK!I55*BORDRO!$G$7:$H$7,\"\"))","v":{"$error":"#N/A"}},null,{"$error":"#N/A"},{"$error":"#N/A"},{"$error":"#N/A"},"MERSİN",{"$f":"IF(K55=\"\",\"\",K55-$I$48)","v":{"$error":"#N/A"}},"AKSARAY MERKEZ",null,null,null,null,null,null,null,null,null,54,null,null,null,null,null,null,null,null,null,null,"X",{"$error":"#VALUE!"},"X","X",{"$error":"#VALUE!"},"X","X","X","X","X","X","X","X","X","X","X","X","X","X","X","X","X","X","X","X","X","X","X","X","X","X"]
[null,null,null,{"$f":"_xlfn.IFS(ANASAYFA!G19:H19=KAYNAK!$F$23,KAYNAK!$I$50,ANASAYFA!I19:J19=KAYNAK!$G$16,KAYNAK!$I$48,ANASAYFA!I19:J19=KAYNAK!$G$17,KAYNAK!$I$49)","v":{"$error":"#N/A"}},{"$error":"#N/A"},{"$error":"#N/A"},{"$f":"ANASAYFA!C19","v":0},{"$f":"BORDRO!F21","v":" "},{"$f":"IFERROR(BORDRO!I21/ANASAYFA!$D$11:$E$11,\"\")","v":""},"",{"$f":"_xlfn.IFS(BORDRO!E21=KAYNAK!$F$19,IFERROR(KAYNAK!I56*BORDRO!$G$7:$H$7,\"\"),BORDRO!E21=KAYNAK!$F$20,IFERROR(KAYNAK!I56*BORDRO!$G$7:$H$7,\"\"),BORDRO!E21=KAYNAK!$F$16,\"\",BORDRO!E21=KAYNAK!$F$17,IFERROR(I56*BORDRO!G10,\"\"),BORDRO!E21=KAYNAK!$F$18,IFERROR(KAYNAK!I56*BORDRO!G10,\"\"),BORDRO!E21=KAYNAK!$F$21,\"\",BORDRO!E21=KAYNAK!$F$22,\"\",BORDRO!E21=KAYNAK!$F$23,IFERROR(KAYNAK!I56*BORDRO!$G$7:$H$7,\"\"))","v":{"$error":"#N/A"}},null,{"$error":"#N/A"},{"$error":"#N/A"},{"$error":"#N/A"},"İSTANBUL",{"$error":"#N/A"},"AKSEKİ",null,null,null,null,null,null,null,null,null,55,null,null,null,null,null,null,null,null,null,null,"X",{"$error":"#VALUE!"},"X","X",{"$error":"#VALUE!"},"X","X","X","X","X","X","X","X","X","X","X","X","X","X","X","X","X","X","X","X","X","X","X","X","X","X"]
[null,null,null,{"$f":"_xlfn.IFS(ANASAYFA!G20:H20=KAYNAK!$F$23,KAYNAK!$I$50,ANASAYFA!I20:J20=KAYNAK!$G$16,KAYNAK!$I$48,ANASAYFA!I20:J20=KAYNAK!$G$17,KAYNAK!$I$49)","v":{"$error":"#N/A"}},{"$error":"#N/A"},{"$error":"#N/A"},{"$f":"ANASAYFA!C20","v":0},{"$f":"BORDRO!F22","v":" "},{"$f":"IFERROR(BORDRO!I22/ANASAYFA!$D$11:$E$11,\"\")","v":""},"",{"$f":"_xlfn.IFS(BORDRO!E22=KAYNAK!$F$19,IFERROR(KAYNAK!I57*BORDRO!$G$7:$H$7,\"\"),BORDRO!E22=KAYNAK!$F$20,IFERROR(KAYNAK!I57*BORDRO!$G$7:$H$7,\"\"),BORDRO!E22=KAYNAK!$F$16,\"\",BORDRO!E22=KAYNAK!$F$17,IFERROR(I57*BORDRO!G11,\"\"),BORDRO!E22=KAYNAK!$F$18,IFERROR(KAYNAK!I57*BORDRO!G11,\"\"),BORDRO!E22=KAYNAK!$F$21,\"\",BORDRO!E22=KAYNAK!$F$22,\"\",BORDRO!E22=KAYNAK!$F$23,IFERROR(KAYNAK!I57*BORDRO!$G$7:$H$7,\"\"))","v":{"$error":"#N/A"}},null,{"$error":"#N/A"},{"$error":"#N/A"},{"$error":"#N/A"},"İZMİR",{"$error":"#N/A"},"AKSU",null,null,null,null,null,null,null,null,null,56,null,null,null,null,null,null,null,null,null,null,"X",{"$error":"#VALUE!"},"X","X",{"$error":"#VALUE!"},"X","X","X","X","X","X","X","X","X","X","X","X","X","X","X","X","X","X","X","X","X","X","X","X","X","X"]
[null,null,null,{"$f":"_xlfn.IFS(ANASAYFA!G21:H21=KAYNAK!$F$23,KAYNAK!$I$50,ANASAYFA!I21:J21=KAYNAK!$G$16,KAYNAK!$I$48,ANASAYFA!I21:J21=KAYNAK!$G$17,KAYNAK!$I$49)","v":{"$error":"#N/A"}},{"$error":"#N/A"},{"$error":"#N/A"},{"$f":"ANASAYFA!C21","v":0},{"$f":"BORDRO!F23","v":" "},{"$f":"IFERROR(BORDRO!I23/ANASAYFA!$D$11:$E$11,\"\")","v":""},"",{"$f":"_xlfn.IFS(BORDRO!E23=KAYNAK!$F$19,IFERROR(KAYNAK!I58*BORDRO!$G$7:$H$7,\"\"),BORDRO!E23=KAYNAK!$F$20,IFERROR(KAYNAK!I58*BORDRO!$G$7:$H$7,\"\"),BORDRO!E23=KAYNAK!$F$16,\"\",BORDRO!E23=KAYNAK!$F$17,IFERROR(I58*BORDRO!G12,\"\"),BORDRO!E23=KAYNAK!$F$18,IFERROR(KAYNAK!I58*BORDRO!G12,\"\"),BORDRO!E23=KAYNAK!$F$21,\"\",BORDRO!E23=KAYNAK!$F$22,\"\",BORDRO!E23=KAYNAK!$F$23,IFERROR(KAYNAK!I58*BORDRO!$G$7:$H$7,\"\"))","v":{"$error":"#N/A"}},null,{"$error":"#N/A"},{"$error":"#N/A"},{"$error":"#N/A"},"KARS",{"$error":"#N/A"},"AKSU/ANTALYA",null,null,null,null,null,null,null,null,null,57]
[null,null,null,{"$f":"_xlfn.IFS(ANASAYFA!G22:H22=KAYNAK!$F$23,KAYNAK!$I$50,ANASAYFA!I22:J22=KAYNAK!$G$16,KAYNAK!$I$48,ANASAYFA!I22:J22=KAYNAK!$G$17,KAYNAK!$I$49)","v":{"$error":"#N/A"}},{"$error":"#N/A"},{"$error":"#N/A"},{"$f":"ANASAYFA!C22","v":0},{"$f":"BORDRO!F24","v":" "},{"$f":"IFERROR(BORDRO!I24/ANASAYFA!$D$11:$E$11,\"\")","v":""},"",{"$f":"_xlfn.IFS(BORDRO!E24=KAYNAK!$F$19,IFERROR(KAYNAK!I59*BORDRO!$G$7:$H$7,\"\"),BORDRO!E24=KAYNAK!$F$20,IFERROR(KAYNAK!I59*BORDRO!$G$7:$H$7,\"\"),BORDRO!E24=KAYNAK!$F$16,\"\",BORDRO!E24=KAYNAK!$F$17,IFERROR(I59*BORDRO!G13,\"\"),BORDRO!E24=KAYNAK!$F$18,IFERROR(KAYNAK!I59*BORDRO!G13,\"\"),BORDRO!E24=KAYNAK!$F$21,\"\",BORDRO!E24=KAYNAK!$F$22,\"\",BORDRO!E24=KAYNAK!$F$23,IFERROR(KAYNAK!I59*BORDRO!$G$7:$H$7,\"\"))","v":{"$error":"#N/A"}},null,{"$error":"#N/A"},{"$error":"#N/A"},{"$error":"#N/A"},"KASTAMONU",{"$error":"#N/A"},"AKŞEHİR",null,null,null,null,null,null,null,null,null,58]
[null,null,null,{"$f":"_xlfn.IFS(ANASAYFA!G23:H23=KAYNAK!$F$23,KAYNAK!$I$50,ANASAYFA!I23:J23=KAYNAK!$G$16,KAYNAK!$I$48,ANASAYFA!I23:J23=KAYNAK!$G$17,KAYNAK!$I$49)","v":{"$error":"#N/A"}},{"$error":"#N/A"},{"$error":"#N/A"},{"$f":"ANASAYFA!C23","v":0},{"$f":"BORDRO!F25","v":" "},{"$f":"IFERROR(BORDRO!I25/ANASAYFA!$D$11:$E$11,\"\")","v":""},"",{"$f":"_xlfn.IFS(BORDRO!E25=KAYNAK!$F$19,IFERROR(KAYNAK!I60*BORDRO!$G$7:$H$7,\"\"),BORDRO!E25=KAYNAK!$F$20,IFERROR(KAYNAK!I60*BORDRO!$G$7:$H$7,\"\"),BORDRO!E25=KAYNAK!$F$16,\"\",BORDRO!E25=KAYNAK!$F$17,IFERROR(I60*BORDRO!G14,\"\"),BORDRO!E25=KAYNAK!$F$18,IFERROR(KAYNAK!I60*BORDRO!G14,\"\"),BORDRO!E25=KAYNAK!$F$21,\"\",BORDRO!E25=KAYNAK!$F$22,\"\",BORDRO!E25=KAYNAK!$F$23,IFERROR(KAYNAK!I60*BORDRO!$G$7:$H$7,\"\"))","v":{"$error":"#N/A"}},null,{"$error":"#N/A"},{"$error":"#N/A"},{"$error":"#N/A"},"KAYSERİ",{"$error":"#N/A"},"AKYAKA",null,null,null,null,null,null,null,null,null,59]
[null,null,null,{"$f":"_xlfn.IFS(ANASAYFA!G24:H24=KAYNAK!$F$23,KAYNAK!$I$50,ANASAYFA!I24:J24=KAYNAK!$G$16,KAYNAK!$I$48,ANASAYFA!I24:J24=KAYNAK!$G$17,KAYNAK!$I$49)","v":{"$error":"#N/A"}},{"$error":"#N/A"},{"$error":"#N/A"},{"$f":"ANASAYFA!C24","v":0},{"$f":"BORDRO!F26","v":" "},{"$f":"IFERROR(BORDRO!I26/ANASAYFA!$D$11:$E$11,\"\")","v":""},"",{"$f":"_xlfn.IFS(BORDRO!E26=KAYNAK!$F$19,IFERROR(KAYNAK!I61*BORDRO!$G$7:$H$7,\"\"),BORDRO!E26=KAYNAK!$F$20,IFERROR(KAYNAK!I61*BORDRO!$G$7:$H$7,\"\"),BORDRO!E26=KAYNAK!$F$16,\"\",BORDRO!E26=KAYNAK!$F$17,IFERROR(I61*BORDRO!G15,\"\"),BORDRO!E26=KAYNAK!$F$18,IFERROR(KAYNAK!I61*BORDRO!G15,\"\"),BORDRO!E26=KAYNAK!$F$21,\"\",BORDRO!E26=KAYNAK!$F$22,\"\",BORDRO!E26=KAYNAK!$F$23,IFERROR(KAYNAK!I61*BORDRO!$G$7:$H$7,\"\"))","v":{"$error":"#N/A"}},null,{"$error":"#N/A"},{"$error":"#N/A"},{"$error":"#N/A"},"KIRKLARELİ",{"$error":"#N/A"},"AKYAZI",null,null,null,null,null,null,null,null,null,60,null,null,null,null,null,null,null,null,null,null,null,null,null,"İ/R"]
[null,null,null,{"$f":"_xlfn.IFS(ANASAYFA!G25:H25=KAYNAK!$F$23,KAYNAK!$I$50,ANASAYFA!I25:J25=KAYNAK!$G$16,KAYNAK!$I$48,ANASAYFA!I25:J25=KAYNAK!$G$17,KAYNAK!$I$49)","v":{"$error":"#N/A"}},{"$error":"#N/A"},{"$error":"#N/A"},{"$f":"ANASAYFA!C25","v":0},{"$f":"BORDRO!F27","v":" "},{"$f":"IFERROR(BORDRO!I27/ANASAYFA!$D$11:$E$11,\"\")","v":""},"",{"$f":"_xlfn.IFS(BORDRO!E27=KAYNAK!$F$19,IFERROR(KAYNAK!I62*BORDRO!$G$7:$H$7,\"\"),BORDRO!E27=KAYNAK!$F$20,IFERROR(KAYNAK!I62*BORDRO!$G$7:$H$7,\"\"),BORDRO!E27=KAYNAK!$F$16,\"\",BORDRO!E27=KAYNAK!$F$17,IFERROR(I62*BORDRO!G16,\"\"),BORDRO!E27=KAYNAK!$F$18,IFERROR(KAYNAK!I62*BORDRO!G16,\"\"),BORDRO!E27=KAYNAK!$F$21,\"\",BORDRO!E27=KAYNAK!$F$22,\"\",BORDRO!E27=KAYNAK!$F$23,IFERROR(KAYNAK!I62*BORDRO!$G$7:$H$7,\"\"))","v":{"$error":"#N/A"}},null,{"$error":"#N/A"},{"$error":"#N/A"},{"$error":"#N/A"},"KIRŞEHİR",{"$error":"#N/A"},"AKYURT",null,null,null,null,null,null,null,null,null,61,null,null,null,null,null,null,null,null,null,null,null,null,null,"X"]
[null,null,null,{"$f":"_xlfn.IFS(ANASAYFA!G26:H26=KAYNAK!$F$23,KAYNAK!$I$50,ANASAYFA!I26:J26=KAYNAK!$G$16,KAYNAK!$I$48,ANASAYFA!I26:J26=KAYNAK!$G$17,KAYNAK!$I$49)","v":{"$error":"#N/A"}},{"$error":"#N/A"},{"$error":"#N/A"},{"$f":"ANASAYFA!C26","v":0},{"$f":"BORDRO!F28","v":" "},{"$f":"IFERROR(BORDRO!I28/ANASAYFA!$D$11:$E$11,\"\")","v":""},"",{"$f":"_xlfn.IFS(BORDRO!E28=KAYNAK!$F$19,IFERROR(KAYNAK!I63*BORDRO!$G$7:$H$7,\"\"),BORDRO!E28=KAYNAK!$F$20,IFERROR(KAYNAK!I63*BORDRO!$G$7:$H$7,\"\"),BORDRO!E28=KAYNAK!$F$16,\"\",BORDRO!E28=KAYNAK!$F$17,IFERROR(I63*BORDRO!G17,\"\"),BORDRO!E28=KAYNAK!$F$18,IFERROR(KAYNAK!I63*BORDRO!G17,\"\"),BORDRO!E28=KAYNAK!$F$21,\"\",BORDRO!E28=KAYNAK!$F$22,\"\",BORDRO!E28=KAYNAK!$F$23,IFERROR(KAYNAK!I63*BORDRO!$G$7:$H$7,\"\"))","v":{"$error":"#N/A"}},null,{"$error":"#N/A"},{"$error":"#N/A"},{"$error":"#N/A"},"KOCAELİ",{"$error":"#N/A"},"ALACA",null,null,null,null,null,null,null,null,null,62,null,null,null,null,null,null,null,null,null,null,null,null,null,1]
[null,null,null,{"$f":"_xlfn.IFS(ANASAYFA!G27:H27=KAYNAK!$F$23,KAYNAK!$I$50,ANASAYFA!I27:J27=KAYNAK!$G$16,KAYNAK!$I$48,ANASAYFA!I27:J27=KAYNAK!$G$17,KAYNAK!$I$49)","v":{"$error":"#N/A"}},{"$error":"#N/A"},{"$error":"#N/A"},{"$f":"ANASAYFA!C27","v":0},{"$f":"BORDRO!F29","v":" "},{"$f":"IFERROR(BORDRO!I29/ANASAYFA!$D$11:$E$11,\"\")","v":""},"",{"$f":"_xlfn.IFS(BORDRO!E29=KAYNAK!$F$19,IFERROR(KAYNAK!I64*BORDRO!$G$7:$H$7,\"\"),BORDRO!E29=KAYNAK!$F$20,IFERROR(KAYNAK!I64*BORDRO!$G$7:$H$7,\"\"),BORDRO!E29=KAYNAK!$F$16,\"\",BORDRO!E29=KAYNAK!$F$17,IFERROR(I64*BORDRO!G18,\"\"),BORDRO!E29=KAYNAK!$F$18,IFERROR(KAYNAK!I64*BORDRO!G18,\"\"),BORDRO!E29=KAYNAK!$F$21,\"\",BORDRO!E29=KAYNAK!$F$22,\"\",BORDRO!E29=KAYNAK!$F$23,IFERROR(KAYNAK!I64*BORDRO!$G$7:$H$7,\"\"))","v":{"$error":"#N/A"}},null,{"$error":"#N/A"},{"$error":"#N/A"},{"$error":"#N/A"},"KONYA",{"$error":"#N/A"},"ALACAKAYA",null,null,null,null,null,null,null,null,null,63,null,null,null,null,null,null,null,null,null,null,null,null,null,2]
[null,null,null,{"$f":"_xlfn.IFS(ANASAYFA!G28:H28=KAYNAK!$F$23,KAYNAK!$I$50,ANASAYFA!I28:J28=KAYNAK!$G$16,KAYNAK!$I$48,ANASAYFA!I28:J28=KAYNAK!$G$17,KAYNAK!$I$49)","v":{"$error":"#N/A"}},{"$error":"#N/A"},{"$error":"#N/A"},{"$f":"ANASAYFA!C28","v":0},{"$f":"BORDRO!F30","v":" "},{"$f":"IFERROR(BORDRO!I30/ANASAYFA!$D$11:$E$11,\"\")","v":""},"",{"$f":"_xlfn.IFS(BORDRO!E30=KAYNAK!$F$19,IFERROR(KAYNAK!I65*BORDRO!$G$7:$H$7,\"\"),BORDRO!E30=KAYNAK!$F$20,IFERROR(KAYNAK!I65*BORDRO!$G$7:$H$7,\"\"),BORDRO!E30=KAYNAK!$F$16,\"\",BORDRO!E30=KAYNAK!$F$17,IFERROR(I65*BORDRO!G19,\"\"),BORDRO!E30=KAYNAK!$F$18,IFERROR(KAYNAK!I65*BORDRO!G19,\"\"),BORDRO!E30=KAYNAK!$F$21,\"\",BORDRO!E30=KAYNAK!$F$22,\"\",BORDRO!E30=KAYNAK!$F$23,IFERROR(KAYNAK!I65*BORDRO!$G$7:$H$7,\"\"))","v":{"$error":"#N/A"}},null,{"$error":"#N/A"},{"$error":"#N/A"},{"$error":"#N/A"},"KÜTAHYA",{"$error":"#N/A"},"ALAÇAM",null,null,null,null,null,null,null,null,null,64,null,null,null,null,null,null,null,null,null,null,null,null,null,3]
[null,null,null,{"$f":"_xlfn.IFS(ANASAYFA!G29:H29=KAYNAK!$F$23,KAYNAK!$I$50,ANASAYFA!I29:J29=KAYNAK!$G$16,KAYNAK!$I$48,ANASAYFA!I29:J29=KAYNAK!$G$17,KAYNAK!$I$49)","v":{"$error":"#N/A"}},{"$error":"#N/A"},{"$error":"#N/A"},{"$f":"ANASAYFA!C29","v":0},{"$f":"BORDRO!F31","v":" "},{"$f":"IFERROR(BORDRO!I31/ANASAYFA!$D$11:$E$11,\"\")","v":""},"",{"$f":"_xlfn.IFS(BORDRO!E31=KAYNAK!$F$19,IFERROR(KAYNAK!I66*BORDRO!$G$7:$H$7,\"\"),BORDRO!E31=KAYNAK!$F$20,IFERROR(KAYNAK!I66*BORDRO!$G$7:$H$7,\"\"),BORDRO!E31=KAYNAK!$F$16,\"\",BORDRO!E31=KAYNAK!$F$17,IFERROR(I66*BORDRO!G20,\"\"),BORDRO!E31=KAYNAK!$F$18,IFERROR(KAYNAK!I66*BORDRO!G20,\"\"),BORDRO!E31=KAYNAK!$F$21,\"\",BORDRO!E31=KAYNAK!$F$22,\"\",BORDRO!E31=KAYNAK!$F$23,IFERROR(KAYNAK!I66*BORDRO!$G$7:$H$7,\"\"))","v":{"$error":"#N/A"}},null,{"$error":"#N/A"},{"$error":"#N/A"},{"$error":"#N/A"},"MALATYA",{"$error":"#N/A"},"ALADAĞ",null,null,null,null,null,null,null,null,null,65,null,null,null,null,null,null,null,null,null,null,null,null,null,4]
[null,null,null,null,null,null,null,null,null,null,null,null,null,null,null,"MANİSA",null,"ALANYA",null,null,null,null,null,null,null,null,null,66,null,null,null,null,null,null,null,null,null,null,null,null,null,5]
["ASGARİ ÜCRET",null,null,null,null,null,null,null,null,null,null,null,null,null,null,"KAHRAMANMARAŞ",null,"ALAPLI",null,null,null,null,null,null,null,null,null,67,null,null,null,null,null,null,null,null,null,null,null,null,null,6]
[{"$f":"CONCATENATE(ANASAYFA!F6:G6)","v":"13414,5"},"",null,null,null,null,null,null,null,null,null,null,null,null,null,"MARDİN",null,"ALAŞEHİR",null,null,null,null,null,null,null,null,null,68,null,null,null,null,null,null,null,null,null,null,null,null,null,7]
[{"$f":"VALUE(A69)","v":13414.5},null,null,null,null,null,null,null,null,null,null,null,null,null,null,"MUĞLA",null,"ALİAĞA",null,null,null,null,null,null,null,null,null,69,null,null,null,null,null,null,null,null,null,null,null,null,null,8]
[{"$f":"A70*759/100000","v":101.81605500000001},null,"DAMGA İSTİSNA",null,null,null,null,null,null,null,null,null,null,null,null,"MUŞ",null,"ALMUS",null,null,null,null,null,null,null,null,null,70,null,null,null,null,null,null,null,null,null,null,null,null,null,9]
[{"$f":"A70/100*15","v":2012.1750000000002},null,"GELİR İSTİSNA",null,null,null,null,null,null,null,null,null,null,null,null,"NEVŞEHİR",null,"ALPU",null,null,null,null,null,null,null,null,null,71,null,null,null,null,null,null,null,null,null,null,null,null,null,10]
[null,null,null,null,null,null,null,"KESİNTİ TOPLAMLARI",null,null,null,null,null,null,null,"NİĞDE",null,"ALTINDAĞ",null,null,null,null,null,null,null,null,null,72]
[null,null,null,null,null,null,null,"KADROLU",null,null,null,"SGKLI",null,null,null,"ORDU",null,"ALTINEKİN",null,null,null,null,null,null,null,null,null,73]
[null,null,null,null,null,null,null,{"$f":"IF(BORDRO!F17=KAYNAK!$G$16,BORDRO!N17:O17+BORDRO!P17)","v":false},null,{"$f":"VALUE(H75)","v":{"$error":"#VALUE!"}},null,{"$f":"IF(BORDRO!F17=KAYNAK!$G$17,BORDRO!N17:O17+BORDRO!P17+BORDRO!Q17+BORDRO!R17)","v":false},null,{"$f":"VALUE(L75)","v":{"$error":"#VALUE!"}},null,"RİZE",null,"ALTINOVA",null,null,null,null,null,null,null,null,null,74]
[null,null,null,null,null,null,null,{"$f":"IF(BORDRO!F18=KAYNAK!$G$16,BORDRO!N18:O18+BORDRO!P18)","v":false},null,{"$f":"VALUE(H76)","v":{"$error":"#VALUE!"}},null,{"$f":"IF(BORDRO!F18=KAYNAK!$G$17,BORDRO!N18:O18+BORDRO!P18+BORDRO!Q18+BORDRO!R18)","v":false},null,{"$f":"VALUE(L76)","v":{"$error":"#VALUE!"}},null,"SAKARYA",null,"ALTINÖZÜ",null,null,null,null,null,null,null,null,null,75]
[null,null,null,null,null,null,null,{"$f":"IF(BORDRO!F19=KAYNAK!$G$16,BORDRO!N19:O19+BORDRO!P19)","v":false},null,{"$error":"#VALUE!"},null,{"$f":"IF(BORDRO!F19=KAYNAK!$G$17,BORDRO!N19:O19+BORDRO!P19+BORDRO!Q19+BORDRO!R19)","v":false},null,{"$error":"#VALUE!"},null,"SAMSUN",null,"ALTINTAŞ",null,null,null,null,null,null,null,null,null,76]
[null,null,null,null,null,null,null,{"$f":"IF(BORDRO!F20=KAYNAK!$G$16,BORDRO!N20:O20+BORDRO!P20)","v":false},null,{"$error":"#VALUE!"},null,{"$f":"IF(BORDRO!F20=KAYNAK!$G$17,BORDRO!N20:O20+BORDRO!P20+BORDRO!Q20+BORDRO!R20)","v":false},null,{"$error":"#VALUE!"},null,"SİİRT",null,"ALTINYAYLA",null,null,null,null,null,null,null,null,null,77]
[null,null,"koordinatörlük toplam",null,null,null,null,{"$f":"IF(BORDRO!F21=KAYNAK!$G$16,BORDRO!N21:O21+BORDRO!P21)","v":false},null,{"$error":"#VALUE!"},null,{"$f":"IF(BORDRO!F21=KAYNAK!$G$17,BORDRO!N21:O21+BORDRO!P21+BORDRO!Q21+BORDRO!R21)","v":false},null,{"$error":"#VALUE!"},null,"SİNOP",null,"ALTINYAYLA",null,null,null,null,null,null,null,null,null,78]
[null,null,{"$f":"SUM(E80:E94)","v":0},null,{"$f":"_xlfn.IFS(ANASAYFA!G15=\"\",\"0\",ANASAYFA!G15=KAYNAK!$F$16,0,ANASAYFA!G15=KAYNAK!$F$17,ANASAYFA!L15,ANASAYFA!G15=KAYNAK!$F$18,ANASAYFA!L15,ANASAYFA!G15=KAYNAK!$F$21,0,ANASAYFA!G15=KAYNAK!$F$22,0,ANASAYFA!G15=KAYNAK!$F$19,ANASAYFA!L15,ANASAYFA!G15=KAYNAK!$F$23,ANASAYFA!L15,ANASAYFA!G15=KAYNAK!$F$20,0)","v":"0"},null,null,{"$f":"IF(BORDRO!F22=KAYNAK!$G$16,BORDRO!N22:O22+BORDRO!P22)","v":false},null,{"$error":"#VALUE!"},null,{"$f":"IF(BORDRO!F22=KAYNAK!$G$17,BORDRO!N22:O22+BORDRO!P22+BORDRO!Q22+BORDRO!R22)","v":false},null,{"$error":"#VALUE!"},null,"SİVAS",null,"ALTUNHİSAR",null,null,null,null,null,null,null,null,null,79]
[null,null,null,null,{"$f":"_xlfn.IFS(ANASAYFA!G16=\"\",\"0\",ANASAYFA!G16=KAYNAK!$F$16,0,ANASAYFA!G16=KAYNAK!$F$17,ANASAYFA!L16,ANASAYFA!G16=KAYNAK!$F$18,ANASAYFA!L16,ANASAYFA!G16=KAYNAK!$F$21,0,ANASAYFA!G16=KAYNAK!$F$22,0,ANASAYFA!G16=KAYNAK!$F$19,ANASAYFA!L16,ANASAYFA!G16=KAYNAK!$F$23,ANASAYFA!L16,ANASAYFA!G16=KAYNAK!$F$20,0)","v":"0"},null,null,{"$f":"IF(BORDRO!F23=KAYNAK!$G$16,BORDRO!N23:O23+BORDRO!P23)","v":false},null,{"$error":"#VALUE!"},null,{"$f":"IF(BORDRO!F23=KAYNAK!$G$17,BORDRO!N23:O23+BORDRO!P23+BORDRO!Q23+BORDRO!R23)","v":false},null,{"$error":"#VALUE!"},null,"TEKİRDAĞ",null,"ALUCRA",null,null,null,null,null,null,null,null,null,80]
[null,null,null,null,{"$f":"_xlfn.IFS(ANASAYFA!G17=\"\",\"0\",ANASAYFA!G17=KAYNAK!$F$16,0,ANASAYFA!G17=KAYNAK!$F$17,ANASAYFA!L17,ANASAYFA!G17=KAYNAK!$F$18,ANASAYFA!L17,ANASAYFA!G17=KAYNAK!$F$21,0,ANASAYFA!G17=KAYNAK!$F$22,0,ANASAYFA!G17=KAYNAK!$F$19,ANASAYFA!L17,ANASAYFA!G17=KAYNAK!$F$23,ANASAYFA!L17,ANASAYFA!G17=KAYNAK!$F$20,0)","v":"0"},null,null,{"$f":"IF(BORDRO!F24=KAYNAK!$G$16,BORDRO!N24:O24+BORDRO!P24)","v":false},null,{"$error":"#VALUE!"},null,{"$f":"IF(BORDRO!F24=KAYNAK!$G$17,BORDRO!N24:O24+BORDRO!P24+BORDRO!Q24+BORDRO!R24)","v":false},null,{"$error":"#VALUE!"},null,"TOKAT",null,"AMASRA",null,null,null,null,null,null,null,null,null,81]
[null,null,null,null,{"$f":"_xlfn.IFS(ANASAYFA!G18=\"\",\"0\",ANASAYFA!G18=KAYNAK!$F$16,0,ANASAYFA!G18=KAYNAK!$F$17,ANASAYFA!L18,ANASAYFA!G18=KAYNAK!$F$18,ANASAYFA!L18,ANASAYFA!G18=KAYNAK!$F$21,0,ANASAYFA!G18=KAYNAK!$F$22,0,ANASAYFA!G18=KAYNAK!$F$19,ANASAYFA!L18,ANASAYFA!G18=KAYNAK!$F$23,ANASAYFA!L18,ANASAYFA!G18=KAYNAK!$F$20,0)","v":"0"},null,null,{"$f":"IF(BORDRO!F25=KAYNAK!$G$16,BORDRO!N25:O25+BORDRO!P25)","v":false},null,{"$error":"#VALUE!"},null,{"$f":"IF(BORDRO!F25=KAYNAK!$G$17,BORDRO!N25:O25+BORDRO!P25+BORDRO!Q25+BORDRO!R25)","v":false},null,{"$error":"#VALUE!"},null,"TRABZON",null,"AMASYA MERKEZ",null,null,null,null,null,null,null,null,null,82]
[null,null,null,null,{"$f":"_xlfn.IFS(ANASAYFA!G19=\"\",\"0\",ANASAYFA!G19=KAYNAK!$F$16,0,ANASAYFA!G19=KAYNAK!$F$17,ANASAYFA!L19,ANASAYFA!G19=KAYNAK!$F$18,ANASAYFA!L19,ANASAYFA!G19=KAYNAK!$F$21,0,ANASAYFA!G19=KAYNAK!$F$22,0,ANASAYFA!G19=KAYNAK!$F$19,ANASAYFA!L19,ANASAYFA!G19=KAYNAK!$F$23,ANASAYFA!L19,ANASAYFA!G19=KAYNAK!$F$20,0)","v":"0"},null,null,{"$f":"IF(BORDRO!F26=KAYNAK!$G$16,BORDRO!N26:O26+BORDRO!P26)","v":false},null,{"$error":"#VALUE!"},null,{"$f":"IF(BORDRO!F26=KAYNAK!$G$17,BORDRO!N26:O26+BORDRO!P26+BORDRO!Q26+BORDRO!R26)","v":false},null,{"$error":"#VALUE!"},null,"TUNCELİ",null,"ANAMUR",null,null,null,null,null,null,null,null,null,83]
[null,null,null,null,{"$f":"_xlfn.IFS(ANASAYFA!G20=\"\",\"0\",ANASAYFA!G20=KAYNAK!$F$16,0,ANASAYFA!G20=KAYNAK!$F$17,ANASAYFA!L20,ANASAYFA!G20=KAYNAK!$F$18,ANASAYFA!L20,ANASAYFA!G20=KAYNAK!$F$21,0,ANASAYFA!G20=KAYNAK!$F$22,0,ANASAYFA!G20=KAYNAK!$F$19,ANASAYFA!L20,ANASAYFA!G20=KAYNAK!$F$23,ANASAYFA!L20,ANASAYFA!G20=KAYNAK!$F$20,0)","v":"0"},"www.google.com",null,{"$f":"IF(BORDRO!F27=KAYNAK!$G$16,BORDRO!N27:O27+BORDRO!P27)","v":false},null,{"$error":"#VALUE!"},null,{"$f":"IF(BORDRO!F27=KAYNAK!$G$17,BORDRO!N27:O27+BORDRO!P27+BORDRO!Q27+BORDRO!R27)","v":false},null,{"$error":"#VALUE!"},null,"ŞANLIURFA",null,"ANDIRIN",null,null,null,null,null,null,null,null,null,84]
[null,null,null,null,{"$f":"_xlfn.IFS(ANASAYFA!G21=\"\",\"0\",ANASAYFA!G21=KAYNAK!$F$16,0,ANASAYFA!G21=KAYNAK!$F$17,ANASAYFA!L21,ANASAYFA!G21=KAYNAK!$F$18,ANASAYFA!L21,ANASAYFA!G21=KAYNAK!$F$21,0,ANASAYFA!G21=KAYNAK!$F$22,0,ANASAYFA!G21=KAYNAK!$F$19,ANASAYFA!L21,ANASAYFA!G21=KAYNAK!$F$23,ANASAYFA!L21,ANASAYFA!G21=KAYNAK!$F$20,0)","v":"0"},null,null,{"$f":"IF(BORDRO!F28=KAYNAK!$G$16,BORDRO!N28:O28+BORDRO!P28)","v":false},null,{"$error":"#VALUE!"},null,{"$f":"IF(BORDRO!F28=KAYNAK!$G$17,BORDRO!N28:O28+BORDRO!P28+BORDRO!Q28+BORDRO!R28)","v":false},null,{"$error":"#VALUE!"},null,"UŞAK",null,"ANKARA",null,null,null,null,null,null,null,null,null,85]
[null,null,null,null,{"$f":"_xlfn.IFS(ANASAYFA!G22=\"\",\"0\",ANASAYFA!G22=KAYNAK!$F$16,0,ANASAYFA!G22=KAYNAK!$F$17,ANASAYFA!L22,ANASAYFA!G22=KAYNAK!$F$18,ANASAYFA!L22,ANASAYFA!G22=KAYNAK!$F$21,0,ANASAYFA!G22=KAYNAK!$F$22,0,ANASAYFA!G22=KAYNAK!$F$19,ANASAYFA!L22,ANASAYFA!G22=KAYNAK!$F$23,ANASAYFA!L22,ANASAYFA!G22=KAYNAK!$F$20,0)","v":"0"},null,null,{"$f":"IF(BORDRO!F29=KAYNAK!$G$16,BORDRO!N29:O29+BORDRO!P29)","v":false},null,{"$error":"#VALUE!"},null,{"$f":"IF(BORDRO!F29=KAYNAK!$G$17,BORDRO!N29:O29+BORDRO!P29+BORDRO!Q29+BORDRO!R29)","v":false},null,{"$error":"#VALUE!"},null,"VAN",null,"ANTALYA MERKEZ",null,null,null,null,null,null,null,null,null,86]
[null,null,null,null,{"$f":"_xlfn.IFS(ANASAYFA!G23=\"\",\"0\",ANASAYFA!G23=KAYNAK!$F$16,0,ANASAYFA!G23=KAYNAK!$F$17,ANASAYFA!L23,ANASAYFA!G23=KAYNAK!$F$18,ANASAYFA!L23,ANASAYFA!G23=KAYNAK!$F$21,0,ANASAYFA!G23=KAYNAK!$F$22,0,ANASAYFA!G23=KAYNAK!$F$19,ANASAYFA!L23,ANASAYFA!G23=KAYNAK!$F$23,ANASAYFA!L23,ANASAYFA!G23=KAYNAK!$F$20,0)","v":"0"},null,null,{"$f":"IF(BORDRO!F30=KAYNAK!$G$16,BORDRO!N30:O30+BORDRO!P30)","v":false},null,{"$error":"#VALUE!"},null,{"$f":"IF(BORDRO!F30=KAYNAK!$G$17,BORDRO!N30:O30+BORDRO!P30+BORDRO!Q30+BORDRO!R30)","v":false},null,{"$error":"#VALUE!"},null,"YOZGAT",null,"ARABAN",null,null,null,null,null,null,null,null,null,87]
[null,null,null,null,{"$f":"_xlfn.IFS(ANASAYFA!G24=\"\",\"0\",ANASAYFA!G24=KAYNAK!$F$16,0,ANASAYFA!G24=KAYNAK!$F$17,ANASAYFA!L24,ANASAYFA!G24=KAYNAK!$F$18,ANASAYFA!L24,ANASAYFA!G24=KAYNAK!$F$21,0,ANASAYFA!G24=KAYNAK!$F$22,0,ANASAYFA!G24=KAYNAK!$F$19,ANASAYFA!L24,ANASAYFA!G24=KAYNAK!$F$23,ANASAYFA!L24,ANASAYFA!G24=KAYNAK!$F$20,0)","v":"0"},null,null,{"$f":"IF(BORDRO!F31=KAYNAK!$G$16,BORDRO!N31:O31+BORDRO!P31)","v":false},null,{"$error":"#VALUE!"},null,{"$f":"IF(BORDRO!F31=KAYNAK!$G$17,BORDRO!N31:O31+BORDRO!P31+BORDRO!Q31+BORDRO!R31)","v":false},null,{"$error":"#VALUE!"},null,"ZONGULDAK",null,"ARAÇ",null,null,null,null,null,null,null,null,null,88]
[null,"Aylar",null,null,{"$f":"_xlfn.IFS(ANASAYFA!G25=\"\",\"0\",ANASAYFA!G25=KAYNAK!$F$16,0,ANASAYFA!G25=KAYNAK!$F$17,ANASAYFA!L25,ANASAYFA!G25=KAYNAK!$F$18,ANASAYFA!L25,ANASAYFA!G25=KAYNAK!$F$21,0,ANASAYFA!G25=KAYNAK!$F$22,0,ANASAYFA!G25=KAYNAK!$F$19,ANASAYFA!L25,ANASAYFA!G25=KAYNAK!$F$23,ANASAYFA!L25,ANASAYFA!G25=KAYNAK!$F$20,0)","v":"0"},null,null,null,null,null,null,null,null,null,null,"AKSARAY",null,"ARAKLI",null,null,null,null,null,null,null,null,null,89]
[null,1,null,null,{"$f":"_xlfn.IFS(ANASAYFA!G26=\"\",\"0\",ANASAYFA!G26=KAYNAK!$F$16,0,ANASAYFA!G26=KAYNAK!$F$17,ANASAYFA!L26,ANASAYFA!G26=KAYNAK!$F$18,ANASAYFA!L26,ANASAYFA!G26=KAYNAK!$F$21,0,ANASAYFA!G26=KAYNAK!$F$22,0,ANASAYFA!G26=KAYNAK!$F$19,ANASAYFA!L26,ANASAYFA!G26=KAYNAK!$F$23,ANASAYFA!L26,ANASAYFA!G26=KAYNAK!$F$20,0)","v":"0"},null,null,null,null,null,null,null,null,null,null,"BAYBURT",null,"ARALIK",null,null,null,null,null,null,null,null,null,90]
[null,null,null,null,{"$f":"_xlfn.IFS(ANASAYFA!G27=\"\",\"0\",ANASAYFA!G27=KAYNAK!$F$16,0,ANASAYFA!G27=KAYNAK!$F$17,ANASAYFA!L27,ANASAYFA!G27=KAYNAK!$F$18,ANASAYFA!L27,ANASAYFA!G27=KAYNAK!$F$21,0,ANASAYFA!G27=KAYNAK!$F$22,0,ANASAYFA!G27=KAYNAK!$F$19,ANASAYFA!L27,ANASAYFA!G27=KAYNAK!$F$23,ANASAYFA!L27,ANASAYFA!G27=KAYNAK!$F$20,0)","v":"0"},null,null,null,null,null,null,null,null,null,null,"KARAMAN",null,"ARAPGİR",null,null,null,null,null,null,null,null,null,91]
[null,null,null,null,{"$f":"_xlfn.IFS(ANASAYFA!G28=\"\",\"0\",ANASAYFA!G28=KAYNAK!$F$16,0,ANASAYFA!G28=KAYNAK!$F$17,ANASAYFA!L28,ANASAYFA!G28=KAYNAK!$F$18,ANASAYFA!L28,ANASAYFA!G28=KAYNAK!$F$21,0,ANASAYFA!G28=KAYNAK!$F$22,0,ANASAYFA!G28=KAYNAK!$F$19,ANASAYFA!L28,ANASAYFA!G28=KAYNAK!$F$23,ANASAYFA!L28,ANASAYFA!G28=KAYNAK!$F$20,0)","v":"0"},null,null,null,null,null,null,null,null,null,null,"KIRIKKALE",null,"ARDAHAN MERKEZ",null,null,null,null,null,null,null,null,null,92]
[null,null,null,null,{"$f":"_xlfn.IFS(ANASAYFA!G29=\"\",\"0\",ANASAYFA!G29=KAYNAK!$F$16,0,ANASAYFA!G29=KAYNAK!$F$17,ANASAYFA!L29,ANASAYFA!G29=KAYNAK!$F$18,ANASAYFA!L29,ANASAYFA!G29=KAYNAK!$F$21,0,ANASAYFA!G29=KAYNAK!$F$22,0,ANASAYFA!G29=KAYNAK!$F$19,ANASAYFA!L29,ANASAYFA!G29=KAYNAK!$F$23,ANASAYFA!L29,ANASAYFA!G29=KAYNAK!$F$20,0)","v":"0"},null,null,null,null,null,null,null,null,null,null,"BATMAN",null,"ARDANUÇ",null,null,null,null,null,null,null,null,null,93]
[null,null,null,null,null,null,"MÜDÜR ",{"$f":"ANASAYFA!T10:V10","v":0},0,0,null,null,null,null,null,"ŞIRNAK",null,"ARDEŞEN",null,null,null,null,null,null,null,null,null,94]
[null,null,null,null,null,null,"MÜDÜR YARD",{"$f":"ANASAYFA!T11:V11","v":0},0,0,null,null,null,null,null,"BARTIN",null,"ARGUVAN",null,null,null,null,null,null,null,null,null,95]
[null,null,null,null,null,null,null,null,null,null,null,null,null,null,null,"ARDAHAN",null,"ARHAVİ",null,null,null,null,null,null,null,null,null,96]
[null,null,null,null,null,null,null,{"$f":"ANASAYFA!Q11:R11","v":"Müdür Yardımcısı"},0,null,null,null,null,null,null,"IĞDIR",null,"ARICAK",null,null,null,null,null,null,null,null,null,97]
[null,null,null,null,null,null,null,{"$f":"ANASAYFA!Q10:R10","v":"Okul Müdürü"},0,null,null,null,null,null,null,"YALOVA",null,"ARİFİYE",null,null,null,null,null,null,null,null,null,98]
[null,null,null,null,null,null,null,null,null,null,null,null,null,null,null,"KARABÜK",null,"ARMUTLU",null,null,null,null,null,null,null,null,null,99]
[null,null,null,null,null,null,null,{"$f":"CONCATENATE(H96)","v":"0"},{"$f":"CONCATENATE(H98)","v":"Müdür Yardımcısı"},null,null,null,null,null,null,"KİLİS",null,"ARNAVUTKÖY",null,null,null,null,null,null,null,null,null,100]
[null,null,null,null,null,null,null,{"$f":"CONCATENATE(H95)","v":"0"},{"$f":"H99","v":"Okul Müdürü"},null,null,null,null,null,null,"OSMANİYE",null,"ARPAÇAY",null,null,null,null,null,null,null,null,null,101]
[null,null,null,null,null,null,null,null,null,null,null,null,null,null,null,"DÜZCE",null,"ARSİN",null,null,null,null,null,null,null,null,null,102]
[null,null,null,null,null,null,null,null,null,null,null,null,null,null,null,null,null,"ARTOVA",null,null,null,null,null,null,null,null,null,103]
[null,null,null,null,null,"NET TUTAR","İban birleştir",null,null,null,null,{"$f":"CONCATENATE(ANASAYFA!T9:V9)","v":"KÖYCEĞİZ ANAOKULU"},"","",null,null,null,"ARTVİN MERKEZ",null,null,null,null,null,null,null,null,null,104]
[null,null,null,null,1,{"$f":"CONCATENATE(BORDRO!X17)","v":""},null,null,null,null,null,{"$f":"UPPER(L105)","v":"KÖYCEĞİZ ANAOKULU"},null,{"$f":"CONCATENATE(ANASAYFA!U8:V8)","v":"KÖYCEĞİZ"},"",2023,null,"ASARCIK",null,null,null,null,null,null,null,null,null,105]
[null,null,null,null,2,null,null,null,null,null,null,null,null,{"$f":"CONCATENATE(ANASAYFA!R8:R8)","v":"İLÇESİ"},null,2024,null,"ASLANAPA",null,null,null,null,null,null,null,null,null,106]
[null,null,null,null,3,null,null,null,null,null,null,null,null,null,null,2025,null,"AŞKALE",null,null,null,null,null,null,null,null,null,107]
[null,null,null,null,4,null,null,null,null,null,null,null,null,null,null,2026,null,"ATABEY",null,null,null,null,null,null,null,null,null,108]
[null,null,null,null,5,null,null,null,null,null,null,null,null,null,null,2027,null,"ATAKUM",null,null,null,null,null,null,null,null,null,109]
[null,null,null,null,6,null,null,null,null,null,null,null,null,null,null,2028,null,"ATAŞEHİR",null,null,null,null,null,null,null,null,null,110]
[null,null,null,null,7,null,null,null,null,null,null,null,null,null,null,2029,null,"ATKARACALAR",null,null,null,null,null,null,null,null,null,111]
[null,null,null,null,8,null,null,null,null,null,null,null,null,null,null,2030,null,"AVANOS",null,null,null,null,null,null,null,null,null,112]
[null,null,null,null,9,null,null,null,null,null,null,null,null,null,null,{"$f":"VALUE(ANASAYFA!K30)","v":0},null,"AVCILAR",null,null,null,null,null,null,null,null,null,113]
[null,null,null,null,10,null,null,null,null,null,null,null,null,null,null,null,null,"AYANCIK",null,null,null,null,null,null,null,null,null,114]
[null,null,null,null,11,null,null,null,null,null,null,null,null,null,null,{"$f":"VALUE(ANASAYFA!D11)","v":0},null,"AYAŞ",null,null,null,null,null,null,null,null,null,115]
[null,null,null,null,12,null,null,null,null,null,null,null,null,null,null,null,null,"AYBASTI",null,null,null,null,null,null,null,null,null,116]
[null,null,null,null,13,null,null,null,null,null,null,null,null,null,null,null,null,"AYDIN MERKEZ",null,null,null,null,null,null,null,null,null,117]
[null,null,null,null,14,null,null,null,null,null,null,null,null,null,null,null,null,"AYDINCIK",null,null,null,null,null,null,null,null,null,118]
[null,null,null,null,15,null,null,null,null,null,null,null,null,null,null,null,null,"AYDINCIK",null,null,null,null,null,null,null,null,null,119]
[null,null,null,null,null,null,null,null,null,null,null,null,null,null,null,null,null,"AYDINLAR",null,null,null,null,null,null,null,null,null,120]
[null,null,null,null,null,null,null,null,null,null,null,null,null,null,null,null,null,"AYDINTEPE",null,null,null,null,null,null,null,null,null,121]
[null,null,null,null,null,"iban tek",null,null,null,"iban birleşik",null,null,null,null,null,null,null,"AYRANCI",null,null,null,null,null,null,null,null,null,122]
[null,null,null,null,null,{"$f":"CONCATENATE(ANASAYFA!Q15)","v":""},null,null,null,{"$f":"CONCATENATE(F124)","v":""},null,null,null,null,null,null,null,"AYVACIK",null,null,null,null,null,null,null,null,null,123]
[null,null,null,null,null,{"$f":"CONCATENATE(ANASAYFA!Q16:S16)","v":""},"","",null,{"$f":"CONCATENATE(F125)","v":""},null,null,null,null,null,null,null,"AYVACIK",null,null,null,null,null,null,null,null,null,124]
[null,null,null,null,null,{"$f":"CONCATENATE(ANASAYFA!Q17:S17)","v":""},"","",null,"",null,null,null,null,null,null,null,"AYVALIK",null,null,null,null,null,null,null,null,null,125]
[null,null,null,null,null,{"$f":"CONCATENATE(ANASAYFA!Q18:S18)","v":""},"","",null,"",null,null,null,null,null,null,null,"AZDAVAY",null,null,null,null,null,null,null,null,null,126]
[null,null,null,null,null,{"$f":"CONCATENATE(ANASAYFA!Q19:S19)","v":""},"","",null,"",null,null,null,null,null,null,null,"BABADAĞ",null,null,null,null,null,null,null,null,null,127]
[null,null,null,null,null,{"$f":"CONCATENATE(ANASAYFA!Q20:S20)","v":""},"","",null,"",null,null,null,null,null,null,null,"BABAESKİ",null,null,null,null,null,null,null,null,null,128]
[null,null,null,null,null,{"$f":"CONCATENATE(ANASAYFA!Q21:S21)","v":""},"","",null,"",null,null,null,null,null,null,null,"BAFRA",null,null,null,null,null,null,null,null,null,129]
[null,null,null,null,null,{"$f":"CONCATENATE(ANASAYFA!Q22:S22)","v":""},"","",null,"",null,null,null,null,null,null,null,"BAĞCILAR",null,null,null,null,null,null,null,null,null,130]
[null,null,null,null,null,{"$f":"CONCATENATE(ANASAYFA!Q23:S23)","v":""},"","",null,"",null,null,null,null,null,null,null,"BAĞLAR",null,null,null,null,null,null,null,null,null,131]
[null,null,null,null,null,{"$f":"CONCATENATE(ANASAYFA!Q24:S24)","v":""},"","",null,"",null,null,null,null,null,null,null,"BAHÇE",null,null,null,null,null,null,null,null,null,132]
[null,null,null,null,null,{"$f":"CONCATENATE(ANASAYFA!Q25:S25)","v":""},"","",null,"",null,null,null,null,null,null,null,"BAHÇELİEVLER",null,null,null,null,null,null,null,null,null,133]
[null,null,null,null,null,{"$f":"CONCATENATE(ANASAYFA!#REF!)","v":{"$error":"#REF!"}},null,null,null,{"$error":"#REF!"},null,null,null,null,null,null,null,"BAHÇESARAY",null,null,null,null,null,null,null,null,null,134]
[null,null,null,null,null,{"$f":"CONCATENATE(ANASAYFA!Q27:S27)","v":""},"","",null,"",null,null,null,null,null,null,null,"BAHŞİLİ",null,null,null,null,null,null,null,null,null,135]
[null,null,null,null,null,{"$f":"CONCATENATE(ANASAYFA!Q28:S28)","v":""},"","",null,"",null,null,null,null,null,null,null,"BAKIRKÖY",null,null,null,null,null,null,null,null,null,136]
[null,null,null,null,null,{"$f":"CONCATENATE(ANASAYFA!Q29:S29)","v":""},"","",null,"",null,null,null,null,null,null,null,"BAKLAN",null,null,null,null,null,null,null,null,null,137]
[null,null,null,null,null,{"$f":"CONCATENATE(ANASAYFA!Q30:S30)","v":""},"","",null,"",null,null,null,null,null,null,null,"BALÂ",null,null,null,null,null,null,null,null,null,138]
[null,null,null,null,null,{"$f":"CONCATENATE(ANASAYFA!Q31:S31)","v":""},"","",null,"",null,null,null,null,null,null,null,"BALÇOVA",null,null,null,null,null,null,null,null,null,139]
[null,null,null,null,null,{"$f":"CONCATENATE(ANASAYFA!#REF!)","v":{"$error":"#REF!"}},null,null,null,{"$error":"#REF!"},null,null,null,null,null,null,null,"BALIKESİR MERKEZ",null,null,null,null,null,null,null,null,null,140]
[null,null,null,null,null,null,null,null,null,"",null,null,null,null,null,null,null,"BALIŞEYH",null,null,null,null,null,null,null,null,null,141]
[null,null,null,null,null,{"$f":"ANASAYFA!Q15","v":0},null,null,null,null,null,null,null,null,null,null,null,"BALYA",null,null,null,null,null,null,null,null,null,142]
[null,null,null,null,null,null,null,null,null,null,null,null,null,null,null,null,null,"BANAZ",null,null,null,null,null,null,null,null,null,143]
[null,null,null,null,null,null,null,null,null,null,null,null,null,null,null,null,null,"BANDIRMA",null,null,null,null,null,null,null,null,null,144]
[null,null,null,null,null,null,null,null,null,null,null,null,null,null,null,null,null,"BARTIN MERKEZ",null,null,null,null,null,null,null,null,null,145]
[null,null,null,null,null,null,null,null,null,null,null,null,null,null,null,null,null,"BASKİL",null,null,null,null,null,null,null,null,null,146]
[null,null,null,null,null,null,null,null,null,null,null,null,null,null,null,null,null,"BAŞAKŞEHİR",null,null,null,null,null,null,null,null,null,147]
[null,null,null,null,null,null,null,null,null,null,null,null,null,null,null,null,null,"BAŞÇİFTLİK",null,null,null,null,null,null,null,null,null,148]
[null,null,null,null,null,null,null,null,null,null,null,null,null,null,null,null,null,"BAŞİSKELE",null,null,null,null,null,null,null,null,null,149]
[null,null,null,null,null,null,"OKUL MÜDÜRÜ",null,null,null,null,null,null,null,null,null,null,"BAŞKALE",null,null,null,null,null,null,null,null,null,150]
[null,null,null,null,null,null,null,null,null,null,null,null,null,null,null,null,null,"BAŞMAKÇI"]
[null,null,null,null,null,null,null,null,null,null,null,null,null,null,null,null,null,"BAŞYAYLA"]
[null,null,null,null,null,null,null,null,null,null,null,null,null,null,null,null,null,"BATMAN MERKEZ"]
[null,null,null,null,null,null,null,null,null,null,null,null,null,null,null,null,null,"BATTALGAZİ"]
[null,null,null,null,null,null,null,null,null,null,null,null,null,null,null,null,null,"BAYAT"]
[null,null,null,null,null,null,null,"maaş katsayı",null,"gösterge",null,"brüt aylık",null,"brüt asgari ücret",null,null,null,"BAYAT"]
[null,null,null,null,null,null,null,{"$f":"ANASAYFA!B6:C6","v":0.50979600000000003},0,{"$f":"ANASAYFA!H6:I6","v":140},0,{"$f":"ANASAYFA!D6:E6","v":4843.0619999999999},0,{"$f":"ANASAYFA!F6:G6","v":13414.5},0,null,null,"BAYBURT MERKEZ"]
[null,null,null,null,null,null,null,{"$f":"CONCATENATE(H158)","v":"0,509796"},null,{"$f":"CONCATENATE(J158)","v":"140"},null,"4843,062",null,"13414,5",null,null,null,"BAYINDIR"]
[null,null,null,null,null,null,null,null,null,null,null,null,null,null,null,null,null,"BAYKAN"]
[null,null,null,null,null,null,null,"en düşük",null,"en yüksek",null,"belirlenen",null,null,null,null,null,"BAYRAKLI"]
[null,null,null,null,null,null,null,{"$f":"ANASAYFA!F11:G11","v":7.137144000000001},0,{"$f":"ANASAYFA!H11:I11","v":17.842860000000002},0,{"$f":"ANASAYFA!J11:K11","v":0},0,null,null,null,null,"BAYRAMİÇ"]
[null,null,null,null,null,null,null,{"$f":"CONCATENATE(H162)","v":"7,137144"},null,{"$f":"CONCATENATE(J162)","v":"17,84286"},null,"0",null,"","","",null,"BAYRAMÖREN"]
[null,null,null,null,null,null,null,null,null,null,null,null,null,null,null,null,null,"BAYRAMPAŞA"]
[null,null,null,null,null,null,null,"öğr sayı",null,"şube sayı",null,"iş günü",null,"toplam saat",null,"ücret toplam",null,"BEKİLLİ"]
[null,null,null,null,null,null,null,{"$f":"ANASAYFA!Q6:Q6","v":0},null,{"$f":"ANASAYFA!#REF!","v":{"$error":"#REF!"}},null,{"$f":"G6","v":0},null,{"$f":"ANASAYFA!D11:E11","v":0},0,{"$f":"G10","v":"0"},null,"BELEN"]
[null,null,null,null,null,null,null,{"$f":"CONCATENATE(H166)","v":"0"},null,{"$f":"CONCATENATE(J166)","v":{"$error":"#REF!"}},"","0","","0",{"$f":"CONCATENATE(O166)","v":"0"},{"$f":"CONCATENATE(P166)","v":"0"},null,"BERGAMA"]
[null,null,null,null,null,null,null,null,null,null,null,null,null,null,null,null,null,"BESNİ"]
[null,null,null,null,null,null,null,null,null,null,null,null,null,null,null,null,null,"BEŞİKDÜZÜ"]
[null,null,null,null,null,null,null,null,null,null,null,null,null,null,null,null,null,"BEŞİKTAŞ"]
[null,null,null,null,null,null,null,null,null,null,null,"pay",null,"gerçekleşen",null,null,null,"BEŞİRİ"]
[null,null,null,null,null,null,null,null,null,null,null,{"$f":"BORDRO!G4:H4","v":0},0,{"$f":"BORDRO!I4:J4","v":0},0,null,null,"BEYAĞAÇ"]
[null,null,null,null,null,null,null,null,null,null,null,{"$f":"BORDRO!G5:H5","v":0},0,{"$f":"BORDRO!I5:J5","v":0},0,null,null,"BEYDAĞ"]
[null,null,null,null,null,null,null,null,null,null,null,{"$f":"BORDRO!G6:H6","v":0},0,{"$f":"BORDRO!I6:J6","v":0},0,null,null,"BEYKOZ"]
[null,null,null,null,null,null,null,null,null,null,null,{"$f":"BORDRO!G7:H7","v":0},0,{"$f":"BORDRO!I7:J7","v":{"$error":"#N/A"}},0,null,null,"BEYLİKDÜZÜ"]
[null,null,null,null,null,null,null,null,null,null,null,{"$f":"BORDRO!G8:H8","v":0},0,{"$f":"BORDRO!I8:J8","v":0},0,null,null,"BEYLİKOVA"]
[null,null,null,null,null,null,null,null,null,null,null,{"$f":"BORDRO!G9:H9","v":0},0,{"$f":"BORDRO!I9:J9","v":0},0,null,null,"BEYOĞLU"]
[null,null,null,null,null,"işgünü",null,null,null,null,null,{"$f":"BORDRO!G10:H10","v":0},0,{"$f":"BORDRO!I10:J10","v":{"$error":"#N/A"}},0,null,null,"BEYPAZARI"]
[null,null,null,null,1,{"$f":"VLOOKUP(TAKVİM!$F$2,TAKVİM!$F$6:$I$101,5,0)","v":{"$error":"#REF!"}},null,null,null,null,null,"pay",null,null,null,null,null,"BEYŞEHİR"]
[null,null,null,null,null,1,null,null,null,null,null,{"$f":"ROUNDUP(CONCATENATE(L172),2)","v":0},null,{"$f":"CEILING(CONCATENATE(N172),0.1)","v":0},null,null,null,"BEYTÜŞŞEBAP"]
[null,null,null,null,null,2,null,null,null,null,null,0,null,0,null,null,null,"BİGA"]
[null,null,null,null,null,3,null,null,null,null,null,0,null,0,null,null,null,"BİGADİÇ"]
[null,null,null,"topla",null,4,null,null,null,null,null,0,null,{"$error":"#N/A"},null,null,null,"BİLECİK MERKEZ"]
[null,{"$f":"SUM(_xlfn.IFS(BORDRO!F17=\" \",\"0\",BORDRO!F17=KAYNAK!$G$16,KAYNAK!J75,BORDRO!F17=KAYNAK!$G$17,KAYNAK!N75))","v":0},{"$f":"BORDRO!U17","v":""},{"$f":"IFERROR(SUM(B184:C184),B184)","v":0},null,5,null,null,null,null,null,0,null,0,null,null,null,"BİNGÖL MERKEZ"]
[null,{"$f":"SUM(_xlfn.IFS(BORDRO!F18=\" \",\"0\",BORDRO!F18=KAYNAK!$G$16,KAYNAK!J76,BORDRO!F18=KAYNAK!$G$17,KAYNAK!N76))","v":0},{"$f":"BORDRO!U18","v":""},{"$f":"IFERROR(SUM(B185:C185),B185)","v":0},null,6,null,null,null,null,null,0,null,0,null,null,null,"BİRECİK"]
[null,{"$f":"SUM(_xlfn.IFS(BORDRO!F19=\" \",\"0\",BORDRO!F19=KAYNAK!$G$16,KAYNAK!J77,BORDRO!F19=KAYNAK!$G$17,KAYNAK!N77))","v":0},{"$f":"BORDRO!U19","v":""},0,null,7,null,null,null,null,null,0,null,{"$error":"#N/A"},null,null,null,"BİSMİL"]
[null,{"$f":"SUM(_xlfn.IFS(BORDRO!F20=\" \",\"0\",BORDRO!F20=KAYNAK!$G$16,KAYNAK!J78,BORDRO!F20=KAYNAK!$G$17,KAYNAK!N78))","v":0},{"$f":"BORDRO!U20","v":""},0,null,8,null,null,null,null,null,null,null,null,null,null,null,"BİTLİS MERKEZ"]
[null,{"$f":"SUM(_xlfn.IFS(BORDRO!F21=\" \",\"0\",BORDRO!F21=KAYNAK!$G$16,KAYNAK!J79,BORDRO!F21=KAYNAK!$G$17,KAYNAK!N79))","v":0},{"$f":"BORDRO!U21","v":""},0,null,9,null,null,null,null,null,null,null,null,"VERGİ",null,null,"BODRUM"]
[null,{"$f":"SUM(_xlfn.IFS(BORDRO!F22=\" \",\"0\",BORDRO!F22=KAYNAK!$G$16,KAYNAK!J80,BORDRO!F22=KAYNAK!$G$17,KAYNAK!N80))","v":0},{"$f":"BORDRO!U22","v":""},0,null,10,null,null,null,null,null,null,null,null,{"$f":"BORDRO!X9:X10","v":0},null,null,"BOĞAZKALE"]
[null,{"$f":"SUM(_xlfn.IFS(BORDRO!F23=\" \",\"0\",BORDRO!F23=KAYNAK!$G$16,KAYNAK!J81,BORDRO!F23=KAYNAK!$G$17,KAYNAK!N81))","v":0},{"$f":"BORDRO!U23","v":""},0,null,11,null,null,null,null,null,null,null,null,0,null,null,"BOĞAZLIYAN"]
[null,{"$f":"SUM(_xlfn.IFS(BORDRO!F24=\" \",\"0\",BORDRO!F24=KAYNAK!$G$16,KAYNAK!J82,BORDRO!F24=KAYNAK!$G$17,KAYNAK!N82))","v":0},{"$f":"BORDRO!U24","v":""},0,null,12,null,null,null,null,null,null,null,null,{"$f":"CEILING(CONCATENATE(O189),0.11)","v":0},null,null,"BOLU MERKEZ"]
[null,{"$f":"SUM(_xlfn.IFS(BORDRO!F25=\" \",\"0\",BORDRO!F25=KAYNAK!$G$16,KAYNAK!J83,BORDRO!F25=KAYNAK!$G$17,KAYNAK!N83))","v":0},{"$f":"BORDRO!U25","v":""},0,null,13,null,null,null,null,null,null,null,null,null,null,null,"BOLVADİN"]
[null,{"$f":"SUM(_xlfn.IFS(BORDRO!F26=\" \",\"0\",BORDRO!F26=KAYNAK!$G$16,KAYNAK!J84,BORDRO!F26=KAYNAK!$G$17,KAYNAK!N84))","v":0},{"$f":"BORDRO!U26","v":""},0,null,14,null,null,null,null,null,null,null,null,null,null,null,"BOR"]
[null,{"$f":"SUM(_xlfn.IFS(BORDRO!F27=\" \",\"0\",BORDRO!F27=KAYNAK!$G$16,KAYNAK!J85,BORDRO!F27=KAYNAK!$G$17,KAYNAK!N85))","v":0},{"$f":"BORDRO!U27","v":""},0,null,15,null,null,null,null,null,null,null,null,null,null,null,"BORÇKA"]
[null,{"$f":"SUM(_xlfn.IFS(BORDRO!F28=\" \",\"0\",BORDRO!F28=KAYNAK!$G$16,KAYNAK!J86,BORDRO!F28=KAYNAK!$G$17,KAYNAK!N86))","v":0},{"$f":"BORDRO!U28","v":""},0,null,16,null,null,null,null,null,null,null,null,null,null,null,"BORNOVA"]
[null,{"$f":"SUM(_xlfn.IFS(BORDRO!F29=\" \",\"0\",BORDRO!F29=KAYNAK!$G$16,KAYNAK!J87,BORDRO!F29=KAYNAK!$G$17,KAYNAK!N87))","v":0},{"$f":"BORDRO!U29","v":""},0,null,17,null,null,null,null,null,null,null,null,null,null,null,"BOYABAT"]
[null,{"$f":"SUM(_xlfn.IFS(BORDRO!F30=\" \",\"0\",BORDRO!F30=KAYNAK!$G$16,KAYNAK!J88,BORDRO!F30=KAYNAK!$G$17,KAYNAK!N88))","v":0},{"$f":"BORDRO!U30","v":""},0,null,18,null,null,null,null,null,null,null,null,null,null,null,"BOZCAADA"]
[null,{"$f":"SUM(_xlfn.IFS(BORDRO!F31=\" \",\"0\",BORDRO!F31=KAYNAK!$G$16,KAYNAK!J89,BORDRO!F31=KAYNAK!$G$17,KAYNAK!N89))","v":0},{"$f":"BORDRO!U31","v":""},0,null,19,null,null,null,null,null,null,null,null,null,null,null,"BOZDOĞAN"]
[null,null,null,null,null,20,null,null,null,null,null,null,null,null,null,null,null,"BOZKIR"]
[null,null,null,null,null,21,null,null,null,null,null,null,null,null,null,null,null,"BOZKURT"]
[null,null,null,null,null,22,null,null,null,null,null,null,null,null,null,null,null,"BOZKURT"]
[null,null,null,null,null,23,null,null,null,null,null,null,null,null,null,null,null,"BOZOVA"]
[null,null,null,null,null,24,null,null,null,null,null,null,null,null,null,null,null,"BOZTEPE"]
[null,null,null,null,null,25,null,null,null,null,null,null,null,null,null,null,null,"BOZÜYÜK"]
[null,null,null,null,null,26,null,null,null,null,null,null,null,null,null,null,{"$f":"UPPER(P205)","v":""},"BOZYAZI"]
[null,null,null,null,null,27,null,null,null,null,null,null,null,null,null,null,"","BUCA"]
[null,null,null,null,null,28,null,null,null,null,null,null,null,null,null,null,"","BUCAK"]
[null,null,null,null,null,29,null,null,null,null,null,null,null,null,null,null,"","BUHARKENT"]
[null,null,null,null,null,30,null,null,null,null,null,null,null,null,null,null,"","BULANCAK"]
[null,null,null,null,null,31,null,null,null,null,null,null,null,null,null,null,"","BULANIK"]
[null,null,null,null,null,null,null,null,null,null,null,null,null,null,null,null,"","BULDAN"]
[null,null,null,null,null,null,null,null,null,null,null,null,null,null,null,null,"","BURDUR MERKEZ"]
[null,null,null,null,null,null,null,null,null,null,null,null,null,null,null,null,"","BURHANİYE"]
[null,null,null,null,null,null,null,null,null,null,null,null,null,null,null,null,"","BURSA MERKEZ"]
[null,null,null,null,null,null,null,null,null,null,null,null,null,null,null,null,"","BÜNYAN"]
[null,null,null,null,null,null,null,null,null,null,null,null,null,null,null,null,{"$f":"UPPER(P216)","v":""},"BÜYÜKÇEKMECE"]
[null,null,null,null,null,null,null,null,null,null,null,null,null,null,null,null,"","BÜYÜKORHAN"]
[null,null,null,null,null,null,null,null,null,null,null,null,null,null,null,null,"","CANİK"]
[null,null,null,null,null,null,null,null,null,null,null,null,null,null,null,null,"","CEYHAN"]
[null,null,null,null,null,null,null,null,null,null,null,null,null,null,null,null,"","CEYLANPINAR"]
[null,null,null,null,null,null,null,null,null,null,null,null,null,null,null,null,"","CİDE"]
[null,null,null,null,null,null,null,null,null,null,null,null,null,null,null,null,"","CİHANBEYLİ"]
[null,null,null,null,null,null,null,null,null,null,null,null,null,null,null,null,"","CİZRE"]
[null,null,null,null,null,null,null,null,null,null,null,null,null,null,null,null,"","CUMAYERİ"]
[null,null,null,null,null,null,null,null,null,null,null,null,null,null,null,null,"","ÇAĞLIYANCERİT"]
[null,null,null,null,null,null,null,null,null,null,null,null,null,null,null,null,"","ÇAL"]
[null,null,null,null,null,null,null,null,null,null,null,null,null,null,null,null,"","ÇALDIRAN"]
[null,null,null,null,null,null,null,null,null,null,null,null,null,null,null,null,"","ÇAMARDI"]
[null,null,null,null,null,null,null,null,null,null,null,null,null,null,null,null,"","ÇAMAŞ"]
[null,null,null,null,null,null,null,null,null,null,null,null,null,null,null,null,"","ÇAMELİ"]
[null,null,null,null,null,null,null,null,null,null,null,null,null,null,null,null,"","ÇAMLIDERE"]
[null,null,null,null,null,null,null,null,null,null,null,null,null,null,null,null,"","ÇAMLIHEMŞİN"]
[null,null,null,null,null,null,null,null,null,null,null,null,null,null,null,null,"","ÇAMLIYAYLA"]
[null,null,null,null,null,null,null,null,null,null,null,null,null,null,null,null,"","ÇAMOLUK"]
[null,null,null,null,null,null,null,null,null,null,null,null,null,null,null,null,"","ÇAN"]
[null,null,null,null,null,null,null,null,null,null,null,null,null,null,null,null,"","ÇANAKÇI"]
[null,null,null,null,null,null,null,null,null,null,null,null,null,null,null,null,"","ÇANAKKALE MERKEZ"]
[null,null,null,null,null,null,null,null,null,null,null,null,null,null,null,null,"","ÇANDIR"]
[null,null,null,null,null,null,null,null,null,null,null,null,null,null,null,null,"","ÇANKAYA"]
[null,null,null,null,null,null,null,null,null,null,null,null,null,null,null,null,"","ÇANKIRI MERKEZ"]
[null,null,null,null,null,null,null,null,null,null,null,null,null,null,null,null,"","ÇARDAK"]
[null,null,null,null,null,null,null,null,null,null,null,null,null,null,null,null,"","ÇARŞAMBA"]
[null,null,null,null,null,null,null,null,null,null,null,null,null,null,null,null,"","ÇARŞIBAŞI"]
[null,null,null,null,null,null,null,null,null,null,null,null,null,null,null,null,"","ÇAT"]
[null,null,null,null,null,null,null,null,null,null,null,null,null,null,null,null,"","ÇATAK"]
[null,null,null,null,null,null,null,null,null,null,null,null,null,null,null,null,"","ÇATALCA"]
[null,null,null,null,null,null,null,null,null,null,null,null,null,null,null,null,"","ÇATALPINAR"]
[null,null,null,null,null,null,null,null,null,null,null,null,null,null,null,null,"","ÇATALZEYTİN"]
[null,null,null,null,null,null,null,null,null,null,null,null,null,null,null,null,"","ÇAVDARHİSAR"]
[null,null,null,null,null,null,null,null,null,null,null,null,null,null,null,null,"","ÇAVDIR"]
[null,null,null,null,null,null,null,null,null,null,null,null,null,null,null,null,"","ÇAY"]
[null,null,null,null,null,null,null,null,null,null,null,null,null,null,null,null,"","ÇAYBAŞI"]
[null,null,null,null,null,null,null,null,null,null,null,null,null,null,null,null,"","ÇAYCUMA"]
[null,null,null,null,null,null,null,null,null,null,null,null,null,null,null,null,"","ÇAYELİ"]
[null,null,null,null,null,null,null,null,null,null,null,null,null,null,null,null,"","ÇAYIRALAN"]
[null,null,null,null,null,null,null,null,null,null,null,null,null,null,null,null,"","ÇAYIRLI"]
[null,null,null,null,null,null,null,null,null,null,null,null,null,null,null,null,"","ÇAYIROVA"]
[null,null,null,null,null,null,null,null,null,null,null,null,null,null,null,null,"","ÇAYKARA"]
[null,null,null,null,null,null,null,null,null,"idareci görev",null,null,null,null,null,null,"","ÇEKEREK"]
[null,null,null,null,null,null,null,null,null,null,null,null,null,null,null,null,"","ÇEKMEKÖY"]
[null,null,null,null,null,null,null,null,null,null,"Okul Müdürü",null,null,null,null,null,"","ÇELEBİ"]
[null,null,null,null,null,null,null,null,null,null,"Müdür Yardımcısı",null,null,null,null,null,"","ÇELİKHAN"]
[null,null,null,null,null,null,null,null,null,null,"Md. Yrd. (Yerine Üye Öğretmen)",null,null,null,null,null,"","ÇELTİK"]
[null,null,null,null,null,null,null,null,null,null,"Memur",null,null,null,null,null,"","ÇELTİKÇİ"]
[null,null,null,null,null,null,null,null,null,null,null,null,null,null,null,null,"","ÇEMİŞGEZEK"]
[null,null,null,null,null,null,null,null,null,null,null,null,null,null,null,null,"","ÇERKEŞ"]
[null,null,null,null,null,null,null,null,null,null,null,null,null,null,null,null,"","ÇERKEZKÖY"]
[null,null,null,null,null,null,null,null,null,null,null,null,null,null,null,null,"","ÇERMİK"]
[null,null,null,null,null,null,null,null,null,null,null,null,null,null,null,null,"","ÇEŞME"]
[null,null,null,null,null,null,null,null,null,null,null,null,null,null,null,null,"","ÇILDIR"]
[null,null,null,null,null,null,null,null,null,null,null,null,null,null,null,null,"","ÇINAR"]
[null,null,null,null,null,null,null,null,null,null,null,null,null,null,null,null,"","ÇINARCIK"]
[null,null,null,null,null,null,null,null,null,null,null,null,null,null,null,null,"","ÇİÇEKDAĞI"]
[null,null,null,null,null,null,null,null,null,null,null,null,null,null,null,null,"","ÇİFTELER"]
[null,null,null,null,null,null,null,null,null,null,null,null,null,null,null,null,"","ÇİFTLİK"]
[null,null,null,null,null,null,null,null,null,null,null,null,null,null,null,null,"","ÇİFTLİKKÖY"]
[null,null,null,null,null,null,null,"personel listesi",null,null,null,null,null,null,null,null,"","ÇİĞLİ"]
[null,null,null,null,null,null,null,{"$f":"ANASAYFA!C15","v":0},null,null,null,null,null,null,null,null,"","ÇİLİMLİ"]
[null,null,null,null,null,null,null,{"$f":"ANASAYFA!C16","v":0},null,null,null,null,null,null,null,null,"","ÇİNE"]
[null,null,null,null,null,null,null,{"$f":"ANASAYFA!C17","v":0},null,null,null,null,null,null,null,null,{"$f":"UPPER(P280)","v":""},"ÇİVRİL"]
[null,null,null,null,null,null,null,{"$f":"ANASAYFA!C18","v":0},null,null,null,null,null,null,null,null,"","ÇOBANLAR"]
[null,null,null,null,null,null,null,{"$f":"ANASAYFA!C19","v":0},null,null,null,null,null,null,null,null,"","ÇORLU"]
[null,null,null,null,null,null,null,{"$f":"ANASAYFA!C20","v":0},null,null,null,null,null,null,null,null,"","ÇORUM MERKEZ"]
[null,null,null,null,null,null,null,{"$f":"ANASAYFA!C21","v":0},null,null,null,null,null,null,null,null,"","ÇUBUK"]
[null,null,null,null,null,null,null,{"$f":"ANASAYFA!C22","v":0},null,null,null,null,null,null,null,null,"","ÇUKURCA"]
[null,null,null,null,null,null,null,{"$f":"ANASAYFA!C23","v":0},null,null,null,null,null,null,null,null,"","ÇUKUROVA"]
[null,null,null,null,null,null,null,{"$f":"ANASAYFA!C24","v":0},null,null,null,null,null,null,null,null,"","ÇUMRA"]
[null,null,null,null,null,null,null,{"$f":"ANASAYFA!C25","v":0},null,null,null,null,null,null,null,null,"","ÇÜNGÜŞ"]
[null,null,null,null,null,null,null,{"$f":"ANASAYFA!C26","v":0},null,null,null,null,null,null,null,null,"","DADAY"]
[null,null,null,null,null,null,null,{"$f":"ANASAYFA!C27","v":0},null,null,null,null,null,null,null,null,"","DALAMAN"]
[null,null,null,null,null,null,null,{"$f":"ANASAYFA!C28","v":0},null,null,null,null,null,null,null,null,"","DAMAL"]
[null,null,null,null,null,null,null,{"$f":"ANASAYFA!C29","v":0},null,null,null,null,null,null,null,null,"","DARENDE"]
[null,null,null,null,null,null,null,null,null,null,null,null,null,null,null,null,"","DARGEÇİT"]
[null,null,null,null,null,null,null,null,null,null,null,null,null,null,null,null,"","DARICA"]
[null,null,null,null,null,null,null,null,null,null,null,null,null,null,null,null,"","DATÇA"]
[null,null,null,null,null,null,null,null,null,null,null,null,null,null,null,null,"","DAZKIRI"]
[null,null,null,null,null,null,null,null,null,null,null,null,null,null,null,null,"","DELİCE"]
[null,null,null,null,null,null,null,null,null,null,null,null,null,null,null,null,"","DEMİRCİ"]
[null,null,null,null,null,null,null,null,null,null,null,null,null,null,null,null,"","DEMİRKÖY"]
[null,null,null,null,null,null,null,null,null,null,null,null,null,null,null,null,"","DEMİRÖZÜ"]
[null,null,null,null,null,null,null,null,null,null,null,null,null,null,null,null,"","DENİZLİ MERKEZ"]
[null,null,null,null,null,null,null,null,null,null,null,null,null,null,null,null,"","DERBENT"]
[null,null,null,null,null,null,null,null,null,null,null,null,null,null,null,null,"","DEREBUCAK"]
[null,null,null,null,null,null,null,null,null,null,null,null,null,null,null,null,"","DERELİ"]
[null,null,null,null,null,null,null,null,null,null,null,null,null,null,null,null,"","DEREPAZARI",null,null,null,"Personel Adı Soyadı",null,null,"Görevi","Kadro Durumu ","Saat","Koordinatör","TOPLAM","GELİR VERGİ DİLİMİ","BRÜT TUTAR","GELİR VERGİSİ MATRAHI","Damga Vergisi",null,"Gelir Vergisi","Sgk İşçi Payı","İşs. Sig. İşçi Payı","SGK İşveren Payı","İşs. Sig. İşveren Payı","PERSONELDEN KESİNTİ TOPLAMI","TEMEL GİDER KALEMİNDEN MALİYETİ","NET ÖDENECEK ÜCRET"]
[null,null,null,null,null,null,null,null,null,null,null,null,null,null,null,null,"","DERİK",null,null,null,null,null,null,null,null,null,null,null,null,null,null,null,null,null,0.14000000000000001,0.01,0.20499999999999999,0.02]
[null,null,null,null,null,null,null,null,null,null,null,null,null,null,null,null,"","DERİNCE",null,null,null,"Mahmut Orhan DURUM",null,null,"Okul Müdürü","Kadrolu","","","",0.15,3780,3780,28.690200000000001,null,567,"","","","",595.6902,"",3184.3098]
[null,null,null,null,null,null,null,null,null,null,null,null,null,null,null,null,"","DERİNKUYU"]
[null,null,null,null,null,null,null,null,null,null,null,null,null,null,null,null,"","DERNEKPAZARI"]
[null,null,null,null,null,null,null,null,null,null,null,null,null,null,null,null,"","DEVELİ"]
[null,null,null,null,null,null,null,null,null,null,null,null,null,null,null,null,"","DEVREK"]
[null,null,null,null,null,null,null,null,null,null,null,null,null,null,null,null,"","DEVREKÂNİ"]
[null,null,null,null,null,null,null,null,null,null,null,null,null,null,null,null,"","DİCLE",null,null,null,{"$f":"VLOOKUP(G16,BORDRO!B17:X31,3,FALSE)","v":{"$error":"#N/A"}}]
[null,null,null,null,null,null,null,null,null,null,null,null,null,null,null,null,"","DİDİM (YENİHİSAR)"]
[null,null,null,null,null,null,null,null,null,null,null,null,null,null,null,null,"","DİGOR"]
[null,null,null,null,null,null,null,null,null,null,null,null,null,null,null,null,"","DİKİLİ"]
[null,null,null,null,null,null,null,null,null,null,null,null,null,null,null,null,"","DİKMEN"]
[null,null,null,null,null,null,null,null,null,null,null,null,null,null,null,null,"","DİLOVASI"]
[null,null,null,null,null,null,null,null,null,null,null,null,null,null,null,null,"","DİNAR"]
[null,null,null,null,null,null,null,null,null,null,null,null,null,null,null,null,"","DİVRİĞİ",null,null,null,"kadrolu personel bulma"]
[null,null,null,null,null,null,null,null,null,null,null,null,null,null,null,null,"","DİYADİN"]
[null,null,null,null,null,null,null,null,null,null,null,null,null,null,null,null,"","DİYARBAKIR MERKEZ"]
[null,null,null,null,null,null,null,null,null,null,null,null,null,null,null,null,"","DODURGA",null,null,1,{"$f":"IF(BORDRO!F17=KAYNAK!$G$16,BORDRO!B17:D17,\"\")","v":""},null,null,null,{"$f":"CONCATENATE(V323)","v":""},null,null,null,{"$f":"IF(Z323=\"\",Z324,Z323)","v":""},null,null,{"$f":"AD323","v":""},null,null,{"$f":"ANASAYFA!I15","v":0}]
[null,null,null,null,null,null,null,null,null,null,null,null,null,null,null,null,"","DOĞANHİSAR",null,null,2,{"$f":"IF(BORDRO!F18=KAYNAK!$G$16,BORDRO!B18:D18,\"\")","v":""},null,null,null,{"$f":"CONCATENATE(V324)","v":""},null,null,null,{"$f":"IF(Z324=\"\",Z325,Z324)","v":""},null,null,{"$f":"AD324","v":""},null,null,{"$f":"ANASAYFA!I16","v":0}]
[null,null,null,null,null,null,null,null,null,null,null,null,null,null,null,null,"","DOĞANKENT",null,null,3,{"$f":"IF(BORDRO!F19=KAYNAK!$G$16,BORDRO!B19:D19,\"\")","v":""},null,null,null,"",null,null,null,{"$f":"IF(Z325=\"\",Z326,Z325)","v":""},null,null,"",null,null,{"$f":"ANASAYFA!I17","v":0}]
[null,null,null,null,null,null,null,null,null,null,null,null,null,null,null,null,"","DOĞANŞAR",null,null,4,{"$f":"IF(BORDRO!F20=KAYNAK!$G$16,BORDRO!B20:D20,\"\")","v":""},null,null,null,"",null,null,null,"",null,null,"",null,null,{"$f":"ANASAYFA!I18","v":0}]
[null,null,null,null,null,null,null,null,null,null,null,null,null,null,null,null,"","DOĞANŞEHİR",null,null,5,{"$f":"IF(BORDRO!F21=KAYNAK!$G$16,BORDRO!B21:D21,\"\")","v":""},null,null,null,"",null,null,null,"",null,null,"",null,null,{"$f":"ANASAYFA!I19","v":0}]
[null,null,null,null,null,null,null,null,null,null,null,null,null,null,null,null,"","DOĞANYOL",null,null,6,{"$f":"IF(BORDRO!F22=KAYNAK!$G$16,BORDRO!B22:D22,\"\")","v":""},null,null,null,"",null,null,null,"",null,null,"",null,null,{"$f":"ANASAYFA!I20","v":0}]
[null,null,null,null,null,null,null,null,null,null,null,null,null,null,null,null,"","DOĞANYURT",null,null,7,{"$f":"IF(BORDRO!F23=KAYNAK!$G$16,BORDRO!B23:D23,\"\")","v":""},null,null,null,"",null,null,null,"",null,null,"",null,null,{"$f":"ANASAYFA!I21","v":0}]
[null,null,null,null,null,null,null,null,null,null,null,null,null,null,null,null,"","DOĞUBAYAZIT",null,null,8,{"$f":"IF(BORDRO!F24=KAYNAK!$G$16,BORDRO!B24:D24,\"\")","v":""},null,null,null,"",null,null,null,"",null,null,"",null,null,{"$f":"ANASAYFA!I22","v":0}]
[null,null,null,null,null,null,null,null,null,null,null,null,null,null,null,null,"","DOMANİÇ",null,null,9,{"$f":"IF(BORDRO!F25=KAYNAK!$G$16,BORDRO!B25:D25,\"\")","v":""},null,null,null,"",null,null,null,"",null,null,"",null,null,{"$f":"ANASAYFA!I23","v":0}]
[null,null,null,null,null,null,null,null,null,null,null,null,null,null,null,null,"","DÖRTDİVAN",null,null,10,{"$f":"IF(BORDRO!F26=KAYNAK!$G$16,BORDRO!B26:D26,\"\")","v":""},null,null,null,"",null,null,null,"",null,null,"",null,null,{"$f":"ANASAYFA!I24","v":0}]
[null,"HATALIYSA",null,null,null,null,null,null,null,null,null,null,null,null,null,null,"","DÖRTYOL",null,null,11,{"$f":"IF(BORDRO!F27=KAYNAK!$G$16,BORDRO!B27:D27,\"\")","v":""},null,null,null,"",null,null,null,"",null,null,"",null,null,{"$f":"ANASAYFA!I25","v":0}]
[1,{"$f":"IF(ISERROR(BORDRO!P17),\"ANASAYFA ÜZERİNDE;\nPERSONEL ADI - GÖREVİ - KADRO DURUMU - DERS SAATLERİ - VERGİ DİLİMİ ALANLARINI DOLDURUNUZ!!!\",IF(ISERROR(BORDRO!V17),\"ANASAYFA ÜZERİNDE;\nPERSONEL ADI - GÖREVİ - KADRO DURUMU - DERS SAATLERİ - VERGİ DİLİMİ ALANLARINI DOLDURUNUZ!!!\",\"\"))","v":""},null,null,null,null,null,null,null,null,null,{"$f":"IF(B334=\"\",\"0\",\"1\")","v":"0"},{"$f":"IFERROR(VALUE(L334),0)","v":0},null,null,null,"","DÖŞEMEALTI",null,null,12,{"$f":"IF(BORDRO!F28=KAYNAK!$G$16,BORDRO!B28:D28,\"\")","v":""},null,null,null,"",null,null,null,"",null,null,"",null,null,{"$f":"ANASAYFA!I26","v":0}]
[2,{"$f":"IF(ISERROR(BORDRO!P18),\"ANASAYFA ÜZERİNDE;\nPERSONEL ADI - GÖREVİ - KADRO DURUMU - DERS SAATLERİ - VERGİ DİLİMİ ALANLARINI DOLDURUNUZ!!!\",IF(ISERROR(BORDRO!V18),\"ANASAYFA ÜZERİNDE;\nPERSONEL ADI - GÖREVİ - KADRO DURUMU - DERS SAATLERİ - VERGİ DİLİMİ ALANLARINI DOLDURUNUZ!!!\",\"\"))","v":""},null,null,null,null,null,null,null,null,null,"0",{"$f":"IFERROR(VALUE(L335),0)","v":0},null,null,null,"","DUMLUPINAR",null,null,13,{"$f":"IF(BORDRO!F29=KAYNAK!$G$16,BORDRO!B29:D29,\"\")","v":""},null,null,null,"",null,null,null,"",null,null,"",null,null,{"$f":"ANASAYFA!I27","v":0}]
[3,{"$f":"IF(ISERROR(BORDRO!P19),\"ANASAYFA ÜZERİNDE;\nPERSONEL ADI - GÖREVİ - KADRO DURUMU - DERS SAATLERİ - VERGİ DİLİMİ ALANLARINI DOLDURUNUZ!!!\",IF(ISERROR(BORDRO!V19),\"ANASAYFA ÜZERİNDE;\nPERSONEL ADI - GÖREVİ - KADRO DURUMU - DERS SAATLERİ - VERGİ DİLİMİ ALANLARINI DOLDURUNUZ!!!\",\"\"))","v":""},null,null,null,null,null,null,null,null,null,"0",0,null,null,null,"","DURAĞAN",null,null,14,{"$f":"IF(BORDRO!F30=KAYNAK!$G$16,BORDRO!B30:D30,\"\")","v":""},null,null,null,"",null,null,null,"",null,null,"",null,null,{"$f":"ANASAYFA!I28","v":0}]
[4,{"$f":"IF(ISERROR(BORDRO!P20),\"ANASAYFA ÜZERİNDE;\nPERSONEL ADI - GÖREVİ - KADRO DURUMU - DERS SAATLERİ - VERGİ DİLİMİ ALANLARINI DOLDURUNUZ!!!\",IF(ISERROR(BORDRO!V20),\"ANASAYFA ÜZERİNDE;\nPERSONEL ADI - GÖREVİ - KADRO DURUMU - DERS SAATLERİ - VERGİ DİLİMİ ALANLARINI DOLDURUNUZ!!!\",\"\"))","v":""},null,null,null,null,null,null,null,null,null,{"$f":"IF(B337=\"\",\"0\",\"1\")","v":"0"},0,null,null,null,"","DURSUNBEY",null,null,15,{"$f":"IF(BORDRO!F31=KAYNAK!$G$16,BORDRO!B31:D31,\"\")","v":""},null,null,null,"",null,null,null,"",null,null,"",null,null,{"$f":"ANASAYFA!I29","v":0}]
[5,{"$f":"IF(ISERROR(BORDRO!P21),\"ANASAYFA ÜZERİNDE;\nPERSONEL ADI - GÖREVİ - KADRO DURUMU - DERS SAATLERİ - VERGİ DİLİMİ ALANLARINI DOLDURUNUZ!!!\",IF(ISERROR(BORDRO!V21),\"ANASAYFA ÜZERİNDE;\nPERSONEL ADI - GÖREVİ - KADRO DURUMU - DERS SAATLERİ - VERGİ DİLİMİ ALANLARINI DOLDURUNUZ!!!\",\"\"))","v":""},null,null,null,null,null,null,null,null,null,{"$f":"IF(B338=\"\",\"0\",\"1\")","v":"0"},0,null,null,null,"","DÜZCE MERKEZ",null,null,null,null,null,null,null,""]
[6,{"$f":"IF(ISERROR(BORDRO!P22),\"ANASAYFA ÜZERİNDE;\nPERSONEL ADI - GÖREVİ - KADRO DURUMU - DERS SAATLERİ - VERGİ DİLİMİ ALANLARINI DOLDURUNUZ!!!\",IF(ISERROR(BORDRO!V22),\"ANASAYFA ÜZERİNDE;\nPERSONEL ADI - GÖREVİ - KADRO DURUMU - DERS SAATLERİ - VERGİ DİLİMİ ALANLARINI DOLDURUNUZ!!!\",\"\"))","v":""},null,null,null,null,null,null,null,null,null,{"$f":"IF(B339=\"\",\"0\",\"1\")","v":"0"},0,null,null,null,"","DÜZİÇİ"]
[7,{"$f":"IF(ISERROR(BORDRO!P23),\"ANASAYFA ÜZERİNDE;\nPERSONEL ADI - GÖREVİ - KADRO DURUMU - DERS SAATLERİ - VERGİ DİLİMİ ALANLARINI DOLDURUNUZ!!!\",IF(ISERROR(BORDRO!V23),\"ANASAYFA ÜZERİNDE;\nPERSONEL ADI - GÖREVİ - KADRO DURUMU - DERS SAATLERİ - VERGİ DİLİMİ ALANLARINI DOLDURUNUZ!!!\",\"\"))","v":""},null,null,null,null,null,null,null,null,null,"0",0,null,null,null,"","DÜZKÖY"]
[8,{"$f":"IF(ISERROR(BORDRO!P24),\"ANASAYFA ÜZERİNDE;\nPERSONEL ADI - GÖREVİ - KADRO DURUMU - DERS SAATLERİ - VERGİ DİLİMİ ALANLARINI DOLDURUNUZ!!!\",IF(ISERROR(BORDRO!V24),\"ANASAYFA ÜZERİNDE;\nPERSONEL ADI - GÖREVİ - KADRO DURUMU - DERS SAATLERİ - VERGİ DİLİMİ ALANLARINI DOLDURUNUZ!!!\",\"\"))","v":""},null,null,null,null,null,null,null,null,null,"0",0,null,null,null,"","ECEABAT"]
[9,{"$f":"IF(ISERROR(BORDRO!P25),\"ANASAYFA ÜZERİNDE;\nPERSONEL ADI - GÖREVİ - KADRO DURUMU - DERS SAATLERİ - VERGİ DİLİMİ ALANLARINI DOLDURUNUZ!!!\",IF(ISERROR(BORDRO!V25),\"ANASAYFA ÜZERİNDE;\nPERSONEL ADI - GÖREVİ - KADRO DURUMU - DERS SAATLERİ - VERGİ DİLİMİ ALANLARINI DOLDURUNUZ!!!\",\"\"))","v":""},null,null,null,null,null,null,null,null,null,"0",0,null,null,null,"","EDİRNE MERKEZ"]
[10,{"$f":"IF(ISERROR(BORDRO!P26),\"ANASAYFA ÜZERİNDE;\nPERSONEL ADI - GÖREVİ - KADRO DURUMU - DERS SAATLERİ - VERGİ DİLİMİ ALANLARINI DOLDURUNUZ!!!\",IF(ISERROR(BORDRO!V26),\"ANASAYFA ÜZERİNDE;\nPERSONEL ADI - GÖREVİ - KADRO DURUMU - DERS SAATLERİ - VERGİ DİLİMİ ALANLARINI DOLDURUNUZ!!!\",\"\"))","v":""},null,null,null,null,null,null,null,null,null,"0",0,null,null,null,"","EDREMİT"]
[11,{"$f":"IF(ISERROR(BORDRO!P27),\"ANASAYFA ÜZERİNDE;\nPERSONEL ADI - GÖREVİ - KADRO DURUMU - DERS SAATLERİ - VERGİ DİLİMİ ALANLARINI DOLDURUNUZ!!!\",IF(ISERROR(BORDRO!V27),\"ANASAYFA ÜZERİNDE;\nPERSONEL ADI - GÖREVİ - KADRO DURUMU - DERS SAATLERİ - VERGİ DİLİMİ ALANLARINI DOLDURUNUZ!!!\",\"\"))","v":""},null,null,null,null,null,null,null,null,null,"0",0,null,null,null,{"$f":"UPPER(P344)","v":""},"EDREMİT"]
[12,{"$f":"IF(ISERROR(BORDRO!P28),\"ANASAYFA ÜZERİNDE;\nPERSONEL ADI - GÖREVİ - KADRO DURUMU - DERS SAATLERİ - VERGİ DİLİMİ ALANLARINI DOLDURUNUZ!!!\",IF(ISERROR(BORDRO!V28),\"ANASAYFA ÜZERİNDE;\nPERSONEL ADI - GÖREVİ - KADRO DURUMU - DERS SAATLERİ - VERGİ DİLİMİ ALANLARINI DOLDURUNUZ!!!\",\"\"))","v":""},null,null,null,null,null,null,null,null,null,"0",0,null,null,null,"","EFLÂNİ"]
[13,{"$f":"IF(ISERROR(BORDRO!P29),\"ANASAYFA ÜZERİNDE;\nPERSONEL ADI - GÖREVİ - KADRO DURUMU - DERS SAATLERİ - VERGİ DİLİMİ ALANLARINI DOLDURUNUZ!!!\",IF(ISERROR(BORDRO!V29),\"ANASAYFA ÜZERİNDE;\nPERSONEL ADI - GÖREVİ - KADRO DURUMU - DERS SAATLERİ - VERGİ DİLİMİ ALANLARINI DOLDURUNUZ!!!\",\"\"))","v":""},null,null,null,null,null,null,null,null,null,"0",0,null,null,null,"","EĞİL"]
[14,{"$f":"IF(ISERROR(BORDRO!P30),\"ANASAYFA ÜZERİNDE;\nPERSONEL ADI - GÖREVİ - KADRO DURUMU - DERS SAATLERİ - VERGİ DİLİMİ ALANLARINI DOLDURUNUZ!!!\",IF(ISERROR(BORDRO!V30),\"ANASAYFA ÜZERİNDE;\nPERSONEL ADI - GÖREVİ - KADRO DURUMU - DERS SAATLERİ - VERGİ DİLİMİ ALANLARINI DOLDURUNUZ!!!\",\"\"))","v":""},null,null,null,null,null,null,null,null,null,"0",0,null,null,null,"","EĞİRDİR",null,null,null,null,null,"      Okulumuz Çocuk Kulübünde görevli olup, kadrolu ve sözleşmeli devlet memuru olarak görev yapan personele ait"]
[15,{"$f":"IF(ISERROR(BORDRO!P31),\"ANASAYFA ÜZERİNDE;\nPERSONEL ADI - GÖREVİ - KADRO DURUMU - DERS SAATLERİ - VERGİ DİLİMİ ALANLARINI DOLDURUNUZ!!!\",IF(ISERROR(BORDRO!V31),\"ANASAYFA ÜZERİNDE;\nPERSONEL ADI - GÖREVİ - KADRO DURUMU - DERS SAATLERİ - VERGİ DİLİMİ ALANLARINI DOLDURUNUZ!!!\",\"\"))","v":""},null,null,null,null,null,null,null,null,null,"0",0,null,null,null,"","EKİNÖZÜ",null,null,null,null,null,{"$f":"G3","v":"2023"}]
[null,null,null,null,null,null,null,null,null,null,null,null,null,null,null,null,"","ELAZIĞ MERKEZ",null,null,null,null,null,"yılı"]
[null,null,null,null,null,null,{"$f":"SUM(_xlfn.IFS(E17=\" \",\"0\",E17=KAYNAK!$G$16,KAYNAK!J76,BORDRO!F18=KAYNAK!$G$17,KAYNAK!N76))+(IF(ANASAYFA!$N$15=\" \",\" \",SUM(IF(D17=KAYNAK!$F$16,BORDRO!U18,\"0\"))+SUM(IF(D17=KAYNAK!$F$17,BORDRO!U18,\"0\")+SUM(IF(BORDRO!E18=KAYNAK!$F$18,BORDRO!U18,\"0\")+SUM(IF(BORDRO!E18=KAYNAK!$F$21,BORDRO!U18,\"0\")+SUM(IF(BORDRO!E18=KAYNAK!$F$22,BORDRO!U18,\"0\")))))))","v":{"$error":"#N/A"}},null,null,null,null,"Topla",{"$f":"SUM(M334:M348)","v":0},null,null,null,"","ELBEYLİ",null,null,null,null,null,{"$f":"G2","v":"KASIM"}]
[null,null,null,null,null,null,null,null,null,null,null,null,null,null,null,null,"","ELBİSTAN",null,null,null,null,null,"dönemi aylık vergi matrahı bildirimi tablosudur. "]
[null,null,null,null,null,null,null,null,null,null,null,null,null,null,null,null,"","ELDİVAN"]
[null,null,null,null,null,null,null,null,null,null,null,null,null,null,null,null,"","ELEŞKİRT"]
[null,null,null,null,null,null,null,null,null,null,null,null,null,null,null,null,"","ELMADAĞ"]
[null,null,null,null,null,null,null,null,null,null,null,null,null,null,null,null,"","ELMALI"]
[null,null,null,null,null,null,null,null,null,null,null,null,null,null,null,null,"","EMET"]
[null,null,null,null,null,null,null,null,null,null,null,null,null,null,null,null,"","EMİNÖNÜ"]
[null,null,null,null,null,null,null,null,null,null,null,null,null,null,null,null,"","EMİRDAĞ"]
[null,null,null,null,null,null,null,null,null,null,null,null,null,null,null,null,"","EMİRGAZİ"]
[null,null,null,null,null,null,null,null,null,null,null,null,null,null,null,null,"","ENEZ",null,null,null,null,null,null,null,null,{"$f":"CONCATENATE(KAYNAK!X347,\" \",'VERGİ MATRAH'!D2:E2,\" \",KAYNAK!X349,\" \",'VERGİ MATRAH'!F2:G2,\" \",KAYNAK!X351,\" \",KAYNAK!X352)","v":"      Okulumuz Çocuk Kulübünde görevli olup, kadrolu ve sözleşmeli devlet memuru olarak görev yapan personele ait  yılı KASIM dönemi aylık vergi matrahı bildirimi tablosudur.  "},"      Okulumuz Çocuk Kulübünde görevli olup, kadrolu ve sözleşmeli devlet memuru olarak görev yapan personele ait 2023 yılı  dönemi aylık vergi matrahı bildirimi tablosudur.  "]
[null,null,null,null,null,null,null,null,null,null,null,null,null,null,null,null,"","ERBAA",null,null,null,null,null,null,null,null,{"$f":"CONCATENATE(AA360)","v":"      Okulumuz Çocuk Kulübünde görevli olup, kadrolu ve sözleşmeli devlet memuru olarak görev yapan personele ait  yılı KASIM dönemi aylık vergi matrahı bildirimi tablosudur.  "}]
[null,null,null,null,null,null,null,null,null,null,null,null,null,null,null,null,"","ERCİŞ"]
[null,null,null,null,null,null,null,null,null,null,null,null,null,null,null,null,"","ERDEK"]
[null,null,null,null,null,null,null,null,null,null,null,null,null,null,null,null,"","ERDEMLİ"]
[null,null,null,null,null,null,null,null,null,null,null,null,null,null,null,null,"","EREĞLİ"]
[null,null,null,null,null,null,null,null,null,null,null,null,null,null,null,null,"","EREĞLİ"]
[null,null,null,null,null,null,null,null,null,null,null,null,null,null,null,null,"","ERENLER"]
[null,null,null,null,null,null,null,null,null,null,null,null,null,null,null,null,"","ERFELEK"]
[null,null,null,null,null,null,null,null,null,null,null,null,null,null,null,null,"","ERGANİ"]
[null,null,null,null,null,null,null,null,null,null,null,null,null,null,null,null,"","ERMENEK"]
[null,null,null,null,null,null,null,null,null,null,null,null,null,null,null,null,"","ERUH"]
[null,null,null,null,null,null,null,null,null,null,null,null,null,null,null,null,"","ERZİN"]
[null,null,null,null,null,null,null,null,null,null,null,null,null,null,null,null,"","ERZİNCAN MERKEZ"]
[null,null,null,null,null,null,null,null,null,null,null,null,null,null,null,null,"","ERZURUM MERKEZ"]
[null,null,null,null,null,null,null,null,null,null,null,null,null,null,null,null,"","ESENLER"]
[null,null,null,null,null,null,null,null,null,null,null,null,null,null,null,null,"","ESENYURT"]
[null,null,null,null,null,null,null,null,null,null,null,null,null,null,null,null,"","ESKİL"]
[null,null,null,null,null,null,null,null,null,null,null,null,null,null,null,null,"","ESKİPAZAR"]
[null,null,null,null,null,null,null,null,null,null,null,null,null,null,null,null,"","ESKİŞEHİR MERKEZ"]
[null,null,null,null,null,null,null,null,null,null,null,null,null,null,null,null,"","ESPİYE"]
[null,null,null,null,null,null,null,null,null,null,null,null,null,null,null,null,"","EŞME"]
[null,null,null,null,null,null,null,null,null,null,null,null,null,null,null,null,"","ETİMESGUT"]
[null,null,null,null,null,null,null,null,null,null,null,null,null,null,null,null,"","EVCİLER"]
[null,null,null,null,null,null,null,null,null,null,null,null,null,null,null,null,"","EVREN",null,null,null,null,null,24,25,26,27,28,29,30,31,32,33]
[null,null,null,null,null,null,null,null,null,null,null,null,null,null,null,null,"","EYNESİL",null,null,null,null,null,1,2,3,4,5,6,7,8,9,"10matrah","11tckn","vergi12","net13"]
[null,null,null,null,null,null,null,null,null,null,null,null,null,null,null,null,"","EYÜP",null,null,null,null,null,{"$f":"COUNTIF($Y$386:Y386,\"x\")&Y386","v":"0"},{"$f":"IF(AF386=\"Kadrolu\",\"x\",\"\")","v":""},1,{"$f":"BORDRO!B17","v":" "},null,null,{"$f":"BORDRO!E17","v":" "},null,{"$f":"BORDRO!F17","v":" "},{"$f":"BORDRO!M17","v":" "},{"$f":"ANASAYFA!O15","v":0},{"$f":"AI409","v":""},{"$f":"BORDRO!X17","v":""}]
[null,null,null,null,null,null,null,null,null,null,null,null,null,null,null,null,"","EZİNE",null,null,null,null,null,{"$f":"COUNTIF($Y$386:Y387,\"x\")&Y387","v":"0"},{"$f":"IF(AF387=\"Kadrolu\",\"x\",\"\")","v":""},2,{"$f":"BORDRO!B18","v":" "},null,null,{"$f":"BORDRO!E18","v":" "},null,{"$f":"BORDRO!F18","v":" "},{"$f":"BORDRO!M18","v":" "},{"$f":"ANASAYFA!O16","v":0},{"$f":"AI410","v":""},{"$f":"BORDRO!X18","v":""}]
[null,null,null,null,null,null,null,null,null,null,null,null,null,null,null,null,"","FATİH",null,null,null,null,null,{"$f":"COUNTIF($Y$386:Y388,\"x\")&Y388","v":"0"},"",3,{"$f":"BORDRO!B19","v":" "},null,null,{"$f":"BORDRO!E19","v":" "},null,{"$f":"BORDRO!F19","v":" "},{"$f":"BORDRO!M19","v":" "},{"$f":"ANASAYFA!O17","v":0},"",{"$f":"BORDRO!X19","v":""}]
[null,null,null,null,null,null,null,null,null,null,null,null,null,null,null,null,"","FATSA",null,null,null,null,null,{"$f":"COUNTIF($Y$386:Y389,\"x\")&Y389","v":"0"},"",4,{"$f":"BORDRO!B20","v":" "},null,null,{"$f":"BORDRO!E20","v":" "},null,{"$f":"BORDRO!F20","v":" "},{"$f":"BORDRO!M20","v":" "},{"$f":"ANASAYFA!O18","v":0},"",{"$f":"BORDRO!X20","v":""}]
[null,null,null,null,null,null,null,null,null,null,null,null,null,null,null,null,"","FEKE",null,null,null,null,null,{"$f":"COUNTIF($Y$386:Y390,\"x\")&Y390","v":"0"},"",5,{"$f":"BORDRO!B21","v":" "},null,null,{"$f":"BORDRO!E21","v":" "},null,{"$f":"BORDRO!F21","v":" "},{"$f":"BORDRO!M21","v":" "},{"$f":"ANASAYFA!O19","v":0},"",{"$f":"BORDRO!X21","v":""}]
[null,null,null,null,null,null,null,null,null,null,null,null,null,null,null,null,"","FELAHİYE",null,null,null,null,null,{"$f":"COUNTIF($Y$386:Y391,\"x\")&Y391","v":"0"},"",6,{"$f":"BORDRO!B22","v":" "},null,null,{"$f":"BORDRO!E22","v":" "},null,{"$f":"BORDRO!F22","v":" "},{"$f":"BORDRO!M22","v":" "},{"$f":"ANASAYFA!O20","v":0},"",{"$f":"BORDRO!X22","v":""}]
[null,null,null,null,null,null,null,null,null,null,null,null,null,null,null,null,"","FERİZLİ",null,null,null,null,null,{"$f":"COUNTIF($Y$386:Y392,\"x\")&Y392","v":"0"},"",7,{"$f":"BORDRO!B23","v":" "},null,null,{"$f":"BORDRO!E23","v":" "},null,{"$f":"BORDRO!F23","v":" "},{"$f":"BORDRO!M23","v":" "},{"$f":"ANASAYFA!O21","v":0},"",{"$f":"BORDRO!X23","v":""}]
[null,null,null,null,null,null,null,null,null,null,null,null,null,null,null,null,"","FETHİYE",null,null,null,null,null,{"$f":"COUNTIF($Y$386:Y393,\"x\")&Y393","v":"0"},"",8,{"$f":"BORDRO!B24","v":" "},null,null,{"$f":"BORDRO!E24","v":" "},null,{"$f":"BORDRO!F24","v":" "},{"$f":"BORDRO!M24","v":" "},{"$f":"ANASAYFA!O22","v":0},"",{"$f":"BORDRO!X24","v":""}]
[null,null,null,null,null,null,null,null,null,null,null,null,null,null,null,null,"","FINDIKLI",null,null,null,null,null,{"$f":"COUNTIF($Y$386:Y394,\"x\")&Y394","v":"0"},"",9,{"$f":"BORDRO!B25","v":" "},null,null,{"$f":"BORDRO!E25","v":" "},null,{"$f":"BORDRO!F25","v":" "},{"$f":"BORDRO!M25","v":" "},{"$f":"ANASAYFA!O23","v":0},"",{"$f":"BORDRO!X25","v":""}]
[null,null,null,null,null,null,null,null,null,null,null,null,null,null,null,null,"","FİNİKE",null,null,null,null,null,{"$f":"COUNTIF($Y$386:Y395,\"x\")&Y395","v":"0"},"",10,{"$f":"BORDRO!B26","v":" "},null,null,{"$f":"BORDRO!E26","v":" "},null,{"$f":"BORDRO!F26","v":" "},{"$f":"BORDRO!M26","v":" "},{"$f":"ANASAYFA!O24","v":0},"",{"$f":"BORDRO!X26","v":""}]
[null,null,null,null,null,null,null,null,null,null,null,null,null,null,null,null,"","FOÇA",null,null,null,null,null,{"$f":"COUNTIF($Y$386:Y396,\"x\")&Y396","v":"0"},"",11,{"$f":"BORDRO!B27","v":" "},null,null,{"$f":"BORDRO!E27","v":" "},null,{"$f":"BORDRO!F27","v":" "},{"$f":"BORDRO!M27","v":" "},{"$f":"ANASAYFA!O25","v":0},"",{"$f":"BORDRO!X27","v":""}]
[null,null,null,null,null,null,null,null,null,null,null,null,null,null,null,null,"","GAZİANTEP MERKEZ",null,null,null,null,null,{"$f":"COUNTIF($Y$386:Y397,\"x\")&Y397","v":"0"},"",12,{"$f":"BORDRO!B28","v":" "},null,null,{"$f":"BORDRO!E28","v":" "},null,{"$f":"BORDRO!F28","v":" "},{"$f":"BORDRO!M28","v":" "},{"$f":"ANASAYFA!O26","v":0},"",{"$f":"BORDRO!X28","v":""}]
[null,null,null,null,null,null,null,null,null,null,null,null,null,null,null,null,"","GAZİEMİR",null,null,null,null,null,null,"",13,{"$f":"BORDRO!B29","v":" "},null,null,{"$f":"BORDRO!E29","v":" "},null,{"$f":"BORDRO!F29","v":" "},{"$f":"BORDRO!M29","v":" "},{"$f":"ANASAYFA!O27","v":0},"",{"$f":"BORDRO!X29","v":""}]
[null,null,null,null,null,null,null,null,null,null,null,null,null,null,null,null,"","GAZİOSMANPAŞA",null,null,null,null,null,null,"",14,{"$f":"BORDRO!B30","v":" "},null,null,{"$f":"BORDRO!E30","v":" "},null,{"$f":"BORDRO!F30","v":" "},{"$f":"BORDRO!M30","v":" "},{"$f":"ANASAYFA!O28","v":0},"",{"$f":"BORDRO!X30","v":""}]
[null,null,null,null,null,null,null,null,null,null,null,null,null,null,null,null,"","GAZİPAŞA",null,null,null,null,null,null,"",15,{"$f":"BORDRO!B31","v":" "},null,null,{"$f":"BORDRO!E31","v":" "},null,{"$f":"BORDRO!F31","v":" "},{"$f":"BORDRO!M31","v":" "},{"$f":"ANASAYFA!O29","v":0},"",{"$f":"BORDRO!X31","v":""}]
[null,null,null,null,null,null,null,null,null,null,null,null,null,null,null,null,"","GEBZE"]
[null,null,null,null,null,null,null,null,null,null,null,null,null,null,null,null,"","GEDİZ"]
[null,null,null,null,null,null,null,null,null,null,null,null,null,null,null,null,"","GELENDOST"]
[null,null,null,null,null,null,null,null,null,null,null,null,null,null,null,null,"","GELİBOLU"]
[null,null,null,null,null,null,null,null,null,null,null,null,null,null,null,null,"","GEMEREK"]
[null,null,null,null,null,null,null,null,null,null,null,null,null,null,null,null,"","GEMLİK"]
[null,null,null,null,null,null,null,null,null,null,null,null,null,null,null,null,"","GENÇ"]
[null,null,null,null,null,null,null,null,null,null,null,null,null,null,null,null,{"$f":"UPPER(P408)","v":""},"GERCÜŞ"]
[null,null,null,null,null,null,null,null,null,null,null,null,null,null,null,null,"","GEREDE",null,null,null,null,null,null,null,"1x",null,null,null,null,null,null,null,null,{"$f":"BORDRO!P17","v":""}]
[null,null,null,null,null,null,null,null,null,null,null,null,null,null,null,null,"","GERGER",null,null,null,null,null,null,null,"2x",null,null,null,null,null,null,null,null,{"$f":"BORDRO!P18","v":""}]
[null,null,null,null,null,null,null,null,null,null,null,null,null,null,null,null,"","GERMENCİK",null,null,null,null,null,null,null,"3x",null,null,null,null,null,null,null,null,{"$f":"BORDRO!P19","v":""}]
[null,null,null,null,null,null,null,null,null,null,null,null,null,null,null,null,"","GERZE",null,null,null,null,null,null,null,"4x",null,null,null,null,null,null,null,null,{"$f":"BORDRO!P20","v":""}]
[null,null,null,null,null,null,null,null,null,null,null,null,null,null,null,null,"","GEVAŞ",null,null,null,null,null,null,null,"5x",null,null,null,null,null,null,null,null,{"$f":"BORDRO!P21","v":""}]
[null,null,null,null,null,null,null,null,null,null,null,null,null,null,null,null,"","GEYVE",null,null,null,null,null,null,null,"6x",null,null,null,null,null,null,null,null,{"$f":"BORDRO!P22","v":""}]
[null,null,null,null,null,null,null,null,null,null,null,null,null,null,null,null,"","GİRESUN MERKEZ",null,null,null,null,null,null,null,"7x",null,null,null,null,null,null,null,null,{"$f":"BORDRO!P23","v":""}]
[null,null,null,null,null,null,null,null,null,null,null,null,null,null,null,null,"","GÖKÇEADA (İMROZ)",null,null,null,null,null,null,null,"8x",null,null,null,null,null,null,null,null,{"$f":"BORDRO!P24","v":""}]
[null,null,null,null,null,null,null,null,null,null,null,null,null,null,null,null,"","GÖKÇEBEY",null,null,null,null,null,null,null,"9x",null,null,null,null,null,null,null,null,{"$f":"BORDRO!P25","v":""}]
[null,null,null,null,null,null,null,null,null,null,null,null,null,null,null,null,"","GÖKSUN",null,null,null,null,null,null,null,"10x",null,null,null,null,null,null,null,null,{"$f":"BORDRO!P26","v":""}]
[null,null,null,null,null,null,null,null,null,null,null,null,null,null,null,null,"","GÖLBAŞI",null,null,null,null,null,null,null,"11x",null,null,null,null,null,null,null,null,{"$f":"BORDRO!P27","v":""}]
[null,null,null,null,null,null,null,null,null,null,null,null,null,null,null,null,"","GÖLBAŞI",null,null,null,null,null,null,null,"12x",null,null,null,null,null,null,null,null,{"$f":"BORDRO!P28","v":""}]
[null,null,null,null,null,null,null,null,null,null,null,null,null,null,null,null,"","GÖLCÜK",null,null,null,null,null,null,null,"13x",null,null,null,null,null,null,null,null,{"$f":"BORDRO!P29","v":""}]
[null,null,null,null,null,null,null,null,null,null,null,null,null,null,null,null,"","GÖLE",null,null,null,null,null,null,null,"14x",null,null,null,null,null,null,null,null,{"$f":"BORDRO!P30","v":""}]
[null,null,null,null,null,null,null,null,null,null,null,null,null,null,null,null,"","GÖLHİSAR",null,null,null,null,null,null,null,"15x",null,null,null,null,null,null,null,null,{"$f":"BORDRO!P31","v":""}]
[null,null,null,null,null,null,null,null,null,null,null,null,null,null,null,null,"","GÖLKÖY",null,null,null,null,null,null,null,null,null,null,null,null,null,null,null,null,{"$f":"BORDRO!P32","v":0}]
[null,null,null,null,null,null,null,null,null,null,null,null,null,null,null,null,"","GÖLMARMARA"]
[null,null,null,null,null,null,null,null,null,null,null,null,null,null,null,null,"","GÖLOVA"]
[null,null,null,null,null,null,null,null,null,null,null,null,null,null,null,null,"","GÖLPAZARI"]
[null,null,null,null,null,null,null,null,null,null,null,null,null,null,null,null,"","GÖLYAKA"]
[null,null,null,null,null,null,null,null,null,null,null,null,null,null,null,null,"","GÖMEÇ"]
[null,null,null,null,null,null,null,null,null,null,null,null,null,null,null,null,"","GÖNEN"]
[null,null,null,null,null,null,null,null,null,null,null,null,null,null,null,null,"","GÖNEN"]
[null,null,null,null,null,null,null,null,null,null,null,null,null,null,null,null,"","GÖRDES"]
[null,null,null,null,null,null,null,null,null,null,null,null,null,null,null,null,"","GÖRELE"]
[null,null,null,null,null,null,null,null,null,null,null,null,null,null,null,null,"","GÖYNÜCEK"]
[null,null,null,null,null,null,null,null,null,null,null,null,null,null,null,null,"","GÖYNÜK"]
[null,null,null,null,null,null,null,null,null,null,null,null,null,null,null,null,"","GÜCE",null,null,null,null,null,null,null,null,"DOLU PERSONEL GETİR"]
[null,null,null,null,null,null,null,null,null,null,null,null,null,null,null,null,"","GÜÇLÜKONAK",null,null,null,null,null,null,null,null,"TÜM PERSONEL",null,null,null,null,null,"say",null,"tüm görev",null,6,7,8,9,null,null,null,null,null,"TOPLAM SAAT",null,null,null,null,"SN."]
[null,null,null,null,null,null,null,null,null,null,null,null,null,null,null,null,"","GÜDÜL",null,null,null,null,null,null,null,null,{"$f":"ANASAYFA!C15","v":0},null,null,null,{"$f":"COUNTIF($AH$438:AH438,\"\")&AH438","v":"1"},{"$f":"AG438","v":"0"},{"$f":"COUNTIF($AH$438:AH438,\"x\")&AH438","v":"0"},{"$f":"IF(AI438=\"\",\"\",\"x\")","v":""},{"$f":"IF(ANASAYFA!G15=\"\",\"\",ANASAYFA!G15)","v":""},null,{"$f":"AI438","v":""},null,null,{"$f":"IF(ANASAYFA!C15=\"\",\"\",ANASAYFA!C15)","v":""},null,null,{"$f":"AN438","v":""},null,null,{"$f":"_xlfn.IFS(ANASAYFA!$G15=$F$16,\"-\",ANASAYFA!$G15=$F$17,BORDRO!$I$18,ANASAYFA!$G15=$F$18,BORDRO!$I$18,ANASAYFA!$G15=$F$21,\"-\",ANASAYFA!$G15=$F$22,\"-\",ANASAYFA!$G15=$F$19,BORDRO!$I17,ANASAYFA!$G15=$F$20,BORDRO!$I17,ANASAYFA!$G15=$F$23,BORDRO!$I17,ANASAYFA!G15=\"\",\"\")","v":""},null,null,null,null,{"$f":"IF($AY437=COUNTIF($AH$438:AH438,\"x\"),\"\",IF($AY436=COUNTIF($AH$438:AH438,\"x\"),\"\",IF($AY435=COUNTIF($AH$438:AH438,\"x\"),\"\",IF($AY434=COUNTIF($AH$438:AH438,\"x\"),\"\",IF($AY433=COUNTIF($AH$438:AH438,\"x\"),\"\",IF($AY432=COUNTIF($AH$438:AH438,\"x\"),\"\",IF($AY431=COUNTIF($AH$438:AH438,\"x\"),\"\",IF($AY430=COUNTIF($AH$438:AH438,\"x\"),\"\",IF($AY429=COUNTIF($AH$438:AH438,\"x\"),\"\",IF($AY428=COUNTIF($AH$438:AH438,\"x\"),\"\",(COUNTIF($AH$438:AH438,\"x\"))))))))))))","v":""}]
[null,null,null,null,null,null,null,null,null,null,null,null,null,null,null,null,"","GÜLAĞAÇ",null,null,null,null,null,null,null,null,{"$f":"ANASAYFA!C16","v":0},null,null,null,null,{"$f":"AG439","v":"0"},{"$f":"COUNTIF($AH$438:AH439,\"x\")&AH439","v":"0"},{"$f":"IF(AI439=\"\",\"\",\"x\")","v":""},{"$f":"IF(ANASAYFA!G16=\"\",\"\",ANASAYFA!G16)","v":""},null,{"$f":"AI439","v":""},null,null,{"$f":"IF(ANASAYFA!C16=\"\",\"\",ANASAYFA!C16)","v":""},null,null,{"$f":"AN439","v":""},null,null,{"$f":"_xlfn.IFS(ANASAYFA!$G16=$F$16,\"-\",ANASAYFA!$G16=$F$17,BORDRO!$I$18,ANASAYFA!$G16=$F$18,BORDRO!$I$18,ANASAYFA!$G16=$F$21,\"-\",ANASAYFA!$G16=$F$22,\"-\",ANASAYFA!$G16=$F$19,BORDRO!$I18,ANASAYFA!$G16=$F$20,BORDRO!$I18,ANASAYFA!$G16=$F$23,BORDRO!$I18,ANASAYFA!G16=\"\",\"\")","v":""},null,null,null,null,{"$f":"IF($AY438=COUNTIF($AH$438:AH439,\"x\"),\"\",IF($AY437=COUNTIF($AH$438:AH439,\"x\"),\"\",IF($AY436=COUNTIF($AH$438:AH439,\"x\"),\"\",IF($AY435=COUNTIF($AH$438:AH439,\"x\"),\"\",IF($AY434=COUNTIF($AH$438:AH439,\"x\"),\"\",IF($AY433=COUNTIF($AH$438:AH439,\"x\"),\"\",IF($AY432=COUNTIF($AH$438:AH439,\"x\"),\"\",IF($AY431=COUNTIF($AH$438:AH439,\"x\"),\"\",IF($AY430=COUNTIF($AH$438:AH439,\"x\"),\"\",IF($AY429=COUNTIF($AH$438:AH439,\"x\"),\"\",(COUNTIF($AH$438:AH439,\"x\"))))))))))))","v":""}]
[null,null,null,null,null,null,null,null,null,null,null,null,null,null,null,null,"","GÜLNAR",null,null,null,null,null,null,null,null,{"$f":"ANASAYFA!C17","v":0},null,null,null,null,"0",{"$f":"COUNTIF($AH$438:AH440,\"x\")&AH440","v":"0"},"",{"$f":"IF(ANASAYFA!G17=\"\",\"\",ANASAYFA!G17)","v":""},null,"",null,null,{"$f":"IF(ANASAYFA!C17=\"\",\"\",ANASAYFA!C17)","v":""},null,null,"",null,null,{"$f":"_xlfn.IFS(ANASAYFA!$G17=$F$16,\"-\",ANASAYFA!$G17=$F$17,\"-\",ANASAYFA!$G17=$F$18,\"-\",ANASAYFA!$G17=$F$21,\"-\",ANASAYFA!$G17=$F$22,\"-\",ANASAYFA!$G17=$F$19,BORDRO!$I19,ANASAYFA!$G17=$F$20,BORDRO!$I19,ANASAYFA!$G17=$F$23,BORDRO!$I19,ANASAYFA!G17=\"\",\"\")","v":""},null,null,null,null,{"$f":"IF($AY439=COUNTIF($AH$438:AH440,\"x\"),\"\",IF($AY438=COUNTIF($AH$438:AH440,\"x\"),\"\",IF($AY437=COUNTIF($AH$438:AH440,\"x\"),\"\",IF($AY436=COUNTIF($AH$438:AH440,\"x\"),\"\",IF($AY435=COUNTIF($AH$438:AH440,\"x\"),\"\",IF($AY434=COUNTIF($AH$438:AH440,\"x\"),\"\",IF($AY433=COUNTIF($AH$438:AH440,\"x\"),\"\",IF($AY432=COUNTIF($AH$438:AH440,\"x\"),\"\",IF($AY431=COUNTIF($AH$438:AH440,\"x\"),\"\",IF($AY430=COUNTIF($AH$438:AH440,\"x\"),\"\",(COUNTIF($AH$438:AH440,\"x\"))))))))))))","v":""}]
[null,null,null,null,null,null,null,null,null,null,null,null,null,null,null,null,"","GÜLŞEHİR",null,null,null,null,null,null,null,null,{"$f":"ANASAYFA!C18","v":0},null,null,null,null,"0",{"$f":"COUNTIF($AH$438:AH441,\"x\")&AH441","v":"0"},"",{"$f":"IF(ANASAYFA!G18=\"\",\"\",ANASAYFA!G18)","v":""},null,"",null,null,{"$f":"IF(ANASAYFA!C18=\"\",\"\",ANASAYFA!C18)","v":""},null,null,"",null,null,{"$f":"_xlfn.IFS(ANASAYFA!$G18=$F$16,\"-\",ANASAYFA!$G18=$F$17,\"-\",ANASAYFA!$G18=$F$18,\"-\",ANASAYFA!$G18=$F$21,\"-\",ANASAYFA!$G18=$F$22,\"-\",ANASAYFA!$G18=$F$19,BORDRO!$I20,ANASAYFA!$G18=$F$20,BORDRO!$I20,ANASAYFA!$G18=$F$23,BORDRO!$I20,ANASAYFA!G18=\"\",\"\")","v":""},null,null,null,null,{"$f":"IF($AY440=COUNTIF($AH$438:AH441,\"x\"),\"\",IF($AY439=COUNTIF($AH$438:AH441,\"x\"),\"\",IF($AY438=COUNTIF($AH$438:AH441,\"x\"),\"\",IF($AY437=COUNTIF($AH$438:AH441,\"x\"),\"\",IF($AY436=COUNTIF($AH$438:AH441,\"x\"),\"\",IF($AY435=COUNTIF($AH$438:AH441,\"x\"),\"\",IF($AY434=COUNTIF($AH$438:AH441,\"x\"),\"\",IF($AY433=COUNTIF($AH$438:AH441,\"x\"),\"\",IF($AY432=COUNTIF($AH$438:AH441,\"x\"),\"\",IF($AY431=COUNTIF($AH$438:AH441,\"x\"),\"\",(COUNTIF($AH$438:AH441,\"x\"))))))))))))","v":""}]
[null,null,null,null,null,null,null,null,null,null,null,null,null,null,null,null,"","GÜLYALI",null,null,null,null,null,null,null,null,{"$f":"ANASAYFA!C19","v":0},null,null,null,null,"0",{"$f":"COUNTIF($AH$438:AH442,\"x\")&AH442","v":"0"},"",{"$f":"IF(ANASAYFA!G19=\"\",\"\",ANASAYFA!G19)","v":""},null,"",null,null,{"$f":"IF(ANASAYFA!C19=\"\",\"\",ANASAYFA!C19)","v":""},null,null,"",null,null,{"$f":"_xlfn.IFS(ANASAYFA!$G19=$F$16,\"-\",ANASAYFA!$G19=$F$17,\"-\",ANASAYFA!$G19=$F$18,\"-\",ANASAYFA!$G19=$F$21,\"-\",ANASAYFA!$G19=$F$22,\"-\",ANASAYFA!$G19=$F$19,BORDRO!$I21,ANASAYFA!$G19=$F$20,BORDRO!$I21,ANASAYFA!$G19=$F$23,BORDRO!$I21,ANASAYFA!G19=\"\",\"\")","v":""},null,null,null,null,{"$f":"IF($AY441=COUNTIF($AH$438:AH442,\"x\"),\"\",IF($AY440=COUNTIF($AH$438:AH442,\"x\"),\"\",IF($AY439=COUNTIF($AH$438:AH442,\"x\"),\"\",IF($AY438=COUNTIF($AH$438:AH442,\"x\"),\"\",IF($AY437=COUNTIF($AH$438:AH442,\"x\"),\"\",IF($AY436=COUNTIF($AH$438:AH442,\"x\"),\"\",IF($AY435=COUNTIF($AH$438:AH442,\"x\"),\"\",IF($AY434=COUNTIF($AH$438:AH442,\"x\"),\"\",IF($AY433=COUNTIF($AH$438:AH442,\"x\"),\"\",IF($AY432=COUNTIF($AH$438:AH442,\"x\"),\"\",(COUNTIF($AH$438:AH442,\"x\"))))))))))))","v":""}]
[null,null,null,null,null,null,null,null,null,null,null,null,null,null,null,null,"","GÜMÜŞHACIKÖY",null,null,null,null,null,null,null,null,{"$f":"ANASAYFA!C20","v":0},null,null,null,null,"0",{"$f":"COUNTIF($AH$438:AH443,\"x\")&AH443","v":"0"},"",{"$f":"IF(ANASAYFA!G20=\"\",\"\",ANASAYFA!G20)","v":""},null,"",null,null,{"$f":"IF(ANASAYFA!C20=\"\",\"\",ANASAYFA!C20)","v":""},null,null,"",null,null,{"$f":"_xlfn.IFS(ANASAYFA!$G20=$F$16,\"-\",ANASAYFA!$G20=$F$17,\"-\",ANASAYFA!$G20=$F$18,\"-\",ANASAYFA!$G20=$F$21,\"-\",ANASAYFA!$G20=$F$22,\"-\",ANASAYFA!$G20=$F$19,BORDRO!$I22,ANASAYFA!$G20=$F$20,BORDRO!$I22,ANASAYFA!$G20=$F$23,BORDRO!$I22,ANASAYFA!G20=\"\",\"\")","v":""},null,null,null,null,{"$f":"IF($AY442=COUNTIF($AH$438:AH443,\"x\"),\"\",IF($AY441=COUNTIF($AH$438:AH443,\"x\"),\"\",IF($AY440=COUNTIF($AH$438:AH443,\"x\"),\"\",IF($AY439=COUNTIF($AH$438:AH443,\"x\"),\"\",IF($AY438=COUNTIF($AH$438:AH443,\"x\"),\"\",IF($AY437=COUNTIF($AH$438:AH443,\"x\"),\"\",IF($AY436=COUNTIF($AH$438:AH443,\"x\"),\"\",IF($AY435=COUNTIF($AH$438:AH443,\"x\"),\"\",IF($AY434=COUNTIF($AH$438:AH443,\"x\"),\"\",IF($AY433=COUNTIF($AH$438:AH443,\"x\"),\"\",(COUNTIF($AH$438:AH443,\"x\"))))))))))))","v":""}]
[null,null,null,null,null,null,null,null,null,null,null,null,null,null,null,null,"","GÜMÜŞHANE MERKEZ",null,null,null,null,null,null,null,null,{"$f":"ANASAYFA!C21","v":0},null,null,null,null,"0",{"$f":"COUNTIF($AH$438:AH444,\"x\")&AH444","v":"0"},"",{"$f":"IF(ANASAYFA!G21=\"\",\"\",ANASAYFA!G21)","v":""},null,"",null,null,{"$f":"IF(ANASAYFA!C21=\"\",\"\",ANASAYFA!C21)","v":""},null,null,"",null,null,{"$f":"_xlfn.IFS(ANASAYFA!$G21=$F$16,\"-\",ANASAYFA!$G21=$F$17,\"-\",ANASAYFA!$G21=$F$18,\"-\",ANASAYFA!$G21=$F$21,\"-\",ANASAYFA!$G21=$F$22,\"-\",ANASAYFA!$G21=$F$19,BORDRO!$I23,ANASAYFA!$G21=$F$20,BORDRO!$I23,ANASAYFA!$G21=$F$23,BORDRO!$I23,ANASAYFA!G21=\"\",\"\")","v":""},null,null,null,null,{"$f":"IF($AY443=COUNTIF($AH$438:AH444,\"x\"),\"\",IF($AY442=COUNTIF($AH$438:AH444,\"x\"),\"\",IF($AY441=COUNTIF($AH$438:AH444,\"x\"),\"\",IF($AY440=COUNTIF($AH$438:AH444,\"x\"),\"\",IF($AY439=COUNTIF($AH$438:AH444,\"x\"),\"\",IF($AY438=COUNTIF($AH$438:AH444,\"x\"),\"\",IF($AY437=COUNTIF($AH$438:AH444,\"x\"),\"\",IF($AY436=COUNTIF($AH$438:AH444,\"x\"),\"\",IF($AY435=COUNTIF($AH$438:AH444,\"x\"),\"\",IF($AY434=COUNTIF($AH$438:AH444,\"x\"),\"\",(COUNTIF($AH$438:AH444,\"x\"))))))))))))","v":""}]
[null,null,null,null,null,null,null,null,null,null,null,null,null,null,null,null,"","GÜMÜŞOVA",null,null,null,null,null,null,null,null,{"$f":"ANASAYFA!C22","v":0},null,null,null,null,"0",{"$f":"COUNTIF($AH$438:AH445,\"x\")&AH445","v":"0"},"",{"$f":"IF(ANASAYFA!G22=\"\",\"\",ANASAYFA!G22)","v":""},null,"",null,null,{"$f":"IF(ANASAYFA!C22=\"\",\"\",ANASAYFA!C22)","v":""},null,null,"",null,null,{"$f":"_xlfn.IFS(ANASAYFA!$G22=$F$16,\"-\",ANASAYFA!$G22=$F$17,\"-\",ANASAYFA!$G22=$F$18,\"-\",ANASAYFA!$G22=$F$21,\"-\",ANASAYFA!$G22=$F$22,\"-\",ANASAYFA!$G22=$F$19,BORDRO!$I24,ANASAYFA!$G22=$F$20,BORDRO!$I24,ANASAYFA!$G22=$F$23,BORDRO!$I24,ANASAYFA!G22=\"\",\"\")","v":""},null,null,null,null,{"$f":"IF($AY444=COUNTIF($AH$438:AH445,\"x\"),\"\",IF($AY443=COUNTIF($AH$438:AH445,\"x\"),\"\",IF($AY442=COUNTIF($AH$438:AH445,\"x\"),\"\",IF($AY441=COUNTIF($AH$438:AH445,\"x\"),\"\",IF($AY440=COUNTIF($AH$438:AH445,\"x\"),\"\",IF($AY439=COUNTIF($AH$438:AH445,\"x\"),\"\",IF($AY438=COUNTIF($AH$438:AH445,\"x\"),\"\",IF($AY437=COUNTIF($AH$438:AH445,\"x\"),\"\",IF($AY436=COUNTIF($AH$438:AH445,\"x\"),\"\",IF($AY435=COUNTIF($AH$438:AH445,\"x\"),\"\",(COUNTIF($AH$438:AH445,\"x\"))))))))))))","v":""}]
[null,null,null,null,null,null,null,null,null,null,null,null,null,null,null,null,"","GÜNDOĞMUŞ",null,null,null,null,null,null,null,null,{"$f":"ANASAYFA!C23","v":0},null,null,null,null,"0",{"$f":"COUNTIF($AH$438:AH446,\"x\")&AH446","v":"0"},"",{"$f":"IF(ANASAYFA!G23=\"\",\"\",ANASAYFA!G23)","v":""},null,"",null,null,{"$f":"IF(ANASAYFA!C23=\"\",\"\",ANASAYFA!C23)","v":""},null,null,"",null,null,{"$f":"_xlfn.IFS(ANASAYFA!$G23=$F$16,\"-\",ANASAYFA!$G23=$F$17,\"-\",ANASAYFA!$G23=$F$18,\"-\",ANASAYFA!$G23=$F$21,\"-\",ANASAYFA!$G23=$F$22,\"-\",ANASAYFA!$G23=$F$19,BORDRO!$I25,ANASAYFA!$G23=$F$20,BORDRO!$I25,ANASAYFA!$G23=$F$23,BORDRO!$I25,ANASAYFA!G23=\"\",\"\")","v":""},null,null,null,null,{"$f":"IF($AY445=COUNTIF($AH$438:AH446,\"x\"),\"\",IF($AY444=COUNTIF($AH$438:AH446,\"x\"),\"\",IF($AY443=COUNTIF($AH$438:AH446,\"x\"),\"\",IF($AY442=COUNTIF($AH$438:AH446,\"x\"),\"\",IF($AY441=COUNTIF($AH$438:AH446,\"x\"),\"\",IF($AY440=COUNTIF($AH$438:AH446,\"x\"),\"\",IF($AY439=COUNTIF($AH$438:AH446,\"x\"),\"\",IF($AY438=COUNTIF($AH$438:AH446,\"x\"),\"\",IF($AY437=COUNTIF($AH$438:AH446,\"x\"),\"\",IF($AY436=COUNTIF($AH$438:AH446,\"x\"),\"\",(COUNTIF($AH$438:AH446,\"x\"))))))))))))","v":""}]
[null,null,null,null,null,null,null,null,null,null,null,null,null,null,null,null,"","GÜNEY",null,null,null,null,null,null,null,null,{"$f":"ANASAYFA!C24","v":0},null,null,null,null,"0",{"$f":"COUNTIF($AH$438:AH447,\"x\")&AH447","v":"0"},"",{"$f":"IF(ANASAYFA!G24=\"\",\"\",ANASAYFA!G24)","v":""},null,"",null,null,{"$f":"IF(ANASAYFA!C24=\"\",\"\",ANASAYFA!C24)","v":""},null,null,"",null,null,{"$f":"_xlfn.IFS(ANASAYFA!$G24=$F$16,\"-\",ANASAYFA!$G24=$F$17,\"-\",ANASAYFA!$G24=$F$18,\"-\",ANASAYFA!$G24=$F$21,\"-\",ANASAYFA!$G24=$F$22,\"-\",ANASAYFA!$G24=$F$19,BORDRO!$I26,ANASAYFA!$G24=$F$20,BORDRO!$I26,ANASAYFA!$G24=$F$23,BORDRO!$I26,ANASAYFA!G24=\"\",\"\")","v":""},null,null,null,null,{"$f":"IF($AY446=COUNTIF($AH$438:AH447,\"x\"),\"\",IF($AY445=COUNTIF($AH$438:AH447,\"x\"),\"\",IF($AY444=COUNTIF($AH$438:AH447,\"x\"),\"\",IF($AY443=COUNTIF($AH$438:AH447,\"x\"),\"\",IF($AY442=COUNTIF($AH$438:AH447,\"x\"),\"\",IF($AY441=COUNTIF($AH$438:AH447,\"x\"),\"\",IF($AY440=COUNTIF($AH$438:AH447,\"x\"),\"\",IF($AY439=COUNTIF($AH$438:AH447,\"x\"),\"\",IF($AY438=COUNTIF($AH$438:AH447,\"x\"),\"\",IF($AY437=COUNTIF($AH$438:AH447,\"x\"),\"\",(COUNTIF($AH$438:AH447,\"x\"))))))))))))","v":0}]
[null,null,null,null,null,null,null,null,null,null,null,null,null,null,null,null,"","GÜNEYSINIR",null,null,null,null,null,null,null,null,{"$f":"ANASAYFA!C25","v":0},null,null,null,null,"0",{"$f":"COUNTIF($AH$438:AH448,\"x\")&AH448","v":"0"},"",{"$f":"IF(ANASAYFA!G25=\"\",\"\",ANASAYFA!G25)","v":""},null,"",null,null,{"$f":"IF(ANASAYFA!C25=\"\",\"\",ANASAYFA!C25)","v":""},null,null,"",null,null,{"$f":"_xlfn.IFS(ANASAYFA!$G25=$F$16,\"-\",ANASAYFA!$G25=$F$17,\"-\",ANASAYFA!$G25=$F$18,\"-\",ANASAYFA!$G25=$F$21,\"-\",ANASAYFA!$G25=$F$22,\"-\",ANASAYFA!$G25=$F$19,BORDRO!$I27,ANASAYFA!$G25=$F$20,BORDRO!$I27,ANASAYFA!$G25=$F$23,BORDRO!$I27,ANASAYFA!G25=\"\",\"\")","v":""},null,null,null,null,{"$f":"IF($AY447=COUNTIF($AH$438:AH448,\"x\"),\"\",IF($AY446=COUNTIF($AH$438:AH448,\"x\"),\"\",IF($AY445=COUNTIF($AH$438:AH448,\"x\"),\"\",IF($AY444=COUNTIF($AH$438:AH448,\"x\"),\"\",IF($AY443=COUNTIF($AH$438:AH448,\"x\"),\"\",IF($AY442=COUNTIF($AH$438:AH448,\"x\"),\"\",IF($AY441=COUNTIF($AH$438:AH448,\"x\"),\"\",IF($AY440=COUNTIF($AH$438:AH448,\"x\"),\"\",IF($AY439=COUNTIF($AH$438:AH448,\"x\"),\"\",IF($AY438=COUNTIF($AH$438:AH448,\"x\"),\"\",(COUNTIF($AH$438:AH448,\"x\"))))))))))))","v":""}]
[null,null,null,null,null,null,null,null,null,null,null,null,null,null,null,null,"","GÜNEYSU",null,null,null,null,null,null,null,null,{"$f":"ANASAYFA!C26","v":0},null,null,null,null,"0",{"$f":"COUNTIF($AH$438:AH449,\"x\")&AH449","v":"0"},"",{"$f":"IF(ANASAYFA!G26=\"\",\"\",ANASAYFA!G26)","v":""},null,"",null,null,{"$f":"IF(ANASAYFA!C26=\"\",\"\",ANASAYFA!C26)","v":""},null,null,"",null,null,{"$f":"_xlfn.IFS(ANASAYFA!$G26=$F$16,\"-\",ANASAYFA!$G26=$F$17,\"-\",ANASAYFA!$G26=$F$18,\"-\",ANASAYFA!$G26=$F$21,\"-\",ANASAYFA!$G26=$F$22,\"-\",ANASAYFA!$G26=$F$19,BORDRO!$I28,ANASAYFA!$G26=$F$20,BORDRO!$I28,ANASAYFA!$G26=$F$23,BORDRO!$I28,ANASAYFA!G26=\"\",\"\")","v":""},null,null,null,null,{"$f":"IF($AY448=COUNTIF($AH$438:AH449,\"x\"),\"\",IF($AY447=COUNTIF($AH$438:AH449,\"x\"),\"\",IF($AY446=COUNTIF($AH$438:AH449,\"x\"),\"\",IF($AY445=COUNTIF($AH$438:AH449,\"x\"),\"\",IF($AY444=COUNTIF($AH$438:AH449,\"x\"),\"\",IF($AY443=COUNTIF($AH$438:AH449,\"x\"),\"\",IF($AY442=COUNTIF($AH$438:AH449,\"x\"),\"\",IF($AY441=COUNTIF($AH$438:AH449,\"x\"),\"\",IF($AY440=COUNTIF($AH$438:AH449,\"x\"),\"\",IF($AY439=COUNTIF($AH$438:AH449,\"x\"),\"\",(COUNTIF($AH$438:AH449,\"x\"))))))))))))","v":""}]
[null,null,null,null,null,null,null,null,null,null,null,null,null,null,null,null,"","GÜNGÖREN",null,null,null,null,null,null,null,null,{"$f":"ANASAYFA!C27","v":0},null,null,null,null,"0",{"$f":"COUNTIF($AH$438:AH450,\"x\")&AH450","v":"0"},"",{"$f":"IF(ANASAYFA!G27=\"\",\"\",ANASAYFA!G27)","v":""},null,"",null,null,{"$f":"IF(ANASAYFA!C27=\"\",\"\",ANASAYFA!C27)","v":""},null,null,"",null,null,{"$f":"_xlfn.IFS(ANASAYFA!$G27=$F$16,\"-\",ANASAYFA!$G27=$F$17,\"-\",ANASAYFA!$G27=$F$18,\"-\",ANASAYFA!$G27=$F$21,\"-\",ANASAYFA!$G27=$F$22,\"-\",ANASAYFA!$G27=$F$19,BORDRO!$I29,ANASAYFA!$G27=$F$20,BORDRO!$I29,ANASAYFA!$G27=$F$23,BORDRO!$I29,ANASAYFA!G27=\"\",\"\")","v":""},null,null,null,null,{"$f":"IF($AY449=COUNTIF($AH$438:AH450,\"x\"),\"\",IF($AY448=COUNTIF($AH$438:AH450,\"x\"),\"\",IF($AY447=COUNTIF($AH$438:AH450,\"x\"),\"\",IF($AY446=COUNTIF($AH$438:AH450,\"x\"),\"\",IF($AY445=COUNTIF($AH$438:AH450,\"x\"),\"\",IF($AY444=COUNTIF($AH$438:AH450,\"x\"),\"\",IF($AY443=COUNTIF($AH$438:AH450,\"x\"),\"\",IF($AY442=COUNTIF($AH$438:AH450,\"x\"),\"\",IF($AY441=COUNTIF($AH$438:AH450,\"x\"),\"\",IF($AY440=COUNTIF($AH$438:AH450,\"x\"),\"\",(COUNTIF($AH$438:AH450,\"x\"))))))))))))","v":""}]
[null,null,null,null,null,null,null,null,null,null,null,null,null,null,null,null,"","GÜNYÜZÜ",null,null,null,null,null,null,null,null,{"$f":"ANASAYFA!C28","v":0},null,null,null,null,"0",{"$f":"COUNTIF($AH$438:AH451,\"x\")&AH451","v":"0"},"",{"$f":"IF(ANASAYFA!G28=\"\",\"\",ANASAYFA!G28)","v":""},null,"",null,null,{"$f":"IF(ANASAYFA!C28=\"\",\"\",ANASAYFA!C28)","v":""},null,null,"",null,null,{"$f":"_xlfn.IFS(ANASAYFA!$G28=$F$16,\"-\",ANASAYFA!$G28=$F$17,\"-\",ANASAYFA!$G28=$F$18,\"-\",ANASAYFA!$G28=$F$21,\"-\",ANASAYFA!$G28=$F$22,\"-\",ANASAYFA!$G28=$F$19,BORDRO!$I30,ANASAYFA!$G28=$F$20,BORDRO!$I30,ANASAYFA!$G28=$F$23,BORDRO!$I30,ANASAYFA!G28=\"\",\"\")","v":""},null,null,null,null,{"$f":"IF($AY450=COUNTIF($AH$438:AH451,\"x\"),\"\",IF($AY449=COUNTIF($AH$438:AH451,\"x\"),\"\",IF($AY448=COUNTIF($AH$438:AH451,\"x\"),\"\",IF($AY447=COUNTIF($AH$438:AH451,\"x\"),\"\",IF($AY446=COUNTIF($AH$438:AH451,\"x\"),\"\",IF($AY445=COUNTIF($AH$438:AH451,\"x\"),\"\",IF($AY444=COUNTIF($AH$438:AH451,\"x\"),\"\",IF($AY443=COUNTIF($AH$438:AH451,\"x\"),\"\",IF($AY442=COUNTIF($AH$438:AH451,\"x\"),\"\",IF($AY441=COUNTIF($AH$438:AH451,\"x\"),\"\",(COUNTIF($AH$438:AH451,\"x\"))))))))))))","v":""}]
[null,null,null,null,null,null,null,null,null,null,null,null,null,null,null,null,"","GÜRGENTEPE",null,null,null,null,null,null,null,null,{"$f":"ANASAYFA!C29","v":0},null,null,null,null,"0",{"$f":"COUNTIF($AH$438:AH452,\"x\")&AH452","v":"0"},"",{"$f":"IF(ANASAYFA!G29=\"\",\"\",ANASAYFA!G29)","v":""},null,"",null,null,{"$f":"IF(ANASAYFA!C29=\"\",\"\",ANASAYFA!C29)","v":""},null,null,"",null,null,{"$f":"_xlfn.IFS(ANASAYFA!$G29=$F$16,\"-\",ANASAYFA!$G29=$F$17,\"-\",ANASAYFA!$G29=$F$18,\"-\",ANASAYFA!$G29=$F$21,\"-\",ANASAYFA!$G29=$F$22,\"-\",ANASAYFA!$G29=$F$19,BORDRO!$I31,ANASAYFA!$G29=$F$20,BORDRO!$I31,ANASAYFA!$G29=$F$23,BORDRO!$I31,ANASAYFA!G29=\"\",\"\")","v":""},null,null,null,null,{"$f":"IF($AY451=COUNTIF($AH$438:AH452,\"x\"),\"\",IF($AY450=COUNTIF($AH$438:AH452,\"x\"),\"\",IF($AY449=COUNTIF($AH$438:AH452,\"x\"),\"\",IF($AY448=COUNTIF($AH$438:AH452,\"x\"),\"\",IF($AY447=COUNTIF($AH$438:AH452,\"x\"),\"\",IF($AY446=COUNTIF($AH$438:AH452,\"x\"),\"\",IF($AY445=COUNTIF($AH$438:AH452,\"x\"),\"\",IF($AY444=COUNTIF($AH$438:AH452,\"x\"),\"\",IF($AY443=COUNTIF($AH$438:AH452,\"x\"),\"\",IF($AY442=COUNTIF($AH$438:AH452,\"x\"),\"\",(COUNTIF($AH$438:AH452,\"x\"))))))))))))","v":""}]
[null,null,null,null,null,null,null,null,null,null,null,null,null,null,null,null,"","GÜROYMAK",null,null,null,null,null,null,null,null,null,null,null,null,null,null,null,null,null,null,null,null,null,null,null,null,null,null,null,null,null,null,null,null,{"$f":"IF($AY452=COUNTIF($AH$438:AH453,\"x\"),\"\",IF($AY451=COUNTIF($AH$438:AH453,\"x\"),\"\",IF($AY450=COUNTIF($AH$438:AH453,\"x\"),\"\",IF($AY449=COUNTIF($AH$438:AH453,\"x\"),\"\",IF($AY448=COUNTIF($AH$438:AH453,\"x\"),\"\",IF($AY447=COUNTIF($AH$438:AH453,\"x\"),\"\",IF($AY446=COUNTIF($AH$438:AH453,\"x\"),\"\",IF($AY445=COUNTIF($AH$438:AH453,\"x\"),\"\",IF($AY444=COUNTIF($AH$438:AH453,\"x\"),\"\",IF($AY443=COUNTIF($AH$438:AH453,\"x\"),\"\",(COUNTIF($AH$438:AH453,\"x\"))))))))))))","v":""}]
[null,null,null,null,null,null,null,null,null,null,null,null,null,null,null,null,"","GÜRPINAR",null,null,null,null,null,null,null,null,null,null,null,null,null,null,null,null,null,null,null,null,null,null,null,null,null,null,null,null,null,null,null,null,{"$f":"IF($AY453=COUNTIF($AH$438:AH454,\"x\"),\"\",IF($AY452=COUNTIF($AH$438:AH454,\"x\"),\"\",IF($AY451=COUNTIF($AH$438:AH454,\"x\"),\"\",IF($AY450=COUNTIF($AH$438:AH454,\"x\"),\"\",IF($AY449=COUNTIF($AH$438:AH454,\"x\"),\"\",IF($AY448=COUNTIF($AH$438:AH454,\"x\"),\"\",IF($AY447=COUNTIF($AH$438:AH454,\"x\"),\"\",IF($AY446=COUNTIF($AH$438:AH454,\"x\"),\"\",IF($AY445=COUNTIF($AH$438:AH454,\"x\"),\"\",IF($AY444=COUNTIF($AH$438:AH454,\"x\"),\"\",(COUNTIF($AH$438:AH454,\"x\"))))))))))))","v":""}]
[null,null,null,null,null,null,null,null,null,null,null,null,null,null,null,null,"","GÜRSU",null,null,null,null,null,null,null,null,null,null,null,null,null,null,null,null,null,null,null,null,null,null,null,null,null,null,null,1618,null,null,null,null,{"$f":"IF($AY454=COUNTIF($AH$438:AH455,\"x\"),\"\",IF($AY453=COUNTIF($AH$438:AH455,\"x\"),\"\",IF($AY452=COUNTIF($AH$438:AH455,\"x\"),\"\",IF($AY451=COUNTIF($AH$438:AH455,\"x\"),\"\",IF($AY450=COUNTIF($AH$438:AH455,\"x\"),\"\",IF($AY449=COUNTIF($AH$438:AH455,\"x\"),\"\",IF($AY448=COUNTIF($AH$438:AH455,\"x\"),\"\",IF($AY447=COUNTIF($AH$438:AH455,\"x\"),\"\",IF($AY446=COUNTIF($AH$438:AH455,\"x\"),\"\",IF($AY445=COUNTIF($AH$438:AH455,\"x\"),\"\",(COUNTIF($AH$438:AH455,\"x\"))))))))))))","v":""}]
[null,null,null,null,null,null,null,null,null,null,null,null,null,null,null,null,"","GÜRÜN",null,null,null,null,null,null,null,null,null,null,null,null,null,null,null,null,null,null,null,null,null,null,null,null,null,null,null,null,null,null,null,null,{"$f":"IF($AY455=COUNTIF($AH$438:AH456,\"x\"),\"\",IF($AY454=COUNTIF($AH$438:AH456,\"x\"),\"\",IF($AY453=COUNTIF($AH$438:AH456,\"x\"),\"\",IF($AY452=COUNTIF($AH$438:AH456,\"x\"),\"\",IF($AY451=COUNTIF($AH$438:AH456,\"x\"),\"\",IF($AY450=COUNTIF($AH$438:AH456,\"x\"),\"\",IF($AY449=COUNTIF($AH$438:AH456,\"x\"),\"\",IF($AY448=COUNTIF($AH$438:AH456,\"x\"),\"\",IF($AY447=COUNTIF($AH$438:AH456,\"x\"),\"\",IF($AY446=COUNTIF($AH$438:AH456,\"x\"),\"\",(COUNTIF($AH$438:AH456,\"x\"))))))))))))","v":""}]
[null,null,null,null,null,null,null,null,null,null,null,null,null,null,null,null,"","GÜZELBAHÇE"]
[null,null,null,null,null,null,null,null,null,null,null,"İ/R",null,null,null,null,"","GÜZELYURT"]
[null,null,null,null,null,null,null,null,null,null,null,"X",null,null,null,null,"","HACIBEKTAŞ"]
[null,null,null,null,null,null,null,null,null,null,null,1,null,null,null,null,"","HACILAR"]
[null,null,null,null,null,null,null,null,null,null,null,2,null,null,null,null,"","HADIM"]
[null,null,null,null,null,null,null,null,null,null,null,3,null,null,null,null,"","HAFİK"]
[null,null,null,null,null,null,null,null,null,null,null,4,null,null,null,null,"","HAKKARİ MERKEZ"]
[null,null,null,null,null,null,null,null,null,null,null,5,null,null,null,null,"","HALFETİ"]
[null,null,null,null,null,null,null,null,null,null,null,6,null,null,null,null,"","HALKAPINAR"]
[null,null,null,null,null,null,null,null,null,null,null,7,null,null,null,null,"","HAMAMÖZÜ"]
[null,null,null,null,null,null,null,null,null,null,null,8,null,null,null,null,"","HAMUR"]
[null,null,null,null,null,null,null,null,null,null,null,9,null,null,null,null,"","HAN"]
[null,null,null,null,null,null,null,null,null,null,null,10,null,null,null,null,"","HANAK"]
[null,null,null,null,null,null,null,null,null,null,null,null,null,null,null,null,"","HANİ"]
[null,null,null,null,null,null,null,null,null,null,null,null,null,null,null,null,"","HANÖNÜ"]
[null,null,null,null,null,null,null,null,null,null,null,null,null,null,null,null,{"$f":"UPPER(P472)","v":""},"HARMANCIK"]
[null,null,null,null,null,null,null,null,null,null,null,null,null,null,null,null,"","HARRAN"]
[null,null,null,null,null,null,null,null,null,null,null,null,null,null,null,null,"","HASANBEYLİ"]
[null,null,null,null,null,null,null,null,null,null,null,null,null,null,null,null,"","HASANKEYF"]
[null,"TABLO HATA KONTROL",null,null,null,null,null,null,null,null,null,null,null,null,null,null,"","HASKÖY"]
[null,null,null,null,null,null,null,null,null,null,null,null,null,null,null,null,"","HASSA",null,null,null,null,null,null,null,null,null,null,null,null,null,{"$f":"KAYNAK!AN485","v":""},null,null,{"$f":"KAYNAK!AQ485","v":{"$error":"#N/A"}},{"$f":"KAYNAK!AR485","v":{"$error":"#N/A"}},{"$f":"_xlfn.IFS(AI477=\" \",\" \",BORDRO!AK478:AK478=KAYNAK!$F$16,\"\",BORDRO!AK478:AK478=KAYNAK!$F$17,\"\",BORDRO!AK478:AK478=KAYNAK!$F$18,\"\",BORDRO!AK478=KAYNAK!$F$21,\"\",BORDRO!AK478=KAYNAK!$F$22,\"\",BORDRO!AK478=KAYNAK!$F$19,ANASAYFA!AM473,BORDRO!AK478=KAYNAK!$F$20,ANASAYFA!AM473,AI477=KAYNAK!$F$23,ANASAYFA!AM473)","v":{"$error":"#N/A"}},{"$f":"_xlfn.IFS(AI477=\" \",\" \",BORDRO!AK478:AK478=KAYNAK!$F$16,\"\",BORDRO!AK478:AK478=KAYNAK!$F$17,\"\",BORDRO!AK478:AK478=KAYNAK!$F$18,\"\",BORDRO!AK478=KAYNAK!$F$21,\"\",BORDRO!AK478=KAYNAK!$F$22,\"\",BORDRO!AK478=KAYNAK!$F$19,ANASAYFA!AN473,BORDRO!AK478=KAYNAK!$F$20,ANASAYFA!AN473,AI477=KAYNAK!$F$23,ANASAYFA!AN473)","v":{"$error":"#N/A"}},{"$f":"IFERROR(AK477+AL477,\"\")","v":""},{"$f":"IF(ANASAYFA!AO473=\"\",\"\",ANASAYFA!AO473)","v":""},{"$f":"IFERROR(AP477+AW477+AX477,AP477)","v":{"$error":"#N/A"}},{"$f":"_xlfn.IFS(AI477=\" \",\" \",BORDRO!AK478=KAYNAK!$F$16,KAYNAK!$K$44,AI477=KAYNAK!$F$17,KAYNAK!$K$45,AI477=KAYNAK!$F$18,KAYNAK!$K$45,BORDRO!AK478=KAYNAK!$F$21,KAYNAK!$M$45,BORDRO!AK478=KAYNAK!$F$22,KAYNAK!$K$46,BORDRO!AK478=KAYNAK!$F$19,KAYNAK!AS513,BORDRO!AK478=KAYNAK!$F$20,KAYNAK!AS513,AI477=KAYNAK!$G$50,KAYNAK!AS513)","v":{"$error":"#N/A"}},{"$f":"IFERROR(AP477-AU477-AV477,AP477)","v":{"$error":"#N/A"}},{"$f":"_xlfn.IFS(AI477=\" \",\" \",AJ477=KAYNAK!$G$16,(AP477*759/100000),AJ477=KAYNAK!$G$17,IF((AP477*759/100000)<KAYNAK!$A$71,0,(AP477*759/100000)-KAYNAK!AF532))","v":{"$error":"#N/A"}},null,{"$f":"_xlfn.IFS(AN477=\" \",\" \",AJ477=KAYNAK!$G$16,AP477*AN477,AJ477=KAYNAK!$G$17,IF((AP477*AN477)<KAYNAK!$A$72,0,(AP477*AN477)-KAYNAK!$A$72))","v":{"$error":"#N/A"}},{"$f":"_xlfn.IFS(AI477=\" \",\" \",AJ477=KAYNAK!$G$16,\"\",AJ477=KAYNAK!$G$17,CEILING(AP477/100*14,0.1))","v":{"$error":"#N/A"}},{"$f":"_xlfn.IFS(AI477=\" \",\" \",AJ477=KAYNAK!$G$16,\"\",AJ477=KAYNAK!$G$17,CEILING(AP477/100*1,0.1))","v":{"$error":"#N/A"}},{"$f":"_xlfn.IFS(AI477=\" \",\" \",AJ477=KAYNAK!$G$16,\"\",AJ477=KAYNAK!$G$17,CEILING(AQ477/100*20.5,0.1))","v":{"$error":"#N/A"}},{"$f":"_xlfn.IFS(AI477=\" \",\" \",AJ477=KAYNAK!$G$16,\"\",AJ477=KAYNAK!$G$17,CEILING(AQ477/100*2,0.1))","v":{"$error":"#N/A"}},{"$f":"_xlfn.IFS(AJ477=\" \",\" \",AJ477=KAYNAK!$G$16,KAYNAK!AO536,BORDRO!AL478=KAYNAK!$G$17,KAYNAK!AS536)","v":{"$error":"#N/A"}},{"$f":"IFERROR(AW477+AX477,\"\")","v":""},{"$f":"IFERROR(AP477-AY477,AP477)","v":{"$error":"#N/A"}}]
[null,null,null,null,null,null,null,null,null,null,null,null,null,null,null,null,"","HATAY MERKEZ",null,null,null,null,null,null,null,null,null,null,null,null,null,{"$f":"KAYNAK!AN486","v":""},null,null,{"$f":"KAYNAK!AQ486","v":{"$error":"#N/A"}},{"$f":"KAYNAK!AR486","v":{"$error":"#N/A"}},{"$f":"_xlfn.IFS(AI478=\" \",\" \",BORDRO!AK479:AK479=KAYNAK!$F$16,\"\",BORDRO!AK479:AK479=KAYNAK!$F$17,\"\",BORDRO!AK479:AK479=KAYNAK!$F$18,\"\",BORDRO!AK479=KAYNAK!$F$21,\"\",BORDRO!AK479=KAYNAK!$F$22,\"\",BORDRO!AK479=KAYNAK!$F$19,ANASAYFA!AM474,BORDRO!AK479=KAYNAK!$F$20,ANASAYFA!AM474,AI478=KAYNAK!$F$23,ANASAYFA!AM474)","v":{"$error":"#N/A"}},{"$f":"_xlfn.IFS(AI478=\" \",\" \",BORDRO!AK479:AK479=KAYNAK!$F$16,\"\",BORDRO!AK479:AK479=KAYNAK!$F$17,\"\",BORDRO!AK479:AK479=KAYNAK!$F$18,\"\",BORDRO!AK479=KAYNAK!$F$21,\"\",BORDRO!AK479=KAYNAK!$F$22,\"\",BORDRO!AK479=KAYNAK!$F$19,ANASAYFA!AN474,BORDRO!AK479=KAYNAK!$F$20,ANASAYFA!AN474,AI478=KAYNAK!$F$23,ANASAYFA!AN474)","v":{"$error":"#N/A"}},{"$f":"IFERROR(AK478+AL478,\"\")","v":""},{"$f":"IF(ANASAYFA!AO474=\"\",\"\",ANASAYFA!AO474)","v":""},{"$f":"IFERROR(AP478+AW478+AX478,AP478)","v":{"$error":"#N/A"}},{"$f":"_xlfn.IFS(AI478=\" \",\" \",BORDRO!AK479=KAYNAK!$F$16,KAYNAK!$K$44,AI478=KAYNAK!$F$17,KAYNAK!$K$45,AI478=KAYNAK!$F$18,KAYNAK!$K$45,BORDRO!AK479=KAYNAK!$F$21,KAYNAK!$M$45,BORDRO!AK479=KAYNAK!$F$22,KAYNAK!$K$46,BORDRO!AK479=KAYNAK!$F$19,KAYNAK!AS514,BORDRO!AK479=KAYNAK!$F$20,KAYNAK!AS514,AI478=KAYNAK!$G$50,KAYNAK!AS514)","v":{"$error":"#N/A"}},{"$f":"IFERROR(AP478-AU478-AV478,AP478)","v":{"$error":"#N/A"}},{"$f":"_xlfn.IFS(AI478=\" \",\" \",AJ478=KAYNAK!$G$16,(AP478*759/100000),AJ478=KAYNAK!$G$17,IF((AP478*759/100000)<KAYNAK!$A$71,0,(AP478*759/100000)-KAYNAK!AF533))","v":{"$error":"#N/A"}},null,{"$f":"_xlfn.IFS(AI478=\" \",\" \",AJ478=KAYNAK!$G$16,AP478*AN478,AJ478=KAYNAK!$G$17,IF((AP478*AN478)<KAYNAK!$A$72,0,(AP478*AN478)-KAYNAK!$A$72))","v":{"$error":"#N/A"}},{"$f":"_xlfn.IFS(AI478=\" \",\" \",AJ478=KAYNAK!$G$16,\"\",AJ478=KAYNAK!$G$17,CEILING(AP478/100*14,0.1))","v":{"$error":"#N/A"}},{"$f":"_xlfn.IFS(AI478=\" \",\" \",AJ478=KAYNAK!$G$16,\"\",AJ478=KAYNAK!$G$17,CEILING(AP478/100*1,0.1))","v":{"$error":"#N/A"}},{"$f":"_xlfn.IFS(AI478=\" \",\" \",AJ478=KAYNAK!$G$16,\"\",AJ478=KAYNAK!$G$17,CEILING(AQ478/100*20.5,0.1))","v":{"$error":"#N/A"}},{"$f":"_xlfn.IFS(AI478=\" \",\" \",AJ478=KAYNAK!$G$16,\"\",AJ478=KAYNAK!$G$17,CEILING(AQ478/100*2,0.1))","v":{"$error":"#N/A"}},{"$f":"_xlfn.IFS(AJ478=\" \",\" \",AJ478=KAYNAK!$G$16,KAYNAK!AO537,BORDRO!AL479=KAYNAK!$G$17,KAYNAK!AS537)","v":{"$error":"#N/A"}},"",{"$error":"#N/A"}]
[null,null,null,null,null,null,null,null,null,null,null,null,null,null,null,null,"","HAVRAN",null,null,null,null,null,null,null,null,null,null,null,null,null,{"$f":"KAYNAK!AN487","v":""},null,null,{"$f":"KAYNAK!AQ487","v":{"$error":"#N/A"}},{"$f":"KAYNAK!AR487","v":{"$error":"#N/A"}},{"$f":"_xlfn.IFS(AI479=\" \",\" \",BORDRO!AK480:AK480=KAYNAK!$F$16,\"\",BORDRO!AK480:AK480=KAYNAK!$F$17,\"\",BORDRO!AK480:AK480=KAYNAK!$F$18,\"\",BORDRO!AK480=KAYNAK!$F$21,\"\",BORDRO!AK480=KAYNAK!$F$22,\"\",BORDRO!AK480=KAYNAK!$F$19,ANASAYFA!AM475,BORDRO!AK480=KAYNAK!$F$20,ANASAYFA!AM475,AI479=KAYNAK!$F$23,ANASAYFA!AM475)","v":{"$error":"#N/A"}},{"$f":"_xlfn.IFS(AI479=\" \",\" \",BORDRO!AK480:AK480=KAYNAK!$F$16,\"\",BORDRO!AK480:AK480=KAYNAK!$F$17,\"\",BORDRO!AK480:AK480=KAYNAK!$F$18,\"\",BORDRO!AK480=KAYNAK!$F$21,\"\",BORDRO!AK480=KAYNAK!$F$22,\"\",BORDRO!AK480=KAYNAK!$F$19,ANASAYFA!AN475,BORDRO!AK480=KAYNAK!$F$20,ANASAYFA!AN475,AI479=KAYNAK!$F$23,ANASAYFA!AN475)","v":{"$error":"#N/A"}},"",{"$f":"IF(ANASAYFA!AO475=\"\",\"\",ANASAYFA!AO475)","v":""},{"$error":"#N/A"},{"$f":"_xlfn.IFS(AI479=\" \",\" \",BORDRO!AK480=KAYNAK!$F$16,KAYNAK!$K$44,AI479=KAYNAK!$F$17,KAYNAK!$K$45,AI479=KAYNAK!$F$18,KAYNAK!$K$45,BORDRO!AK480=KAYNAK!$F$21,KAYNAK!$M$45,BORDRO!AK480=KAYNAK!$F$22,KAYNAK!$K$46,BORDRO!AK480=KAYNAK!$F$19,KAYNAK!AS515,BORDRO!AK480=KAYNAK!$F$20,KAYNAK!AS515,AI479=KAYNAK!$G$50,KAYNAK!AS515)","v":{"$error":"#N/A"}},{"$f":"IFERROR(AP479-AU479-AV479,AP479)","v":{"$error":"#N/A"}},{"$f":"_xlfn.IFS(AI479=\" \",\" \",AJ479=KAYNAK!$G$16,(AP479*759/100000),AJ479=KAYNAK!$G$17,IF((AP479*759/100000)<KAYNAK!$A$71,0,(AP479*759/100000)-KAYNAK!AF534))","v":{"$error":"#N/A"}},null,{"$f":"_xlfn.IFS(AI479=\" \",\" \",AJ479=KAYNAK!$G$16,AP479*AN479,AJ479=KAYNAK!$G$17,IF((AP479*AN479)<KAYNAK!$A$72,0,(AP479*AN479)-KAYNAK!$A$72))","v":{"$error":"#N/A"}},{"$f":"_xlfn.IFS(AI479=\" \",\" \",AJ479=KAYNAK!$G$16,\"\",AJ479=KAYNAK!$G$17,CEILING(AP479/100*14,0.1))","v":{"$error":"#N/A"}},{"$f":"_xlfn.IFS(AI479=\" \",\" \",AJ479=KAYNAK!$G$16,\"\",AJ479=KAYNAK!$G$17,CEILING(AP479/100*1,0.1))","v":{"$error":"#N/A"}},{"$f":"_xlfn.IFS(AI479=\" \",\" \",AJ479=KAYNAK!$G$16,\"\",AJ479=KAYNAK!$G$17,CEILING(AQ479/100*20.5,0.1))","v":{"$error":"#N/A"}},{"$f":"_xlfn.IFS(AI479=\" \",\" \",AJ479=KAYNAK!$G$16,\"\",AJ479=KAYNAK!$G$17,CEILING(AQ479/100*2,0.1))","v":{"$error":"#N/A"}},{"$f":"_xlfn.IFS(AJ479=\" \",\" \",AJ479=KAYNAK!$G$16,KAYNAK!AO538,BORDRO!AL480=KAYNAK!$G$17,KAYNAK!AS538)","v":{"$error":"#N/A"}},"",{"$error":"#N/A"}]
[null,null,null,null,null,null,null,null,null,null,null,null,null,null,null,null,"","HAVSA",null,null,null,null,null,null,null,null,null,null,null,null,null,{"$f":"KAYNAK!AN488","v":""},null,null,{"$f":"KAYNAK!AQ488","v":{"$error":"#N/A"}},{"$f":"KAYNAK!AR488","v":{"$error":"#N/A"}},{"$f":"_xlfn.IFS(AI480=\" \",\" \",BORDRO!AK481:AK481=KAYNAK!$F$16,\"\",BORDRO!AK481:AK481=KAYNAK!$F$17,\"\",BORDRO!AK481:AK481=KAYNAK!$F$18,\"\",BORDRO!AK481=KAYNAK!$F$21,\"\",BORDRO!AK481=KAYNAK!$F$22,\"\",BORDRO!AK481=KAYNAK!$F$19,ANASAYFA!AM476,BORDRO!AK481=KAYNAK!$F$20,ANASAYFA!AM476,AI480=KAYNAK!$F$23,ANASAYFA!AM476)","v":{"$error":"#N/A"}},{"$f":"_xlfn.IFS(AI480=\" \",\" \",BORDRO!AK481:AK481=KAYNAK!$F$16,\"\",BORDRO!AK481:AK481=KAYNAK!$F$17,\"\",BORDRO!AK481:AK481=KAYNAK!$F$18,\"\",BORDRO!AK481=KAYNAK!$F$21,\"\",BORDRO!AK481=KAYNAK!$F$22,\"\",BORDRO!AK481=KAYNAK!$F$19,ANASAYFA!AN476,BORDRO!AK481=KAYNAK!$F$20,ANASAYFA!AN476,AI480=KAYNAK!$F$23,ANASAYFA!AN476)","v":{"$error":"#N/A"}},"",{"$f":"IF(ANASAYFA!AO476=\"\",\"\",ANASAYFA!AO476)","v":""},{"$error":"#N/A"},{"$f":"_xlfn.IFS(AI480=\" \",\" \",BORDRO!AK481=KAYNAK!$F$16,KAYNAK!$K$44,AI480=KAYNAK!$F$17,KAYNAK!$K$45,AI480=KAYNAK!$F$18,KAYNAK!$K$45,BORDRO!AK481=KAYNAK!$F$21,KAYNAK!$M$45,BORDRO!AK481=KAYNAK!$F$22,KAYNAK!$K$46,BORDRO!AK481=KAYNAK!$F$19,KAYNAK!AS516,BORDRO!AK481=KAYNAK!$F$20,KAYNAK!AS516,AI480=KAYNAK!$G$50,KAYNAK!AS516)","v":{"$error":"#N/A"}},{"$error":"#N/A"},{"$f":"_xlfn.IFS(AI480=\" \",\" \",AJ480=KAYNAK!$G$16,(AP480*759/100000),AJ480=KAYNAK!$G$17,IF((AP480*759/100000)<KAYNAK!$A$71,0,(AP480*759/100000)-KAYNAK!AF535))","v":{"$error":"#N/A"}},null,{"$f":"_xlfn.IFS(AI480=\" \",\" \",AJ480=KAYNAK!$G$16,AP480*AN480,AJ480=KAYNAK!$G$17,IF((AP480*AN480)<KAYNAK!$A$72,0,(AP480*AN480)-KAYNAK!$A$72))","v":{"$error":"#N/A"}},{"$f":"_xlfn.IFS(AI480=\" \",\" \",AJ480=KAYNAK!$G$16,\"\",AJ480=KAYNAK!$G$17,CEILING(AP480/100*14,0.1))","v":{"$error":"#N/A"}},{"$f":"_xlfn.IFS(AI480=\" \",\" \",AJ480=KAYNAK!$G$16,\"\",AJ480=KAYNAK!$G$17,CEILING(AP480/100*1,0.1))","v":{"$error":"#N/A"}},{"$f":"_xlfn.IFS(AI480=\" \",\" \",AJ480=KAYNAK!$G$16,\"\",AJ480=KAYNAK!$G$17,CEILING(AQ480/100*20.5,0.1))","v":{"$error":"#N/A"}},{"$f":"_xlfn.IFS(AI480=\" \",\" \",AJ480=KAYNAK!$G$16,\"\",AJ480=KAYNAK!$G$17,CEILING(AQ480/100*2,0.1))","v":{"$error":"#N/A"}},{"$f":"_xlfn.IFS(AJ480=\" \",\" \",AJ480=KAYNAK!$G$16,KAYNAK!AO539,BORDRO!AL481=KAYNAK!$G$17,KAYNAK!AS539)","v":{"$error":"#N/A"}},"",{"$error":"#N/A"}]
[null,null,null,null,null,null,null,null,null,null,null,null,null,null,null,null,"","HAVZA",null,null,null,null,null,null,null,null,null,null,null,null,null,{"$f":"KAYNAK!AN489","v":""},null,null,{"$f":"KAYNAK!AQ489","v":{"$error":"#N/A"}},{"$f":"KAYNAK!AR489","v":{"$error":"#N/A"}},{"$f":"_xlfn.IFS(AI481=\" \",\" \",BORDRO!AK482:AK482=KAYNAK!$F$16,\"\",BORDRO!AK482:AK482=KAYNAK!$F$17,\"\",BORDRO!AK482:AK482=KAYNAK!$F$18,\"\",BORDRO!AK482=KAYNAK!$F$21,\"\",BORDRO!AK482=KAYNAK!$F$22,\"\",BORDRO!AK482=KAYNAK!$F$19,ANASAYFA!AM477,BORDRO!AK482=KAYNAK!$F$20,ANASAYFA!AM477,AI481=KAYNAK!$F$23,ANASAYFA!AM477)","v":{"$error":"#N/A"}},{"$f":"_xlfn.IFS(AI481=\" \",\" \",BORDRO!AK482:AK482=KAYNAK!$F$16,\"\",BORDRO!AK482:AK482=KAYNAK!$F$17,\"\",BORDRO!AK482:AK482=KAYNAK!$F$18,\"\",BORDRO!AK482=KAYNAK!$F$21,\"\",BORDRO!AK482=KAYNAK!$F$22,\"\",BORDRO!AK482=KAYNAK!$F$19,ANASAYFA!AN477,BORDRO!AK482=KAYNAK!$F$20,ANASAYFA!AN477,AI481=KAYNAK!$F$23,ANASAYFA!AN477)","v":{"$error":"#N/A"}},"",{"$f":"IF(ANASAYFA!AO477=\"\",\"\",ANASAYFA!AO477)","v":""},{"$error":"#N/A"},{"$f":"_xlfn.IFS(AI481=\" \",\" \",BORDRO!AK482=KAYNAK!$F$16,KAYNAK!$K$44,AI481=KAYNAK!$F$17,KAYNAK!$K$45,AI481=KAYNAK!$F$18,KAYNAK!$K$45,BORDRO!AK482=KAYNAK!$F$21,KAYNAK!$M$45,BORDRO!AK482=KAYNAK!$F$22,KAYNAK!$K$46,BORDRO!AK482=KAYNAK!$F$19,KAYNAK!AS517,BORDRO!AK482=KAYNAK!$F$20,KAYNAK!AS517,AI481=KAYNAK!$G$50,KAYNAK!AS517)","v":{"$error":"#N/A"}},{"$f":"IFERROR(AP481-AU481-AV481,AP481)","v":{"$error":"#N/A"}},{"$f":"_xlfn.IFS(AI481=\" \",\" \",AJ481=KAYNAK!$G$16,(AP481*759/100000),AJ481=KAYNAK!$G$17,IF((AP481*759/100000)<KAYNAK!$A$71,0,(AP481*759/100000)-KAYNAK!AF536))","v":{"$error":"#N/A"}},null,{"$f":"_xlfn.IFS(AI481=\" \",\" \",AJ481=KAYNAK!$G$16,AP481*AN481,AJ481=KAYNAK!$G$17,IF((AP481*AN481)<KAYNAK!$A$72,0,(AP481*AN481)-KAYNAK!$A$72))","v":{"$error":"#N/A"}},{"$f":"_xlfn.IFS(AI481=\" \",\" \",AJ481=KAYNAK!$G$16,\"\",AJ481=KAYNAK!$G$17,CEILING(AP481/100*14,0.1))","v":{"$error":"#N/A"}},{"$f":"_xlfn.IFS(AI481=\" \",\" \",AJ481=KAYNAK!$G$16,\"\",AJ481=KAYNAK!$G$17,CEILING(AP481/100*1,0.1))","v":{"$error":"#N/A"}},{"$f":"_xlfn.IFS(AI481=\" \",\" \",AJ481=KAYNAK!$G$16,\"\",AJ481=KAYNAK!$G$17,CEILING(AQ481/100*20.5,0.1))","v":{"$error":"#N/A"}},{"$f":"_xlfn.IFS(AI481=\" \",\" \",AJ481=KAYNAK!$G$16,\"\",AJ481=KAYNAK!$G$17,CEILING(AQ481/100*2,0.1))","v":{"$error":"#N/A"}},{"$f":"_xlfn.IFS(AJ481=\" \",\" \",AJ481=KAYNAK!$G$16,KAYNAK!AO540,BORDRO!AL482=KAYNAK!$G$17,KAYNAK!AS540)","v":{"$error":"#N/A"}},"",{"$error":"#N/A"}]
[null,null,null,null,null,null,null,null,null,null,null,null,null,null,null,null,"","HAYMANA",null,null,null,null,null,null,null,null,null,null,null,null,null,{"$f":"KAYNAK!AN490","v":""},null,null,{"$f":"KAYNAK!AQ490","v":{"$error":"#N/A"}},{"$f":"KAYNAK!AR490","v":{"$error":"#N/A"}},{"$f":"_xlfn.IFS(AI482=\" \",\" \",BORDRO!AK483:AK483=KAYNAK!$F$16,\"\",BORDRO!AK483:AK483=KAYNAK!$F$17,\"\",BORDRO!AK483:AK483=KAYNAK!$F$18,\"\",BORDRO!AK483=KAYNAK!$F$21,\"\",BORDRO!AK483=KAYNAK!$F$22,\"\",BORDRO!AK483=KAYNAK!$F$19,ANASAYFA!AM478,BORDRO!AK483=KAYNAK!$F$20,ANASAYFA!AM478,AI482=KAYNAK!$F$23,ANASAYFA!AM478)","v":{"$error":"#N/A"}},{"$f":"_xlfn.IFS(AI482=\" \",\" \",BORDRO!AK483:AK483=KAYNAK!$F$16,\"\",BORDRO!AK483:AK483=KAYNAK!$F$17,\"\",BORDRO!AK483:AK483=KAYNAK!$F$18,\"\",BORDRO!AK483=KAYNAK!$F$21,\"\",BORDRO!AK483=KAYNAK!$F$22,\"\",BORDRO!AK483=KAYNAK!$F$19,ANASAYFA!AN478,BORDRO!AK483=KAYNAK!$F$20,ANASAYFA!AN478,AI482=KAYNAK!$F$23,ANASAYFA!AN478)","v":{"$error":"#N/A"}},"",{"$f":"IF(ANASAYFA!AO478=\"\",\"\",ANASAYFA!AO478)","v":""},{"$error":"#N/A"},{"$f":"_xlfn.IFS(AI482=\" \",\" \",BORDRO!AK483=KAYNAK!$F$16,KAYNAK!$K$44,AI482=KAYNAK!$F$17,KAYNAK!$K$45,AI482=KAYNAK!$F$18,KAYNAK!$K$45,BORDRO!AK483=KAYNAK!$F$21,KAYNAK!$M$45,BORDRO!AK483=KAYNAK!$F$22,KAYNAK!$K$46,BORDRO!AK483=KAYNAK!$F$19,KAYNAK!AS518,BORDRO!AK483=KAYNAK!$F$20,KAYNAK!AS518,AI482=KAYNAK!$G$50,KAYNAK!AS518)","v":{"$error":"#N/A"}},{"$f":"IFERROR(AP482-AU482-AV482,AP482)","v":{"$error":"#N/A"}},{"$f":"_xlfn.IFS(AI482=\" \",\" \",AJ482=KAYNAK!$G$16,(AP482*759/100000),AJ482=KAYNAK!$G$17,IF((AP482*759/100000)<KAYNAK!$A$71,0,(AP482*759/100000)-KAYNAK!AF537))","v":{"$error":"#N/A"}},null,{"$f":"_xlfn.IFS(AI482=\" \",\" \",AJ482=KAYNAK!$G$16,AP482*AN482,AJ482=KAYNAK!$G$17,IF((AP482*AN482)<KAYNAK!$A$72,0,(AP482*AN482)-KAYNAK!$A$72))","v":{"$error":"#N/A"}},{"$f":"_xlfn.IFS(AI482=\" \",\" \",AJ482=KAYNAK!$G$16,\"\",AJ482=KAYNAK!$G$17,CEILING(AP482/100*14,0.1))","v":{"$error":"#N/A"}},{"$f":"_xlfn.IFS(AI482=\" \",\" \",AJ482=KAYNAK!$G$16,\"\",AJ482=KAYNAK!$G$17,CEILING(AP482/100*1,0.1))","v":{"$error":"#N/A"}},{"$f":"_xlfn.IFS(AI482=\" \",\" \",AJ482=KAYNAK!$G$16,\"\",AJ482=KAYNAK!$G$17,CEILING(AQ482/100*20.5,0.1))","v":{"$error":"#N/A"}},{"$f":"_xlfn.IFS(AI482=\" \",\" \",AJ482=KAYNAK!$G$16,\"\",AJ482=KAYNAK!$G$17,CEILING(AQ482/100*2,0.1))","v":{"$error":"#N/A"}},{"$f":"_xlfn.IFS(AJ482=\" \",\" \",AJ482=KAYNAK!$G$16,KAYNAK!AO541,BORDRO!AL483=KAYNAK!$G$17,KAYNAK!AS541)","v":{"$error":"#N/A"}},"",{"$error":"#N/A"}]
[null,null,null,null,null,null,null,null,null,null,null,null,null,null,null,null,"","HAYRABOLU",null,null,null,null,null,null,null,null,null,null,null,null,null,{"$f":"KAYNAK!AN491","v":""},null,null,{"$f":"KAYNAK!AQ491","v":{"$error":"#N/A"}},{"$f":"KAYNAK!AR491","v":{"$error":"#N/A"}},{"$f":"_xlfn.IFS(AI483=\" \",\" \",BORDRO!AK484:AK484=KAYNAK!$F$16,\"\",BORDRO!AK484:AK484=KAYNAK!$F$17,\"\",BORDRO!AK484:AK484=KAYNAK!$F$18,\"\",BORDRO!AK484=KAYNAK!$F$21,\"\",BORDRO!AK484=KAYNAK!$F$22,\"\",BORDRO!AK484=KAYNAK!$F$19,ANASAYFA!AM479,BORDRO!AK484=KAYNAK!$F$20,ANASAYFA!AM479,AI483=KAYNAK!$F$23,ANASAYFA!AM479)","v":{"$error":"#N/A"}},{"$f":"_xlfn.IFS(AI483=\" \",\" \",BORDRO!AK484:AK484=KAYNAK!$F$16,\"\",BORDRO!AK484:AK484=KAYNAK!$F$17,\"\",BORDRO!AK484:AK484=KAYNAK!$F$18,\"\",BORDRO!AK484=KAYNAK!$F$21,\"\",BORDRO!AK484=KAYNAK!$F$22,\"\",BORDRO!AK484=KAYNAK!$F$19,ANASAYFA!AN479,BORDRO!AK484=KAYNAK!$F$20,ANASAYFA!AN479,AI483=KAYNAK!$F$23,ANASAYFA!AN479)","v":{"$error":"#N/A"}},"",{"$f":"IF(ANASAYFA!AO479=\"\",\"\",ANASAYFA!AO479)","v":""},{"$error":"#N/A"},{"$f":"_xlfn.IFS(AI483=\" \",\" \",BORDRO!AK484=KAYNAK!$F$16,KAYNAK!$K$44,AI483=KAYNAK!$F$17,KAYNAK!$K$45,AI483=KAYNAK!$F$18,KAYNAK!$K$45,BORDRO!AK484=KAYNAK!$F$21,KAYNAK!$M$45,BORDRO!AK484=KAYNAK!$F$22,KAYNAK!$K$46,BORDRO!AK484=KAYNAK!$F$19,KAYNAK!AS519,BORDRO!AK484=KAYNAK!$F$20,KAYNAK!AS519,AI483=KAYNAK!$G$50,KAYNAK!AS519)","v":{"$error":"#N/A"}},{"$error":"#N/A"},{"$f":"_xlfn.IFS(AI483=\" \",\" \",AJ483=KAYNAK!$G$16,(AP483*759/100000),AJ483=KAYNAK!$G$17,IF((AP483*759/100000)<KAYNAK!$A$71,0,(AP483*759/100000)-KAYNAK!AF538))","v":{"$error":"#N/A"}},null,{"$f":"_xlfn.IFS(AI483=\" \",\" \",AJ483=KAYNAK!$G$16,AP483*AN483,AJ483=KAYNAK!$G$17,IF((AP483*AN483)<KAYNAK!$A$72,0,(AP483*AN483)-KAYNAK!$A$72))","v":{"$error":"#N/A"}},{"$f":"_xlfn.IFS(AI483=\" \",\" \",AJ483=KAYNAK!$G$16,\"\",AJ483=KAYNAK!$G$17,CEILING(AP483/100*14,0.1))","v":{"$error":"#N/A"}},{"$f":"_xlfn.IFS(AI483=\" \",\" \",AJ483=KAYNAK!$G$16,\"\",AJ483=KAYNAK!$G$17,CEILING(AP483/100*1,0.1))","v":{"$error":"#N/A"}},{"$f":"_xlfn.IFS(AI483=\" \",\" \",AJ483=KAYNAK!$G$16,\"\",AJ483=KAYNAK!$G$17,CEILING(AQ483/100*20.5,0.1))","v":{"$error":"#N/A"}},{"$f":"_xlfn.IFS(AI483=\" \",\" \",AJ483=KAYNAK!$G$16,\"\",AJ483=KAYNAK!$G$17,CEILING(AQ483/100*2,0.1))","v":{"$error":"#N/A"}},{"$f":"_xlfn.IFS(AJ483=\" \",\" \",AJ483=KAYNAK!$G$16,KAYNAK!AO542,BORDRO!AL484=KAYNAK!$G$17,KAYNAK!AS542)","v":{"$error":"#N/A"}},"",{"$error":"#N/A"}]
[null,null,null,null,null,null,null,null,null,null,null,null,null,null,null,null,"","HAYRAT",null,null,null,null,null,null,null,null,null,null,null,null,null,{"$f":"KAYNAK!AN492","v":0},null,null,{"$f":"KAYNAK!AQ492","v":0},{"$f":"KAYNAK!AR492","v":0},{"$f":"_xlfn.IFS(AI484=\" \",\" \",BORDRO!AK485:AK485=KAYNAK!$F$16,\"\",BORDRO!AK485:AK485=KAYNAK!$F$17,\"\",BORDRO!AK485:AK485=KAYNAK!$F$18,\"\",BORDRO!AK485=KAYNAK!$F$21,\"\",BORDRO!AK485=KAYNAK!$F$22,\"\",BORDRO!AK485=KAYNAK!$F$19,ANASAYFA!AM480,BORDRO!AK485=KAYNAK!$F$20,ANASAYFA!AM480,AI484=KAYNAK!$F$23,ANASAYFA!AM480)","v":{"$error":"#N/A"}},{"$f":"_xlfn.IFS(AI484=\" \",\" \",BORDRO!AK485:AK485=KAYNAK!$F$16,\"\",BORDRO!AK485:AK485=KAYNAK!$F$17,\"\",BORDRO!AK485:AK485=KAYNAK!$F$18,\"\",BORDRO!AK485=KAYNAK!$F$21,\"\",BORDRO!AK485=KAYNAK!$F$22,\"\",BORDRO!AK485=KAYNAK!$F$19,ANASAYFA!AN480,BORDRO!AK485=KAYNAK!$F$20,ANASAYFA!AN480,AI484=KAYNAK!$F$23,ANASAYFA!AN480)","v":{"$error":"#N/A"}},"",{"$f":"IF(ANASAYFA!AO480=\"\",\"\",ANASAYFA!AO480)","v":""},{"$error":"#N/A"},{"$f":"_xlfn.IFS(AI484=\" \",\" \",BORDRO!AK485=KAYNAK!$F$16,KAYNAK!$K$44,AI484=KAYNAK!$F$17,KAYNAK!$K$45,AI484=KAYNAK!$F$18,KAYNAK!$K$45,BORDRO!AK485=KAYNAK!$F$21,KAYNAK!$M$45,BORDRO!AK485=KAYNAK!$F$22,KAYNAK!$K$46,BORDRO!AK485=KAYNAK!$F$19,KAYNAK!AS520,BORDRO!AK485=KAYNAK!$F$20,KAYNAK!AS520,AI484=KAYNAK!$G$50,KAYNAK!AS520)","v":{"$error":"#N/A"}},{"$error":"#N/A"},{"$f":"_xlfn.IFS(AI484=\" \",\" \",AJ484=KAYNAK!$G$16,(AP484*759/100000),AJ484=KAYNAK!$G$17,IF((AP484*759/100000)<KAYNAK!$A$71,0,(AP484*759/100000)-KAYNAK!AF539))","v":{"$error":"#N/A"}},null,{"$f":"_xlfn.IFS(AI484=\" \",\" \",AJ484=KAYNAK!$G$16,AP484*AN484,AJ484=KAYNAK!$G$17,IF((AP484*AN484)<KAYNAK!$A$72,0,(AP484*AN484)-KAYNAK!$A$72))","v":{"$error":"#N/A"}},{"$f":"_xlfn.IFS(AI484=\" \",\" \",AJ484=KAYNAK!$G$16,\"\",AJ484=KAYNAK!$G$17,CEILING(AP484/100*14,0.1))","v":{"$error":"#N/A"}},{"$f":"_xlfn.IFS(AJ484=\" \",\" \",AJ484=KAYNAK!$G$16,\"\",AJ484=KAYNAK!$G$17,CEILING(AP484/100*1,0.1))","v":{"$error":"#N/A"}},{"$f":"_xlfn.IFS(AI484=\" \",\" \",AJ484=KAYNAK!$G$16,\"\",AJ484=KAYNAK!$G$17,CEILING(AQ484/100*20.5,0.1))","v":{"$error":"#N/A"}},{"$f":"_xlfn.IFS(AI484=\" \",\" \",AJ484=KAYNAK!$G$16,\"\",AJ484=KAYNAK!$G$17,CEILING(AQ484/100*2,0.1))","v":{"$error":"#N/A"}},{"$f":"_xlfn.IFS(AJ484=\" \",\" \",AJ484=KAYNAK!$G$16,KAYNAK!AO543,BORDRO!AL485=KAYNAK!$G$17,KAYNAK!AS543)","v":{"$error":"#N/A"}},"",{"$error":"#N/A"}]
[null,null,null,null,null,null,null,null,null,null,null,null,null,null,null,null,"","HAZRO",null,null,null,null,null,null,null,null,null,null,null,null,null,{"$f":"KAYNAK!AN493","v":0},null,null,{"$f":"KAYNAK!AQ493","v":0},{"$f":"KAYNAK!AR493","v":0},{"$f":"_xlfn.IFS(AI485=\" \",\" \",BORDRO!AK486:AK486=KAYNAK!$F$16,\"\",BORDRO!AK486:AK486=KAYNAK!$F$17,\"\",BORDRO!AK486:AK486=KAYNAK!$F$18,\"\",BORDRO!AK486=KAYNAK!$F$21,\"\",BORDRO!AK486=KAYNAK!$F$22,\"\",BORDRO!AK486=KAYNAK!$F$19,ANASAYFA!AM481,BORDRO!AK486=KAYNAK!$F$20,ANASAYFA!AM481,AI485=KAYNAK!$F$23,ANASAYFA!AM481)","v":{"$error":"#N/A"}},{"$f":"_xlfn.IFS(AI485=\" \",\" \",BORDRO!AK486:AK486=KAYNAK!$F$16,\"\",BORDRO!AK486:AK486=KAYNAK!$F$17,\"\",BORDRO!AK486:AK486=KAYNAK!$F$18,\"\",BORDRO!AK486=KAYNAK!$F$21,\"\",BORDRO!AK486=KAYNAK!$F$22,\"\",BORDRO!AK486=KAYNAK!$F$19,ANASAYFA!AN481,BORDRO!AK486=KAYNAK!$F$20,ANASAYFA!AN481,AI485=KAYNAK!$F$23,ANASAYFA!AN481)","v":{"$error":"#N/A"}},"",{"$f":"IF(ANASAYFA!AO481=\"\",\"\",ANASAYFA!AO481)","v":""},{"$error":"#N/A"},{"$f":"_xlfn.IFS(AI485=\" \",\" \",BORDRO!AK486=KAYNAK!$F$16,KAYNAK!$K$44,AI485=KAYNAK!$F$17,KAYNAK!$K$45,AI485=KAYNAK!$F$18,KAYNAK!$K$45,BORDRO!AK486=KAYNAK!$F$21,KAYNAK!$M$45,BORDRO!AK486=KAYNAK!$F$22,KAYNAK!$K$46,BORDRO!AK486=KAYNAK!$F$19,KAYNAK!AS521,BORDRO!AK486=KAYNAK!$F$20,KAYNAK!AS521,AI485=KAYNAK!$G$50,KAYNAK!AS521)","v":{"$error":"#N/A"}},{"$f":"IFERROR(AP485-AU485-AV485,AP485)","v":{"$error":"#N/A"}},{"$f":"_xlfn.IFS(AI485=\" \",\" \",AJ485=KAYNAK!$G$16,(AP485*759/100000),AJ485=KAYNAK!$G$17,IF((AP485*759/100000)<KAYNAK!$A$71,0,(AP485*759/100000)-KAYNAK!AF540))","v":{"$error":"#N/A"}},null,{"$f":"_xlfn.IFS(AI485=\" \",\" \",AJ485=KAYNAK!$G$16,AP485*AN485,AJ485=KAYNAK!$G$17,IF((AP485*AN485)<KAYNAK!$A$72,0,(AP485*AN485)-KAYNAK!$A$72))","v":{"$error":"#N/A"}},{"$f":"_xlfn.IFS(AI485=\" \",\" \",AJ485=KAYNAK!$G$16,\"\",AJ485=KAYNAK!$G$17,CEILING(AP485/100*14,0.1))","v":{"$error":"#N/A"}},{"$f":"_xlfn.IFS(AJ485=\" \",\" \",AJ485=\" \",\" \",AJ485=KAYNAK!$G$16,\"\",AJ485=KAYNAK!$G$17,CEILING(AP485/100*1,0.1))","v":{"$error":"#N/A"}},{"$f":"_xlfn.IFS(AI485=\" \",\" \",AJ485=KAYNAK!$G$16,\"\",AJ485=KAYNAK!$G$17,CEILING(AQ485/100*20.5,0.1))","v":{"$error":"#N/A"}},{"$f":"_xlfn.IFS(AI485=\" \",\" \",AJ485=KAYNAK!$G$16,\"\",AJ485=KAYNAK!$G$17,CEILING(AQ485/100*2,0.1))","v":{"$error":"#N/A"}},{"$f":"_xlfn.IFS(AJ485=\" \",\" \",AJ485=KAYNAK!$G$16,KAYNAK!AO544,BORDRO!AL486=KAYNAK!$G$17,KAYNAK!AS544)","v":{"$error":"#N/A"}},"",{"$error":"#N/A"}]
[null,null,null,null,null,null,null,null,null,null,null,null,null,null,null,null,"","HEKİMHAN",null,null,null,null,null,null,null,null,null,null,null,null,null,{"$f":"KAYNAK!AN494","v":0},null,null,{"$f":"KAYNAK!AQ494","v":0},{"$f":"KAYNAK!AR494","v":0},{"$f":"_xlfn.IFS(AI486=\" \",\" \",BORDRO!AK487:AK487=KAYNAK!$F$16,\"\",BORDRO!AK487:AK487=KAYNAK!$F$17,\"\",BORDRO!AK487:AK487=KAYNAK!$F$18,\"\",BORDRO!AK487=KAYNAK!$F$21,\"\",BORDRO!AK487=KAYNAK!$F$22,\"\",BORDRO!AK487=KAYNAK!$F$19,ANASAYFA!AM482,BORDRO!AK487=KAYNAK!$F$20,ANASAYFA!AM482,AI486=KAYNAK!$F$23,ANASAYFA!AM482)","v":{"$error":"#N/A"}},{"$f":"_xlfn.IFS(AI486=\" \",\" \",BORDRO!AK487:AK487=KAYNAK!$F$16,\"\",BORDRO!AK487:AK487=KAYNAK!$F$17,\"\",BORDRO!AK487:AK487=KAYNAK!$F$18,\"\",BORDRO!AK487=KAYNAK!$F$21,\"\",BORDRO!AK487=KAYNAK!$F$22,\"\",BORDRO!AK487=KAYNAK!$F$19,ANASAYFA!AN482,BORDRO!AK487=KAYNAK!$F$20,ANASAYFA!AN482,AI486=KAYNAK!$F$23,ANASAYFA!AN482)","v":{"$error":"#N/A"}},"",{"$f":"IF(ANASAYFA!AO482=\"\",\"\",ANASAYFA!AO482)","v":""},{"$error":"#N/A"},{"$f":"_xlfn.IFS(AI486=\" \",\" \",BORDRO!AK487=KAYNAK!$F$16,KAYNAK!$K$44,AI486=KAYNAK!$F$17,KAYNAK!$K$45,AI486=KAYNAK!$F$18,KAYNAK!$K$45,BORDRO!AK487=KAYNAK!$F$21,KAYNAK!$M$45,BORDRO!AK487=KAYNAK!$F$22,KAYNAK!$K$46,BORDRO!AK487=KAYNAK!$F$19,KAYNAK!AS522,BORDRO!AK487=KAYNAK!$F$20,KAYNAK!AS522,AI486=KAYNAK!$G$50,KAYNAK!AS522)","v":{"$error":"#N/A"}},{"$f":"IFERROR(AP486-AU486-AV486,AP486)","v":{"$error":"#N/A"}},{"$f":"_xlfn.IFS(AI486=\" \",\" \",AJ486=KAYNAK!$G$16,(AP486*759/100000),AJ486=KAYNAK!$G$17,IF((AP486*759/100000)<KAYNAK!$A$71,0,(AP486*759/100000)-KAYNAK!AF541))","v":{"$error":"#N/A"}},null,{"$f":"_xlfn.IFS(AI486=\" \",\" \",AJ486=KAYNAK!$G$16,AP486*AN486,AJ486=KAYNAK!$G$17,IF((AP486*AN486)<KAYNAK!$A$72,0,(AP486*AN486)-KAYNAK!$A$72))","v":{"$error":"#N/A"}},{"$f":"_xlfn.IFS(AI486=\" \",\" \",AJ486=KAYNAK!$G$16,\"\",AJ486=KAYNAK!$G$17,CEILING(AP486/100*14,0.1))","v":{"$error":"#N/A"}},{"$f":"_xlfn.IFS(AJ486=\" \",\" \",AJ486=KAYNAK!$G$16,\"\",AJ486=KAYNAK!$G$17,CEILING(AP486/100*1,0.1))","v":{"$error":"#N/A"}},{"$f":"_xlfn.IFS(AI486=\" \",\" \",AJ486=KAYNAK!$G$16,\"\",AJ486=KAYNAK!$G$17,CEILING(AQ486/100*20.5,0.1))","v":{"$error":"#N/A"}},{"$f":"_xlfn.IFS(AI486=\" \",\" \",AJ486=KAYNAK!$G$16,\"\",AJ486=KAYNAK!$G$17,CEILING(AQ486/100*2,0.1))","v":{"$error":"#N/A"}},{"$f":"_xlfn.IFS(AJ486=\" \",\" \",AJ486=KAYNAK!$G$16,KAYNAK!AO545,BORDRO!AL487=KAYNAK!$G$17,KAYNAK!AS545)","v":{"$error":"#N/A"}},"",{"$error":"#N/A"}]
[null,null,null,null,null,null,null,null,null,null,null,null,null,null,null,null,"","HEMŞİN",null,null,null,null,null,null,null,null,null,null,null,null,null,{"$f":"KAYNAK!AN495","v":0},null,null,{"$f":"KAYNAK!AQ495","v":0},{"$f":"KAYNAK!AR495","v":0},{"$f":"_xlfn.IFS(AI487=\" \",\" \",BORDRO!AK488:AK488=KAYNAK!$F$16,\"\",BORDRO!AK488:AK488=KAYNAK!$F$17,\"\",BORDRO!AK488:AK488=KAYNAK!$F$18,\"\",BORDRO!AK488=KAYNAK!$F$21,\"\",BORDRO!AK488=KAYNAK!$F$22,\"\",BORDRO!AK488=KAYNAK!$F$19,ANASAYFA!AM483,BORDRO!AK488=KAYNAK!$F$20,ANASAYFA!AM483,AI487=KAYNAK!$F$23,ANASAYFA!AM483)","v":{"$error":"#N/A"}},{"$f":"_xlfn.IFS(AI487=\" \",\" \",BORDRO!AK488:AK488=KAYNAK!$F$16,\"\",BORDRO!AK488:AK488=KAYNAK!$F$17,\"\",BORDRO!AK488:AK488=KAYNAK!$F$18,\"\",BORDRO!AK488=KAYNAK!$F$21,\"\",BORDRO!AK488=KAYNAK!$F$22,\"\",BORDRO!AK488=KAYNAK!$F$19,ANASAYFA!AN483,BORDRO!AK488=KAYNAK!$F$20,ANASAYFA!AN483,AI487=KAYNAK!$F$23,ANASAYFA!AN483)","v":{"$error":"#N/A"}},"",{"$f":"IF(ANASAYFA!AO483=\"\",\"\",ANASAYFA!AO483)","v":""},{"$error":"#N/A"},{"$f":"_xlfn.IFS(AI487=\" \",\" \",BORDRO!AK488=KAYNAK!$F$16,KAYNAK!$K$44,AI487=KAYNAK!$F$17,KAYNAK!$K$45,AI487=KAYNAK!$F$18,KAYNAK!$K$45,BORDRO!AK488=KAYNAK!$F$21,KAYNAK!$M$45,BORDRO!AK488=KAYNAK!$F$22,KAYNAK!$K$46,BORDRO!AK488=KAYNAK!$F$19,KAYNAK!AS523,BORDRO!AK488=KAYNAK!$F$20,KAYNAK!AS523,AI487=KAYNAK!$G$50,KAYNAK!AS523)","v":{"$error":"#N/A"}},{"$error":"#N/A"},{"$f":"_xlfn.IFS(AI487=\" \",\" \",AJ487=KAYNAK!$G$16,(AP487*759/100000),AJ487=KAYNAK!$G$17,IF((AP487*759/100000)<KAYNAK!$A$71,0,(AP487*759/100000)-KAYNAK!AF542))","v":{"$error":"#N/A"}},null,{"$f":"_xlfn.IFS(AI487=\" \",\" \",AJ487=KAYNAK!$G$16,AP487*AN487,AJ487=KAYNAK!$G$17,IF((AP487*AN487)<KAYNAK!$A$72,0,(AP487*AN487)-KAYNAK!$A$72))","v":{"$error":"#N/A"}},{"$f":"_xlfn.IFS(AI487=\" \",\" \",AJ487=KAYNAK!$G$16,\"\",AJ487=KAYNAK!$G$17,CEILING(AP487/100*14,0.1))","v":{"$error":"#N/A"}},{"$f":"_xlfn.IFS(AJ487=\" \",\" \",AJ487=KAYNAK!$G$16,\"\",AJ487=KAYNAK!$G$17,CEILING(AP487/100*1,0.1))","v":{"$error":"#N/A"}},{"$f":"_xlfn.IFS(AI487=\" \",\" \",AJ487=KAYNAK!$G$16,\"\",AJ487=KAYNAK!$G$17,CEILING(AQ487/100*20.5,0.1))","v":{"$error":"#N/A"}},{"$f":"_xlfn.IFS(AI487=\" \",\" \",AJ487=KAYNAK!$G$16,\"\",AJ487=KAYNAK!$G$17,CEILING(AQ487/100*2,0.1))","v":{"$error":"#N/A"}},{"$f":"_xlfn.IFS(AJ487=\" \",\" \",AJ487=KAYNAK!$G$16,KAYNAK!AO546,BORDRO!AL488=KAYNAK!$G$17,KAYNAK!AS546)","v":{"$error":"#N/A"}},"",{"$error":"#N/A"}]
[null,null,null,null,null,null,null,null,null,null,null,null,null,null,null,null,"","HENDEK",null,null,null,null,null,null,null,null,null,null,null,null,null,{"$f":"KAYNAK!AN496","v":0},null,null,{"$f":"KAYNAK!AQ496","v":0},{"$f":"KAYNAK!AR496","v":0},{"$f":"_xlfn.IFS(AI488=\" \",\" \",BORDRO!AK489:AK489=KAYNAK!$F$16,\"\",BORDRO!AK489:AK489=KAYNAK!$F$17,\"\",BORDRO!AK489:AK489=KAYNAK!$F$18,\"\",BORDRO!AK489=KAYNAK!$F$21,\"\",BORDRO!AK489=KAYNAK!$F$22,\"\",BORDRO!AK489=KAYNAK!$F$19,ANASAYFA!AM484,BORDRO!AK489=KAYNAK!$F$20,ANASAYFA!AM484,AI488=KAYNAK!$F$23,ANASAYFA!AM484)","v":{"$error":"#N/A"}},{"$f":"_xlfn.IFS(AI488=\" \",\" \",BORDRO!AK489:AK489=KAYNAK!$F$16,\"\",BORDRO!AK489:AK489=KAYNAK!$F$17,\"\",BORDRO!AK489:AK489=KAYNAK!$F$18,\"\",BORDRO!AK489=KAYNAK!$F$21,\"\",BORDRO!AK489=KAYNAK!$F$22,\"\",BORDRO!AK489=KAYNAK!$F$19,ANASAYFA!AN484,BORDRO!AK489=KAYNAK!$F$20,ANASAYFA!AN484,AI488=KAYNAK!$F$23,ANASAYFA!AN484)","v":{"$error":"#N/A"}},"",{"$f":"IF(ANASAYFA!AO484=\"\",\"\",ANASAYFA!AO484)","v":""},{"$error":"#N/A"},{"$f":"_xlfn.IFS(AI488=\" \",\" \",BORDRO!AK489=KAYNAK!$F$16,KAYNAK!$K$44,AI488=KAYNAK!$F$17,KAYNAK!$K$45,AI488=KAYNAK!$F$18,KAYNAK!$K$45,BORDRO!AK489=KAYNAK!$F$21,KAYNAK!$M$45,BORDRO!AK489=KAYNAK!$F$22,KAYNAK!$K$46,BORDRO!AK489=KAYNAK!$F$19,KAYNAK!AS524,BORDRO!AK489=KAYNAK!$F$20,KAYNAK!AS524,AI488=KAYNAK!$G$50,KAYNAK!AS524)","v":{"$error":"#N/A"}},{"$error":"#N/A"},{"$f":"_xlfn.IFS(AI488=\" \",\" \",AJ488=KAYNAK!$G$16,(AP488*759/100000),AJ488=KAYNAK!$G$17,IF((AP488*759/100000)<KAYNAK!$A$71,0,(AP488*759/100000)-KAYNAK!AF543))","v":{"$error":"#N/A"}},null,{"$f":"_xlfn.IFS(AI488=\" \",\" \",AJ488=KAYNAK!$G$16,AP488*AN488,AJ488=KAYNAK!$G$17,IF((AP488*AN488)<KAYNAK!$A$72,0,(AP488*AN488)-KAYNAK!$A$72))","v":{"$error":"#N/A"}},{"$f":"_xlfn.IFS(AI488=\" \",\" \",AJ488=KAYNAK!$G$16,\"\",AJ488=KAYNAK!$G$17,CEILING(AP488/100*14,0.1))","v":{"$error":"#N/A"}},{"$f":"_xlfn.IFS(AJ488=\" \",\" \",AJ488=KAYNAK!$G$16,\"\",AJ488=KAYNAK!$G$17,CEILING(AP488/100*1,0.1))","v":{"$error":"#N/A"}},{"$f":"_xlfn.IFS(AI488=\" \",\" \",AJ488=KAYNAK!$G$16,\"\",AJ488=KAYNAK!$G$17,CEILING(AQ488/100*20.5,0.1))","v":{"$error":"#N/A"}},{"$f":"_xlfn.IFS(AI488=\" \",\" \",AJ488=KAYNAK!$G$16,\"\",AJ488=KAYNAK!$G$17,CEILING(AQ488/100*2,0.1))","v":{"$error":"#N/A"}},{"$f":"_xlfn.IFS(AJ488=\" \",\" \",AJ488=KAYNAK!$G$16,KAYNAK!AO547,BORDRO!AL489=KAYNAK!$G$17,KAYNAK!AS547)","v":{"$error":"#N/A"}},"",{"$error":"#N/A"}]
[null,null,null,null,null,null,null,null,null,null,null,null,null,null,null,null,"","HINIS",null,null,null,null,null,null,null,null,null,null,null,null,null,{"$f":"KAYNAK!AN497","v":0},null,null,{"$f":"KAYNAK!AQ497","v":0},{"$f":"KAYNAK!AR497","v":0},{"$f":"_xlfn.IFS(AI489=\" \",\" \",BORDRO!AK490:AK490=KAYNAK!$F$16,\"\",BORDRO!AK490:AK490=KAYNAK!$F$17,\"\",BORDRO!AK490:AK490=KAYNAK!$F$18,\"\",BORDRO!AK490=KAYNAK!$F$21,\"\",BORDRO!AK490=KAYNAK!$F$22,\"\",BORDRO!AK490=KAYNAK!$F$19,ANASAYFA!AM485,BORDRO!AK490=KAYNAK!$F$20,ANASAYFA!AM485,AI489=KAYNAK!$F$23,ANASAYFA!AM485)","v":{"$error":"#N/A"}},{"$f":"_xlfn.IFS(AI489=\" \",\" \",BORDRO!AK490:AK490=KAYNAK!$F$16,\"\",BORDRO!AK490:AK490=KAYNAK!$F$17,\"\",BORDRO!AK490:AK490=KAYNAK!$F$18,\"\",BORDRO!AK490=KAYNAK!$F$21,\"\",BORDRO!AK490=KAYNAK!$F$22,\"\",BORDRO!AK490=KAYNAK!$F$19,ANASAYFA!AN485,BORDRO!AK490=KAYNAK!$F$20,ANASAYFA!AN485,AI489=KAYNAK!$F$23,ANASAYFA!AN485)","v":{"$error":"#N/A"}},"",{"$f":"IF(ANASAYFA!AO485=\"\",\"\",ANASAYFA!AO485)","v":""},{"$error":"#N/A"},{"$f":"_xlfn.IFS(AI489=\" \",\" \",BORDRO!AK490=KAYNAK!$F$16,KAYNAK!$K$44,AI489=KAYNAK!$F$17,KAYNAK!$K$45,AI489=KAYNAK!$F$18,KAYNAK!$K$45,BORDRO!AK490=KAYNAK!$F$21,KAYNAK!$M$45,BORDRO!AK490=KAYNAK!$F$22,KAYNAK!$K$46,BORDRO!AK490=KAYNAK!$F$19,KAYNAK!AS525,BORDRO!AK490=KAYNAK!$F$20,KAYNAK!AS525,AI489=KAYNAK!$G$50,KAYNAK!AS525)","v":{"$error":"#N/A"}},{"$error":"#N/A"},{"$f":"_xlfn.IFS(AI489=\" \",\" \",AJ489=KAYNAK!$G$16,(AP489*759/100000),AJ489=KAYNAK!$G$17,IF((AP489*759/100000)<KAYNAK!$A$71,0,(AP489*759/100000)-KAYNAK!AF544))","v":{"$error":"#N/A"}},null,{"$f":"_xlfn.IFS(AI489=\" \",\" \",AJ489=KAYNAK!$G$16,AP489*AN489,AJ489=KAYNAK!$G$17,IF((AP489*AN489)<KAYNAK!$A$72,0,(AP489*AN489)-KAYNAK!$A$72))","v":{"$error":"#N/A"}},{"$f":"_xlfn.IFS(AI489=\" \",\" \",AJ489=KAYNAK!$G$16,\"\",AJ489=KAYNAK!$G$17,CEILING(AP489/100*14,0.1))","v":{"$error":"#N/A"}},{"$f":"_xlfn.IFS(AJ489=\" \",\" \",AJ489=KAYNAK!$G$16,\"\",AJ489=KAYNAK!$G$17,CEILING(AP489/100*1,0.1))","v":{"$error":"#N/A"}},{"$f":"_xlfn.IFS(AI489=\" \",\" \",AJ489=KAYNAK!$G$16,\"\",AJ489=KAYNAK!$G$17,CEILING(AQ489/100*20.5,0.1))","v":{"$error":"#N/A"}},{"$f":"_xlfn.IFS(AI489=\" \",\" \",AJ489=KAYNAK!$G$16,\"\",AJ489=KAYNAK!$G$17,CEILING(AQ489/100*2,0.1))","v":{"$error":"#N/A"}},{"$f":"_xlfn.IFS(AJ489=\" \",\" \",AJ489=KAYNAK!$G$16,KAYNAK!AO548,BORDRO!AL490=KAYNAK!$G$17,KAYNAK!AS548)","v":{"$error":"#N/A"}},"",{"$error":"#N/A"}]
[null,null,null,null,null,null,null,null,null,null,null,null,null,null,null,null,"","HİLVAN",null,null,null,null,null,null,null,null,null,null,null,null,null,{"$f":"KAYNAK!AN498","v":0},null,null,{"$f":"KAYNAK!AQ498","v":0},{"$f":"KAYNAK!AR498","v":0},{"$f":"_xlfn.IFS(AI490=\" \",\" \",BORDRO!AK491:AK491=KAYNAK!$F$16,\"\",BORDRO!AK491:AK491=KAYNAK!$F$17,\"\",BORDRO!AK491:AK491=KAYNAK!$F$18,\"\",BORDRO!AK491=KAYNAK!$F$21,\"\",BORDRO!AK491=KAYNAK!$F$22,\"\",BORDRO!AK491=KAYNAK!$F$19,ANASAYFA!AM486,BORDRO!AK491=KAYNAK!$F$20,ANASAYFA!AM486,AI490=KAYNAK!$F$23,ANASAYFA!AM486)","v":{"$error":"#N/A"}},{"$f":"_xlfn.IFS(AI490=\" \",\" \",BORDRO!AK491:AK491=KAYNAK!$F$16,\"\",BORDRO!AK491:AK491=KAYNAK!$F$17,\"\",BORDRO!AK491:AK491=KAYNAK!$F$18,\"\",BORDRO!AK491=KAYNAK!$F$21,\"\",BORDRO!AK491=KAYNAK!$F$22,\"\",BORDRO!AK491=KAYNAK!$F$19,ANASAYFA!AN486,BORDRO!AK491=KAYNAK!$F$20,ANASAYFA!AN486,AI490=KAYNAK!$F$23,ANASAYFA!AN486)","v":{"$error":"#N/A"}},"",{"$f":"IF(ANASAYFA!AO486=\"\",\"\",ANASAYFA!AO486)","v":""},{"$error":"#N/A"},{"$f":"_xlfn.IFS(AI490=\" \",\" \",BORDRO!AK491=KAYNAK!$F$16,KAYNAK!$K$44,AI490=KAYNAK!$F$17,KAYNAK!$K$45,AI490=KAYNAK!$F$18,KAYNAK!$K$45,BORDRO!AK491=KAYNAK!$F$21,KAYNAK!$M$45,BORDRO!AK491=KAYNAK!$F$22,KAYNAK!$K$46,BORDRO!AK491=KAYNAK!$F$19,KAYNAK!AS526,BORDRO!AK491=KAYNAK!$F$20,KAYNAK!AS526,AI490=KAYNAK!$G$50,KAYNAK!AS526)","v":{"$error":"#N/A"}},{"$error":"#N/A"},{"$f":"_xlfn.IFS(AI490=\" \",\" \",AJ490=KAYNAK!$G$16,(AP490*759/100000),AJ490=KAYNAK!$G$17,IF((AP490*759/100000)<KAYNAK!$A$71,0,(AP490*759/100000)-KAYNAK!AF545))","v":{"$error":"#N/A"}},null,{"$f":"_xlfn.IFS(AI490=\" \",\" \",AJ490=KAYNAK!$G$16,AP490*AN490,AJ490=KAYNAK!$G$17,IF((AP490*AN490)<KAYNAK!$A$72,0,(AP490*AN490)-KAYNAK!$A$72))","v":{"$error":"#N/A"}},{"$f":"_xlfn.IFS(AI490=\" \",\" \",AJ490=KAYNAK!$G$16,\"\",AJ490=KAYNAK!$G$17,CEILING(AP490/100*14,0.1))","v":{"$error":"#N/A"}},{"$f":"_xlfn.IFS(AJ490=\" \",\" \",AJ490=KAYNAK!$G$16,\"\",AJ490=KAYNAK!$G$17,CEILING(AP490/100*1,0.1))","v":{"$error":"#N/A"}},{"$f":"_xlfn.IFS(AI490=\" \",\" \",AJ490=KAYNAK!$G$16,\"\",AJ490=KAYNAK!$G$17,CEILING(AQ490/100*20.5,0.1))","v":{"$error":"#N/A"}},{"$f":"_xlfn.IFS(AI490=\" \",\" \",AJ490=KAYNAK!$G$16,\"\",AJ490=KAYNAK!$G$17,CEILING(AQ490/100*2,0.1))","v":{"$error":"#N/A"}},{"$f":"_xlfn.IFS(AJ490=\" \",\" \",AJ490=KAYNAK!$G$16,KAYNAK!AO549,BORDRO!AL491=KAYNAK!$G$17,KAYNAK!AS549)","v":{"$error":"#N/A"}},"",{"$error":"#N/A"}]
[null,null,null,null,null,null,null,null,null,null,null,null,null,null,null,null,"","HİSARCIK",null,null,null,null,null,null,null,null,null,null,null,null,null,{"$f":"KAYNAK!AN499","v":0},null,null,{"$f":"KAYNAK!AQ499","v":0},{"$f":"KAYNAK!AR499","v":0},{"$f":"_xlfn.IFS(AI491=\" \",\" \",BORDRO!AK492:AK492=KAYNAK!$F$16,\"\",BORDRO!AK492:AK492=KAYNAK!$F$17,\"\",BORDRO!AK492:AK492=KAYNAK!$F$18,\"\",BORDRO!AK492=KAYNAK!$F$21,\"\",BORDRO!AK492=KAYNAK!$F$22,\"\",BORDRO!AK492=KAYNAK!$F$19,ANASAYFA!AM487,BORDRO!AK492=KAYNAK!$F$20,ANASAYFA!AM487,AI491=KAYNAK!$F$23,ANASAYFA!AM487)","v":{"$error":"#N/A"}},{"$f":"_xlfn.IFS(AI491=\" \",\" \",BORDRO!AK492:AK492=KAYNAK!$F$16,\"\",BORDRO!AK492:AK492=KAYNAK!$F$17,\"\",BORDRO!AK492:AK492=KAYNAK!$F$18,\"\",BORDRO!AK492=KAYNAK!$F$21,\"\",BORDRO!AK492=KAYNAK!$F$22,\"\",BORDRO!AK492=KAYNAK!$F$19,ANASAYFA!AN487,BORDRO!AK492=KAYNAK!$F$20,ANASAYFA!AN487,AI491=KAYNAK!$F$23,ANASAYFA!AN487)","v":{"$error":"#N/A"}},"",{"$f":"IF(ANASAYFA!AO487=\"\",\"\",ANASAYFA!AO487)","v":""},{"$error":"#N/A"},{"$f":"_xlfn.IFS(AI491=\" \",\" \",BORDRO!AK492=KAYNAK!$F$16,KAYNAK!$K$44,AI491=KAYNAK!$F$17,KAYNAK!$K$45,AI491=KAYNAK!$F$18,KAYNAK!$K$45,BORDRO!AK492=KAYNAK!$F$21,KAYNAK!$K$47,BORDRO!AK492=KAYNAK!$F$22,KAYNAK!$K$46,BORDRO!AK492=KAYNAK!$F$19,KAYNAK!AS527,BORDRO!AK492=KAYNAK!$F$20,KAYNAK!AS527,AI491=KAYNAK!$G$50,KAYNAK!AS527)","v":{"$error":"#N/A"}},{"$error":"#N/A"},{"$f":"_xlfn.IFS(AI491=\" \",\" \",AJ491=KAYNAK!$G$16,(AP491*759/100000),AJ491=KAYNAK!$G$17,IF((AP491*759/100000)<KAYNAK!$A$71,0,(AP491*759/100000)-KAYNAK!AF546))","v":{"$error":"#N/A"}},null,{"$f":"_xlfn.IFS(AI491=\" \",\" \",AJ491=KAYNAK!$G$16,AP491*AN491,AJ491=KAYNAK!$G$17,IF((AP491*AN491)<KAYNAK!$A$72,0,(AP491*AN491)-KAYNAK!$A$72))","v":{"$error":"#N/A"}},{"$f":"_xlfn.IFS(AI491=\" \",\" \",AJ491=KAYNAK!$G$16,\"\",AJ491=KAYNAK!$G$17,CEILING(AP491/100*14,0.1))","v":{"$error":"#N/A"}},{"$f":"_xlfn.IFS(AJ491=\" \",\" \",AJ491=KAYNAK!$G$16,\"\",AJ491=KAYNAK!$G$17,CEILING(AP491/100*1,0.1))","v":{"$error":"#N/A"}},{"$f":"_xlfn.IFS(AI491=\" \",\" \",AJ491=KAYNAK!$G$16,\"\",AJ491=KAYNAK!$G$17,CEILING(AQ491/100*20.5,0.1))","v":{"$error":"#N/A"}},{"$f":"_xlfn.IFS(AI491=\" \",\" \",AJ491=KAYNAK!$G$16,\"\",AJ491=KAYNAK!$G$17,CEILING(AQ491/100*2,0.1))","v":{"$error":"#N/A"}},{"$f":"_xlfn.IFS(AJ491=\" \",\" \",AJ491=KAYNAK!$G$16,KAYNAK!AO550,BORDRO!AL492=KAYNAK!$G$17,KAYNAK!AS550)","v":{"$error":"#N/A"}},"",{"$error":"#N/A"}]
[null,null,null,null,null,null,null,null,null,null,null,null,null,null,null,null,"","HİZAN"]
[null,null,null,null,null,null,null,null,null,null,null,null,null,null,null,null,"","HOCALAR"]
[null,null,null,null,null,null,null,null,null,null,null,null,null,null,null,null,"","HONAZ"]
[null,null,null,null,null,null,null,null,null,null,null,null,null,null,null,null,"","HOPA"]
[null,null,null,null,null,null,null,null,null,null,null,null,null,null,null,null,"","HORASAN"]
[null,null,null,null,null,null,null,null,null,null,null,null,null,null,null,null,"","HOZAT"]
[null,null,null,null,null,null,null,null,null,null,null,null,null,null,null,null,"","HÜYÜK"]
[null,null,null,null,null,null,null,null,null,null,null,null,null,null,null,null,"","IĞDIR MERKEZ"]
[null,null,null,null,null,null,null,null,null,null,null,null,null,null,null,null,"","ILGAZ"]
[null,null,null,null,null,null,null,null,null,null,null,null,null,null,null,null,"","ILGIN"]
[null,null,null,null,null,null,null,null,null,null,null,null,null,null,null,null,"","ILICA"]
[null,null,null,null,null,null,null,null,null,null,null,null,null,null,null,null,"","ISPARTA MERKEZ"]
[null,null,null,null,null,null,null,null,null,null,null,null,null,null,null,null,"","İBRADI"]
[null,null,null,null,null,null,null,null,null,null,null,null,null,null,null,null,"","İÇEL MERKEZ"]
[null,null,null,null,null,null,null,null,null,null,null,null,null,null,null,null,"","İDİL"]
[null,null,null,null,null,null,null,null,null,null,null,null,null,null,null,null,"","İHSANGAZİ"]
[null,null,null,null,null,null,null,null,null,null,null,null,null,null,null,null,"","İHSANİYE"]
[null,null,null,null,null,null,null,null,null,null,null,null,null,null,null,null,"","İKİZCE"]
[null,null,null,null,null,null,null,null,null,null,null,null,null,null,null,null,"","İKİZDERE"]
[null,null,null,null,null,null,null,null,null,null,null,null,null,null,null,null,"","İLİÇ"]
[null,null,null,null,null,null,null,null,null,null,null,null,null,null,null,null,"","İLKADIM"]
[null,null,null,null,null,null,null,null,null,null,null,null,null,null,null,null,"","İMAMOĞLU"]
[null,null,null,null,null,null,null,null,null,null,null,null,null,null,null,null,"","İMRANLI"]
[null,null,null,null,null,null,null,null,null,null,null,null,null,null,null,null,"","İNCESU"]
[null,null,null,null,null,null,null,null,null,null,null,null,null,null,null,null,"","İNCİRLİOVA"]
[null,null,null,null,null,null,null,null,null,null,null,null,null,null,null,null,"","İNEBOLU"]
[null,null,null,null,null,null,null,null,null,null,null,null,null,null,null,null,"","İNEGÖL"]
[null,null,null,null,null,null,null,null,null,null,null,null,null,null,null,null,"","İNHİSAR"]
[null,null,null,null,null,null,null,null,null,null,null,null,null,null,null,null,"","İNÖNÜ"]
[null,null,null,null,null,null,null,null,null,null,null,null,null,null,null,null,"","İPSALA"]
[null,null,null,null,null,null,null,null,null,null,null,null,null,null,null,null,"","İSCEHİSAR"]
[null,null,null,null,null,null,null,null,null,null,null,null,null,null,null,null,"","İSKENDERUN"]
[null,null,null,null,null,null,null,null,null,null,null,null,null,null,null,null,"","İSKİLİP"]
[null,null,null,null,null,null,null,null,null,null,null,null,null,null,null,null,"","İSLAHİYE"]
[null,null,null,null,null,null,null,null,null,null,null,null,null,null,null,null,"","İSPİR"]
[null,null,null,null,null,null,null,null,null,null,null,null,null,null,null,null,"","İSTANBUL MERKEZ"]
[null,null,null,null,null,null,null,null,null,null,null,null,null,null,null,null,"","İVRİNDİ"]
[null,null,null,null,null,null,null,null,null,null,null,null,null,null,null,null,"","İYİDERE"]
[null,null,null,null,null,null,null,null,null,null,null,null,null,null,null,null,"","İZMİR MERKEZ",null,null,null,null,"MÜDÜR BULMA"]
[null,null,null,null,null,null,null,null,null,null,null,null,null,null,null,null,"","İZMİT",null,null,null,null,{"$f":"_xlfn.IFS(ANASAYFA!G15=KAYNAK!$F$16,KAYNAK!$F$16,ANASAYFA!G15=KAYNAK!$F$17,KAYNAK!$F$17)","v":{"$error":"#N/A"}}]
[null,null,null,null,null,null,null,null,null,null,null,null,null,null,null,null,"","İZNİK"]
[null,null,null,null,null,null,null,null,null,null,null,null,null,null,null,null,"","KABADÜZ"]
[null,null,null,null,null,null,null,null,null,null,null,null,null,null,null,null,"","KABATAŞ"]
[null,null,null,null,null,null,null,null,null,null,null,null,null,null,null,null,"","KADIKÖY"]
[null,null,null,null,null,null,null,null,null,null,null,null,null,null,null,null,{"$f":"UPPER(P536)","v":""},"KADINHANI"]
[null,null,null,null,null,null,null,null,null,null,null,null,null,null,null,null,"","KADIŞEHRİ"]
[null,null,null,null,null,null,null,null,null,null,null,null,null,null,null,null,"","KADİRLİ"]
[null,null,null,null,null,null,null,null,null,null,null,null,null,null,null,null,"","KAĞITHANE"]
[null,null,null,null,null,null,null,null,null,null,null,null,null,null,null,null,"","KAĞIZMAN"]
[null,null,null,null,null,null,null,null,null,null,null,null,null,null,null,null,"","KAHRAMANMARAŞ MERKEZ"]
[null,null,null,null,null,null,null,null,null,null,null,null,null,null,null,null,"","KAHTA"]
[null,null,null,null,null,null,null,null,null,null,null,null,null,null,null,null,"","KALE"]
[null,null,null,null,null,null,null,null,null,null,null,null,null,null,null,null,"","KALE"]
[null,null,null,null,null,null,null,null,null,null,null,null,null,null,null,null,"","KALE"]
[null,null,null,null,null,null,null,null,null,null,null,null,null,null,null,null,"","KALECİK"]
[null,null,null,null,null,null,null,null,null,null,null,null,null,null,null,null,"","KALKANDERE"]
[null,null,null,null,null,null,null,null,null,null,null,null,null,null,null,null,"","KAMAN"]
[null,null,null,null,null,null,null,null,null,null,null,null,null,null,null,null,"","KANDIRA"]
[null,null,null,null,null,null,null,null,null,null,null,null,null,null,null,null,"","KANGAL"]
[null,null,null,null,null,null,null,null,null,null,null,null,null,null,null,null,"","KARABAĞLAR"]
[null,null,null,null,null,null,null,null,null,null,null,null,null,null,null,null,"","KARABURUN"]
[null,null,null,null,null,null,null,null,null,null,null,null,null,null,null,null,"","KARABÜK MERKEZ"]
[null,null,null,null,null,null,null,null,null,null,null,null,null,null,null,null,"","KARACABEY"]
[null,null,null,null,null,null,null,null,null,null,null,null,null,null,null,null,"","KARACASU"]
[null,null,null,null,null,null,null,null,null,null,null,null,null,null,null,null,"","KARAÇOBAN"]
[null,null,null,null,null,null,null,null,null,null,null,null,null,null,null,null,"","KARAHALLI"]
[null,null,null,null,null,null,null,null,null,null,null,null,null,null,null,null,"","KARAİSALI"]
[null,null,null,null,null,null,null,null,null,null,null,null,null,null,null,null,"","KARAKEÇİLİ"]
[null,null,null,null,null,null,null,null,null,null,null,null,null,null,null,null,"","KARAKOÇAN"]
[null,null,null,null,null,null,null,null,null,null,null,null,null,null,null,null,"","KARAKOYUNLU"]
[null,null,null,null,null,null,null,null,null,null,null,null,null,null,null,null,"","KARAMAN MERKEZ"]
[null,null,null,null,null,null,null,null,null,null,null,null,null,null,null,null,"","KARAMANLI"]
[null,null,null,null,null,null,null,null,null,null,null,null,null,null,null,null,"","KARAMÜRSEL"]
[null,null,null,null,null,null,null,null,null,null,null,null,null,null,null,null,"","KARAPINAR"]
[null,null,null,null,null,null,null,null,null,null,null,null,null,null,null,null,"","KARAPÜRÇEK"]
[null,null,null,null,null,null,null,null,null,null,null,null,null,null,null,null,"","KARASU"]
[null,null,null,null,null,null,null,null,null,null,null,null,null,null,null,null,"","KARATAŞ"]
[null,null,null,null,null,null,null,null,null,null,null,null,null,null,null,null,"","KARATAY"]
[null,null,null,null,null,null,null,null,null,null,null,null,null,null,null,null,"","KARAYAZI"]
[null,null,null,null,null,null,null,null,null,null,null,null,null,null,null,null,"","KARGI"]
[null,null,null,null,null,null,null,null,null,null,null,null,null,null,null,null,"","KARKAMIŞ"]
[null,null,null,null,null,null,null,null,null,null,null,null,null,null,null,null,"","KARLIOVA"]
[null,null,null,null,null,null,null,null,null,null,null,null,null,null,null,null,"","KARPUZLU"]
[null,null,null,null,null,null,null,null,null,null,null,null,null,null,null,null,"","KARS MERKEZ"]
[null,null,null,null,null,null,null,null,null,null,null,null,null,null,null,null,"","KARŞIYAKA"]
[null,null,null,null,null,null,null,null,null,null,null,null,null,null,null,null,"","KARTAL"]
[null,null,null,null,null,null,null,null,null,null,null,null,null,null,null,null,"","KARTEPE"]
[null,null,null,null,null,null,null,null,null,null,null,null,null,null,null,null,"","KASTAMONU MERKEZ"]
[null,null,null,null,null,null,null,null,null,null,null,null,null,null,null,null,"","KAŞ"]
[null,null,null,null,null,null,null,null,null,null,null,null,null,null,null,null,"","KAVAK"]
[null,null,null,null,null,null,null,null,null,null,null,null,null,null,null,null,"","KAVAKLIDERE"]
[null,null,null,null,null,null,null,null,null,null,null,null,null,null,null,null,"","KAYAPINAR"]
[null,null,null,null,null,null,null,null,null,null,null,null,null,null,null,null,"","KAYNARCA"]
[null,null,null,null,null,null,null,null,null,null,null,null,null,null,null,null,"","KAYNAŞLI"]
[null,null,null,null,null,null,null,null,null,null,null,null,null,null,null,null,"","KAYSERİ MERKEZ"]
[null,null,null,null,null,null,null,null,null,null,null,null,null,null,null,null,"","KAZAN"]
[null,null,null,null,null,null,null,null,null,null,null,null,null,null,null,null,"","KÂZIMKARABEKİR"]
[null,null,null,null,null,null,null,null,null,null,null,null,null,null,null,null,"","KEBAN"]
[null,null,null,null,null,null,null,null,null,null,null,null,null,null,null,null,"","KEÇİBORLU"]
[null,null,null,null,null,null,null,null,null,null,null,null,null,null,null,null,"","KEÇİÖREN"]
[null,null,null,null,null,null,null,null,null,null,null,null,null,null,null,null,"","KELES"]
[null,null,null,null,null,null,null,null,null,null,null,null,null,null,null,null,"","KELKİT"]
[null,null,null,null,null,null,null,null,null,null,null,null,null,null,null,null,"","KEMAH"]
[null,null,null,null,null,null,null,null,null,null,null,null,null,null,null,null,"","KEMALİYE"]
[null,null,null,null,null,null,null,null,null,null,null,null,null,null,null,null,"","KEMALPAŞA"]
[null,null,null,null,null,null,null,null,null,null,null,null,null,null,null,null,"","KEMER"]
[null,null,null,null,null,null,null,null,null,null,null,null,null,null,null,null,"","KEMER"]
[null,null,null,null,null,null,null,null,null,null,null,null,null,null,null,null,"","KEPEZ"]
[null,null,null,null,null,null,null,null,null,null,null,null,null,null,null,null,{"$f":"UPPER(P600)","v":""},"KEPSUT"]
[null,null,null,null,null,null,null,null,null,null,null,null,null,null,null,null,"","KESKİN"]
[null,null,null,null,null,null,null,null,null,null,null,null,null,null,null,null,"","KESTEL"]
[null,null,null,null,null,null,null,null,null,null,null,null,null,null,null,null,"","KEŞAN"]
[null,null,null,null,null,null,null,null,null,null,null,null,null,null,null,null,"","KEŞAP"]
[null,null,null,null,null,null,null,null,null,null,null,null,null,null,null,null,"","KIBRISCIK"]
[null,null,null,null,null,null,null,null,null,null,null,null,null,null,null,null,"","KINIK"]
[null,null,null,null,null,null,null,null,null,null,null,null,null,null,null,null,"","KIRIKHAN"]
[null,null,null,null,null,null,null,null,null,null,null,null,null,null,null,null,"","KIRIKKALE MERKEZ"]
[null,null,null,null,null,null,null,null,null,null,null,null,null,null,null,null,"","KIRKAĞAÇ"]
[null,null,null,null,null,null,null,null,null,null,null,null,null,null,null,null,"","KIRKLARELİ MERKEZ"]
[null,null,null,null,null,null,null,null,null,null,null,null,null,null,null,null,"","KIRŞEHİR MERKEZ"]
[null,null,null,null,null,null,null,null,null,null,null,null,null,null,null,null,"","KIZILCAHAMAM"]
[null,null,null,null,null,null,null,null,null,null,null,null,null,null,null,null,"","KIZILIRMAK"]
[null,null,null,null,null,null,null,null,null,null,null,null,null,null,null,null,"","KIZILÖREN"]
[null,null,null,null,null,null,null,null,null,null,null,null,null,null,null,null,"","KIZILTEPE"]
[null,null,null,null,null,null,null,null,null,null,null,null,null,null,null,null,"","KİĞI"]
[null,null,null,null,null,null,null,null,null,null,null,null,null,null,null,null,"","KİLİS MERKEZ"]
[null,null,null,null,null,null,null,null,null,null,null,null,null,null,null,null,"","KİRAZ"]
[null,null,null,null,null,null,null,null,null,null,null,null,null,null,null,null,"","KOCAALİ"]
[null,null,null,null,null,null,null,null,null,null,null,null,null,null,null,null,"","KOCAELİ MERKEZ (İZMİT)"]
[null,null,null,null,null,null,null,null,null,null,null,null,null,null,null,null,"","KOCAKÖY"]
[null,null,null,null,null,null,null,null,null,null,null,null,null,null,null,null,"","KOCASİNAN"]
[null,null,null,null,null,null,null,null,null,null,null,null,null,null,null,null,"","KOÇARLI"]
[null,null,null,null,null,null,null,null,null,null,null,null,null,null,null,null,"","KOFÇAZ"]
[null,null,null,null,null,null,null,null,null,null,null,null,null,null,null,null,"","KONAK"]
[null,null,null,null,null,null,null,null,null,null,null,null,null,null,null,null,"","KONYA MERKEZ"]
[null,null,null,null,null,null,null,null,null,null,null,null,null,null,null,null,"","KONYAALTI"]
[null,null,null,null,null,null,null,null,null,null,null,null,null,null,null,null,"","KORGAN"]
[null,null,null,null,null,null,null,null,null,null,null,null,null,null,null,null,"","KORGUN"]
[null,null,null,null,null,null,null,null,null,null,null,null,null,null,null,null,"","KORKUT"]
[null,null,null,null,null,null,null,null,null,null,null,null,null,null,null,null,"","KORKUTELİ"]
[null,null,null,null,null,null,null,null,null,null,null,null,null,null,null,null,"","KOVANCILAR"]
[null,null,null,null,null,null,null,null,null,null,null,null,null,null,null,null,"","KOYULHİSAR"]
[null,null,null,null,null,null,null,null,null,null,null,null,null,null,null,null,"","KOZAKLI"]
[null,null,null,null,null,null,null,null,null,null,null,null,null,null,null,null,"","KOZAN"]
[null,null,null,null,null,null,null,null,null,null,null,null,null,null,null,null,"","KOZLUK"]
[null,null,null,null,null,null,null,null,null,null,null,null,null,null,null,null,"","KÖPRÜBAŞI"]
[null,null,null,null,null,null,null,null,null,null,null,null,null,null,null,null,"","KÖPRÜBAŞI"]
[null,null,null,null,null,null,null,null,null,null,null,null,null,null,null,null,"","KÖPRÜKÖY"]
[null,null,null,null,null,null,null,null,null,null,null,null,null,null,null,null,"","KÖRFEZ"]
[null,null,null,null,null,null,null,null,null,null,null,null,null,null,null,null,"","KÖSE"]
[null,null,null,null,null,null,null,null,null,null,null,null,null,null,null,null,"","KÖŞK"]
[null,null,null,null,null,null,null,null,null,null,null,null,null,null,null,null,"","KÖYCEĞİZ"]
[null,null,null,null,null,null,null,null,null,null,null,null,null,null,null,null,"","KULA"]
[null,null,null,null,null,null,null,null,null,null,null,null,null,null,null,null,"","KULP"]
[null,null,null,null,null,null,null,null,null,null,null,null,null,null,null,null,"","KULU"]
[null,null,null,null,null,null,null,null,null,null,null,null,null,null,null,null,"","KULUNCAK"]
[null,null,null,null,null,null,null,null,null,null,null,null,null,null,null,null,"","KUMLU"]
[null,null,null,null,null,null,null,null,null,null,null,null,null,null,null,null,"","KUMLUCA"]
[null,null,null,null,null,null,null,null,null,null,null,null,null,null,null,null,"","KUMRU"]
[null,null,null,null,null,null,null,null,null,null,null,null,null,null,null,null,"","KURŞUNLU"]
[null,null,null,null,null,null,null,null,null,null,null,null,null,null,null,null,"","KURTALAN"]
[null,null,null,null,null,null,null,null,null,null,null,null,null,null,null,null,"","KURUCAŞİLE"]
[null,null,null,null,null,null,null,null,null,null,null,null,null,null,null,null,"","KUŞADASI"]
[null,null,null,null,null,null,null,null,null,null,null,null,null,null,null,null,"","KUYUCAK"]
[null,null,null,null,null,null,null,null,null,null,null,null,null,null,null,null,"","KÜÇÜKÇEKMECE"]
[null,null,null,null,null,null,null,null,null,null,null,null,null,null,null,null,"","KÜRE"]
[null,null,null,null,null,null,null,null,null,null,null,null,null,null,null,null,"","KÜRTÜN"]
[null,null,null,null,null,null,null,null,null,null,null,null,null,null,null,null,"","KÜTAHYA MERKEZ"]
[null,null,null,null,null,null,null,null,null,null,null,null,null,null,null,null,"","LAÇİN"]
[null,null,null,null,null,null,null,null,null,null,null,null,null,null,null,null,"","LADİK"]
[null,null,null,null,null,null,null,null,null,null,null,null,null,null,null,null,"","LALAPAŞA"]
[null,null,null,null,null,null,null,null,null,null,null,null,null,null,null,null,"","LAPSEKİ"]
[null,null,null,null,null,null,null,null,null,null,null,null,null,null,null,null,{"$f":"UPPER(P664)","v":""},"LİCE"]
[null,null,null,null,null,null,null,null,null,null,null,null,null,null,null,null,"","LÜLEBURGAZ"]
[null,null,null,null,null,null,null,null,null,null,null,null,null,null,null,null,"","MAÇKA"]
[null,null,null,null,null,null,null,null,null,null,null,null,null,null,null,null,"","MADEN"]
[null,null,null,null,null,null,null,null,null,null,null,null,null,null,null,null,"","MAHMUDİYE"]
[null,null,null,null,null,null,null,null,null,null,null,null,null,null,null,null,"","MALATYA MERKEZ"]
[null,null,null,null,null,null,null,null,null,null,null,null,null,null,null,null,"","MALAZGİRT"]
[null,null,null,null,null,null,null,null,null,null,null,null,null,null,null,null,"","MALKARA"]
[null,null,null,null,null,null,null,null,null,null,null,null,null,null,null,null,"","MALTEPE"]
[null,null,null,null,null,null,null,null,null,null,null,null,null,null,null,null,"","MAMAK"]
[null,null,null,null,null,null,null,null,null,null,null,null,null,null,null,null,"","MANAVGAT"]
[null,null,null,null,null,null,null,null,null,null,null,null,null,null,null,null,"","MANİSA MERKEZ"]
[null,null,null,null,null,null,null,null,null,null,null,null,null,null,null,null,"","MANYAS"]
[null,null,null,null,null,null,null,null,null,null,null,null,null,null,null,null,"","MARDİN MERKEZ"]
[null,null,null,null,null,null,null,null,null,null,null,null,null,null,null,null,"","MARMARA"]
[null,null,null,null,null,null,null,null,null,null,null,null,null,null,null,null,"","MARMARAEREĞLİSİ"]
[null,null,null,null,null,null,null,null,null,null,null,null,null,null,null,null,"","MARMARİS"]
[null,null,null,null,null,null,null,null,null,null,null,null,null,null,null,null,"","MAZGİRT"]
[null,null,null,null,null,null,null,null,null,null,null,null,null,null,null,null,"","MAZIDAĞI"]
[null,null,null,null,null,null,null,null,null,null,null,null,null,null,null,null,"","MECİTÖZÜ"]
[null,null,null,null,null,null,null,null,null,null,null,null,null,null,null,null,"","MELİKGAZİ"]
[null,null,null,null,null,null,null,null,null,null,null,null,null,null,null,null,"","MENDERES"]
[null,null,null,null,null,null,null,null,null,null,null,null,null,null,null,null,"","MENEMEN"]
[null,null,null,null,null,null,null,null,null,null,null,null,null,null,null,null,"","MENGEN"]
[null,null,null,null,null,null,null,null,null,null,null,null,null,null,null,null,"","MERAM"]
[null,null,null,null,null,null,null,null,null,null,null,null,null,null,null,null,"","MERİÇ"]
[null,null,null,null,null,null,null,null,null,null,null,null,null,null,null,null,"","MERZİFON"]
[null,null,null,null,null,null,null,null,null,null,null,null,null,null,null,null,"","MESUDİYE"]
[null,null,null,null,null,null,null,null,null,null,null,null,null,null,null,null,"","MEZİTLİ"]
[null,null,null,null,null,null,null,null,null,null,null,null,null,null,null,null,"","MİDYAT"]
[null,null,null,null,null,null,null,null,null,null,null,null,null,null,null,null,"","MİHALGAZİ"]
[null,null,null,null,null,null,null,null,null,null,null,null,null,null,null,null,"","MİHALIÇÇIK"]
[null,null,null,null,null,null,null,null,null,null,null,null,null,null,null,null,"","MİLAS"]
[null,null,null,null,null,null,null,null,null,null,null,null,null,null,null,null,"","MUCUR"]
[null,null,null,null,null,null,null,null,null,null,null,null,null,null,null,null,"","MUDANYA"]
[null,null,null,null,null,null,null,null,null,null,null,null,null,null,null,null,"","MUDURNU"]
[null,null,null,null,null,null,null,null,null,null,null,null,null,null,null,null,"","MUĞLA MERKEZ"]
[null,null,null,null,null,null,null,null,null,null,null,null,null,null,null,null,"","MURADİYE"]
[null,null,null,null,null,null,null,null,null,null,null,null,null,null,null,null,"","MURATLI"]
[null,null,null,null,null,null,null,null,null,null,null,null,null,null,null,null,"","MURATPAŞA"]
[null,null,null,null,null,null,null,null,null,null,null,null,null,null,null,null,"","MURGUL"]
[null,null,null,null,null,null,null,null,null,null,null,null,null,null,null,null,"","MUSABEYLİ"]
[null,null,null,null,null,null,null,null,null,null,null,null,null,null,null,null,"","MUSTAFA KEMAL PAŞA"]
[null,null,null,null,null,null,null,null,null,null,null,null,null,null,null,null,"","MUŞ MERKEZ"]
[null,null,null,null,null,null,null,null,null,null,null,null,null,null,null,null,"","MUT"]
[null,null,null,null,null,null,null,null,null,null,null,null,null,null,null,null,"","MUTKİ"]
[null,null,null,null,null,null,null,null,null,null,null,null,null,null,null,null,"","NALLIHAN"]
[null,null,null,null,null,null,null,null,null,null,null,null,null,null,null,null,"","NARLIDERE"]
[null,null,null,null,null,null,null,null,null,null,null,null,null,null,null,null,"","NARMAN"]
[null,null,null,null,null,null,null,null,null,null,null,null,null,null,null,null,"","NAZIMİYE"]
[null,null,null,null,null,null,null,null,null,null,null,null,null,null,null,null,"","NAZİLLİ"]
[null,null,null,null,null,null,null,null,null,null,null,null,null,null,null,null,"","NEVŞEHİR MERKEZ"]
[null,null,null,null,null,null,null,null,null,null,null,null,null,null,null,null,"","NİĞDE MERKEZ"]
[null,null,null,null,null,null,null,null,null,null,null,null,null,null,null,null,"","NİKSAR"]
[null,null,null,null,null,null,null,null,null,null,null,null,null,null,null,null,"","NİLÜFER"]
[null,null,null,null,null,null,null,null,null,null,null,null,null,null,null,null,"","NİZİP"]
[null,null,null,null,null,null,null,null,null,null,null,null,null,null,null,null,"","NURDAĞI"]
[null,null,null,null,null,null,null,null,null,null,null,null,null,null,null,null,"","NURHAK"]
[null,null,null,null,null,null,null,null,null,null,null,null,null,null,null,null,"","NUSAYBİN"]
[null,null,null,null,null,null,null,null,null,null,null,null,null,null,null,null,"","ODUNPAZARI"]
[null,null,null,null,null,null,null,null,null,null,null,null,null,null,null,null,"","OF"]
[null,null,null,null,null,null,null,null,null,null,null,null,null,null,null,null,"","OĞUZELİ"]
[null,null,null,null,null,null,null,null,null,null,null,null,null,null,null,null,"","OĞUZLAR"]
[null,null,null,null,null,null,null,null,null,null,null,null,null,null,null,null,"","OLTU"]
[null,null,null,null,null,null,null,null,null,null,null,null,null,null,null,null,{"$f":"UPPER(P728)","v":""},"OLUR"]
[null,null,null,null,null,null,null,null,null,null,null,null,null,null,null,null,"","ONDOKUZMAYIS"]
[null,null,null,null,null,null,null,null,null,null,null,null,null,null,null,null,"","ORDU MERKEZ"]
[null,null,null,null,null,null,null,null,null,null,null,null,null,null,null,null,"","ORHANELİ"]
[null,null,null,null,null,null,null,null,null,null,null,null,null,null,null,null,"","ORHANGAZİ"]
[null,null,null,null,null,null,null,null,null,null,null,null,null,null,null,null,"","ORTA"]
[null,null,null,null,null,null,null,null,null,null,null,null,null,null,null,null,"","ORTACA"]
[null,null,null,null,null,null,null,null,null,null,null,null,null,null,null,null,"","ORTAKÖY"]
[null,null,null,null,null,null,null,null,null,null,null,null,null,null,null,null,"","ORTAKÖY"]
[null,null,null,null,null,null,null,null,null,null,null,null,null,null,null,null,"","OSMANCIK"]
[null,null,null,null,null,null,null,null,null,null,null,null,null,null,null,null,"","OSMANELİ"]
[null,null,null,null,null,null,null,null,null,null,null,null,null,null,null,null,"","OSMANGAZİ"]
[null,null,null,null,null,null,null,null,null,null,null,null,null,null,null,null,"","OSMANİYE MERKEZ"]
[null,null,null,null,null,null,null,null,null,null,null,null,null,null,null,null,"","OTLUKBELİ"]
[null,null,null,null,null,null,null,null,null,null,null,null,null,null,null,null,"","OVACIK"]
[null,null,null,null,null,null,null,null,null,null,null,null,null,null,null,null,"","OVACIK"]
[null,null,null,null,null,null,null,null,null,null,null,null,null,null,null,null,"","ÖDEMİŞ"]
[null,null,null,null,null,null,null,null,null,null,null,null,null,null,null,null,"","ÖMERLİ"]
[null,null,null,null,null,null,null,null,null,null,null,null,null,null,null,null,"","ÖZALP"]
[null,null,null,null,null,null,null,null,null,null,null,null,null,null,null,null,"","ÖZVATAN"]
[null,null,null,null,null,null,null,null,null,null,null,null,null,null,null,null,"","PALANDÖKEN"]
[null,null,null,null,null,null,null,null,null,null,null,null,null,null,null,null,"","PALU"]
[null,null,null,null,null,null,null,null,null,null,null,null,null,null,null,null,"","PAMUKOVA"]
[null,null,null,null,null,null,null,null,null,null,null,null,null,null,null,null,"","PASİNLER"]
[null,null,null,null,null,null,null,null,null,null,null,null,null,null,null,null,"","PATNOS"]
[null,null,null,null,null,null,null,null,null,null,null,null,null,null,null,null,"","PAZAR"]
[null,null,null,null,null,null,null,null,null,null,null,null,null,null,null,null,"","PAZAR"]
[null,null,null,null,null,null,null,null,null,null,null,null,null,null,null,null,"","PAZARCIK"]
[null,null,null,null,null,null,null,null,null,null,null,null,null,null,null,null,"","PAZARLAR"]
[null,null,null,null,null,null,null,null,null,null,null,null,null,null,null,null,"","PAZARYERİ"]
[null,null,null,null,null,null,null,null,null,null,null,null,null,null,null,null,"","PAZARYOLU"]
[null,null,null,null,null,null,null,null,null,null,null,null,null,null,null,null,"","PEHLİVANKÖY"]
[null,null,null,null,null,null,null,null,null,null,null,null,null,null,null,null,"","PENDİK"]
[null,null,null,null,null,null,null,null,null,null,null,null,null,null,null,null,"","PERŞEMBE"]
[null,null,null,null,null,null,null,null,null,null,null,null,null,null,null,null,"","PERTEK"]
[null,null,null,null,null,null,null,null,null,null,null,null,null,null,null,null,"","PERVARİ"]
[null,null,null,null,null,null,null,null,null,null,null,null,null,null,null,null,"","PINARBAŞI"]
[null,null,null,null,null,null,null,null,null,null,null,null,null,null,null,null,"","PINARBAŞI"]
[null,null,null,null,null,null,null,null,null,null,null,null,null,null,null,null,"","PINARHİSAR"]
[null,null,null,null,null,null,null,null,null,null,null,null,null,null,null,null,"","PİRAZİZ"]
[null,null,null,null,null,null,null,null,null,null,null,null,null,null,null,null,"","POLATELİ"]
[null,null,null,null,null,null,null,null,null,null,null,null,null,null,null,null,"","POLATLI"]
[null,null,null,null,null,null,null,null,null,null,null,null,null,null,null,null,"","POSOF"]
[null,null,null,null,null,null,null,null,null,null,null,null,null,null,null,null,"","POZANTI"]
[null,null,null,null,null,null,null,null,null,null,null,null,null,null,null,null,"","PURSAKLAR"]
[null,null,null,null,null,null,null,null,null,null,null,null,null,null,null,null,"","PÜLÜMÜR"]
[null,null,null,null,null,null,null,null,null,null,null,null,null,null,null,null,"","PÜTÜRGE"]
[null,null,null,null,null,null,null,null,null,null,null,null,null,null,null,null,"","REFAHİYE"]
[null,null,null,null,null,null,null,null,null,null,null,null,null,null,null,null,"","REŞADİYE"]
[null,null,null,null,null,null,null,null,null,null,null,null,null,null,null,null,"","REYHANLI"]
[null,null,null,null,null,null,null,null,null,null,null,null,null,null,null,null,"","RİZE MERKEZ"]
[null,null,null,null,null,null,null,null,null,null,null,null,null,null,null,null,"","SAFRANBOLU"]
[null,null,null,null,null,null,null,null,null,null,null,null,null,null,null,null,"","SAİMBEYLİ"]
[null,null,null,null,null,null,null,null,null,null,null,null,null,null,null,null,"","SAKARYA MERKEZ (ADAPAZARI)"]
[null,null,null,null,null,null,null,null,null,null,null,null,null,null,null,null,"","SALIPAZARI"]
[null,null,null,null,null,null,null,null,null,null,null,null,null,null,null,null,"","SALİHLİ"]
[null,null,null,null,null,null,null,null,null,null,null,null,null,null,null,null,"","SAMANDAĞ"]
[null,null,null,null,null,null,null,null,null,null,null,null,null,null,null,null,"","SAMSAT"]
[null,null,null,null,null,null,null,null,null,null,null,null,null,null,null,null,"","SAMSUN MERKEZ"]
[null,null,null,null,null,null,null,null,null,null,null,null,null,null,null,null,"","SANCAKTEPE"]
[null,null,null,null,null,null,null,null,null,null,null,null,null,null,null,null,"","SANDIKLI"]
[null,null,null,null,null,null,null,null,null,null,null,null,null,null,null,null,"","SAPANCA"]
[null,null,null,null,null,null,null,null,null,null,null,null,null,null,null,null,"","SARAY"]
[null,null,null,null,null,null,null,null,null,null,null,null,null,null,null,null,"","SARAY"]
[null,null,null,null,null,null,null,null,null,null,null,null,null,null,null,null,{"$f":"UPPER(P792)","v":""},"SARAYDÜZÜ"]
[null,null,null,null,null,null,null,null,null,null,null,null,null,null,null,null,"","SARAYKENT"]
[null,null,null,null,null,null,null,null,null,null,null,null,null,null,null,null,"","SARAYKÖY"]
[null,null,null,null,null,null,null,null,null,null,null,null,null,null,null,null,"","SARAYÖNÜ"]
[null,null,null,null,null,null,null,null,null,null,null,null,null,null,null,null,"","SARICAKAYA"]
[null,null,null,null,null,null,null,null,null,null,null,null,null,null,null,null,"","SARIÇAM"]
[null,null,null,null,null,null,null,null,null,null,null,null,null,null,null,null,"","SARIGÖL"]
[null,null,null,null,null,null,null,null,null,null,null,null,null,null,null,null,"","SARIKAMIŞ"]
[null,null,null,null,null,null,null,null,null,null,null,null,null,null,null,null,"","SARIKAYA"]
[null,null,null,null,null,null,null,null,null,null,null,null,null,null,null,null,"","SARIOĞLAN"]
[null,null,null,null,null,null,null,null,null,null,null,null,null,null,null,null,"","SARIVELİLER"]
[null,null,null,null,null,null,null,null,null,null,null,null,null,null,null,null,"","SARIYAHŞİ"]
[null,null,null,null,null,null,null,null,null,null,null,null,null,null,null,null,"","SARIYER"]
[null,null,null,null,null,null,null,null,null,null,null,null,null,null,null,null,"","SARIZ"]
[null,null,null,null,null,null,null,null,null,null,null,null,null,null,null,null,"","SARUHANLI"]
[null,null,null,null,null,null,null,null,null,null,null,null,null,null,null,null,"","SASON"]
[null,null,null,null,null,null,null,null,null,null,null,null,null,null,null,null,"","SAVAŞTEPE"]
[null,null,null,null,null,null,null,null,null,null,null,null,null,null,null,null,"","SAVUR"]
[null,null,null,null,null,null,null,null,null,null,null,null,null,null,null,null,"","SEBEN"]
[null,null,null,null,null,null,null,null,null,null,null,null,null,null,null,null,"","SEFERİHİSAR"]
[null,null,null,null,null,null,null,null,null,null,null,null,null,null,null,null,"","SELÇUK"]
[null,null,null,null,null,null,null,null,null,null,null,null,null,null,null,null,"","SELÇUKLU"]
[null,null,null,null,null,null,null,null,null,null,null,null,null,null,null,null,"","SELENDİ"]
[null,null,null,null,null,null,null,null,null,null,null,null,null,null,null,null,"","SELİM"]
[null,null,null,null,null,null,null,null,null,null,null,null,null,null,null,null,"","SENİRKENT"]
[null,null,null,null,null,null,null,null,null,null,null,null,null,null,null,null,"","SERDİVAN"]
[null,null,null,null,null,null,null,null,null,null,null,null,null,null,null,null,"","SERİK"]
[null,null,null,null,null,null,null,null,null,null,null,null,null,null,null,null,"","SERİNHİSAR"]
[null,null,null,null,null,null,null,null,null,null,null,null,null,null,null,null,"","SEYDİLER"]
[null,null,null,null,null,null,null,null,null,null,null,null,null,null,null,null,"","SEYDİŞEHİR"]
[null,null,null,null,null,null,null,null,null,null,null,null,null,null,null,null,"","SEYHAN"]
[null,null,null,null,null,null,null,null,null,null,null,null,null,null,null,null,"","SEYİTGAZİ"]
[null,null,null,null,null,null,null,null,null,null,null,null,null,null,null,null,"","SINDIRGI"]
[null,null,null,null,null,null,null,null,null,null,null,null,null,null,null,null,"","SİİRT MERKEZ"]
[null,null,null,null,null,null,null,null,null,null,null,null,null,null,null,null,"","SİLİFKE"]
[null,null,null,null,null,null,null,null,null,null,null,null,null,null,null,null,"","SİLİVRİ"]
[null,null,null,null,null,null,null,null,null,null,null,null,null,null,null,null,"","SİLOPİ"]
[null,null,null,null,null,null,null,null,null,null,null,null,null,null,null,null,"","SİLVAN"]
[null,null,null,null,null,null,null,null,null,null,null,null,null,null,null,null,"","SİMAV"]
[null,null,null,null,null,null,null,null,null,null,null,null,null,null,null,null,"","SİNCAN"]
[null,null,null,null,null,null,null,null,null,null,null,null,null,null,null,null,"","SİNCANLI"]
[null,null,null,null,null,null,null,null,null,null,null,null,null,null,null,null,"","SİNCİK"]
[null,null,null,null,null,null,null,null,null,null,null,null,null,null,null,null,"","SİNOP MERKEZ"]
[null,null,null,null,null,null,null,null,null,null,null,null,null,null,null,null,"","SİVAS MERKEZ"]
[null,null,null,null,null,null,null,null,null,null,null,null,null,null,null,null,"","SİVASLI"]
[null,null,null,null,null,null,null,null,null,null,null,null,null,null,null,null,"","SİVEREK"]
[null,null,null,null,null,null,null,null,null,null,null,null,null,null,null,null,"","SİVRİCE"]
[null,null,null,null,null,null,null,null,null,null,null,null,null,null,null,null,"","SİVRİHİSAR"]
[null,null,null,null,null,null,null,null,null,null,null,null,null,null,null,null,"","SOLHAN"]
[null,null,null,null,null,null,null,null,null,null,null,null,null,null,null,null,"","SOMA"]
[null,null,null,null,null,null,null,null,null,null,null,null,null,null,null,null,"","SORGUN"]
[null,null,null,null,null,null,null,null,null,null,null,null,null,null,null,null,"","SÖĞÜT"]
[null,null,null,null,null,null,null,null,null,null,null,null,null,null,null,null,"","SÖĞÜTLÜ"]
[null,null,null,null,null,null,null,null,null,null,null,null,null,null,null,null,"","SÖKE"]
[null,null,null,null,null,null,null,null,null,null,null,null,null,null,null,null,"","SULAKYURT"]
[null,null,null,null,null,null,null,null,null,null,null,null,null,null,null,null,"","SULTANBEYLİ"]
[null,null,null,null,null,null,null,null,null,null,null,null,null,null,null,null,"","SULTANDAĞI"]
[null,null,null,null,null,null,null,null,null,null,null,null,null,null,null,null,"","SULTANGAZİ"]
[null,null,null,null,null,null,null,null,null,null,null,null,null,null,null,null,"","SULTANHİSAR"]
[null,null,null,null,null,null,null,null,null,null,null,null,null,null,null,null,"","SULUOVA"]
[null,null,null,null,null,null,null,null,null,null,null,null,null,null,null,null,"","SULUSARAY"]
[null,null,null,null,null,null,null,null,null,null,null,null,null,null,null,null,"","SUMBAS"]
[null,null,null,null,null,null,null,null,null,null,null,null,null,null,null,null,"","SUNGURLU"]
[null,null,null,null,null,null,null,null,null,null,null,null,null,null,null,null,"","SUR"]
[null,null,null,null,null,null,null,null,null,null,null,null,null,null,null,null,{"$f":"UPPER(P856)","v":""},"SURUÇ"]
[null,null,null,null,null,null,null,null,null,null,null,null,null,null,null,null,"","SUSURLUK"]
[null,null,null,null,null,null,null,null,null,null,null,null,null,null,null,null,"","SUSUZ"]
[null,null,null,null,null,null,null,null,null,null,null,null,null,null,null,null,"","SUŞEHRİ"]
[null,null,null,null,null,null,null,null,null,null,null,null,null,null,null,null,"","SÜLOĞLU"]
[null,null,null,null,null,null,null,null,null,null,null,null,null,null,null,null,"","SÜRMENE"]
[null,null,null,null,null,null,null,null,null,null,null,null,null,null,null,null,"","SÜTÇÜLER"]
[null,null,null,null,null,null,null,null,null,null,null,null,null,null,null,null,"","ŞABANÖZÜ"]
[null,null,null,null,null,null,null,null,null,null,null,null,null,null,null,null,"","ŞAHİNBEY"]
[null,null,null,null,null,null,null,null,null,null,null,null,null,null,null,null,"","ŞALPAZARI"]
[null,null,null,null,null,null,null,null,null,null,null,null,null,null,null,null,"","ŞANLIURFA MERKEZ"]
[null,null,null,null,null,null,null,null,null,null,null,null,null,null,null,null,"","ŞAPHANE"]
[null,null,null,null,null,null,null,null,null,null,null,null,null,null,null,null,"","ŞARKIŞLA"]
[null,null,null,null,null,null,null,null,null,null,null,null,null,null,null,null,"","ŞARKİKARAAĞAÇ"]
[null,null,null,null,null,null,null,null,null,null,null,null,null,null,null,null,"","ŞARKÖY"]
[null,null,null,null,null,null,null,null,null,null,null,null,null,null,null,null,"","ŞAVŞAT"]
[null,null,null,null,null,null,null,null,null,null,null,null,null,null,null,null,"","ŞEBİNKARAHİSAR"]
[null,null,null,null,null,null,null,null,null,null,null,null,null,null,null,null,"","ŞEFAATLİ"]
[null,null,null,null,null,null,null,null,null,null,null,null,null,null,null,null,"","ŞEHİTKAMİL"]
[null,null,null,null,null,null,null,null,null,null,null,null,null,null,null,null,"","ŞEMDİNLİ"]
[null,null,null,null,null,null,null,null,null,null,null,null,null,null,null,null,"","ŞENKAYA"]
[null,null,null,null,null,null,null,null,null,null,null,null,null,null,null,null,"","ŞENPAZAR"]
[null,null,null,null,null,null,null,null,null,null,null,null,null,null,null,null,"","ŞEREFLİKOÇHİSAR"]
[null,null,null,null,null,null,null,null,null,null,null,null,null,null,null,null,"","ŞIRNAK MERKEZ"]
[null,null,null,null,null,null,null,null,null,null,null,null,null,null,null,null,"","ŞİLE"]
[null,null,null,null,null,null,null,null,null,null,null,null,null,null,null,null,"","ŞİRAN"]
[null,null,null,null,null,null,null,null,null,null,null,null,null,null,null,null,"","ŞİRVAN"]
[null,null,null,null,null,null,null,null,null,null,null,null,null,null,null,null,"","ŞİŞLİ"]
[null,null,null,null,null,null,null,null,null,null,null,null,null,null,null,null,"","ŞUHUT"]
[null,null,null,null,null,null,null,null,null,null,null,null,null,null,null,null,"","TALAS"]
[null,null,null,null,null,null,null,null,null,null,null,null,null,null,null,null,"","TARAKLI"]
[null,null,null,null,null,null,null,null,null,null,null,null,null,null,null,null,"","TARSUS"]
[null,null,null,null,null,null,null,null,null,null,null,null,null,null,null,null,"","TAŞKENT"]
[null,null,null,null,null,null,null,null,null,null,null,null,null,null,null,null,"","TAŞKÖPRÜ"]
[null,null,null,null,null,null,null,null,null,null,null,null,null,null,null,null,"","TAŞLIÇAY"]
[null,null,null,null,null,null,null,null,null,null,null,null,null,null,null,null,"","TAŞOVA"]
[null,null,null,null,null,null,null,null,null,null,null,null,null,null,null,null,"","TATVAN"]
[null,null,null,null,null,null,null,null,null,null,null,null,null,null,null,null,"","TAVAS"]
[null,null,null,null,null,null,null,null,null,null,null,null,null,null,null,null,"","TAVŞANLI"]
[null,null,null,null,null,null,null,null,null,null,null,null,null,null,null,null,"","TEFENNİ"]
[null,null,null,null,null,null,null,null,null,null,null,null,null,null,null,null,"","TEKİRDAĞ MERKEZ"]
[null,null,null,null,null,null,null,null,null,null,null,null,null,null,null,null,"","TEKKEKÖY"]
[null,null,null,null,null,null,null,null,null,null,null,null,null,null,null,null,"","TEKMAN"]
[null,null,null,null,null,null,null,null,null,null,null,null,null,null,null,null,"","TEPEBAŞI"]
[null,null,null,null,null,null,null,null,null,null,null,null,null,null,null,null,"","TERCAN"]
[null,null,null,null,null,null,null,null,null,null,null,null,null,null,null,null,"","TERMAL"]
[null,null,null,null,null,null,null,null,null,null,null,null,null,null,null,null,"","TERME"]
[null,null,null,null,null,null,null,null,null,null,null,null,null,null,null,null,"","TİRE"]
[null,null,null,null,null,null,null,null,null,null,null,null,null,null,null,null,"","TİREBOLU"]
[null,null,null,null,null,null,null,null,null,null,null,null,null,null,null,null,"","TOKAT MERKEZ"]
[null,null,null,null,null,null,null,null,null,null,null,null,null,null,null,null,"","TOMARZA"]
[null,null,null,null,null,null,null,null,null,null,null,null,null,null,null,null,"","TONYA"]
[null,null,null,null,null,null,null,null,null,null,null,null,null,null,null,null,"","TOPRAKKALE"]
[null,null,null,null,null,null,null,null,null,null,null,null,null,null,null,null,"","TORBALI"]
[null,null,null,null,null,null,null,null,null,null,null,null,null,null,null,null,"","TOROSLAR"]
[null,null,null,null,null,null,null,null,null,null,null,null,null,null,null,null,"","TORTUM"]
[null,null,null,null,null,null,null,null,null,null,null,null,null,null,null,null,"","TORUL"]
[null,null,null,null,null,null,null,null,null,null,null,null,null,null,null,null,"","TOSYA"]
[null,null,null,null,null,null,null,null,null,null,null,null,null,null,null,null,"","TRABZON MERKEZ"]
[null,null,null,null,null,null,null,null,null,null,null,null,null,null,null,null,"","TUFANBEYLİ"]
[null,null,null,null,null,null,null,null,null,null,null,null,null,null,null,null,"","TUNCELİ MERKEZ"]
[null,null,null,null,null,null,null,null,null,null,null,null,null,null,null,null,"","TURGUTLU"]
[null,null,null,null,null,null,null,null,null,null,null,null,null,null,null,null,"","TURHAL"]
[null,null,null,null,null,null,null,null,null,null,null,null,null,null,null,null,"","TUT"]
[null,null,null,null,null,null,null,null,null,null,null,null,null,null,null,null,{"$f":"UPPER(P920)","v":""},"TUTAK"]
[null,null,null,null,null,null,null,null,null,null,null,null,null,null,null,null,"","TUZLA"]
[null,null,null,null,null,null,null,null,null,null,null,null,null,null,null,null,"","TUZLUCA"]
[null,null,null,null,null,null,null,null,null,null,null,null,null,null,null,null,"","TUZLUKÇU"]
[null,null,null,null,null,null,null,null,null,null,null,null,null,null,null,null,"","TÜRKELİ"]
[null,null,null,null,null,null,null,null,null,null,null,null,null,null,null,null,"","TÜRKOĞLU"]
[null,null,null,null,null,null,null,null,null,null,null,null,null,null,null,null,"","UĞURLUDAĞ"]
[null,null,null,null,null,null,null,null,null,null,null,null,null,null,null,null,"","ULA"]
[null,null,null,null,null,null,null,null,null,null,null,null,null,null,null,null,"","ULAŞ"]
[null,null,null,null,null,null,null,null,null,null,null,null,null,null,null,null,"","ULUBEY"]
[null,null,null,null,null,null,null,null,null,null,null,null,null,null,null,null,"","ULUBEY"]
[null,null,null,null,null,null,null,null,null,null,null,null,null,null,null,null,"","ULUBORLU"]
[null,null,null,null,null,null,null,null,null,null,null,null,null,null,null,null,"","ULUDERE"]
[null,null,null,null,null,null,null,null,null,null,null,null,null,null,null,null,"","ULUKIŞLA"]
[null,null,null,null,null,null,null,null,null,null,null,null,null,null,null,null,"","ULUS"]
[null,null,null,null,null,null,null,null,null,null,null,null,null,null,null,null,"","URLA"]
[null,null,null,null,null,null,null,null,null,null,null,null,null,null,null,null,"","UŞAK MERKEZ"]
[null,null,null,null,null,null,null,null,null,null,null,null,null,null,null,null,"","UZUNDERE"]
[null,null,null,null,null,null,null,null,null,null,null,null,null,null,null,null,"","UZUNKÖPRÜ"]
[null,null,null,null,null,null,null,null,null,null,null,null,null,null,null,null,"","ÜMRANİYE"]
[null,null,null,null,null,null,null,null,null,null,null,null,null,null,null,null,"","ÜNYE"]
[null,null,null,null,null,null,null,null,null,null,null,null,null,null,null,null,"","ÜRGÜP"]
[null,null,null,null,null,null,null,null,null,null,null,null,null,null,null,null,"","ÜSKÜDAR"]
[null,null,null,null,null,null,null,null,null,null,null,null,null,null,null,null,"","ÜZÜMLÜ"]
[null,null,null,null,null,null,null,null,null,null,null,null,null,null,null,null,"","VAKFIKEBİR"]
[null,null,null,null,null,null,null,null,null,null,null,null,null,null,null,null,"","VAN MERKEZ"]
[null,null,null,null,null,null,null,null,null,null,null,null,null,null,null,null,"","VARTO"]
[null,null,null,null,null,null,null,null,null,null,null,null,null,null,null,null,"","VEZİRKÖPRÜ"]
[null,null,null,null,null,null,null,null,null,null,null,null,null,null,null,null,"","VİRANŞEHİR"]
[null,null,null,null,null,null,null,null,null,null,null,null,null,null,null,null,"","VİZE"]
[null,null,null,null,null,null,null,null,null,null,null,null,null,null,null,null,"","YAĞLIDERE"]
[null,null,null,null,null,null,null,null,null,null,null,null,null,null,null,null,"","YAHŞİHAN"]
[null,null,null,null,null,null,null,null,null,null,null,null,null,null,null,null,"","YAHYALI"]
[null,null,null,null,null,null,null,null,null,null,null,null,null,null,null,null,"","YAKAKENT"]
[null,null,null,null,null,null,null,null,null,null,null,null,null,null,null,null,"","YAKUTİYE"]
[null,null,null,null,null,null,null,null,null,null,null,null,null,null,null,null,"","YALIHÜYÜK"]
[null,null,null,null,null,null,null,null,null,null,null,null,null,null,null,null,"","YALOVA MERKEZ"]
[null,null,null,null,null,null,null,null,null,null,null,null,null,null,null,null,"","YALVAÇ"]
[null,null,null,null,null,null,null,null,null,null,null,null,null,null,null,null,"","YAPRAKLI"]
[null,null,null,null,null,null,null,null,null,null,null,null,null,null,null,null,"","YATAĞAN"]
[null,null,null,null,null,null,null,null,null,null,null,null,null,null,null,null,"","YAVUZELİ"]
[null,null,null,null,null,null,null,null,null,null,null,null,null,null,null,null,"","YAYLADAĞI"]
[null,null,null,null,null,null,null,null,null,null,null,null,null,null,null,null,"","YAYLADERE"]
[null,null,null,null,null,null,null,null,null,null,null,null,null,null,null,null,"","YAZIHAN"]
[null,null,null,null,null,null,null,null,null,null,null,null,null,null,null,null,"","YEDİSU"]
[null,null,null,null,null,null,null,null,null,null,null,null,null,null,null,null,"","YENİCE"]
[null,null,null,null,null,null,null,null,null,null,null,null,null,null,null,null,"","YENİCE"]
[null,null,null,null,null,null,null,null,null,null,null,null,null,null,null,null,"","YENİÇAĞA"]
[null,null,null,null,null,null,null,null,null,null,null,null,null,null,null,null,"","YENİFAKILI"]
[null,null,null,null,null,null,null,null,null,null,null,null,null,null,null,null,"","YENİMAHALLE"]
[null,null,null,null,null,null,null,null,null,null,null,null,null,null,null,null,"","YENİPAZAR"]
[null,null,null,null,null,null,null,null,null,null,null,null,null,null,null,null,"","YENİPAZAR"]
[null,null,null,null,null,null,null,null,null,null,null,null,null,null,null,null,"","YENİŞARBADEMLİ"]
[null,null,null,null,null,null,null,null,null,null,null,null,null,null,null,null,"","YENİŞEHİR"]
[null,null,null,null,null,null,null,null,null,null,null,null,null,null,null,null,"","YENİŞEHİR/DİYARBAKIR"]
[null,null,null,null,null,null,null,null,null,null,null,null,null,null,null,null,"","YENİŞEHİR/MERSİN"]
[null,null,null,null,null,null,null,null,null,null,null,null,null,null,null,null,"","YERKÖY"]
[null,null,null,null,null,null,null,null,null,null,null,null,null,null,null,null,"","YEŞİLHİSAR"]
[null,null,null,null,null,null,null,null,null,null,null,null,null,null,null,null,"","YEŞİLLİ"]
[null,null,null,null,null,null,null,null,null,null,null,null,null,null,null,null,"","YEŞİLOVA"]
[null,null,null,null,null,null,null,null,null,null,null,null,null,null,null,null,"","YEŞİLYURT"]
[null,null,null,null,null,null,null,null,null,null,null,null,null,null,null,null,"","YEŞİLYURT"]
[null,null,null,null,null,null,null,null,null,null,null,null,null,null,null,null,"","YIĞILCA"]
[null,null,null,null,null,null,null,null,null,null,null,null,null,null,null,null,"","YILDIRIM"]
[null,null,null,null,null,null,null,null,null,null,null,null,null,null,null,null,{"$f":"UPPER(P984)","v":""},"YILDIZELİ"]
[null,null,null,null,null,null,null,null,null,null,null,null,null,null,null,null,"","YOMRA"]
[null,null,null,null,null,null,null,null,null,null,null,null,null,null,null,null,"","YOZGAT MERKEZ"]
[null,null,null,null,null,null,null,null,null,null,null,null,null,null,null,null,"","YUMURTALIK"]
[null,null,null,null,null,null,null,null,null,null,null,null,null,null,null,null,"","YUNAK"]
[null,null,null,null,null,null,null,null,null,null,null,null,null,null,null,null,"","YUSUFELİ"]
[null,null,null,null,null,null,null,null,null,null,null,null,null,null,null,null,"","YÜKSEKOVA"]
[null,null,null,null,null,null,null,null,null,null,null,null,null,null,null,null,"","YÜREĞİR"]
[null,null,null,null,null,null,null,null,null,null,null,null,null,null,null,null,"","ZARA"]
[null,null,null,null,null,null,null,null,null,null,null,null,null,null,null,null,"","ZEYTİNBURNU"]
[null,null,null,null,null,null,null,null,null,null,null,null,null,null,null,null,"","ZİLE"]
[null,null,null,null,null,null,null,null,null,null,null,null,null,null,null,null,"","ZONGULDAK MERKEZ"]

{"sheet":"TAKVİM","index":9,"n_rows":412,"n_cols":36,"rows_kept":412,"cut":false,"hidden":true,"merged":[]}
[null,null,null,"seçili ay","seçili yıl","birleştir",null,null,"seçili tarih ilk gün",null,null,null,"Seçili Yıl",null,"formül"]
[null,null,null,{"$f":"ANASAYFA!N6","v":"KASIM"},{"$f":"ANASAYFA!N5","v":2023},{"$f":"CONCATENATE(D2,E2)","v":"KASIM2023"},null,null,{"$f":"VLOOKUP(F2,F6:H101,2,0)","v":"2023-11-01"},null,null,null,{"$f":"ANASAYFA!N5","v":2023},null,{"$f":"IF($M$2=$L$6,M6,IF($M$2=$L$7,M7,IF($M$2=$L$8,M8,IF($M$2=$L$9,M9,IF($M$2=$L$10,M10,IF($M$2=$L$11,M11,IF($M$2=$L$12,M12,IF($M$2=$L$13,M13))))))))","v":22}]
[]
[]
[null,"eğer",null,"ay","yıl","birleştir",null,null,null,null,null,null,"Ocak","Şubat","mart","Nisan","Mayıs","Haziran","Temmuz","Ağustos","Eylül","Ekim","Kasım","Aralık"]
[null,{"$f":"IF(D6=\"\",\"\",D6)","v":"Ocak"},1,"Ocak",2023,{"$f":"CONCATENATE(D6,E6)","v":"Ocak2023"},{"$f":"DATE(E6,C6,1)","v":"2023-01-01"},{"$f":"EOMONTH(G6,0)","v":"2023-01-31"},{"$f":"NETWORKDAYS(G6,H6)","v":22},null,null,2023,22,20,23,15,23,22,21,23,21,22,17,21]
[null,{"$f":"IF(D7=\"\",\"\",D7)","v":"Şubat"},2,"Şubat",2023,{"$f":"CONCATENATE(D7,E7)","v":"Şubat2023"},{"$f":"DATE(E7,C7,1)","v":"2023-02-01"},{"$f":"EOMONTH(G7,0)","v":"2023-02-28"},{"$f":"NETWORKDAYS(G7,H7)","v":20},null,null,2024,23,21,21,17,23,20,23,22,21,23,16,22]
[null,"Mart",3,"Mart",2023,"Mart2023","2023-03-01","2023-03-31",23,null,null,2025,23,20,21,17,22,21,23,21,22,23,15,23]
[null,"Nisan",4,"Nisan",2023,"Nisan2023","2023-04-01","2023-04-30",20,null,null,2026,22,20,22,17,21,22,23,21,22,22,16,23]
[null,"Mayıs",5,"Mayıs",2023,"Mayıs2023","2023-05-01","2023-05-31",23,null,null,2027,21,20,23,17,21,22,22,22,22,21,17,23]
[null,"Haziran",6,"Haziran",2023,"Haziran2023","2023-06-01","2023-06-30",22,null,null,2028,21,21,23,15,23,22,21,23,21,22,17,21]
[null,"Temmuz",7,"Temmuz",2023,"Temmuz2023","2023-07-01","2023-07-31",21,null,null,2029,23,20,22,16,23,21,22,23,20,23,17,21]
[null,"Ağustos",8,"Ağustos",2023,"Ağustos2023","2023-08-01","2023-08-31",23,null,null,2030,23,20,21,17,23,20,23,22,21,23,16,22]
[null,"Eylül",9,"Eylül",2023,"Eylül2023","2023-09-01","2023-09-30",21]
[null,"Ekim",10,"Ekim",2023,"Ekim2023","2023-10-01","2023-10-31",22]
[null,"Kasım",11,"Kasım",2023,"Kasım2023","2023-11-01","2023-11-30",22,null,null,null,"Ocak","Şubat","mart","Nisan","Mayıs","Haziran","Temmuz","Ağustos","Eylül","Ekim","Kasım","Aralık"]
[null,"Aralık",12,"Aralık",2023,"Aralık2023","2023-12-01","2023-12-31",21,null,null,"fonksiyon",{"$f":"IF($M$2=$L$6,M6,IF($M$2=$L$7,M7,IF($M$2=$L$8,M8,IF($M$2=$L$9,M9,IF($M$2=$L$10,M10,IF($M$2=$L$11,M11,IF($M$2=$L$12,M12,IF($M$2=$L$13,M13))))))))","v":22},{"$f":"IF($M$2=$L$6,N6,IF($M$2=$L$7,N7,IF($M$2=$L$8,N8,IF($M$2=$L$9,N9,IF($M$2=$L$10,N10,IF($M$2=$L$11,N11,IF($M$2=$L$12,N12,IF($M$2=$L$13,N13))))))))","v":20},{"$f":"IF($M$2=$L$6,O6,IF($M$2=$L$7,O7,IF($M$2=$L$8,O8,IF($M$2=$L$9,O9,IF($M$2=$L$10,O10,IF($M$2=$L$11,O11,IF($M$2=$L$12,O12,IF($M$2=$L$13,O13))))))))","v":23},{"$f":"IF($M$2=$L$6,P6,IF($M$2=$L$7,P7,IF($M$2=$L$8,P8,IF($M$2=$L$9,P9,IF($M$2=$L$10,P10,IF($M$2=$L$11,P11,IF($M$2=$L$12,P12,IF($M$2=$L$13,P13))))))))","v":15},23,22,21,23,21,22,17,21]
[null,"Ocak",1,"Ocak",2024,"Ocak2024","2024-01-01","2024-01-31",23,null,null,null,1,1,1,1,1,1,1,1,1,1,1,1]
[null,"Şubat",2,"Şubat",2024,"Şubat2024","2024-02-01","2024-02-29",21,null,null,null,2,2,2,2,2,2,2,2,2,2,2,2]
[null,"Mart",3,"Mart",2024,"Mart2024","2024-03-01","2024-03-31",21,null,null,null,3,3,3,3,3,3,3,3,3,3,3,3]
[null,"Nisan",4,"Nisan",2024,"Nisan2024","2024-04-01","2024-04-30",22,null,null,null,4,4,4,4,4,4,4,4,4,4,4,4]
[null,"Mayıs",5,"Mayıs",2024,"Mayıs2024","2024-05-01","2024-05-31",23,null,null,null,5,5,5,5,5,5,5,5,5,5,5,5]
[null,"Haziran",6,"Haziran",2024,"Haziran2024","2024-06-01","2024-06-30",20,null,null,null,6,6,6,6,6,6,6,6,6,6,6,6]
[null,"Temmuz",7,"Temmuz",2024,"Temmuz2024","2024-07-01","2024-07-31",23,null,null,null,7,7,7,7,7,7,7,7,7,7,7,7]
[null,"Ağustos",8,"Ağustos",2024,"Ağustos2024","2024-08-01","2024-08-31",22,null,null,null,8,8,8,8,8,8,8,8,8,8,8,8]
[null,"Eylül",9,"Eylül",2024,"Eylül2024","2024-09-01","2024-09-30",21,null,null,null,9,9,9,9,9,9,9,9,9,9,9,9]
[null,"Ekim",10,"Ekim",2024,"Ekim2024","2024-10-01","2024-10-31",23,null,null,null,10,10,10,10,10,10,10,10,10,10,10,10]
[null,"Kasım",11,"Kasım",2024,"Kasım2024","2024-11-01","2024-11-30",21,null,null,null,11,11,11,11,11,11,11,11,11,11,11,11]
[null,"Aralık",12,"Aralık",2024,"Aralık2024","2024-12-01","2024-12-31",22,null,null,null,12,12,12,12,12,12,12,12,12,12,12,12]
[null,"Ocak",1,"Ocak",2025,"Ocak2025","2025-01-01","2025-01-31",23,null,null,null,13,13,13,13,13,13,13,13,13,13,13,13]
[null,"Şubat",2,"Şubat",2025,"Şubat2025","2025-02-01","2025-02-28",20,null,null,null,14,14,14,14,14,14,14,14,14,14,14,14]
[null,"Mart",3,"Mart",2025,"Mart2025","2025-03-01","2025-03-31",21,null,null,null,15,15,15,15,15,15,15,15,15,15,15,15]
[null,"Nisan",4,"Nisan",2025,"Nisan2025","2025-04-01","2025-04-30",22,null,null,null,16,16,16,16,16,16,16,16,16,16,16,16]
[null,"Mayıs",5,"Mayıs",2025,"Mayıs2025","2025-05-01","2025-05-31",22,null,null,null,17,17,17,17,17,17,17,17,17,17,17,17]
[null,"Haziran",6,"Haziran",2025,"Haziran2025","2025-06-01","2025-06-30",21,null,null,null,18,18,18,18,18,18,18,18,18,18,18,18]
[null,"Temmuz",7,"Temmuz",2025,"Temmuz2025","2025-07-01","2025-07-31",23,null,null,null,19,19,19,19,19,19,19,19,19,19,19,19]
[null,"Ağustos",8,"Ağustos",2025,"Ağustos2025","2025-08-01","2025-08-31",21,null,null,null,20,20,20,20,20,20,20,20,20,20,20,20]
[null,"Eylül",9,"Eylül",2025,"Eylül2025","2025-09-01","2025-09-30",22,null,null,null,21,21,21,21,21,21,21,21,21,21,21,21]
[null,"Ekim",10,"Ekim",2025,"Ekim2025","2025-10-01","2025-10-31",23,null,null,null,22,22,22,22,22,22,22,22,22,22,22,22]
[null,"Kasım",11,"Kasım",2025,"Kasım2025","2025-11-01","2025-11-30",20,null,null,null,23,23,23,23,23,23,23,23,23,23,23,23]
[null,"Aralık",12,"Aralık",2025,"Aralık2025","2025-12-01","2025-12-31",23,null,null,null,24,24,24,24,24,24,24,24,24,24,24,24]
[null,"Ocak",1,"Ocak",2026,"Ocak2026","2026-01-01","2026-01-31",22,null,null,null,25,25,25,25,25,25,25,25,25,25,25,25]
[null,"Şubat",2,"Şubat",2026,"Şubat2026","2026-02-01","2026-02-28",20,null,null,null,26,26,26,26,26,26,26,26,26,26,26,26]
[null,"Mart",3,"Mart",2026,"Mart2026","2026-03-01","2026-03-31",22,null,null,null,27,27,27,27,27,27,27,27,27,27,27,27]
[null,"Nisan",4,"Nisan",2026,"Nisan2026","2026-04-01","2026-04-30",22,null,null,null,28,28,28,28,28,28,28,28,28,28,28,28]
[null,"Mayıs",5,"Mayıs",2026,"Mayıs2026","2026-05-01","2026-05-31",21,null,null,null,29,29,29,29,29,29,29,29,29,29,29,29]
[null,"Haziran",6,"Haziran",2026,"Haziran2026","2026-06-01","2026-06-30",22,null,null,null,30,30,30,30,30,30,30,30,30,30,30,30]
[null,"Temmuz",7,"Temmuz",2026,"Temmuz2026","2026-07-01","2026-07-31",23,null,null,null,31,31,31,31,31,31,31,31,31,31,31,31]
[null,"Ağustos",8,"Ağustos",2026,"Ağustos2026","2026-08-01","2026-08-31",21]
[null,"Eylül",9,"Eylül",2026,"Eylül2026","2026-09-01","2026-09-30",22]
[null,"Ekim",10,"Ekim",2026,"Ekim2026","2026-10-01","2026-10-31",22]
[null,"Kasım",11,"Kasım",2026,"Kasım2026","2026-11-01","2026-11-30",21]
[null,"Aralık",12,"Aralık",2026,"Aralık2026","2026-12-01","2026-12-31",23]
[null,"Ocak",1,"Ocak",2027,"Ocak2027","2027-01-01","2027-01-31",21]
[null,"Şubat",2,"Şubat",2027,"Şubat2027","2027-02-01","2027-02-28",20]
[null,"Mart",3,"Mart",2027,"Mart2027","2027-03-01","2027-03-31",23]
[null,"Nisan",4,"Nisan",2027,"Nisan2027","2027-04-01","2027-04-30",22]
[null,"Mayıs",5,"Mayıs",2027,"Mayıs2027","2027-05-01","2027-05-31",21]
[null,"Haziran",6,"Haziran",2027,"Haziran2027","2027-06-01","2027-06-30",22]
[null,"Temmuz",7,"Temmuz",2027,"Temmuz2027","2027-07-01","2027-07-31",22]
[null,"Ağustos",8,"Ağustos",2027,"Ağustos2027","2027-08-01","2027-08-31",22]
[null,"Eylül",9,"Eylül",2027,"Eylül2027","2027-09-01","2027-09-30",22]
[null,"Ekim",10,"Ekim",2027,"Ekim2027","2027-10-01","2027-10-31",21]
[null,"Kasım",11,"Kasım",2027,"Kasım2027","2027-11-01","2027-11-30",22]
[null,"Aralık",12,"Aralık",2027,"Aralık2027","2027-12-01","2027-12-31",23]
[null,"Ocak",1,"Ocak",2028,"Ocak2028","2028-01-01","2028-01-31",21]
[null,"Şubat",2,"Şubat",2028,"Şubat2028","2028-02-01","2028-02-29",21]
[null,"Mart",3,"Mart",2028,"Mart2028","2028-03-01","2028-03-31",23]
[null,"Nisan",4,"Nisan",2028,"Nisan2028","2028-04-01","2028-04-30",20]
[null,"Mayıs",5,"Mayıs",2028,"Mayıs2028","2028-05-01","2028-05-31",23]
[null,{"$f":"IF(D71=\"\",\"\",D71)","v":"Haziran"},6,"Haziran",2028,{"$f":"CONCATENATE(D71,E71)","v":"Haziran2028"},{"$f":"DATE(E71,C71,1)","v":"2028-06-01"},{"$f":"EOMONTH(G71,0)","v":"2028-06-30"},{"$f":"NETWORKDAYS(G71,H71)","v":22}]
[null,"Temmuz",7,"Temmuz",2028,"Temmuz2028","2028-07-01","2028-07-31",21]
[null,"Ağustos",8,"Ağustos",2028,"Ağustos2028","2028-08-01","2028-08-31",23]
[null,"Eylül",9,"Eylül",2028,"Eylül2028","2028-09-01","2028-09-30",21]
[null,"Ekim",10,"Ekim",2028,"Ekim2028","2028-10-01","2028-10-31",22]
[null,"Kasım",11,"Kasım",2028,"Kasım2028","2028-11-01","2028-11-30",22]
[null,"Aralık",12,"Aralık",2028,"Aralık2028","2028-12-01","2028-12-31",21]
[null,"Ocak",1,"Ocak",2029,"Ocak2029","2029-01-01","2029-01-31",23]
[null,"Şubat",2,"Şubat",2029,"Şubat2029","2029-02-01","2029-02-28",20]
[null,"Mart",3,"Mart",2029,"Mart2029","2029-03-01","2029-03-31",22]
[null,"Nisan",4,"Nisan",2029,"Nisan2029","2029-04-01","2029-04-30",21]
[null,"Mayıs",5,"Mayıs",2029,"Mayıs2029","2029-05-01","2029-05-31",23]
[null,"Haziran",6,"Haziran",2029,"Haziran2029","2029-06-01","2029-06-30",21]
[null,"Temmuz",7,"Temmuz",2029,"Temmuz2029","2029-07-01","2029-07-31",22]
[null,"Ağustos",8,"Ağustos",2029,"Ağustos2029","2029-08-01","2029-08-31",23]
[null,"Eylül",9,"Eylül",2029,"Eylül2029","2029-09-01","2029-09-30",20]
[null,"Ekim",10,"Ekim",2029,"Ekim2029","2029-10-01","2029-10-31",23]
[null,"Kasım",11,"Kasım",2029,"Kasım2029","2029-11-01","2029-11-30",22]
[null,"Aralık",12,"Aralık",2029,"Aralık2029","2029-12-01","2029-12-31",21]
[null,"Ocak",1,"Ocak",2030,"Ocak2030","2030-01-01","2030-01-31",23]
[null,"Şubat",2,"Şubat",2030,"Şubat2030","2030-02-01","2030-02-28",20]
[null,"Mart",3,"Mart",2030,"Mart2030","2030-03-01","2030-03-31",21]
[null,"Nisan",4,"Nisan",2030,"Nisan2030","2030-04-01","2030-04-30",22]
[null,"Mayıs",5,"Mayıs",2030,"Mayıs2030","2030-05-01","2030-05-31",23]
[null,"Haziran",6,"Haziran",2030,"Haziran2030","2030-06-01","2030-06-30",20]
[null,"Temmuz",7,"Temmuz",2030,"Temmuz2030","2030-07-01","2030-07-31",23]
[null,"Ağustos",8,"Ağustos",2030,"Ağustos2030","2030-08-01","2030-08-31",22]
[null,"Eylül",9,"Eylül",2030,"Eylül2030","2030-09-01","2030-09-30",21]
[null,"Ekim",10,"Ekim",2030,"Ekim2030","2030-10-01","2030-10-31",23]
[null,"Kasım",11,"Kasım",2030,"Kasım2030","2030-11-01","2030-11-30",21]
[null,"Aralık",12,"Aralık",2030,"Aralık2030","2030-12-01","2030-12-31",22]
[]
[]
[null,null,null,null,null,null,null,null,null,null,null,"Ocak","Şubat","mart","Nisan","Mayıs","Haziran","Temmuz","Ağustos","Eylül","Ekim","Kasım","Aralık",null,"Ocak","Şubat","mart","Nisan","Mayıs","Haziran","Temmuz","Ağustos","Eylül","Ekim","Kasım","Aralık"]
[null,null,null,null,null,null,null,null,null,null,null,{"$f":"IF(D6=\"ocak\",I6,\"\")","v":22},{"$f":"IF(D6=\"Şubat\",I6,\"\")","v":""},{"$f":"IF(D6=\"Mart\",I6,\"\")","v":""},{"$f":"IF(D6=\"Nisan\",I6,\"\")","v":""},{"$f":"IF(D6=\"Mayıs\",I6,\"\")","v":""},{"$f":"IF(D6=\"Haziran\",I6,\"\")","v":""},{"$f":"IF(D6=\"Temmuz\",I6,\"\")","v":""},{"$f":"IF(D6=\"Ağustos\",I6,\"\")","v":""},{"$f":"IF(D6=\"Eylül\",I6,\"\")","v":""},{"$f":"IF(D6=\"Ekim\",I6,\"\")","v":""},{"$f":"IF(D6=\"Kasım\",I6,\"\")","v":""},{"$f":"IF(D6=\"Aralık\",I6,\"\")","v":""},null,22,"","","","","","","","","","",""]
[null,null,null,null,null,null,null,null,null,null,null,{"$f":"IF(D7=\"ocak\",I7,\"\")","v":""},{"$f":"IF(D7=\"Şubat\",I7,\"\")","v":20},{"$f":"IF(D7=\"Mart\",I7,\"\")","v":""},{"$f":"IF(D7=\"Nisan\",I7,\"\")","v":""},{"$f":"IF(D7=\"Mayıs\",I7,\"\")","v":""},{"$f":"IF(D7=\"Haziran\",I7,\"\")","v":""},{"$f":"IF(D7=\"Temmuz\",I7,\"\")","v":""},{"$f":"IF(D7=\"Ağustos\",I7,\"\")","v":""},{"$f":"IF(D7=\"Eylül\",I7,\"\")","v":""},{"$f":"IF(D7=\"Ekim\",I7,\"\")","v":""},{"$f":"IF(D7=\"Kasım\",I7,\"\")","v":""},{"$f":"IF(D7=\"Aralık\",I7,\"\")","v":""},null,"",20,"","","","","","","","","",""]
[null,null,null,null,null,null,null,null,null,null,null,"","",23,"","","","","","","","","",null,"","",23,"","","","","","","","",""]
[null,null,null,null,null,null,null,null,null,null,null,"","","",20,"","","","","","","","",null,"","","",20,"","","","","","","",""]
[null,null,null,null,null,null,null,null,null,null,null,"","","","",23,"","","","","","","",null,"","","","",23,"","","","","","",""]
[null,null,null,null,null,null,null,null,null,null,null,"","","","","",22,"","","","","","",null,"","","","","",22,"","","","","",""]
[null,null,null,null,null,null,null,null,null,null,null,"","","","","","",21,"","","","","",null,"","","","","","","","","","","",""]
[null,null,null,null,null,null,null,null,null,null,null,"","","","","","","",23,"","","","",null,"","","","","","","",23,"","","",""]
[null,null,null,null,null,null,null,null,null,null,null,"","","","","","","","",21,"","","",null,"","","","","","","","",21,"","",""]
[null,null,null,null,null,null,null,null,null,null,null,"","","","","","","","","",22,"","",null,"","","","","","","","","",22,"",""]
[null,null,null,null,null,null,null,null,null,null,null,"","","","","","","","","","",22,"",null,"","","","","","","","","","",22,""]
[null,null,null,null,null,null,null,null,null,null,null,"","","","","","","","","","","",21,null,"","","","","","","","","","","",21]
[null,null,null,null,null,null,null,null,null,null,null,23,"","","","","","","","","","","",null,23,"","","","","","","","","","",""]
[null,null,null,null,null,null,null,null,null,null,null,"",21,"","","","","","","","","","",null,"",21,"","","","","","","","","",""]
[null,null,null,null,null,null,null,null,null,null,null,"","",21,"","","","","","","","","",null,"","",21,"","","","","","","","",""]
[null,null,null,null,null,null,null,null,null,null,null,"","","",22,"","","","","","","","",null,"","","",22,"","","","","","","",""]
[null,null,null,null,null,null,null,null,null,null,null,"","","","",23,"","","","","","","",null,"","","","",23,"","","","","","",""]
[null,null,null,null,null,null,null,null,null,null,null,"","","","","",20,"","","","","","",null,"","","","","",20,"","","","","",""]
[null,null,null,null,null,null,null,null,null,null,null,"","","","","","",23,"","","","","",null,"","","","","","","","","","","",""]
[null,null,null,null,null,null,null,null,null,null,null,"","","","","","","",22,"","","","",null,"","","","","","","",22,"","","",""]
[null,null,null,null,null,null,null,null,null,null,null,"","","","","","","","",21,"","","",null,"","","","","","","","",21,"","",""]
[null,null,null,null,null,null,null,null,null,null,null,"","","","","","","","","",23,"","",null,"","","","","","","","","",23,"",""]
[null,null,null,null,null,null,null,null,null,null,null,"","","","","","","","","","",21,"",null,"","","","","","","","","","",21,""]
[null,null,null,null,null,null,null,null,null,null,null,"","","","","","","","","","","",22,null,"","","","","","","","","","","",22]
[null,null,null,null,null,null,null,null,null,null,null,23,"","","","","","","","","","","",null,23,"","","","","","","","","","",""]
[null,null,null,null,null,null,null,null,null,null,null,"",20,"","","","","","","","","","",null,"",20,"","","","","","","","","",""]
[null,null,null,null,null,null,null,null,null,null,null,"","",21,"","","","","","","","","",null,"","",21,"","","","","","","","",""]
[null,null,null,null,null,null,null,null,null,null,null,"","","",22,"","","","","","","","",null,"","","",22,"","","","","","","",""]
[null,null,null,null,null,null,null,null,null,null,null,"","","","",22,"","","","","","","",null,"","","","",22,"","","","","","",""]
[null,null,null,null,null,null,null,null,null,null,null,"","","","","",21,"","","","","","",null,"","","","","",21,"","","","","",""]
[null,null,null,null,null,null,null,null,null,null,null,"","","","","","",23,"","","","","",null,"","","","","","","","","","","",""]
[null,null,null,null,null,null,null,null,null,null,null,"","","","","","","",21,"","","","",null,"","","","","","","",21,"","","",""]
[null,null,null,null,null,null,null,null,null,null,null,"","","","","","","","",22,"","","",null,"","","","","","","","",22,"","",""]
[null,null,null,null,null,null,null,null,null,null,null,"","","","","","","","","",23,"","",null,"","","","","","","","","",23,"",""]
[null,null,null,null,null,null,null,null,null,null,null,"","","","","","","","","","",20,"",null,"","","","","","","","","","",20,""]
[null,null,null,null,null,null,null,null,null,null,null,"","","","","","","","","","","",23,null,"","","","","","","","","","","",23]
[null,null,null,null,null,null,null,null,null,null,null,22,"","","","","","","","","","","",null,22,"","","","","","","","","","",""]
[null,null,null,null,null,null,null,null,null,null,null,"",20,"","","","","","","","","","",null,"",20,"","","","","","","","","",""]
[null,null,null,null,null,null,null,null,null,null,null,"","",22,"","","","","","","","","",null,"","",22,"","","","","","","","",""]
[null,null,null,null,null,null,null,null,null,null,null,"","","",22,"","","","","","","","",null,"","","",22,"","","","","","","",""]
[null,null,null,null,null,null,null,null,null,null,null,"","","","",21,"","","","","","","",null,"","","","",21,"","","","","","",""]
[null,null,null,null,null,null,null,null,null,null,null,"","","","","",22,"","","","","","",null,"","","","","",22,"","","","","",""]
[null,null,null,null,null,null,null,null,null,null,null,"","","","","","",23,"","","","","",null,"","","","","","","","","","","",""]
[null,null,null,null,null,null,null,null,null,null,null,"","","","","","","",21,"","","","",null,"","","","","","","",21,"","","",""]
[null,null,null,null,null,null,null,null,null,null,null,"","","","","","","","",22,"","","",null,"","","","","","","","",22,"","",""]
[null,null,null,null,null,null,null,null,null,null,null,"","","","","","","","","",22,"","",null,"","","","","","","","","",22,"",""]
[null,null,null,null,null,null,null,null,null,null,null,"","","","","","","","","","",21,"",null,"","","","","","","","","","",21,""]
[null,null,null,null,null,null,null,null,null,null,null,"","","","","","","","","","","",23,null,"","","","","","","","","","","",23]
[null,null,null,null,null,null,null,null,null,null,null,21,"","","","","","","","","","","",null,21,"","","","","","","","","","",""]
[null,null,null,null,null,null,null,null,null,null,null,"",20,"","","","","","","","","","",null,"",20,"","","","","","","","","",""]
[null,null,null,null,null,null,null,null,null,null,null,"","",23,"","","","","","","","","",null,"","",23,"","","","","","","","",""]
[null,null,null,null,null,null,null,null,null,null,null,"","","",22,"","","","","","","","",null,"","","",22,"","","","","","","",""]
[null,null,null,null,null,null,null,null,null,null,null,"","","","",21,"","","","","","","",null,"","","","",21,"","","","","","",""]
[null,null,null,null,null,null,null,null,null,null,null,"","","","","",22,"","","","","","",null,"","","","","",22,"","","","","",""]
[null,null,null,null,null,null,null,null,null,null,null,"","","","","","",22,"","","","","",null,"","","","","","","","","","","",""]
[null,null,null,null,null,null,null,null,null,null,null,"","","","","","","",22,"","","","",null,"","","","","","","",22,"","","",""]
[null,null,null,null,null,null,null,null,null,null,null,"","","","","","","","",22,"","","",null,"","","","","","","","",22,"","",""]
[null,null,null,null,null,null,null,null,null,null,null,"","","","","","","","","",21,"","",null,"","","","","","","","","",21,"",""]
[null,null,null,null,null,null,null,null,null,null,null,"","","","","","","","","","",22,"",null,"","","","","","","","","","",22,""]
[null,null,null,null,null,null,null,null,null,null,null,"","","","","","","","","","","",23,null,"","","","","","","","","","","",23]
[null,null,null,null,null,null,null,null,null,null,null,21,"","","","","","","","","","","",null,21,"","","","","","","","","","",""]
[null,null,null,null,null,null,null,null,null,null,null,"",21,"","","","","","","","","","",null,"",21,"","","","","","","","","",""]
[null,null,null,null,null,null,null,null,null,null,null,"","",23,"","","","","","","","","",null,"","",23,"","","","","","","","",""]
[null,null,null,null,null,null,null,null,null,null,null,"","","",20,"","","","","","","","",null,"","","",20,"","","","","","","",""]
[null,null,null,null,null,null,null,null,null,null,null,"","","","",23,"","","","","","","",null,"","","","",23,"","","","","","",""]
[null,null,null,null,null,null,null,null,null,null,null,{"$f":"IF(D71=\"ocak\",I71,\"\")","v":""},{"$f":"IF(D71=\"Şubat\",I71,\"\")","v":""},{"$f":"IF(D71=\"Mart\",I71,\"\")","v":""},{"$f":"IF(D71=\"Nisan\",I71,\"\")","v":""},{"$f":"IF(D71=\"Mayıs\",I71,\"\")","v":""},{"$f":"IF(D71=\"Haziran\",I71,\"\")","v":22},{"$f":"IF(D71=\"Temmuz\",I71,\"\")","v":""},{"$f":"IF(D71=\"Ağustos\",I71,\"\")","v":""},{"$f":"IF(D71=\"Eylül\",I71,\"\")","v":""},{"$f":"IF(D71=\"Ekim\",I71,\"\")","v":""},{"$f":"IF(D71=\"Kasım\",I71,\"\")","v":""},{"$f":"IF(D71=\"Aralık\",I71,\"\")","v":""},null,"","","","","",22,"","","","","",""]
[null,null,null,null,null,null,null,null,null,null,null,"","","","","","",21,"","","","","",null,"","","","","","","","","","","",""]
[null,null,null,null,null,null,null,null,null,null,null,"","","","","","","",23,"","","","",null,"","","","","","","",23,"","","",""]
[null,null,null,null,null,null,null,null,null,null,null,"","","","","","","","",21,"","","",null,"","","","","","","","",21,"","",""]
[null,null,null,null,null,null,null,null,null,null,null,"","","","","","","","","",22,"","",null,"","","","","","","","","",22,"",""]
[null,null,null,null,null,null,null,null,null,null,null,"","","","","","","","","","",22,"",null,"","","","","","","","","","",22,""]
[null,null,null,null,null,null,null,null,null,null,null,"","","","","","","","","","","",21,null,"","","","","","","","","","","",21]
[null,null,null,null,null,null,null,null,null,null,null,23,"","","","","","","","","","","",null,23,"","","","","","","","","","",""]
[null,null,null,null,null,null,null,null,null,null,null,"",20,"","","","","","","","","","",null,"",20,"","","","","","","","","",""]
[null,null,null,null,null,null,null,null,null,null,null,"","",22,"","","","","","","","","",null,"","",22,"","","","","","","","",""]
[null,null,null,null,null,null,null,null,null,null,null,"","","",21,"","","","","","","","",null,"","","",21,"","","","","","","",""]
[null,null,null,null,null,null,null,null,null,null,null,"","","","",23,"","","","","","","",null,"","","","",23,"","","","","","",""]
[null,null,null,null,null,null,null,null,null,null,null,"","","","","",21,"","","","","","",null,"","","","","",21,"","","","","",""]
[null,null,null,null,null,null,null,null,null,null,null,"","","","","","",22,"","","","","",null,"","","","","","","","","","","",""]
[null,null,null,null,null,null,null,null,null,null,null,"","","","","","","",23,"","","","",null,"","","","","","","",23,"","","",""]
[null,null,null,null,null,null,null,null,null,null,null,"","","","","","","","",20,"","","",null,"","","","","","","","",20,"","",""]
[null,null,null,null,null,null,null,null,null,null,null,"","","","","","","","","",23,"","",null,"","","","","","","","","",23,"",""]
[null,null,null,null,null,null,null,null,null,null,null,"","","","","","","","","","",22,"",null,"","","","","","","","","","",22,""]
[null,null,null,null,null,null,null,null,null,null,null,"","","","","","","","","","","",21,null,"","","","","","","","","","","",21]
[null,null,null,null,null,null,null,null,null,null,null,23,"","","","","","","","","","","",null,23,"","","","","","","","","","",""]
[null,null,null,null,null,null,null,null,null,null,null,"",20,"","","","","","","","","","",null,"",20,"","","","","","","","","",""]
[null,null,null,null,null,null,null,null,null,null,null,"","",21,"","","","","","","","","",null,"","",21,"","","","","","","","",""]
[null,null,null,null,null,null,null,null,null,null,null,"","","",22,"","","","","","","","",null,"","","",22,"","","","","","","",""]
[null,null,null,null,null,null,null,null,null,null,null,"","","","",23,"","","","","","","",null,"","","","",23,"","","","","","",""]
[null,null,null,null,null,null,null,null,null,null,null,"","","","","",20,"","","","","","",null,"","","","","",20,"","","","","",""]
[null,null,null,null,null,null,null,null,null,null,null,"","","","","","",23,"","","","","",null,"","","","","","","","","","","",""]
[null,null,null,null,null,null,null,null,null,null,null,"","","","","","","",22,"","","","",null,"","","","","","","",22,"","","",""]
[null,null,null,null,null,null,null,null,null,null,null,"","","","","","","","",21,"","","",null,"","","","","","","","",21,"","",""]
[null,null,null,null,null,null,null,null,null,null,null,"","","","","","","","","",23,"","",null,"","","","","","","","","",23,"",""]
[null,null,null,null,null,null,null,null,null,null,null,"","","","","","","","","","",21,"",null,"","","","","","","","","","",21,""]
[null,null,null,null,null,null,null,null,null,null,null,"","","","","","","","","","","",22,null,"","","","","","","","","","","",22]
[null,null,null,null,null,null,null,null,null,null,null,"","","","","","","","","","","",""]
[null,null,null,null,null,null,null,null,null,null,null,"","","","","","","","","","","",""]
[null,null,null,null,null,null,null,null,null,null,null,"","","","","","","","","","","",""]
[null,null,null,null,null,null,null,null,null,null,null,"","","","","","","","","","","",""]
[null,null,null,null,null,null,null,null,null,null,null,"","","","","","","","","","","",""]
[null,null,null,null,null,null,null,null,null,null,null,"","","","","","","","","","","",""]
[null,null,null,null,null,null,null,null,null,null,null,"","","","","","","","","","","",""]
[null,null,null,null,null,null,null,null,null,null,null,"","","","","","","","","","","",""]
[null,null,null,null,null,null,null,null,null,null,null,"","","","","","","","","","","",""]
[null,null,null,null,null,null,null,null,null,null,null,"","","","","","","","","","","",""]
[null,null,null,null,null,null,null,null,null,null,null,"","","","","","","","","","","",""]
[null,null,null,null,null,null,null,null,null,null,null,"","","","","","","","","","","",""]
[null,null,null,null,null,null,null,null,null,null,null,"","","","","","","","","","","",""]
[null,null,null,null,null,null,null,null,null,null,null,"","","","","","","","","","","",""]
[null,null,null,null,null,null,null,null,null,null,null,"","","","","","","","","","","",""]
[null,null,null,null,null,null,null,null,null,null,null,"","","","","","","","","","","",""]
[null,null,null,null,null,null,null,null,null,null,null,"","","","","","","","","","","",""]
[null,null,null,null,null,null,null,null,null,null,null,"","","","","","","","","","","",""]
[null,null,null,null,null,null,null,null,null,null,null,"","","","","","","","","","","",""]
[null,null,null,null,null,null,null,null,null,null,null,"","","","","","","","","","","",""]
[null,null,null,null,null,null,null,null,null,null,null,"","","","","","","","","","","",""]
[null,null,null,null,null,null,null,null,null,null,null,"","","","","","","","","","","",""]
[null,null,null,null,null,null,null,null,null,null,null,"","","","","","","","","","","",""]
[null,null,null,null,null,null,null,null,null,null,null,"","","","","","","","","","","",""]
[null,null,null,null,null,null,null,null,null,null,null,"","","","","","","","","","","",""]
[null,null,null,null,null,null,null,null,null,null,null,"","","","","","","","","","","",""]
[null,null,null,null,null,null,null,null,null,null,null,"","","","","","","","","","","",""]
[null,null,null,null,null,null,null,null,null,null,null,"","","","","","","","","","","",""]
[null,null,null,null,null,null,null,null,null,null,null,"","","","","","","","","","","",""]
[null,null,null,null,null,null,null,null,null,null,null,"","","","","","","","","","","",""]
[null,null,null,null,null,null,null,null,null,null,null,"","","","","","","","","","","",""]
[null,null,null,null,null,null,null,null,null,null,null,"","","","","","","","","","","",""]
[null,null,null,null,null,null,null,null,null,null,null,"","","","","","","","","","","",""]
[null,null,null,null,null,null,null,null,null,null,null,{"$f":"IF(D135=\"ocak\",I135,\"\")","v":""},{"$f":"IF(D135=\"Şubat\",I135,\"\")","v":""},{"$f":"IF(D135=\"Mart\",I135,\"\")","v":""},{"$f":"IF(D135=\"Nisan\",I135,\"\")","v":""},{"$f":"IF(D135=\"Mayıs\",I135,\"\")","v":""},{"$f":"IF(D135=\"Haziran\",I135,\"\")","v":""},{"$f":"IF(D135=\"Temmuz\",I135,\"\")","v":""},{"$f":"IF(D135=\"Ağustos\",I135,\"\")","v":""},{"$f":"IF(D135=\"Eylül\",I135,\"\")","v":""},{"$f":"IF(D135=\"Ekim\",I135,\"\")","v":""},{"$f":"IF(D135=\"Kasım\",I135,\"\")","v":""},{"$f":"IF(D135=\"Aralık\",I135,\"\")","v":""}]
[null,null,null,null,null,null,null,null,null,null,null,"","","","","","","","","","","",""]
[null,null,null,null,null,null,null,null,null,null,null,"","","","","","","","","","","",""]
[null,null,null,null,null,null,null,null,null,null,null,"","","","","","","","","","","",""]
[null,null,null,null,null,null,null,null,null,null,null,"","","","","","","","","","","",""]
[null,null,null,null,null,null,null,null,null,null,null,"","","","","","","","","","","",""]
[null,null,null,null,null,null,null,null,null,null,null,"","","","","","","","","","","",""]
[null,null,null,null,null,null,null,null,null,null,null,"","","","","","","","","","","",""]
[null,null,null,null,null,null,null,null,null,null,null,"","","","","","","","","","","",""]
[null,null,null,null,null,null,null,null,null,null,null,"","","","","","","","","","","",""]
[null,null,null,null,null,null,null,null,null,null,null,"","","","","","","","","","","",""]
[null,null,null,null,null,null,null,null,null,null,null,"","","","","","","","","","","",""]
[null,null,null,null,null,null,null,null,null,null,null,"","","","","","","","","","","",""]
[null,null,null,null,null,null,null,null,null,null,null,"","","","","","","","","","","",""]
[null,null,null,null,null,null,null,null,null,null,null,"","","","","","","","","","","",""]
[null,null,null,null,null,null,null,null,null,null,null,"","","","","","","","","","","",""]
[null,null,null,null,null,null,null,null,null,null,null,"","","","","","","","","","","",""]
[null,null,null,null,null,null,null,null,null,null,null,"","","","","","","","","","","",""]
[null,null,null,null,null,null,null,null,null,null,null,"","","","","","","","","","","",""]
[null,null,null,null,null,null,null,null,null,null,null,"","","","","","","","","","","",""]
[null,null,null,null,null,null,null,null,null,null,null,"","","","","","","","","","","",""]
[null,null,null,null,null,null,null,null,null,null,null,"","","","","","","","","","","",""]
[null,null,null,null,null,null,null,null,null,null,null,"","","","","","","","","","","",""]
[null,null,null,null,null,null,null,null,null,null,null,"","","","","","","","","","","",""]
[null,null,null,null,null,null,null,null,null,null,null,"","","","","","","","","","","",""]
[null,null,null,null,null,null,null,null,null,null,null,"","","","","","","","","","","",""]
[null,null,null,null,null,null,null,null,null,null,null,"","","","","","","","","","","",""]
[null,null,null,null,null,null,null,null,null,null,null,"","","","","","","","","","","",""]
[null,null,null,null,null,null,null,null,null,null,null,"","","","","","","","","","","",""]
[null,null,null,null,null,null,null,null,null,null,null,"","","","","","","","","","","",""]
[null,null,null,null,null,null,null,null,null,null,null,"","","","","","","","","","","",""]
[null,null,null,null,null,null,null,null,null,null,null,"","","","","","","","","","","",""]
[null,null,null,null,null,null,null,null,null,null,null,"","","","","","","","","","","",""]
[null,null,null,null,null,null,null,null,null,null,null,"","","","","","","","","","","",""]
[null,null,null,null,null,null,null,null,null,null,null,"","","","","","","","","","","",""]
[null,null,null,null,null,null,null,null,null,null,null,"","","","","","","","","","","",""]
[null,null,null,null,null,null,null,null,null,null,null,"","","","","","","","","","","",""]
[null,null,null,null,null,null,null,null,null,null,null,"","","","","","","","","","","",""]
[null,null,null,null,null,null,null,null,null,null,null,"","","","","","","","","","","",""]
[null,null,null,null,null,null,null,null,null,null,null,"","","","","","","","","","","",""]
[null,null,null,null,null,null,null,null,null,null,null,"","","","","","","","","","","",""]
[null,null,null,null,null,null,null,null,null,null,null,"","","","","","","","","","","",""]
[null,null,null,null,null,null,null,null,null,null,null,"","","","","","","","","","","",""]
[null,null,null,null,null,null,null,null,null,null,null,"","","","","","","","","","","",""]
[null,null,null,null,null,null,null,null,null,null,null,"","","","","","","","","","","",""]
[null,null,null,null,null,null,null,null,null,null,null,"","","","","","","","","","","",""]
[null,null,null,null,null,null,null,null,null,null,null,"","","","","","","","","","","",""]
[null,null,null,null,null,null,null,null,null,null,null,"","","","","","","","","","","",""]
[null,null,null,null,null,null,null,null,null,null,null,"","","","","","","","","","","",""]
[null,null,null,null,null,null,null,null,null,null,null,"","","","","","","","","","","",""]
[null,null,null,null,null,null,null,null,null,null,null,"","","","","","","","","","","",""]
[null,null,null,null,null,null,null,null,null,null,null,"","","","","","","","","","","",""]
[null,null,null,null,null,null,null,null,null,null,null,"","","","","","","","","","","",""]
[null,null,null,null,null,null,null,null,null,null,null,"","","","","","","","","","","",""]
[null,null,null,null,null,null,null,null,null,null,null,"","","","","","","","","","","",""]
[null,null,null,null,null,null,null,null,null,null,null,"","","","","","","","","","","",""]
[null,null,null,null,null,null,null,null,null,null,null,"","","","","","","","","","","",""]
[null,null,null,null,null,null,null,null,null,null,null,"","","","","","","","","","","",""]
[null,null,null,null,null,null,null,null,null,null,null,"","","","","","","","","","","",""]
[null,null,null,null,null,null,null,null,null,null,null,"","","","","","","","","","","",""]
[null,null,null,null,null,null,null,null,null,null,null,"","","","","","","","","","","",""]
[null,null,null,null,null,null,null,null,null,null,null,"","","","","","","","","","","",""]
[null,null,null,null,null,null,null,null,null,null,null,"","","","","","","","","","","",""]
[null,null,null,null,null,null,null,null,null,null,null,""]
[null,null,null,null,null,null,null,null,null,null,null,{"$f":"IF(D199=\"ocak\",I199,\"\")","v":""}]
[null,null,null,null,null,null,null,null,null,null,null,""]
[null,null,null,null,null,null,null,null,null,null,null,""]
[null,null,null,null,null,null,null,null,null,null,null,""]
[null,null,null,null,null,null,null,null,null,null,null,""]
[null,null,null,null,null,null,null,null,null,null,null,""]
[null,null,null,null,null,null,null,null,null,null,null,""]
[null,null,null,null,null,null,null,null,null,null,null,""]
[null,null,null,null,null,null,null,null,null,null,null,""]
[null,null,null,null,null,null,null,null,null,null,null,""]
[null,null,null,null,null,null,null,null,null,null,null,""]
[null,null,null,null,null,null,null,null,null,null,null,""]
[null,null,null,null,null,null,null,null,null,null,null,""]
[null,null,null,null,null,null,null,null,null,null,null,""]
[null,null,null,null,null,null,null,null,null,null,null,""]
[null,null,null,null,null,null,null,null,null,null,null,""]
[null,null,null,null,null,null,null,null,null,null,null,""]
[null,null,null,null,null,null,null,null,null,null,null,""]
[null,null,null,null,null,null,null,null,null,null,null,""]
[null,null,null,null,null,null,null,null,null,null,null,""]
[null,null,null,null,null,null,null,null,null,null,null,""]
[null,null,null,null,null,null,null,null,null,null,null,""]
[null,null,null,null,null,null,null,null,null,null,null,""]
[null,null,null,null,null,null,null,null,null,null,null,""]
[null,null,null,null,null,null,null,null,null,null,null,""]
[null,null,null,null,null,null,null,null,null,null,null,""]
[null,null,null,null,null,null,null,null,null,null,null,""]
[null,null,null,null,null,null,null,null,null,null,null,""]
[null,null,null,null,null,null,null,null,null,null,null,""]
[null,null,null,null,null,null,null,null,null,null,null,""]
[null,null,null,null,null,null,null,null,null,null,null,""]
[null,null,null,null,null,null,null,null,null,null,null,""]
[null,null,null,null,null,null,null,null,null,null,null,""]
[null,null,null,null,null,null,null,null,null,null,null,""]
[null,null,null,null,null,null,null,null,null,null,null,""]
[null,null,null,null,null,null,null,null,null,null,null,""]
[null,null,null,null,null,null,null,null,null,null,null,""]
[null,null,null,null,null,null,null,null,null,null,null,""]
[null,null,null,null,null,null,null,null,null,null,null,""]
[null,null,null,null,null,null,null,null,null,null,null,""]
[null,null,null,null,null,null,null,null,null,null,null,""]
[null,null,null,null,null,null,null,null,null,null,null,""]
[null,null,null,null,null,null,null,null,null,null,null,""]
[null,null,null,null,null,null,null,null,null,null,null,""]
[null,null,null,null,null,null,null,null,null,null,null,""]
[null,null,null,null,null,null,null,null,null,null,null,""]
[null,null,null,null,null,null,null,null,null,null,null,""]
[null,null,null,null,null,null,null,null,null,null,null,""]
[null,null,null,null,null,null,null,null,null,null,null,""]
[null,null,null,null,null,null,null,null,null,null,null,""]
[null,null,null,null,null,null,null,null,null,null,null,""]
[null,null,null,null,null,null,null,null,null,null,null,""]
[null,null,null,null,null,null,null,null,null,null,null,""]
[null,null,null,null,null,null,null,null,null,null,null,""]
[null,null,null,null,null,null,null,null,null,null,null,""]
[null,null,null,null,null,null,null,null,null,null,null,""]
[null,null,null,null,null,null,null,null,null,null,null,""]
[null,null,null,null,null,null,null,null,null,null,null,""]
[null,null,null,null,null,null,null,null,null,null,null,""]
[null,null,null,null,null,null,null,null,null,null,null,""]
[null,null,null,null,null,null,null,null,null,null,null,""]
[null,null,null,null,null,null,null,null,null,null,null,""]
[null,null,null,null,null,null,null,null,null,null,null,""]
[null,null,null,null,null,null,null,null,null,null,null,""]
[null,null,null,null,null,null,null,null,null,null,null,{"$f":"IF(D263=\"ocak\",I263,\"\")","v":""}]
[null,null,null,null,null,null,null,null,null,null,null,""]
[null,null,null,null,null,null,null,null,null,null,null,""]
[null,null,null,null,null,null,null,null,null,null,null,""]
[null,null,null,null,null,null,null,null,null,null,null,""]
[null,null,null,null,null,null,null,null,null,null,null,""]
[null,null,null,null,null,null,null,null,null,null,null,""]
[null,null,null,null,null,null,null,null,null,null,null,""]
[null,null,null,null,null,null,null,null,null,null,null,""]
[null,null,null,null,null,null,null,null,null,null,null,""]
[null,null,null,null,null,null,null,null,null,null,null,""]
[null,null,null,null,null,null,null,null,null,null,null,""]
[null,null,null,null,null,null,null,null,null,null,null,""]
[null,null,null,null,null,null,null,null,null,null,null,""]
[null,null,null,null,null,null,null,null,null,null,null,""]
[null,null,null,null,null,null,null,null,null,null,null,""]
[null,null,null,null,null,null,null,null,null,null,null,""]
[null,null,null,null,null,null,null,null,null,null,null,""]
[null,null,null,null,null,null,null,null,null,null,null,""]
[null,null,null,null,null,null,null,null,null,null,null,""]
[null,null,null,null,null,null,null,null,null,null,null,""]
[null,null,null,null,null,null,null,null,null,null,null,""]
[null,null,null,null,null,null,null,null,null,null,null,""]
[null,null,null,null,null,null,null,null,null,null,null,""]
[null,null,null,null,null,null,null,null,null,null,null,""]
[null,null,null,null,null,null,null,null,null,null,null,""]
[null,null,null,null,null,null,null,null,null,null,null,""]
[null,null,null,null,null,null,null,null,null,null,null,""]
[null,null,null,null,null,null,null,null,null,null,null,""]
[null,null,null,null,null,null,null,null,null,null,null,""]
[null,null,null,null,null,null,null,null,null,null,null,""]
[null,null,null,null,null,null,null,null,null,null,null,""]
[null,null,null,null,null,null,null,null,null,null,null,""]
[null,null,null,null,null,null,null,null,null,null,null,""]
[null,null,null,null,null,null,null,null,null,null,null,""]
[null,null,null,null,null,null,null,null,null,null,null,""]
[null,null,null,null,null,null,null,null,null,null,null,""]
[null,null,null,null,null,null,null,null,null,null,null,""]
[null,null,null,null,null,null,null,null,null,null,null,""]
[null,null,null,null,null,null,null,null,null,null,null,""]
[null,null,null,null,null,null,null,null,null,null,null,""]
[null,null,null,null,null,null,null,null,null,null,null,""]
[null,null,null,null,null,null,null,null,null,null,null,""]
[null,null,null,null,null,null,null,null,null,null,null,""]
[null,null,null,null,null,null,null,null,null,null,null,""]
[null,null,null,null,null,null,null,null,null,null,null,""]
[null,null,null,null,null,null,null,null,null,null,null,""]
[null,null,null,null,null,null,null,null,null,null,null,""]
[null,null,null,null,null,null,null,null,null,null,null,""]
[null,null,null,null,null,null,null,null,null,null,null,""]
[null,null,null,null,null,null,null,null,null,null,null,""]